Workbook

Sheet Settings
B2: Race name: | C2: Eurotrial Finland 2025 : 18-20.7.2025 - Results
B12: File save bath: | C12: C:\Users\Mylppy\OneDrive - Tietopartio Oy\4x4cup\Eurotrial2025\Tuloslaskenta\tulokset | G12: <- Save Bath
C13: Eurotrial_2025_Results_Long | G13: <- File name for all pages
C14: Eurotrial_2025_Result_Short | G14: <- File name for result page only

Sheet Original
B1: =Settings!C2 -> Eurotrial Finland 2025 : 18-20.7.2025 - Results | V1: =NOW() -> 2025-07-20T20:32:14.320 | AD1: =B1 -> Eurotrial Finland 2025 : 18-20.7.2025 - Results | AT1: =B1 -> Eurotrial Finland 2025 : 18-20.7.2025 - Results | BE1: =B1 -> Eurotrial Finland 2025 : 18-20.7.2025 - Results | BP1: =B1 -> Eurotrial Finland 2025 : 18-20.7.2025 - Results | CA1: =B1 -> Eurotrial Finland 2025 : 18-20.7.2025 - Results | CL1: =B1 -> Eurotrial Finland 2025 : 18-20.7.2025 - Results | CW1: =B1 -> Eurotrial Finland 2025 : 18-20.7.2025 - Results | DH1: =B1 -> Eurotrial Finland 2025 : 18-20.7.2025 - Results | DS1: =B1 -> Eurotrial Finland 2025 : 18-20.7.2025 - Results | ED1: =B1 -> Eurotrial Finland 2025 : 18-20.7.2025 - Results | EO1: =B1 -> Eurotrial Finland 2025 : 18-20.7.2025 - Results | EZ1: =B1 -> Eurotrial Finland 2025 : 18-20.7.2025 - Results | FK1: =B1 -> Eurotrial Finland 2025 : 18-20.7.2025 - Results | FV1: =B1 -> Eurotrial Finland 2025 : 18-20.7.2025 - Results | GG1: =B1 -> Eurotrial Finland 2025 : 18-20.7.2025 - Results | GR1: =B1 -> Eurotrial Finland 2025 : 18-20.7.2025 - Results | HC1: =B1 -> Eurotrial Finland 2025 : 18-20.7.2025 - Results | HN1: =B1 -> Eurotrial Finland 2025 : 18-20.7.2025 - Results | HY1: =B1 -> Eurotrial Finland 2025 : 18-20.7.2025 - Results
B2: Class: Original | AD2: =B2 -> Class: Original | AT2: =B2 -> Class: Original | BC2: =AT3 -> Section L1 | BE2: =B2 -> Class: Original | BN2: =BE3 -> Section L2 | BP2: =B2 -> Class: Original | BY2: =BP3 -> Section L3 | CA2: =B2 -> Class: Original | CJ2: =CA3 -> Section L4 | CL2: =B2 -> Class: Original | CU2: =CL3 -> Section L5 | CW2: =B2 -> Class: Original | DF2: =CW3 -> Section L6 | DH2: =B2 -> Class: Original | DQ2: =DH3 -> Section L7 | DS2: =B2 -> Class: Original | EB2: =DS3 -> Section L9 | ED2: =B2 -> Class: Original | EM2: =ED3 -> Section S1 | EO2: =B2 -> Class: Original | EX2: =EO3 -> Section S2 | EZ2: =B2 -> Class: Original | FI2: =EZ3 -> Section S3 | FK2: =B2 -> Class: Original | FT2: =FK3 -> Section S4 | FV2: =B2 -> Class: Original | GE2: =FV3 -> Section S5 | GG2: =B2 -> Class: Original | GP2: =GG3 -> Section S6 | GR2: =B2 -> Class: Original | HA2: =GR3 -> Section S7 | HC2: =B2 -> Class: Original | HL2: =HC3 -> Section S9 | HN2: =B2 -> Class: Original | HW2: =HN3 -> Run-off section 1 | HY2: =B2 -> Class: Original | IH2: =HY3 -> Run-off section 2
AP3: Helper columns for ordering | AT3: Section L1 | AV3: =AT3 -> Section L1 | AX3: =AT3 -> Section L1 | AZ3: =AT3 -> Section L1 | BB3: =AT3 -> Section L1 | BE3: Section L2 | BG3: =BE3 -> Section L2 | BI3: =BE3 -> Section L2 | BK3: =BE3 -> Section L2 | BM3: =BE3 -> Section L2 | BP3: Section L3 | BR3: =BP3 -> Section L3 | BT3: =BP3 -> Section L3 | BV3: =BP3 -> Section L3 | BX3: =BP3 -> Section L3 | CA3: Section L4 | CC3: =CA3 -> Section L4 | CE3: =CA3 -> Section L4 | CG3: =CA3 -> Section L4 | CI3: =CA3 -> Section L4 | CL3: Section L5 | CN3: =CL3 -> Section L5 | CP3: =CL3 -> Section L5 | CR3: =CL3 -> Section L5 | CT3: =CL3 -> Section L5 | CW3: Section L6 | CY3: =CW3 -> Section L6 | DA3: =CW3 -> Section L6 | DC3: =CW3 -> Section L6 | DE3: =CW3 -> Section L6 | DH3: Section L7 | DJ3: =DH3 -> Section L7 | DL3: =DH3 -> Section L7 | DN3: =DH3 -> Section L7 | DP3: =DH3 -> Section L7 | DS3: Section L9 | DU3: =DS3 -> Section L9 | DW3: =DS3 -> Section L9 | DY3: =DS3 -> Section L9 | EA3: =DS3 -> Section L9 | ED3: Section S1 | EF3: =ED3 -> Section S1 | EH3: =ED3 -> Section S1 | EJ3: =ED3 -> Section S1 | EL3: =ED3 -> Section S1 | EO3: Section S2 | EQ3: =EO3 -> Section S2 | ES3: =EO3 -> Section S2 | EU3: =EO3 -> Section S2 | EW3: =EO3 -> Section S2 | EZ3: Section S3 | FB3: =EZ3 -> Section S3 | FD3: =EZ3 -> Section S3 | FF3: =EZ3 -> Section S3 | FH3: =EZ3 -> Section S3 | FK3: Section S4 | FM3: =FK3 -> Section S4 | FO3: =FK3 -> Section S4 | FQ3: =FK3 -> Section S4 | FS3: =FK3 -> Section S4 | FV3: Section S5 | FX3: =FV3 -> Section S5 | FZ3: =FV3 -> Section S5 | GB3: =FV3 -> Section S5 | GD3: =FV3 -> Section S5 | GG3: Section S6 | GI3: =GG3 -> Section S6 | GK3: =GG3 -> Section S6 | GM3: =GG3 -> Section S6 | GO3: =GG3 -> Section S6 | GR3: Section S7 | GT3: =GR3 -> Section S7 | GV3: =GR3 -> Section S7 | GX3: =GR3 -> Section S7 | GZ3: =GR3 -> Section S7 | HC3: Section S9 | HE3: =HC3 -> Section S9 | HG3: =HC3 -> Section S9 | HI3: =HC3 -> Section S9 | HK3: =HC3 -> Section S9 | HN3: Run-off section 1 | HP3: Run-off section 1 | HR3: Run-off section 1 | HT3: Run-off section 1 | HV3: Run-off section 1 | HY3: Run-off section 2 | IA3: Run-off section 2 | IC3: Run-off section 2 | IE3: Run-off section 2 | IG3: Run-off section 2
B4: Pos. | C4: Race # | D4: Team | E4: Car | F4: Driver | G4: Co-Driver | H4: L1 | I4: L2 | J4: L3 | K4: L4 | L4: L5 | M4: L6 | N4: L7 | O4: L9 | P4: S1 | Q4: S2 | R4: S3 | S4: S4 | T4: S5 | U4: S6 | V4: S7 | W4: S9 | X4: Extra penalty | Y4: Run-off 1 | Z4: Run-off 2 | AA4: Total | AD4: Race # | AE4: Car base reverse points | AF4: Car width (mm) | AG4: Car wheelbase (mm) | AH4: "Magic Number" | AI4: Traditional reverse points | AJ4: Extra penalty | AK4: Extra penalty reason | AL4: DNF/DSQ (1 if DNF 2 if DSQ) | AM4: Ended race (1 if ok) | AN4: Order change (1 = go higher) | AP4: Result points, do not change | AQ4: Run-off points do not change | AT4: Race # | AU4: Reverse | AV4: Touching / Driving under (5) | AW4: Broken post / stick (25) | AX4: Not Passed Gate (50) | AY4: Section not completed (50) | AZ4: Not driven section (500) | BA4: Comment | BB4: Clean (1 = ok) | BC4: Total | BE4: Race # | BF4: Reverse | BG4: Touching / Driving under (5) | BH4: Broken post / stick (25) | BI4: Not Passed Gate (50) | BJ4: Section not completed (50) | BK4: Not driven section (500) | BL4: Comment | BM4: Clean (1 = ok) | BN4: Total | BP4: Race # | BQ4: Reverse | BR4: Touching / Driving under (5) | BS4: Broken post / stick (25) | BT4: Not Passed Gate (50) | BU4: Section not completed (50) | BV4: Not driven section (500) | BW4: Comment | BX4: Clean (1 = ok) | BY4: Total | CA4: Race # | CB4: Reverse | CC4: Touching / Driving under (5) | CD4: Broken post / stick (25) | CE4: Not Passed Gate (50) | CF4: Section not completed (50) | CG4: Not driven section (500) | CH4: Comment | CI4: Clean (1 = ok) | CJ4: Total | CL4: Race # | CM4: Reverse | CN4: Touching / Driving under (5) | CO4: Broken post / stick (25) | CP4: Not Passed Gate (50) | CQ4: Section not completed (50) | CR4: Not driven section (500) | CS4: Comment | CT4: Clean (1 = ok) | CU4: Total | CW4: Race # | CX4: Reverse | CY4: Touching / Driving under (5) | CZ4: Broken post / stick (25) | DA4: Not Passed Gate (50) | DB4: Section not completed (50) | DC4: Not driven section (500) | DD4: Comment | DE4: Clean (1 = ok) | DF4: Total | DH4: Race # | DI4: Reverse | DJ4: Touching / Driving under (5) | DK4: Broken post / stick (25) | DL4: Not Passed Gate (50) | DM4: Section not completed (50) | DN4: Not driven section (500) | DO4: Comment | DP4: Clean (1 = ok) | DQ4: Total | DS4: Race # | DT4: Reverse | DU4: Touching / Driving under (5) | DV4: Broken post / stick (25) | DW4: Not Passed Gate (50) | DX4: Section not completed (50) | DY4: Not driven section (500) | DZ4: Comment | EA4: Clean (1 = ok) | EB4: Total | ED4: Race # | EE4: Reverse | EF4: Touching / Driving under (5) | EG4: Broken post / stick (25) | EH4: Not Passed Gate (50) | EI4: Section not completed (50) | EJ4: Not driven section (500) | EK4: Comment | EL4: Clean (1 = ok) | EM4: Total | EO4: Race # | EP4: Reverse | EQ4: Touching / Driving under (5) | ER4: Broken post / stick (25) | ES4: Not Passed Gate (50) | ET4: Section not completed (50) | EU4: Not driven section (500) | EV4: Comment | EW4: Clean (1 = ok) | EX4: Total | EZ4: Race # | FA4: Reverse | FB4: Touching / Driving under (5) | FC4: Broken post / stick (25) | FD4: Not Passed Gate (50) | FE4: Section not completed (50) | FF4: Not driven section (500) | FG4: Comment | FH4: Clean (1 = ok) | FI4: Total | FK4: Race # | FL4: Reverse | FM4: Touching / Driving under (5) | FN4: Broken post / stick (25) | FO4: Not Passed Gate (50) | FP4: Section not completed (50) | FQ4: Not driven section (500) | FR4: Comment | FS4: Clean (1 = ok) | FT4: Total | FV4: Race # | FW4: Reverse | FX4: Touching / Driving under (5) | FY4: Broken post / stick (25) | FZ4: Not Passed Gate (50) | GA4: Section not completed (50) | GB4: Not driven section (500) | GC4: Comment | GD4: Clean (1 = ok) | GE4: Total | GG4: Race # | GH4: Reverse | GI4: Touching / Driving under (5) | GJ4: Broken post / stick (25) | GK4: Not Passed Gate (50) | GL4: Section not completed (50) | GM4: Not driven section (500) | GN4: Comment | GO4: Clean (1 = ok) | GP4: Total | GR4: Race # | GS4: Reverse | GT4: Touching / Driving under (5) | GU4: Broken post / stick (25) | GV4: Not Passed Gate (50) | GW4: Section not completed (50) | GX4: Not driven section (500) | GY4: Comment | GZ4: Clean (1 = ok) | HA4: Total | HC4: Race # | HD4: Reverse | HE4: Touching / Driving under (5) | HF4: Broken post / stick (25) | HG4: Not Passed Gate (50) | HH4: Section not completed (50) | HI4: Not driven section (500) | HJ4: Comment | HK4: Clean (1 = ok) | HL4: Total | HN4: Race # | HO4: Reverse | HP4: Touching / Driving under (5) | HQ4: Broken post / stick (25) | HR4: Not Passed Gate (50) | HS4: Section not completed (50) | HT4: Not driven section (500) | HU4: Comment | HV4: Clean (1 = ok) | HW4: Total | HY4: Race # | HZ4: Reverse | IA4: Touching / Driving under (5) | IB4: Broken post / stick (25) | IC4: Not Passed Gate (50) | ID4: Section not completed (50) | IE4: Not driven section (500) | IF4: Comment | IG4: Clean (1 = ok) | IH4: Total
B5: =IF(C5=0,"",ROW(C5)-4) -> 1 | C5: 107 | D5: Finland | E5: Toyota RJ70 | F5: Sinisalo Tarmo | G5: Uimonen Mika | H5: =IF(C5=0,"",IF(OR(BB5=1,BC5<>0),BC5,"-")) -> 0 | I5: =IF(C5=0,"",IF(OR(BM5=1,BN5<>0),BN5,"-")) -> 0 | J5: =IF(C5=0,"",IF(OR(BX5=1,BY5<>0),BY5," -")) -> 3.042596349 | K5: =IF(C5=0,"",IF(OR(CJ5<>0,CI5=1),CJ5," -")) -> 0 | L5: =IF(C5=0,"",IF(OR(CU5<>0,CT5=1),CU5," -")) -> 17.24137931 | M5: =IF(C5=0,"",IF(OR(DF5<>0,DE5=1),DF5," -")) -> 1.521298174 | N5: =IF(C5=0,"",IF(OR(DQ5<>0,DP5=1),DQ5," -")) -> 0 | O5: =IF(C5=0,"",IF(OR(EB5<>0,EA5=1),EB5," -")) -> 0 | P5: =IF(C5=0,"",IF(OR(EM5<>0,EL5=1),EM5," -")) -> 2.535496957 | Q5: =IF(C5=0,"",IF(OR(EX5<>0,EW5=1),EX5," -")) -> 0 | R5: =IF(C5=0,"",IF(OR(FI5<>0,FH5=1),FI5," -")) -> 3.042596349 | S5: =IF(C5=0,"",IF(OR(FT5<>0,FS5=1),FT5," -")) -> 0 | T5: =IF(C5=0,"",IF(OR(GE5<>0,GD5=1),GE5," -")) -> 0 | U5: =IF(C5=0,"",IF(OR(GP5<>0,GO5=1),GP5," -")) -> 3.042596349 | V5: =IF(C5=0,"",IF(OR(HA5<>0,GZ5=1),HA5," -")) -> 0 | W5: =IF(C5=0,"",IF(OR(HL5<>0,HK5=1),HL5," -")) -> 3.042596349 | X5: =IF(C5=0,"",IF(AJ5<>0,AJ5," -")) -> - | Y5: =IF(C5=0,"",IF(OR(HW5<>0,HV5=1),HW5," -")) -> - | Z5: =IF(C5=0,"",IF(OR(IH5<>0,IG5=1),IH5," -")) -> - | AA5: =IF(C5=0,"",IF(AL5=1,"DNF",IF(AL5=2,"DSQ",IF(AM5<>1,"~ "&ROUND(SUM(H5:X5),3),ROUND(SUM(H5:X5),3))))) -> 33.469 | AD5: =IF(C5<>"",C5,"") -> 107 | AE5: =IF(AD5<>"",3,"") -> 3 | AF5: 1700 | AG5: 2320 | AH5: =IF(AD5<>"",(AF5/1000*AG5/1000)/2,"") -> 1.972 | AI5: 3 | AM5: 1 | AP5: =IF(C5=0,99999,IF(AL5>0,9999,SUM(H5:X5)-AN5)) -> 33.46855984 | AQ5: =IF(C5=0,99999,IF(AL5=1,9999,SUM(Y5:Z5))) -> 0 | AT5: =IF(C5<>"",C5,"") -> 107 | BB5: 1 | BC5: =IF($C5="","", IF(BB5=1,0,IF(AZ5<>0,500,AU5*$AE5/$AH5+AV5/$AH5*5+AW5/$AH5*25+AX5*50+AY5*50))) -> 0 | BE5: =IF(C5<>"",C5,"") -> 107 | BM5: 1 | BN5: =IF($C5="","", IF(BM5=1,0,IF(BK5<>0,500,BF5*$AE5/$AH5+BG5/$AH5*5+BH5/$AH5*25+BI5*50+BJ5*50))) -> 0 | BP5: =IF(C5<>"",C5,"") -> 107 | BQ5: 2 | BY5: =IF($C5="","", IF(BX5=1,0,IF(BV5<>0,500,BQ5*$AE5/$AH5+BR5/$AH5*5+BS5/$AH5*25+BT5*50+BU5*50))) -> 3.042596349 | CA5: =IF(C5<>"",C5,"") -> 107 | CI5: 1 | CJ5: =IF($C5="","", IF(CI5=1,0,IF(CG5<>0,500,CB5*$AE5/$AH5+CC5/$AH5*5+CD5/$AH5*25+CE5*50+CF5*50))) -> 0 | CL5: =IF(C5<>"",C5,"") -> 107 | CM5: 3 | CO5: 1 | CU5: =IF($C5="","", IF(CT5=1,0,IF(CR5<>0,500,CM5*$AE5/$AH5+CN5/$AH5*5+CO5/$AH5*25+CP5*50+CQ5*50))) -> 17.24137931 | CW5: =IF(C5<>"",C5,"") -> 107 | CX5: 1 | DF5: =IF($C5="","", IF(DE5=1,0,IF(DC5<>0,500,CX5*$AE5/$AH5+CY5/$AH5*5+CZ5/$AH5*25+DA5*50+DB5*50))) -> 1.521298174 | DH5: =IF(C5<>"",C5,"") -> 107 | DP5: 1 | DQ5: =IF($C5="","", IF(DP5=1,0,IF(DN5<>0,500,DI5*$AE5/$AH5+DJ5/$AH5*5+DK5/$AH5*25+DL5*50+DM5*50))) -> 0 | DS5: =IF(C5<>"",C5,"") -> 107 | EA5: 1 | EB5: =IF($C5="","", IF(EA5=1,0,IF(DY5<>0,500,DT5*$AE5/$AH5+DU5/$AH5*5+DV5/$AH5*25+DW5*50+DX5*50))) -> 0 | ED5: =IF(C5<>"",C5,"") -> 107 | EF5: 1 | EM5: =IF($C5="","", IF(EL5=1,0,IF(EJ5<>0,500,EE5*$AE5/$AH5+EF5/$AH5*5+EG5/$AH5*25+EH5*50+EI5*50))) -> 2.535496957 | EO5: =IF(C5<>"",C5,"") -> 107 | EW5: 1 | EX5: =IF($C5="","", IF(EW5=1,0,IF(EU5<>0,500,EP5*$AE5/$AH5+EQ5/$AH5*5+ER5/$AH5*25+ES5*50+ET5*50))) -> 0 | EZ5: =IF(C5<>"",C5,"") -> 107 | FA5: 2 | FI5: =IF($C5="","", IF(FH5=1,0,IF(FF5<>0,500,FA5*$AE5/$AH5+FB5/$AH5*5+FC5/$AH5*25+FD5*50+FE5*50))) -> 3.042596349 | FK5: =IF(C5<>"",C5,"") -> 107 | FS5: 1 | FT5: =IF($C5="","", IF(FS5=1,0,IF(FQ5<>0,500,FL5*$AE5/$AH5+FM5/$AH5*5+FN5/$AH5*25+FO5*50+FP5*50))) -> 0 | FV5: =IF(C5<>"",C5,"") -> 107 | GD5: 1 | GE5: =IF($C5="","", IF(GD5=1,0,IF(GB5<>0,500,FW5*$AE5/$AH5+FX5/$AH5*5+FY5/$AH5*25+FZ5*50+GA5*50))) -> 0 | GG5: =IF(C5<>"",C5,"") -> 107 | GH5: 2 | GP5: =IF($C5="","", IF(GO5=1,0,IF(GM5<>0,500,GH5*$AE5/$AH5+GI5/$AH5*5+GJ5/$AH5*25+GK5*50+GL5*50))) -> 3.042596349 | GR5: =IF(C5<>"",C5,"") -> 107 | GZ5: 1 | HA5: =IF($C5="","", IF(GZ5=1,0,IF(GX5<>0,500,GS5*$AE5/$AH5+GT5/$AH5*5+GU5/$AH5*25+GV5*50+GW5*50))) -> 0 | HC5: =IF(C5<>"",C5,"") -> 107 | HD5: 2 | HL5: =IF($C5="","", IF(HK5=1,0,IF(HI5<>0,500,HD5*$AE5/$AH5+HE5/$AH5*5+HF5/$AH5*25+HG5*50+HH5*50))) -> 3.042596349 | HN5: =IF(C5<>"",C5,"") -> 107 | HW5: =IF($C5="","", IF(HV5=1,0,IF(HT5<>0,500,HO5*$AE5/$AH5+HP5/$AH5*5+HQ5/$AH5*25+HR5*50+HS5*50))) -> 0 | HY5: =IF(C5<>"",C5,"") -> 107 | IH5: =IF($C5="","", IF(IG5=1,0,IF(IE5<>0,500,HZ5*$AE5/$AH5+IA5/$AH5*5+IB5/$AH5*25+IC5*50+ID5*50))) -> 0
B6: =IF(C6=0,"",ROW(C6)-4) -> 2 | C6: 110 | D6: Finland | E6: Joyhill Racing Rubiconna TJ | F6: Ilomäki Jouni | G6: Forss Jonas | H6: =IF(C6=0,"",IF(OR(BB6=1,BC6<>0),BC6,"-")) -> 0 | I6: =IF(C6=0,"",IF(OR(BM6=1,BN6<>0),BN6,"-")) -> 0 | J6: =IF(C6=0,"",IF(OR(BX6=1,BY6<>0),BY6," -")) -> 4.321728691 | K6: =IF(C6=0,"",IF(OR(CJ6<>0,CI6=1),CJ6," -")) -> 0 | L6: =IF(C6=0,"",IF(OR(CU6<>0,CT6=1),CU6," -")) -> 13.44537815 | M6: =IF(C6=0,"",IF(OR(DF6<>0,DE6=1),DF6," -")) -> 2.881152461 | N6: =IF(C6=0,"",IF(OR(DQ6<>0,DP6=1),DQ6," -")) -> 0 | O6: =IF(C6=0,"",IF(OR(EB6<>0,EA6=1),EB6," -")) -> 0 | P6: =IF(C6=0,"",IF(OR(EM6<>0,EL6=1),EM6," -")) -> 1.44057623 | Q6: =IF(C6=0,"",IF(OR(EX6<>0,EW6=1),EX6," -")) -> 0 | R6: =IF(C6=0,"",IF(OR(FI6<>0,FH6=1),FI6," -")) -> 4.321728691 | S6: =IF(C6=0,"",IF(OR(FT6<>0,FS6=1),FT6," -")) -> 0 | T6: =IF(C6=0,"",IF(OR(GE6<>0,GD6=1),GE6," -")) -> 1.44057623 | U6: =IF(C6=0,"",IF(OR(GP6<>0,GO6=1),GP6," -")) -> 2.881152461 | V6: =IF(C6=0,"",IF(OR(HA6<>0,GZ6=1),HA6," -")) -> 0 | W6: =IF(C6=0,"",IF(OR(HL6<>0,HK6=1),HL6," -")) -> 6.722689076 | X6: =IF(C6=0,"",IF(AJ6<>0,AJ6," -")) -> - | Y6: =IF(C6=0,"",IF(OR(HW6<>0,HV6=1),HW6," -")) -> - | Z6: =IF(C6=0,"",IF(OR(IH6<>0,IG6=1),IH6," -")) -> - | AA6: =IF(C6=0,"",IF(AL6=1,"DNF",IF(AL6=2,"DSQ",IF(AM6<>1,"~ "&ROUND(SUM(H6:X6),3),ROUND(SUM(H6:X6),3))))) -> 37.455 | AD6: =IF(C6<>"",C6,"") -> 110 | AE6: =IF(AD6<>"",3,"") -> 3 | AF6: 1750 | AG6: 2380 | AH6: =IF(AD6<>"",(AF6/1000*AG6/1000)/2,"") -> 2.0825 | AI6: 3 | AM6: 1 | AP6: =IF(C6=0,99999,IF(AL6>0,9999,SUM(H6:X6)-AN6)) -> 37.45498199 | AQ6: =IF(C6=0,99999,IF(AL6=1,9999,SUM(Y6:Z6))) -> 0 | AT6: =IF(C6<>"",C6,"") -> 110 | BB6: 1 | BC6: =IF($C6="","", IF(BB6=1,0,IF(AZ6<>0,500,AU6*$AE6/$AH6+AV6/$AH6*5+AW6/$AH6*25+AX6*50+AY6*50))) -> 0 | BE6: =IF(C6<>"",C6,"") -> 110 | BM6: 1 | BN6: =IF($C6="","", IF(BM6=1,0,IF(BK6<>0,500,BF6*$AE6/$AH6+BG6/$AH6*5+BH6/$AH6*25+BI6*50+BJ6*50))) -> 0 | BP6: =IF(C6<>"",C6,"") -> 110 | BQ6: 3 | BY6: =IF($C6="","", IF(BX6=1,0,IF(BV6<>0,500,BQ6*$AE6/$AH6+BR6/$AH6*5+BS6/$AH6*25+BT6*50+BU6*50))) -> 4.321728691 | CA6: =IF(C6<>"",C6,"") -> 110 | CI6: 1 | CJ6: =IF($C6="","", IF(CI6=1,0,IF(CG6<>0,500,CB6*$AE6/$AH6+CC6/$AH6*5+CD6/$AH6*25+CE6*50+CF6*50))) -> 0 | CL6: =IF(C6<>"",C6,"") -> 110 | CM6: 1 | CO6: 1 | CU6: =IF($C6="","", IF(CT6=1,0,IF(CR6<>0,500,CM6*$AE6/$AH6+CN6/$AH6*5+CO6/$AH6*25+CP6*50+CQ6*50))) -> 13.44537815 | CW6: =IF(C6<>"",C6,"") -> 110 | CX6: 2 | DF6: =IF($C6="","", IF(DE6=1,0,IF(DC6<>0,500,CX6*$AE6/$AH6+CY6/$AH6*5+CZ6/$AH6*25+DA6*50+DB6*50))) -> 2.881152461 | DH6: =IF(C6<>"",C6,"") -> 110 | DP6: 1 | DQ6: =IF($C6="","", IF(DP6=1,0,IF(DN6<>0,500,DI6*$AE6/$AH6+DJ6/$AH6*5+DK6/$AH6*25+DL6*50+DM6*50))) -> 0 | DS6: =IF(C6<>"",C6,"") -> 110 | EA6: 1 | EB6: =IF($C6="","", IF(EA6=1,0,IF(DY6<>0,500,DT6*$AE6/$AH6+DU6/$AH6*5+DV6/$AH6*25+DW6*50+DX6*50))) -> 0 | ED6: =IF(C6<>"",C6,"") -> 110 | EE6: 1 | EM6: =IF($C6="","", IF(EL6=1,0,IF(EJ6<>0,500,EE6*$AE6/$AH6+EF6/$AH6*5+EG6/$AH6*25+EH6*50+EI6*50))) -> 1.44057623 | EO6: =IF(C6<>"",C6,"") -> 110 | EW6: 1 | EX6: =IF($C6="","", IF(EW6=1,0,IF(EU6<>0,500,EP6*$AE6/$AH6+EQ6/$AH6*5+ER6/$AH6*25+ES6*50+ET6*50))) -> 0 | EZ6: =IF(C6<>"",C6,"") -> 110 | FA6: 3 | FI6: =IF($C6="","", IF(FH6=1,0,IF(FF6<>0,500,FA6*$AE6/$AH6+FB6/$AH6*5+FC6/$AH6*25+FD6*50+FE6*50))) -> 4.321728691 | FK6: =IF(C6<>"",C6,"") -> 110 | FS6: 1 | FT6: =IF($C6="","", IF(FS6=1,0,IF(FQ6<>0,500,FL6*$AE6/$AH6+FM6/$AH6*5+FN6/$AH6*25+FO6*50+FP6*50))) -> 0 | FV6: =IF(C6<>"",C6,"") -> 110 | FW6: 1 | GE6: =IF($C6="","", IF(GD6=1,0,IF(GB6<>0,500,FW6*$AE6/$AH6+FX6/$AH6*5+FY6/$AH6*25+FZ6*50+GA6*50))) -> 1.44057623 | GG6: =IF(C6<>"",C6,"") -> 110 | GH6: 2 | GP6: =IF($C6="","", IF(GO6=1,0,IF(GM6<>0,500,GH6*$AE6/$AH6+GI6/$AH6*5+GJ6/$AH6*25+GK6*50+GL6*50))) -> 2.881152461 | GR6: =IF(C6<>"",C6,"") -> 110 | GZ6: 1 | HA6: =IF($C6="","", IF(GZ6=1,0,IF(GX6<>0,500,GS6*$AE6/$AH6+GT6/$AH6*5+GU6/$AH6*25+GV6*50+GW6*50))) -> 0 | HC6: =IF(C6<>"",C6,"") -> 110 | HD6: 3 | HE6: 1 | HL6: =IF($C6="","", IF(HK6=1,0,IF(HI6<>0,500,HD6*$AE6/$AH6+HE6/$AH6*5+HF6/$AH6*25+HG6*50+HH6*50))) -> 6.722689076 | HN6: =IF(C6<>"",C6,"") -> 110 | HW6: =IF($C6="","", IF(HV6=1,0,IF(HT6<>0,500,HO6*$AE6/$AH6+HP6/$AH6*5+HQ6/$AH6*25+HR6*50+HS6*50))) -> 0 | HY6: =IF(C6<>"",C6,"") -> 110 | IH6: =IF($C6="","", IF(IG6=1,0,IF(IE6<>0,500,HZ6*$AE6/$AH6+IA6/$AH6*5+IB6/$AH6*25+IC6*50+ID6*50))) -> 0
B7: =IF(C7=0,"",ROW(C7)-4) -> 3 | C7: 108 | D7: Hungarian | E7: Suzuki Jimny | F7: János Kónya | G7: Fanni Takács | H7: =IF(C7=0,"",IF(OR(BB7=1,BC7<>0),BC7,"-")) -> 0 | I7: =IF(C7=0,"",IF(OR(BM7=1,BN7<>0),BN7,"-")) -> 0 | J7: =IF(C7=0,"",IF(OR(BX7=1,BY7<>0),BY7," -")) -> 3.333333333 | K7: =IF(C7=0,"",IF(OR(CJ7<>0,CI7=1),CJ7," -")) -> 0 | L7: =IF(C7=0,"",IF(OR(CU7<>0,CT7=1),CU7," -")) -> 13.88888889 | M7: =IF(C7=0,"",IF(OR(DF7<>0,DE7=1),DF7," -")) -> 1.666666667 | N7: =IF(C7=0,"",IF(OR(DQ7<>0,DP7=1),DQ7," -")) -> 1.666666667 | O7: =IF(C7=0,"",IF(OR(EB7<>0,EA7=1),EB7," -")) -> 0 | P7: =IF(C7=0,"",IF(OR(EM7<>0,EL7=1),EM7," -")) -> 1.666666667 | Q7: =IF(C7=0,"",IF(OR(EX7<>0,EW7=1),EX7," -")) -> 13.88888889 | R7: =IF(C7=0,"",IF(OR(FI7<>0,FH7=1),FI7," -")) -> 3.333333333 | S7: =IF(C7=0,"",IF(OR(FT7<>0,FS7=1),FT7," -")) -> 13.88888889 | T7: =IF(C7=0,"",IF(OR(GE7<>0,GD7=1),GE7," -")) -> 0 | U7: =IF(C7=0,"",IF(OR(GP7<>0,GO7=1),GP7," -")) -> 1.666666667 | V7: =IF(C7=0,"",IF(OR(HA7<>0,GZ7=1),HA7," -")) -> 1.666666667 | W7: =IF(C7=0,"",IF(OR(HL7<>0,HK7=1),HL7," -")) -> 6.111111111 | X7: =IF(C7=0,"",IF(AJ7<>0,AJ7," -")) -> - | Y7: =IF(C7=0,"",IF(OR(HW7<>0,HV7=1),HW7," -")) -> - | Z7: =IF(C7=0,"",IF(OR(IH7<>0,IG7=1),IH7," -")) -> - | AA7: =IF(C7=0,"",IF(AL7=1,"DNF",IF(AL7=2,"DSQ",IF(AM7<>1,"~ "&ROUND(SUM(H7:X7),3),ROUND(SUM(H7:X7),3))))) -> 62.778 | AD7: =IF(C7<>"",C7,"") -> 108 | AE7: =IF(AD7<>"",3,"") -> 3 | AF7: 1600 | AG7: 2250 | AH7: =IF(AD7<>"",(AF7/1000*AG7/1000)/2,"") -> 1.8 | AI7: 4 | AM7: 1 | AP7: =IF(C7=0,99999,IF(AL7>0,9999,SUM(H7:X7)-AN7)) -> 62.77777778 | AQ7: =IF(C7=0,99999,IF(AL7=1,9999,SUM(Y7:Z7))) -> 0 | AT7: =IF(C7<>"",C7,"") -> 108 | BB7: 1 | BC7: =IF($C7="","", IF(BB7=1,0,IF(AZ7<>0,500,AU7*$AE7/$AH7+AV7/$AH7*5+AW7/$AH7*25+AX7*50+AY7*50))) -> 0 | BE7: =IF(C7<>"",C7,"") -> 108 | BM7: 1 | BN7: =IF($C7="","", IF(BM7=1,0,IF(BK7<>0,500,BF7*$AE7/$AH7+BG7/$AH7*5+BH7/$AH7*25+BI7*50+BJ7*50))) -> 0 | BP7: =IF(C7<>"",C7,"") -> 108 | BQ7: 2 | BY7: =IF($C7="","", IF(BX7=1,0,IF(BV7<>0,500,BQ7*$AE7/$AH7+BR7/$AH7*5+BS7/$AH7*25+BT7*50+BU7*50))) -> 3.333333333 | CA7: =IF(C7<>"",C7,"") -> 108 | CI7: 1 | CJ7: =IF($C7="","", IF(CI7=1,0,IF(CG7<>0,500,CB7*$AE7/$AH7+CC7/$AH7*5+CD7/$AH7*25+CE7*50+CF7*50))) -> 0 | CL7: =IF(C7<>"",C7,"") -> 108 | CO7: 1 | CU7: =IF($C7="","", IF(CT7=1,0,IF(CR7<>0,500,CM7*$AE7/$AH7+CN7/$AH7*5+CO7/$AH7*25+CP7*50+CQ7*50))) -> 13.88888889 | CW7: =IF(C7<>"",C7,"") -> 108 | CX7: 1 | DF7: =IF($C7="","", IF(DE7=1,0,IF(DC7<>0,500,CX7*$AE7/$AH7+CY7/$AH7*5+CZ7/$AH7*25+DA7*50+DB7*50))) -> 1.666666667 | DH7: =IF(C7<>"",C7,"") -> 108 | DI7: 1 | DQ7: =IF($C7="","", IF(DP7=1,0,IF(DN7<>0,500,DI7*$AE7/$AH7+DJ7/$AH7*5+DK7/$AH7*25+DL7*50+DM7*50))) -> 1.666666667 | DS7: =IF(C7<>"",C7,"") -> 108 | EA7: 1 | EB7: =IF($C7="","", IF(EA7=1,0,IF(DY7<>0,500,DT7*$AE7/$AH7+DU7/$AH7*5+DV7/$AH7*25+DW7*50+DX7*50))) -> 0 | ED7: =IF(C7<>"",C7,"") -> 108 | EE7: 1 | EM7: =IF($C7="","", IF(EL7=1,0,IF(EJ7<>0,500,EE7*$AE7/$AH7+EF7/$AH7*5+EG7/$AH7*25+EH7*50+EI7*50))) -> 1.666666667 | EO7: =IF(C7<>"",C7,"") -> 108 | ER7: 1 | EX7: =IF($C7="","", IF(EW7=1,0,IF(EU7<>0,500,EP7*$AE7/$AH7+EQ7/$AH7*5+ER7/$AH7*25+ES7*50+ET7*50))) -> 13.88888889 | EZ7: =IF(C7<>"",C7,"") -> 108 | FA7: 2 | FI7: =IF($C7="","", IF(FH7=1,0,IF(FF7<>0,500,FA7*$AE7/$AH7+FB7/$AH7*5+FC7/$AH7*25+FD7*50+FE7*50))) -> 3.333333333 | FK7: =IF(C7<>"",C7,"") -> 108 | FN7: 1 | FT7: =IF($C7="","", IF(FS7=1,0,IF(FQ7<>0,500,FL7*$AE7/$AH7+FM7/$AH7*5+FN7/$AH7*25+FO7*50+FP7*50))) -> 13.88888889 | FV7: =IF(C7<>"",C7,"") -> 108 | GD7: 1 | GE7: =IF($C7="","", IF(GD7=1,0,IF(GB7<>0,500,FW7*$AE7/$AH7+FX7/$AH7*5+FY7/$AH7*25+FZ7*50+GA7*50))) -> 0 | GG7: =IF(C7<>"",C7,"") -> 108 | GH7: 1 | GP7: =IF($C7="","", IF(GO7=1,0,IF(GM7<>0,500,GH7*$AE7/$AH7+GI7/$AH7*5+GJ7/$AH7*25+GK7*50+GL7*50))) -> 1.666666667 | GR7: =IF(C7<>"",C7,"") -> 108 | GS7: 1 | HA7: =IF($C7="","", IF(GZ7=1,0,IF(GX7<>0,500,GS7*$AE7/$AH7+GT7/$AH7*5+GU7/$AH7*25+GV7*50+GW7*50))) -> 1.666666667 | HC7: =IF(C7<>"",C7,"") -> 108 | HD7: 2 | HE7: 1 | HL7: =IF($C7="","", IF(HK7=1,0,IF(HI7<>0,500,HD7*$AE7/$AH7+HE7/$AH7*5+HF7/$AH7*25+HG7*50+HH7*50))) -> 6.111111111 | HN7: =IF(C7<>"",C7,"") -> 108 | HW7: =IF($C7="","", IF(HV7=1,0,IF(HT7<>0,500,HO7*$AE7/$AH7+HP7/$AH7*5+HQ7/$AH7*25+HR7*50+HS7*50))) -> 0 | HY7: =IF(C7<>"",C7,"") -> 108 | IH7: =IF($C7="","", IF(IG7=1,0,IF(IE7<>0,500,HZ7*$AE7/$AH7+IA7/$AH7*5+IB7/$AH7*25+IC7*50+ID7*50))) -> 0
B8: =IF(C8=0,"",ROW(C8)-4) -> 4 | C8: 102 | D8: Germany | E8: Suzuki LJ80 | F8: Dominik Keuper | G8: Leon Keuper | H8: =IF(C8=0,"",IF(OR(BB8=1,BC8<>0),BC8,"-")) -> 0 | I8: =IF(C8=0,"",IF(OR(BM8=1,BN8<>0),BN8,"-")) -> 0 | J8: =IF(C8=0,"",IF(OR(BX8=1,BY8<>0),BY8," -")) -> 2.236552727 | K8: =IF(C8=0,"",IF(OR(CJ8<>0,CI8=1),CJ8," -")) -> 2.236552727 | L8: =IF(C8=0,"",IF(OR(CU8<>0,CT8=1),CU8," -")) -> 2.236552727 | M8: =IF(C8=0,"",IF(OR(DF8<>0,DE8=1),DF8," -")) -> 2.236552727 | N8: =IF(C8=0,"",IF(OR(DQ8<>0,DP8=1),DQ8," -")) -> 20.87449212 | O8: =IF(C8=0,"",IF(OR(EB8<>0,EA8=1),EB8," -")) -> 0 | P8: =IF(C8=0,"",IF(OR(EM8<>0,EL8=1),EM8," -")) -> 0 | Q8: =IF(C8=0,"",IF(OR(EX8<>0,EW8=1),EX8," -")) -> 5.964140605 | R8: =IF(C8=0,"",IF(OR(FI8<>0,FH8=1),FI8," -")) -> 0 | S8: =IF(C8=0,"",IF(OR(FT8<>0,FS8=1),FT8," -")) -> 0 | T8: =IF(C8=0,"",IF(OR(GE8<>0,GD8=1),GE8," -")) -> 2.236552727 | U8: =IF(C8=0,"",IF(OR(GP8<>0,GO8=1),GP8," -")) -> 2.236552727 | V8: =IF(C8=0,"",IF(OR(HA8<>0,GZ8=1),HA8," -")) -> 0 | W8: =IF(C8=0,"",IF(OR(HL8<>0,HK8=1),HL8," -")) -> 34.29380848 | X8: =IF(C8=0,"",IF(AJ8<>0,AJ8," -")) -> - | Y8: =IF(C8=0,"",IF(OR(HW8<>0,HV8=1),HW8," -")) -> - | Z8: =IF(C8=0,"",IF(OR(IH8<>0,IG8=1),IH8," -")) -> - | AA8: =IF(C8=0,"",IF(AL8=1,"DNF",IF(AL8=2,"DSQ",IF(AM8<>1,"~ "&ROUND(SUM(H8:X8),3),ROUND(SUM(H8:X8),3))))) -> 74.552 | AD8: =IF(C8<>"",C8,"") -> 102 | AE8: =IF(AD8<>"",3,"") -> 3 | AF8: 1390 | AG8: 1930 | AH8: =IF(AD8<>"",(AF8/1000*AG8/1000)/2,"") -> 1.34135 | AI8: 6 | AM8: 1 | AP8: =IF(C8=0,99999,IF(AL8>0,9999,SUM(H8:X8)-AN8)) -> 74.55175756 | AQ8: =IF(C8=0,99999,IF(AL8=1,9999,SUM(Y8:Z8))) -> 0 | AT8: =IF(C8<>"",C8,"") -> 102 | BB8: 1 | BC8: =IF($C8="","", IF(BB8=1,0,IF(AZ8<>0,500,AU8*$AE8/$AH8+AV8/$AH8*5+AW8/$AH8*25+AX8*50+AY8*50))) -> 0 | BE8: =IF(C8<>"",C8,"") -> 102 | BM8: 1 | BN8: =IF($C8="","", IF(BM8=1,0,IF(BK8<>0,500,BF8*$AE8/$AH8+BG8/$AH8*5+BH8/$AH8*25+BI8*50+BJ8*50))) -> 0 | BP8: =IF(C8<>"",C8,"") -> 102 | BQ8: 1 | BY8: =IF($C8="","", IF(BX8=1,0,IF(BV8<>0,500,BQ8*$AE8/$AH8+BR8/$AH8*5+BS8/$AH8*25+BT8*50+BU8*50))) -> 2.236552727 | CA8: =IF(C8<>"",C8,"") -> 102 | CB8: 1 | CJ8: =IF($C8="","", IF(CI8=1,0,IF(CG8<>0,500,CB8*$AE8/$AH8+CC8/$AH8*5+CD8/$AH8*25+CE8*50+CF8*50))) -> 2.236552727 | CL8: =IF(C8<>"",C8,"") -> 102 | CM8: 1 | CU8: =IF($C8="","", IF(CT8=1,0,IF(CR8<>0,500,CM8*$AE8/$AH8+CN8/$AH8*5+CO8/$AH8*25+CP8*50+CQ8*50))) -> 2.236552727 | CW8: =IF(C8<>"",C8,"") -> 102 | CX8: 1 | DF8: =IF($C8="","", IF(DE8=1,0,IF(DC8<>0,500,CX8*$AE8/$AH8+CY8/$AH8*5+CZ8/$AH8*25+DA8*50+DB8*50))) -> 2.236552727 | DH8: =IF(C8<>"",C8,"") -> 102 | DI8: 1 | DK8: 1 | DQ8: =IF($C8="","", IF(DP8=1,0,IF(DN8<>0,500,DI8*$AE8/$AH8+DJ8/$AH8*5+DK8/$AH8*25+DL8*50+DM8*50))) -> 20.87449212 | DS8: =IF(C8<>"",C8,"") -> 102 | EA8: 1 | EB8: =IF($C8="","", IF(EA8=1,0,IF(DY8<>0,500,DT8*$AE8/$AH8+DU8/$AH8*5+DV8/$AH8*25+DW8*50+DX8*50))) -> 0 | ED8: =IF(C8<>"",C8,"") -> 102 | EL8: 1 | EM8: =IF($C8="","", IF(EL8=1,0,IF(EJ8<>0,500,EE8*$AE8/$AH8+EF8/$AH8*5+EG8/$AH8*25+EH8*50+EI8*50))) -> 0 | EO8: =IF(C8<>"",C8,"") -> 102 | EP8: 1 | EQ8: 1 | EX8: =IF($C8="","", IF(EW8=1,0,IF(EU8<>0,500,EP8*$AE8/$AH8+EQ8/$AH8*5+ER8/$AH8*25+ES8*50+ET8*50))) -> 5.964140605 | EZ8: =IF(C8<>"",C8,"") -> 102 | FH8: 1 | FI8: =IF($C8="","", IF(FH8=1,0,IF(FF8<>0,500,FA8*$AE8/$AH8+FB8/$AH8*5+FC8/$AH8*25+FD8*50+FE8*50))) -> 0 | FK8: =IF(C8<>"",C8,"") -> 102 | FS8: 1 | FT8: =IF($C8="","", IF(FS8=1,0,IF(FQ8<>0,500,FL8*$AE8/$AH8+FM8/$AH8*5+FN8/$AH8*25+FO8*50+FP8*50))) -> 0 | FV8: =IF(C8<>"",C8,"") -> 102 | FW8: 1 | GE8: =IF($C8="","", IF(GD8=1,0,IF(GB8<>0,500,FW8*$AE8/$AH8+FX8/$AH8*5+FY8/$AH8*25+FZ8*50+GA8*50))) -> 2.236552727 | GG8: =IF(C8<>"",C8,"") -> 102 | GH8: 1 | GP8: =IF($C8="","", IF(GO8=1,0,IF(GM8<>0,500,GH8*$AE8/$AH8+GI8/$AH8*5+GJ8/$AH8*25+GK8*50+GL8*50))) -> 2.236552727 | GR8: =IF(C8<>"",C8,"") -> 102 | GZ8: 1 | HA8: =IF($C8="","", IF(GZ8=1,0,IF(GX8<>0,500,GS8*$AE8/$AH8+GT8/$AH8*5+GU8/$AH8*25+GV8*50+GW8*50))) -> 0 | HC8: =IF(C8<>"",C8,"") -> 102 | HD8: 7 | HF8: 1 | HL8: =IF($C8="","", IF(HK8=1,0,IF(HI8<>0,500,HD8*$AE8/$AH8+HE8/$AH8*5+HF8/$AH8*25+HG8*50+HH8*50))) -> 34.29380848 | HN8: =IF(C8<>"",C8,"") -> 102 | HW8: =IF($C8="","", IF(HV8=1,0,IF(HT8<>0,500,HO8*$AE8/$AH8+HP8/$AH8*5+HQ8/$AH8*25+HR8*50+HS8*50))) -> 0 | HY8: =IF(C8<>"",C8,"") -> 102 | IH8: =IF($C8="","", IF(IG8=1,0,IF(IE8<>0,500,HZ8*$AE8/$AH8+IA8/$AH8*5+IB8/$AH8*25+IC8*50+ID8*50))) -> 0
B9: =IF(C9=0,"",ROW(C9)-4) -> 5 | C9: 109 | D9: Germany | E9: Suzuki Samurai | F9: Marc Koch | G9: Daniel Koch | H9: =IF(C9=0,"",IF(OR(BB9=1,BC9<>0),BC9,"-")) -> 3.39731612 | I9: =IF(C9=0,"",IF(OR(BM9=1,BN9<>0),BN9,"-")) -> 2.038389672 | J9: =IF(C9=0,"",IF(OR(BX9=1,BY9<>0),BY9," -")) -> 0 | K9: =IF(C9=0,"",IF(OR(CJ9<>0,CI9=1),CJ9," -")) -> 2.038389672 | L9: =IF(C9=0,"",IF(OR(CU9<>0,CT9=1),CU9," -")) -> 2.038389672 | M9: =IF(C9=0,"",IF(OR(DF9<>0,DE9=1),DF9," -")) -> 7.474095465 | N9: =IF(C9=0,"",IF(OR(DQ9<>0,DP9=1),DQ9," -")) -> 33.9731612 | O9: =IF(C9=0,"",IF(OR(EB9<>0,EA9=1),EB9," -")) -> 0 | P9: =IF(C9=0,"",IF(OR(EM9<>0,EL9=1),EM9," -")) -> 0 | Q9: =IF(C9=0,"",IF(OR(EX9<>0,EW9=1),EX9," -")) -> 7.474095465 | R9: =IF(C9=0,"",IF(OR(FI9<>0,FH9=1),FI9," -")) -> 19.02497027 | S9: =IF(C9=0,"",IF(OR(FT9<>0,FS9=1),FT9," -")) -> 0 | T9: =IF(C9=0,"",IF(OR(GE9<>0,GD9=1),GE9," -")) -> 2.038389672 | U9: =IF(C9=0,"",IF(OR(GP9<>0,GO9=1),GP9," -")) -> 2.038389672 | V9: =IF(C9=0,"",IF(OR(HA9<>0,GZ9=1),HA9," -")) -> 0 | W9: =IF(C9=0,"",IF(OR(HL9<>0,HK9=1),HL9," -")) -> 53.6775947 | X9: =IF(C9=0,"",IF(AJ9<>0,AJ9," -")) -> - | Y9: =IF(C9=0,"",IF(OR(HW9<>0,HV9=1),HW9," -")) -> - | Z9: =IF(C9=0,"",IF(OR(IH9<>0,IG9=1),IH9," -")) -> - | AA9: =IF(C9=0,"",IF(AL9=1,"DNF",IF(AL9=2,"DSQ",IF(AM9<>1,"~ "&ROUND(SUM(H9:X9),3),ROUND(SUM(H9:X9),3))))) -> 135.213 | AD9: =IF(C9<>"",C9,"") -> 109 | AE9: =IF(AD9<>"",3,"") -> 3 | AF9: 1450 | AG9: 2030 | AH9: =IF(AD9<>"",(AF9/1000*AG9/1000)/2,"") -> 1.47175 | AI9: 5 | AM9: 1 | AP9: =IF(C9=0,99999,IF(AL9>0,9999,SUM(H9:X9)-AN9)) -> 135.2131816 | AQ9: =IF(C9=0,99999,IF(AL9=1,9999,SUM(Y9:Z9))) -> 0 | AT9: =IF(C9<>"",C9,"") -> 109 | AV9: 1 | BC9: =IF($C9="","", IF(BB9=1,0,IF(AZ9<>0,500,AU9*$AE9/$AH9+AV9/$AH9*5+AW9/$AH9*25+AX9*50+AY9*50))) -> 3.39731612 | BE9: =IF(C9<>"",C9,"") -> 109 | BF9: 1 | BN9: =IF($C9="","", IF(BM9=1,0,IF(BK9<>0,500,BF9*$AE9/$AH9+BG9/$AH9*5+BH9/$AH9*25+BI9*50+BJ9*50))) -> 2.038389672 | BP9: =IF(C9<>"",C9,"") -> 109 | BX9: 1 | BY9: =IF($C9="","", IF(BX9=1,0,IF(BV9<>0,500,BQ9*$AE9/$AH9+BR9/$AH9*5+BS9/$AH9*25+BT9*50+BU9*50))) -> 0 | CA9: =IF(C9<>"",C9,"") -> 109 | CB9: 1 | CJ9: =IF($C9="","", IF(CI9=1,0,IF(CG9<>0,500,CB9*$AE9/$AH9+CC9/$AH9*5+CD9/$AH9*25+CE9*50+CF9*50))) -> 2.038389672 | CL9: =IF(C9<>"",C9,"") -> 109 | CM9: 1 | CU9: =IF($C9="","", IF(CT9=1,0,IF(CR9<>0,500,CM9*$AE9/$AH9+CN9/$AH9*5+CO9/$AH9*25+CP9*50+CQ9*50))) -> 2.038389672 | CW9: =IF(C9<>"",C9,"") -> 109 | CX9: 2 | CY9: 1 | DF9: =IF($C9="","", IF(DE9=1,0,IF(DC9<>0,500,CX9*$AE9/$AH9+CY9/$AH9*5+CZ9/$AH9*25+DA9*50+DB9*50))) -> 7.474095465 | DH9: =IF(C9<>"",C9,"") -> 109 | DK9: 2 | DQ9: =IF($C9="","", IF(DP9=1,0,IF(DN9<>0,500,DI9*$AE9/$AH9+DJ9/$AH9*5+DK9/$AH9*25+DL9*50+DM9*50))) -> 33.9731612 | DS9: =IF(C9<>"",C9,"") -> 109 | EA9: 1 | EB9: =IF($C9="","", IF(EA9=1,0,IF(DY9<>0,500,DT9*$AE9/$AH9+DU9/$AH9*5+DV9/$AH9*25+DW9*50+DX9*50))) -> 0 | ED9: =IF(C9<>"",C9,"") -> 109 | EL9: 1 | EM9: =IF($C9="","", IF(EL9=1,0,IF(EJ9<>0,500,EE9*$AE9/$AH9+EF9/$AH9*5+EG9/$AH9*25+EH9*50+EI9*50))) -> 0 | EO9: =IF(C9<>"",C9,"") -> 109 | EP9: 2 | EQ9: 1 | EX9: =IF($C9="","", IF(EW9=1,0,IF(EU9<>0,500,EP9*$AE9/$AH9+EQ9/$AH9*5+ER9/$AH9*25+ES9*50+ET9*50))) -> 7.474095465 | EZ9: =IF(C9<>"",C9,"") -> 109 | FA9: 1 | FC9: 1 | FI9: =IF($C9="","", IF(FH9=1,0,IF(FF9<>0,500,FA9*$AE9/$AH9+FB9/$AH9*5+FC9/$AH9*25+FD9*50+FE9*50))) -> 19.02497027 | FK9: =IF(C9<>"",C9,"") -> 109 | FS9: 1 | FT9: =IF($C9="","", IF(FS9=1,0,IF(FQ9<>0,500,FL9*$AE9/$AH9+FM9/$AH9*5+FN9/$AH9*25+FO9*50+FP9*50))) -> 0 | FV9: =IF(C9<>"",C9,"") -> 109 | FW9: 1 | GE9: =IF($C9="","", IF(GD9=1,0,IF(GB9<>0,500,FW9*$AE9/$AH9+FX9/$AH9*5+FY9/$AH9*25+FZ9*50+GA9*50))) -> 2.038389672 | GG9: =IF(C9<>"",C9,"") -> 109 | GH9: 1 | GP9: =IF($C9="","", IF(GO9=1,0,IF(GM9<>0,500,GH9*$AE9/$AH9+GI9/$AH9*5+GJ9/$AH9*25+GK9*50+GL9*50))) -> 2.038389672 | GR9: =IF(C9<>"",C9,"") -> 109 | GZ9: 1 | HA9: =IF($C9="","", IF(GZ9=1,0,IF(GX9<>0,500,GS9*$AE9/$AH9+GT9/$AH9*5+GU9/$AH9*25+GV9*50+GW9*50))) -> 0 | HC9: =IF(C9<>"",C9,"") -> 109 | HD9: 8 | HE9: 1 | HF9: 2 | HL9: =IF($C9="","", IF(HK9=1,0,IF(HI9<>0,500,HD9*$AE9/$AH9+HE9/$AH9*5+HF9/$AH9*25+HG9*50+HH9*50))) -> 53.6775947 | HN9: =IF(C9<>"",C9,"") -> 109 | HW9: =IF($C9="","", IF(HV9=1,0,IF(HT9<>0,500,HO9*$AE9/$AH9+HP9/$AH9*5+HQ9/$AH9*25+HR9*50+HS9*50))) -> 0 | HY9: =IF(C9<>"",C9,"") -> 109 | IH9: =IF($C9="","", IF(IG9=1,0,IF(IE9<>0,500,HZ9*$AE9/$AH9+IA9/$AH9*5+IB9/$AH9*25+IC9*50+ID9*50))) -> 0
B10: =IF(C10=0,"",ROW(C10)-4) -> 6 | C10: 111 | D10: Germany | E10: Suzuki SJ 413 | F10: Fleur-Marie Saar | G10: Nicolas Keuper | H10: =IF(C10=0,"",IF(OR(BB10=1,BC10<>0),BC10,"-")) -> 2.038389672 | I10: =IF(C10=0,"",IF(OR(BM10=1,BN10<>0),BN10,"-")) -> 3.39731612 | J10: =IF(C10=0,"",IF(OR(BX10=1,BY10<>0),BY10," -")) -> 7.474095465 | K10: =IF(C10=0,"",IF(OR(CJ10<>0,CI10=1),CJ10," -")) -> 2.038389672 | L10: =IF(C10=0,"",IF(OR(CU10<>0,CT10=1),CU10," -")) -> 23.10174962 | M10: =IF(C10=0,"",IF(OR(DF10<>0,DE10=1),DF10," -")) -> 10.19194836 | N10: =IF(C10=0,"",IF(OR(DQ10<>0,DP10=1),DQ10," -")) -> 23.10174962 | O10: =IF(C10=0,"",IF(OR(EB10<>0,EA10=1),EB10," -")) -> 6.115169016 | P10: =IF(C10=0,"",IF(OR(EM10<>0,EL10=1),EM10," -")) -> 4.076779344 | Q10: =IF(C10=0,"",IF(OR(EX10<>0,EW10=1),EX10," -")) -> 19.02497027 | R10: =IF(C10=0,"",IF(OR(FI10<>0,FH10=1),FI10," -")) -> 16.9865806 | S10: =IF(C10=0,"",IF(OR(FT10<>0,FS10=1),FT10," -")) -> 0 | T10: =IF(C10=0,"",IF(OR(GE10<>0,GD10=1),GE10," -")) -> 2.038389672 | U10: =IF(C10=0,"",IF(OR(GP10<>0,GO10=1),GP10," -")) -> 9.512485137 | V10: =IF(C10=0,"",IF(OR(HA10<>0,GZ10=1),HA10," -")) -> 2.038389672 | W10: =IF(C10=0,"",IF(OR(HL10<>0,HK10=1),HL10," -")) -> 82.61423475 | X10: =IF(C10=0,"",IF(AJ10<>0,AJ10," -")) -> - | Y10: =IF(C10=0,"",IF(OR(HW10<>0,HV10=1),HW10," -")) -> - | Z10: =IF(C10=0,"",IF(OR(IH10<>0,IG10=1),IH10," -")) -> - | AA10: =IF(C10=0,"",IF(AL10=1,"DNF",IF(AL10=2,"DSQ",IF(AM10<>1,"~ "&ROUND(SUM(H10:X10),3),ROUND(SUM(H10:X10),3))))) -> 213.751 | AD10: =IF(C10<>"",C10,"") -> 111 | AE10: =IF(AD10<>"",3,"") -> 3 | AF10: 1450 | AG10: 2030 | AH10: =IF(AD10<>"",(AF10/1000*AG10/1000)/2,"") -> 1.47175 | AI10: 5 | AM10: 1 | AP10: =IF(C10=0,99999,IF(AL10>0,9999,SUM(H10:X10)-AN10)) -> 213.750637 | AQ10: =IF(C10=0,99999,IF(AL10=1,9999,SUM(Y10:Z10))) -> 0 | AT10: =IF(C10<>"",C10,"") -> 111 | AU10: 1 | BC10: =IF($C10="","", IF(BB10=1,0,IF(AZ10<>0,500,AU10*$AE10/$AH10+AV10/$AH10*5+AW10/$AH10*25+AX10*50+AY10*50))) -> 2.038389672 | BE10: =IF(C10<>"",C10,"") -> 111 | BG10: 1 | BN10: =IF($C10="","", IF(BM10=1,0,IF(BK10<>0,500,BF10*$AE10/$AH10+BG10/$AH10*5+BH10/$AH10*25+BI10*50+BJ10*50))) -> 3.39731612 | BP10: =IF(C10<>"",C10,"") -> 111 | BQ10: 2 | BR10: 1 | BY10: =IF($C10="","", IF(BX10=1,0,IF(BV10<>0,500,BQ10*$AE10/$AH10+BR10/$AH10*5+BS10/$AH10*25+BT10*50+BU10*50))) -> 7.474095465 | CA10: =IF(C10<>"",C10,"") -> 111 | CB10: 1 | CJ10: =IF($C10="","", IF(CI10=1,0,IF(CG10<>0,500,CB10*$AE10/$AH10+CC10/$AH10*5+CD10/$AH10*25+CE10*50+CF10*50))) -> 2.038389672 | CL10: =IF(C10<>"",C10,"") -> 111 | CM10: 3 | CO10: 1 | CU10: =IF($C10="","", IF(CT10=1,0,IF(CR10<>0,500,CM10*$AE10/$AH10+CN10/$AH10*5+CO10/$AH10*25+CP10*50+CQ10*50))) -> 23.10174962 | CW10: =IF(C10<>"",C10,"") -> 111 | CX10: 5 | DF10: =IF($C10="","", IF(DE10=1,0,IF(DC10<>0,500,CX10*$AE10/$AH10+CY10/$AH10*5+CZ10/$AH10*25+DA10*50+DB10*50))) -> 10.19194836 | DH10: =IF(C10<>"",C10,"") -> 111 | DI10: 3 | DK10: 1 | DQ10: =IF($C10="","", IF(DP10=1,0,IF(DN10<>0,500,DI10*$AE10/$AH10+DJ10/$AH10*5+DK10/$AH10*25+DL10*50+DM10*50))) -> 23.10174962 | DS10: =IF(C10<>"",C10,"") -> 111 | DT10: 3 | EB10: =IF($C10="","", IF(EA10=1,0,IF(DY10<>0,500,DT10*$AE10/$AH10+DU10/$AH10*5+DV10/$AH10*25+DW10*50+DX10*50))) -> 6.115169016 | ED10: =IF(C10<>"",C10,"") -> 111 | EE10: 2 | EM10: =IF($C10="","", IF(EL10=1,0,IF(EJ10<>0,500,EE10*$AE10/$AH10+EF10/$AH10*5+EG10/$AH10*25+EH10*50+EI10*50))) -> 4.076779344 | EO10: =IF(C10<>"",C10,"") -> 111 | EP10: 1 | ER10: 1 | EX10: =IF($C10="","", IF(EW10=1,0,IF(EU10<>0,500,EP10*$AE10/$AH10+EQ10/$AH10*5+ER10/$AH10*25+ES10*50+ET10*50))) -> 19.02497027 | EZ10: =IF(C10<>"",C10,"") -> 111 | FC10: 1 | FI10: =IF($C10="","", IF(FH10=1,0,IF(FF10<>0,500,FA10*$AE10/$AH10+FB10/$AH10*5+FC10/$AH10*25+FD10*50+FE10*50))) -> 16.9865806 | FK10: =IF(C10<>"",C10,"") -> 111 | FS10: 1 | FT10: =IF($C10="","", IF(FS10=1,0,IF(FQ10<>0,500,FL10*$AE10/$AH10+FM10/$AH10*5+FN10/$AH10*25+FO10*50+FP10*50))) -> 0 | FV10: =IF(C10<>"",C10,"") -> 111 | FW10: 1 | GE10: =IF($C10="","", IF(GD10=1,0,IF(GB10<>0,500,FW10*$AE10/$AH10+FX10/$AH10*5+FY10/$AH10*25+FZ10*50+GA10*50))) -> 2.038389672 | GG10: =IF(C10<>"",C10,"") -> 111 | GH10: 3 | GI10: 1 | GP10: =IF($C10="","", IF(GO10=1,0,IF(GM10<>0,500,GH10*$AE10/$AH10+GI10/$AH10*5+GJ10/$AH10*25+GK10*50+GL10*50))) -> 9.512485137 | GR10: =IF(C10<>"",C10,"") -> 111 | GS10: 1 | HA10: =IF($C10="","", IF(GZ10=1,0,IF(GX10<>0,500,GS10*$AE10/$AH10+GT10/$AH10*5+GU10/$AH10*25+GV10*50+GW10*50))) -> 2.038389672 | HC10: =IF(C10<>"",C10,"") -> 111 | HD10: 6 | HE10: 1 | HF10: 1 | HH10: 1 | HJ10: time | HL10: =IF($C10="","", IF(HK10=1,0,IF(HI10<>0,500,HD10*$AE10/$AH10+HE10/$AH10*5+HF10/$AH10*25+HG10*50+HH10*50))) -> 82.61423475 | HN10: =IF(C10<>"",C10,"") -> 111 | HW10: =IF($C10="","", IF(HV10=1,0,IF(HT10<>0,500,HO10*$AE10/$AH10+HP10/$AH10*5+HQ10/$AH10*25+HR10*50+HS10*50))) -> 0 | HY10: =IF(C10<>"",C10,"") -> 111 | IH10: =IF($C10="","", IF(IG10=1,0,IF(IE10<>0,500,HZ10*$AE10/$AH10+IA10/$AH10*5+IB10/$AH10*25+IC10*50+ID10*50))) -> 0
B11: =IF(C11=0,"",ROW(C11)-4) -> 7 | C11: 106 | D11: Switzerland | E11: Suzuki LJ80 | F11: Brügger Markus | H11: =IF(C11=0,"",IF(OR(BB11=1,BC11<>0),BC11,"-")) -> 0 | I11: =IF(C11=0,"",IF(OR(BM11=1,BN11<>0),BN11,"-")) -> 0 | J11: =IF(C11=0,"",IF(OR(BX11=1,BY11<>0),BY11," -")) -> 220.8744921 | K11: =IF(C11=0,"",IF(OR(CJ11<>0,CI11=1),CJ11," -")) -> 2.236552727 | L11: =IF(C11=0,"",IF(OR(CU11<>0,CT11=1),CU11," -")) -> 18.63793939 | M11: =IF(C11=0,"",IF(OR(DF11<>0,DE11=1),DF11," -")) -> 4.473105453 | N11: =IF(C11=0,"",IF(OR(DQ11<>0,DP11=1),DQ11," -")) -> 0 | O11: =IF(C11=0,"",IF(OR(EB11<>0,EA11=1),EB11," -")) -> 0 | P11: =IF(C11=0,"",IF(OR(EM11<>0,EL11=1),EM11," -")) -> 0 | Q11: =IF(C11=0,"",IF(OR(EX11<>0,EW11=1),EX11," -")) -> 0 | R11: =IF(C11=0,"",IF(OR(FI11<>0,FH11=1),FI11," -")) -> 2.236552727 | S11: =IF(C11=0,"",IF(OR(FT11<>0,FS11=1),FT11," -")) -> 0 | T11: =IF(C11=0,"",IF(OR(GE11<>0,GD11=1),GE11," -")) -> 0 | U11: =IF(C11=0,"",IF(OR(GP11<>0,GO11=1),GP11," -")) -> 4.473105453 | V11: =IF(C11=0,"",IF(OR(HA11<>0,GZ11=1),HA11," -")) -> 5.964140605 | W11: =IF(C11=0,"",IF(OR(HL11<>0,HK11=1),HL11," -")) -> 261.1827636 | X11: =IF(C11=0,"",IF(AJ11<>0,AJ11," -")) -> - | Y11: =IF(C11=0,"",IF(OR(HW11<>0,HV11=1),HW11," -")) -> - | Z11: =IF(C11=0,"",IF(OR(IH11<>0,IG11=1),IH11," -")) -> - | AA11: =IF(C11=0,"",IF(AL11=1,"DNF",IF(AL11=2,"DSQ",IF(AM11<>1,"~ "&ROUND(SUM(H11:X11),3),ROUND(SUM(H11:X11),3))))) -> 520.079 | AD11: =IF(C11<>"",C11,"") -> 106 | AE11: =IF(AD11<>"",3,"") -> 3 | AF11: 1390 | AG11: 1930 | AH11: =IF(AD11<>"",(AF11/1000*AG11/1000)/2,"") -> 1.34135 | AI11: 6 | AM11: 1 | AP11: =IF(C11=0,99999,IF(AL11>0,9999,SUM(H11:X11)-AN11)) -> 520.0786521 | AQ11: =IF(C11=0,99999,IF(AL11=1,9999,SUM(Y11:Z11))) -> 0 | AT11: =IF(C11<>"",C11,"") -> 106 | BB11: 1 | BC11: =IF($C11="","", IF(BB11=1,0,IF(AZ11<>0,500,AU11*$AE11/$AH11+AV11/$AH11*5+AW11/$AH11*25+AX11*50+AY11*50))) -> 0 | BE11: =IF(C11<>"",C11,"") -> 106 | BM11: 1 | BN11: =IF($C11="","", IF(BM11=1,0,IF(BK11<>0,500,BF11*$AE11/$AH11+BG11/$AH11*5+BH11/$AH11*25+BI11*50+BJ11*50))) -> 0 | BP11: =IF(C11<>"",C11,"") -> 106 | BQ11: 1 | BS11: 1 | BT11: 3 | BU11: 1 | BY11: =IF($C11="","", IF(BX11=1,0,IF(BV11<>0,500,BQ11*$AE11/$AH11+BR11/$AH11*5+BS11/$AH11*25+BT11*50+BU11*50))) -> 220.8744921 | CA11: =IF(C11<>"",C11,"") -> 106 | CB11: 1 | CJ11: =IF($C11="","", IF(CI11=1,0,IF(CG11<>0,500,CB11*$AE11/$AH11+CC11/$AH11*5+CD11/$AH11*25+CE11*50+CF11*50))) -> 2.236552727 | CL11: =IF(C11<>"",C11,"") -> 106 | CO11: 1 | CU11: =IF($C11="","", IF(CT11=1,0,IF(CR11<>0,500,CM11*$AE11/$AH11+CN11/$AH11*5+CO11/$AH11*25+CP11*50+CQ11*50))) -> 18.63793939 | CW11: =IF(C11<>"",C11,"") -> 106 | CX11: 2 | DF11: =IF($C11="","", IF(DE11=1,0,IF(DC11<>0,500,CX11*$AE11/$AH11+CY11/$AH11*5+CZ11/$AH11*25+DA11*50+DB11*50))) -> 4.473105453 | DH11: =IF(C11<>"",C11,"") -> 106 | DP11: 1 | DQ11: =IF($C11="","", IF(DP11=1,0,IF(DN11<>0,500,DI11*$AE11/$AH11+DJ11/$AH11*5+DK11/$AH11*25+DL11*50+DM11*50))) -> 0 | DS11: =IF(C11<>"",C11,"") -> 106 | EA11: 1 | EB11: =IF($C11="","", IF(EA11=1,0,IF(DY11<>0,500,DT11*$AE11/$AH11+DU11/$AH11*5+DV11/$AH11*25+DW11*50+DX11*50))) -> 0 | ED11: =IF(C11<>"",C11,"") -> 106 | EL11: 1 | EM11: =IF($C11="","", IF(EL11=1,0,IF(EJ11<>0,500,EE11*$AE11/$AH11+EF11/$AH11*5+EG11/$AH11*25+EH11*50+EI11*50))) -> 0 | EO11: =IF(C11<>"",C11,"") -> 106 | EW11: 1 | EX11: =IF($C11="","", IF(EW11=1,0,IF(EU11<>0,500,EP11*$AE11/$AH11+EQ11/$AH11*5+ER11/$AH11*25+ES11*50+ET11*50))) -> 0 | EZ11: =IF(C11<>"",C11,"") -> 106 | FA11: 1 | FI11: =IF($C11="","", IF(FH11=1,0,IF(FF11<>0,500,FA11*$AE11/$AH11+FB11/$AH11*5+FC11/$AH11*25+FD11*50+FE11*50))) -> 2.236552727 | FK11: =IF(C11<>"",C11,"") -> 106 | FS11: 1 | FT11: =IF($C11="","", IF(FS11=1,0,IF(FQ11<>0,500,FL11*$AE11/$AH11+FM11/$AH11*5+FN11/$AH11*25+FO11*50+FP11*50))) -> 0 | FV11: =IF(C11<>"",C11,"") -> 106 | GD11: 1 | GE11: =IF($C11="","", IF(GD11=1,0,IF(GB11<>0,500,FW11*$AE11/$AH11+FX11/$AH11*5+FY11/$AH11*25+FZ11*50+GA11*50))) -> 0 | GG11: =IF(C11<>"",C11,"") -> 106 | GH11: 2 | GP11: =IF($C11="","", IF(GO11=1,0,IF(GM11<>0,500,GH11*$AE11/$AH11+GI11/$AH11*5+GJ11/$AH11*25+GK11*50+GL11*50))) -> 4.473105453 | GR11: =IF(C11<>"",C11,"") -> 106 | GS11: 1 | GT11: 1 | HA11: =IF($C11="","", IF(GZ11=1,0,IF(GX11<>0,500,GS11*$AE11/$AH11+GT11/$AH11*5+GU11/$AH11*25+GV11*50+GW11*50))) -> 5.964140605 | HC11: =IF(C11<>"",C11,"") -> 106 | HD11: 5 | HG11: 4 | HH11: 1 | HJ11: Wanted to quit | HL11: =IF($C11="","", IF(HK11=1,0,IF(HI11<>0,500,HD11*$AE11/$AH11+HE11/$AH11*5+HF11/$AH11*25+HG11*50+HH11*50))) -> 261.1827636 | HN11: =IF(C11<>"",C11,"") -> 106 | HW11: =IF($C11="","", IF(HV11=1,0,IF(HT11<>0,500,HO11*$AE11/$AH11+HP11/$AH11*5+HQ11/$AH11*25+HR11*50+HS11*50))) -> 0 | HY11: =IF(C11<>"",C11,"") -> 106 | IH11: =IF($C11="","", IF(IG11=1,0,IF(IE11<>0,500,HZ11*$AE11/$AH11+IA11/$AH11*5+IB11/$AH11*25+IC11*50+ID11*50))) -> 0
B12: =IF(C12=0,"",ROW(C12)-4) -> 8 | C12: 112 | D12: Finland | E12: SukiSuki Jimny | F12: Suominen Venla | G12: Loukinainen Virve | H12: =IF(C12=0,"",IF(OR(BB12=1,BC12<>0),BC12,"-")) -> 1.666666667 | I12: =IF(C12=0,"",IF(OR(BM12=1,BN12<>0),BN12,"-")) -> 1.666666667 | J12: =IF(C12=0,"",IF(OR(BX12=1,BY12<>0),BY12," -")) -> 115.5555556 | K12: =IF(C12=0,"",IF(OR(CJ12<>0,CI12=1),CJ12," -")) -> 3.333333333 | L12: =IF(C12=0,"",IF(OR(CU12<>0,CT12=1),CU12," -")) -> 20.55555556 | M12: =IF(C12=0,"",IF(OR(DF12<>0,DE12=1),DF12," -")) -> 249.4444444 | N12: =IF(C12=0,"",IF(OR(DQ12<>0,DP12=1),DQ12," -")) -> 255 | O12: =IF(C12=0,"",IF(OR(EB12<>0,EA12=1),EB12," -")) -> 23.33333333 | P12: =IF(C12=0,"",IF(OR(EM12<>0,EL12=1),EM12," -")) -> 103.3333333 | Q12: =IF(C12=0,"",IF(OR(EX12<>0,EW12=1),EX12," -")) -> 116.1111111 | R12: =IF(C12=0,"",IF(OR(FI12<>0,FH12=1),FI12," -")) -> 1.666666667 | S12: =IF(C12=0,"",IF(OR(FT12<>0,FS12=1),FT12," -")) -> 1.666666667 | T12: =IF(C12=0,"",IF(OR(GE12<>0,GD12=1),GE12," -")) -> 15.55555556 | U12: =IF(C12=0,"",IF(OR(GP12<>0,GO12=1),GP12," -")) -> 5 | V12: =IF(C12=0,"",IF(OR(HA12<>0,GZ12=1),HA12," -")) -> 41.11111111 | W12: =IF(C12=0,"",IF(OR(HL12<>0,HK12=1),HL12," -")) -> 255 | X12: =IF(C12=0,"",IF(AJ12<>0,AJ12," -")) -> - | Y12: =IF(C12=0,"",IF(OR(HW12<>0,HV12=1),HW12," -")) -> - | Z12: =IF(C12=0,"",IF(OR(IH12<>0,IG12=1),IH12," -")) -> - | AA12: =IF(C12=0,"",IF(AL12=1,"DNF",IF(AL12=2,"DSQ",IF(AM12<>1,"~ "&ROUND(SUM(H12:X12),3),ROUND(SUM(H12:X12),3))))) -> 1210 | AD12: =IF(C12<>"",C12,"") -> 112 | AE12: =IF(AD12<>"",3,"") -> 3 | AF12: 1600 | AG12: 2250 | AH12: =IF(AD12<>"",(AF12/1000*AG12/1000)/2,"") -> 1.8 | AI12: 4 | AM12: 1 | AP12: =IF(C12=0,99999,IF(AL12>0,9999,SUM(H12:X12)-AN12)) -> 1210 | AQ12: =IF(C12=0,99999,IF(AL12=1,9999,SUM(Y12:Z12))) -> 0 | AT12: =IF(C12<>"",C12,"") -> 112 | AU12: 1 | BC12: =IF($C12="","", IF(BB12=1,0,IF(AZ12<>0,500,AU12*$AE12/$AH12+AV12/$AH12*5+AW12/$AH12*25+AX12*50+AY12*50))) -> 1.666666667 | BE12: =IF(C12<>"",C12,"") -> 112 | BF12: 1 | BN12: =IF($C12="","", IF(BM12=1,0,IF(BK12<>0,500,BF12*$AE12/$AH12+BG12/$AH12*5+BH12/$AH12*25+BI12*50+BJ12*50))) -> 1.666666667 | BP12: =IF(C12<>"",C12,"") -> 112 | BQ12: 1 | BS12: 1 | BT12: 1 | BU12: 1 | BW12: broken line | BY12: =IF($C12="","", IF(BX12=1,0,IF(BV12<>0,500,BQ12*$AE12/$AH12+BR12/$AH12*5+BS12/$AH12*25+BT12*50+BU12*50))) -> 115.5555556 | CA12: =IF(C12<>"",C12,"") -> 112 | CB12: 2 | CJ12: =IF($C12="","", IF(CI12=1,0,IF(CG12<>0,500,CB12*$AE12/$AH12+CC12/$AH12*5+CD12/$AH12*25+CE12*50+CF12*50))) -> 3.333333333 | CL12: =IF(C12<>"",C12,"") -> 112 | CM12: 4 | CO12: 1 | CU12: =IF($C12="","", IF(CT12=1,0,IF(CR12<>0,500,CM12*$AE12/$AH12+CN12/$AH12*5+CO12/$AH12*25+CP12*50+CQ12*50))) -> 20.55555556 | CW12: =IF(C12<>"",C12,"") -> 112 | CX12: 13 | CZ12: 2 | DA12: 3 | DB12: 1 | DD12: time | DF12: =IF($C12="","", IF(DE12=1,0,IF(DC12<>0,500,CX12*$AE12/$AH12+CY12/$AH12*5+CZ12/$AH12*25+DA12*50+DB12*50))) -> 249.4444444 | DH12: =IF(C12<>"",C12,"") -> 112 | DI12: 3 | DL12: 4 | DM12: 1 | DQ12: =IF($C12="","", IF(DP12=1,0,IF(DN12<>0,500,DI12*$AE12/$AH12+DJ12/$AH12*5+DK12/$AH12*25+DL12*50+DM12*50))) -> 255 | DS12: =IF(C12<>"",C12,"") -> 112 | DT12: 4 | DU12: 1 | DV12: 1 | EB12: =IF($C12="","", IF(EA12=1,0,IF(DY12<>0,500,DT12*$AE12/$AH12+DU12/$AH12*5+DV12/$AH12*25+DW12*50+DX12*50))) -> 23.33333333 | ED12: =IF(C12<>"",C12,"") -> 112 | EE12: 2 | EH12: 1 | EI12: 1 | EK12: stuck | EM12: =IF($C12="","", IF(EL12=1,0,IF(EJ12<>0,500,EE12*$AE12/$AH12+EF12/$AH12*5+EG12/$AH12*25+EH12*50+EI12*50))) -> 103.3333333 | EO12: =IF(C12<>"",C12,"") -> 112 | EP12: 8 | EQ12: 1 | ES12: 1 | ET12: 1 | EX12: =IF($C12="","", IF(EW12=1,0,IF(EU12<>0,500,EP12*$AE12/$AH12+EQ12/$AH12*5+ER12/$AH12*25+ES12*50+ET12*50))) -> 116.1111111 | EZ12: =IF(C12<>"",C12,"") -> 112 | FA12: 1 | FI12: =IF($C12="","", IF(FH12=1,0,IF(FF12<>0,500,FA12*$AE12/$AH12+FB12/$AH12*5+FC12/$AH12*25+FD12*50+FE12*50))) -> 1.666666667 | FK12: =IF(C12<>"",C12,"") -> 112 | FL12: 1 | FT12: =IF($C12="","", IF(FS12=1,0,IF(FQ12<>0,500,FL12*$AE12/$AH12+FM12/$AH12*5+FN12/$AH12*25+FO12*50+FP12*50))) -> 1.666666667 | FV12: =IF(C12<>"",C12,"") -> 112 | FW12: 1 | FY12: 1 | GE12: =IF($C12="","", IF(GD12=1,0,IF(GB12<>0,500,FW12*$AE12/$AH12+FX12/$AH12*5+FY12/$AH12*25+FZ12*50+GA12*50))) -> 15.55555556 | GG12: =IF(C12<>"",C12,"") -> 112 | GH12: 3 | GP12: =IF($C12="","", IF(GO12=1,0,IF(GM12<>0,500,GH12*$AE12/$AH12+GI12/$AH12*5+GJ12/$AH12*25+GK12*50+GL12*50))) -> 5 | GR12: =IF(C12<>"",C12,"") -> 112 | GS12: 8 | GU12: 2 | HA12: =IF($C12="","", IF(GZ12=1,0,IF(GX12<>0,500,GS12*$AE12/$AH12+GT12/$AH12*5+GU12/$AH12*25+GV12*50+GW12*50))) -> 41.11111111 | HC12: =IF(C12<>"",C12,"") -> 112 | HD12: 3 | HG12: 4 | HH12: 1 | HL12: =IF($C12="","", IF(HK12=1,0,IF(HI12<>0,500,HD12*$AE12/$AH12+HE12/$AH12*5+HF12/$AH12*25+HG12*50+HH12*50))) -> 255 | HN12: =IF(C12<>"",C12,"") -> 112 | HW12: =IF($C12="","", IF(HV12=1,0,IF(HT12<>0,500,HO12*$AE12/$AH12+HP12/$AH12*5+HQ12/$AH12*25+HR12*50+HS12*50))) -> 0 | HY12: =IF(C12<>"",C12,"") -> 112 | IH12: =IF($C12="","", IF(IG12=1,0,IF(IE12<>0,500,HZ12*$AE12/$AH12+IA12/$AH12*5+IB12/$AH12*25+IC12*50+ID12*50))) -> 0
B13: =IF(C13=0,"",ROW(C13)-4) ->  | H13: =IF(C13=0,"",IF(OR(BB13=1,BC13<>0),BC13,"-")) ->  | I13: =IF(C13=0,"",IF(OR(BM13=1,BN13<>0),BN13,"-")) ->  | J13: =IF(C13=0,"",IF(OR(BX13=1,BY13<>0),BY13," -")) ->  | K13: =IF(C13=0,"",IF(OR(CJ13<>0,CI13=1),CJ13," -")) ->  | L13: =IF(C13=0,"",IF(OR(CU13<>0,CT13=1),CU13," -")) ->  | M13: =IF(C13=0,"",IF(OR(DF13<>0,DE13=1),DF13," -")) ->  | N13: =IF(C13=0,"",IF(OR(DQ13<>0,DP13=1),DQ13," -")) ->  | O13: =IF(C13=0,"",IF(OR(EB13<>0,EA13=1),EB13," -")) ->  | P13: =IF(C13=0,"",IF(OR(EM13<>0,EL13=1),EM13," -")) ->  | Q13: =IF(C13=0,"",IF(OR(EX13<>0,EW13=1),EX13," -")) ->  | R13: =IF(C13=0,"",IF(OR(FI13<>0,FH13=1),FI13," -")) ->  | S13: =IF(C13=0,"",IF(OR(FT13<>0,FS13=1),FT13," -")) ->  | T13: =IF(C13=0,"",IF(OR(GE13<>0,GD13=1),GE13," -")) ->  | U13: =IF(C13=0,"",IF(OR(GP13<>0,GO13=1),GP13," -")) ->  | V13: =IF(C13=0,"",IF(OR(HA13<>0,GZ13=1),HA13," -")) ->  | W13: =IF(C13=0,"",IF(OR(HL13<>0,HK13=1),HL13," -")) ->  | X13: =IF(C13=0,"",IF(AJ13<>0,AJ13," -")) ->  | Y13: =IF(C13=0,"",IF(OR(HW13<>0,HV13=1),HW13," -")) ->  | Z13: =IF(C13=0,"",IF(OR(IH13<>0,IG13=1),IH13," -")) ->  | AA13: =IF(C13=0,"",IF(AL13=1,"DNF",IF(AL13=2,"DSQ",IF(AM13<>1,"~ "&ROUND(SUM(H13:X13),3),ROUND(SUM(H13:X13),3))))) ->  | AE13: =IF(AD13<>"",3,"") ->  | AH13: =IF(AD13<>"",(AF13/1000*AG13/1000)/2,"") ->  | AP13: =IF(C13=0,99999,IF(AL13>0,9999,SUM(H13:X13)-AN13)) -> 99999 | AQ13: =IF(C13=0,99999,IF(AL13=1,9999,SUM(Y13:Z13))) -> 99999 | AT13: =IF(C13<>"",C13,"") ->  | BC13: =IF($C13="","", IF(BB13=1,0,IF(AZ13<>0,500,AU13*$AE13/$AH13+AV13/$AH13*5+AW13/$AH13*25+AX13*50+AY13*50))) ->  | BE13: =IF(C13<>"",C13,"") ->  | BN13: =IF($C13="","", IF(BM13=1,0,IF(BK13<>0,500,BF13*$AE13/$AH13+BG13/$AH13*5+BH13/$AH13*25+BI13*50+BJ13*50))) ->  | BP13: =IF(C13<>"",C13,"") ->  | BY13: =IF($C13="","", IF(BX13=1,0,IF(BV13<>0,500,BQ13*$AE13/$AH13+BR13/$AH13*5+BS13/$AH13*25+BT13*50+BU13*50))) ->  | CA13: =IF(C13<>"",C13,"") ->  | CJ13: =IF($C13="","", IF(CI13=1,0,IF(CG13<>0,500,CB13*$AE13/$AH13+CC13/$AH13*5+CD13/$AH13*25+CE13*50+CF13*50))) ->  | CL13: =IF(C13<>"",C13,"") ->  | CU13: =IF($C13="","", IF(CT13=1,0,IF(CR13<>0,500,CM13*$AE13/$AH13+CN13/$AH13*5+CO13/$AH13*25+CP13*50+CQ13*50))) ->  | CW13: =IF(C13<>"",C13,"") ->  | DF13: =IF($C13="","", IF(DE13=1,0,IF(DC13<>0,500,CX13*$AE13/$AH13+CY13/$AH13*5+CZ13/$AH13*25+DA13*50+DB13*50))) ->  | DH13: =IF(C13<>"",C13,"") ->  | DQ13: =IF($C13="","", IF(DP13=1,0,IF(DN13<>0,500,DI13*$AE13/$AH13+DJ13/$AH13*5+DK13/$AH13*25+DL13*50+DM13*50))) ->  | DS13: =IF(C13<>"",C13,"") ->  | EB13: =IF($C13="","", IF(EA13=1,0,IF(DY13<>0,500,DT13*$AE13/$AH13+DU13/$AH13*5+DV13/$AH13*25+DW13*50+DX13*50))) ->  | ED13: =IF(C13<>"",C13,"") ->  | EM13: =IF($C13="","", IF(EL13=1,0,IF(EJ13<>0,500,EE13*$AE13/$AH13+EF13/$AH13*5+EG13/$AH13*25+EH13*50+EI13*50))) ->  | EO13: =IF(C13<>"",C13,"") ->  | EX13: =IF($C13="","", IF(EW13=1,0,IF(EU13<>0,500,EP13*$AE13/$AH13+EQ13/$AH13*5+ER13/$AH13*25+ES13*50+ET13*50))) ->  | EZ13: =IF(C13<>"",C13,"") ->  | FI13: =IF($C13="","", IF(FH13=1,0,IF(FF13<>0,500,FA13*$AE13/$AH13+FB13/$AH13*5+FC13/$AH13*25+FD13*50+FE13*50))) ->  | FK13: =IF(C13<>"",C13,"") ->  | FT13: =IF($C13="","", IF(FS13=1,0,IF(FQ13<>0,500,FL13*$AE13/$AH13+FM13/$AH13*5+FN13/$AH13*25+FO13*50+FP13*50))) ->  | FV13: =IF(C13<>"",C13,"") ->  | GE13: =IF($C13="","", IF(GD13=1,0,IF(GB13<>0,500,FW13*$AE13/$AH13+FX13/$AH13*5+FY13/$AH13*25+FZ13*50+GA13*50))) ->  | GG13: =IF(C13<>"",C13,"") ->  | GP13: =IF($C13="","", IF(GO13=1,0,IF(GM13<>0,500,GH13*$AE13/$AH13+GI13/$AH13*5+GJ13/$AH13*25+GK13*50+GL13*50))) ->  | GR13: =IF(C13<>"",C13,"") ->  | HA13: =IF($C13="","", IF(GZ13=1,0,IF(GX13<>0,500,GS13*$AE13/$AH13+GT13/$AH13*5+GU13/$AH13*25+GV13*50+GW13*50))) ->  | HC13: =IF(C13<>"",C13,"") ->  | HL13: =IF($C13="","", IF(HK13=1,0,IF(HI13<>0,500,HD13*$AE13/$AH13+HE13/$AH13*5+HF13/$AH13*25+HG13*50+HH13*50))) ->  | HN13: =IF(C13<>"",C13,"") ->  | HW13: =IF($C13="","", IF(HV13=1,0,IF(HT13<>0,500,HO13*$AE13/$AH13+HP13/$AH13*5+HQ13/$AH13*25+HR13*50+HS13*50))) ->  | HY13: =IF(C13<>"",C13,"") ->  | IH13: =IF($C13="","", IF(IG13=1,0,IF(IE13<>0,500,HZ13*$AE13/$AH13+IA13/$AH13*5+IB13/$AH13*25+IC13*50+ID13*50))) -> 
B14: =IF(C14=0,"",ROW(C14)-4) ->  | H14: =IF(C14=0,"",IF(OR(BB14=1,BC14<>0),BC14,"-")) ->  | I14: =IF(C14=0,"",IF(OR(BM14=1,BN14<>0),BN14,"-")) ->  | J14: =IF(C14=0,"",IF(OR(BX14=1,BY14<>0),BY14," -")) ->  | K14: =IF(C14=0,"",IF(OR(CJ14<>0,CI14=1),CJ14," -")) ->  | L14: =IF(C14=0,"",IF(OR(CU14<>0,CT14=1),CU14," -")) ->  | M14: =IF(C14=0,"",IF(OR(DF14<>0,DE14=1),DF14," -")) ->  | N14: =IF(C14=0,"",IF(OR(DQ14<>0,DP14=1),DQ14," -")) ->  | O14: =IF(C14=0,"",IF(OR(EB14<>0,EA14=1),EB14," -")) ->  | P14: =IF(C14=0,"",IF(OR(EM14<>0,EL14=1),EM14," -")) ->  | Q14: =IF(C14=0,"",IF(OR(EX14<>0,EW14=1),EX14," -")) ->  | R14: =IF(C14=0,"",IF(OR(FI14<>0,FH14=1),FI14," -")) ->  | S14: =IF(C14=0,"",IF(OR(FT14<>0,FS14=1),FT14," -")) ->  | T14: =IF(C14=0,"",IF(OR(GE14<>0,GD14=1),GE14," -")) ->  | U14: =IF(C14=0,"",IF(OR(GP14<>0,GO14=1),GP14," -")) ->  | V14: =IF(C14=0,"",IF(OR(HA14<>0,GZ14=1),HA14," -")) ->  | W14: =IF(C14=0,"",IF(OR(HL14<>0,HK14=1),HL14," -")) ->  | X14: =IF(C14=0,"",IF(AJ14<>0,AJ14," -")) ->  | Y14: =IF(C14=0,"",IF(OR(HW14<>0,HV14=1),HW14," -")) ->  | Z14: =IF(C14=0,"",IF(OR(IH14<>0,IG14=1),IH14," -")) ->  | AA14: =IF(C14=0,"",IF(AL14=1,"DNF",IF(AL14=2,"DSQ",IF(AM14<>1,"~ "&ROUND(SUM(H14:X14),3),ROUND(SUM(H14:X14),3))))) ->  | AE14: =IF(AD14<>"",3,"") ->  | AH14: =IF(AD14<>"",(AF14/1000*AG14/1000)/2,"") ->  | AP14: =IF(C14=0,99999,IF(AL14>0,9999,SUM(H14:X14)-AN14)) -> 99999 | AQ14: =IF(C14=0,99999,IF(AL14=1,9999,SUM(Y14:Z14))) -> 99999 | AT14: =IF(C14<>"",C14,"") ->  | BC14: =IF($C14="","", IF(BB14=1,0,IF(AZ14<>0,500,AU14*$AE14/$AH14+AV14/$AH14*5+AW14/$AH14*25+AX14*50+AY14*50))) ->  | BE14: =IF(C14<>"",C14,"") ->  | BN14: =IF($C14="","", IF(BM14=1,0,IF(BK14<>0,500,BF14*$AE14/$AH14+BG14/$AH14*5+BH14/$AH14*25+BI14*50+BJ14*50))) ->  | BP14: =IF(C14<>"",C14,"") ->  | BY14: =IF($C14="","", IF(BX14=1,0,IF(BV14<>0,500,BQ14*$AE14/$AH14+BR14/$AH14*5+BS14/$AH14*25+BT14*50+BU14*50))) ->  | CA14: =IF(C14<>"",C14,"") ->  | CJ14: =IF($C14="","", IF(CI14=1,0,IF(CG14<>0,500,CB14*$AE14/$AH14+CC14/$AH14*5+CD14/$AH14*25+CE14*50+CF14*50))) ->  | CL14: =IF(C14<>"",C14,"") ->  | CU14: =IF($C14="","", IF(CT14=1,0,IF(CR14<>0,500,CM14*$AE14/$AH14+CN14/$AH14*5+CO14/$AH14*25+CP14*50+CQ14*50))) ->  | CW14: =IF(C14<>"",C14,"") ->  | DF14: =IF($C14="","", IF(DE14=1,0,IF(DC14<>0,500,CX14*$AE14/$AH14+CY14/$AH14*5+CZ14/$AH14*25+DA14*50+DB14*50))) ->  | DH14: =IF(C14<>"",C14,"") ->  | DQ14: =IF($C14="","", IF(DP14=1,0,IF(DN14<>0,500,DI14*$AE14/$AH14+DJ14/$AH14*5+DK14/$AH14*25+DL14*50+DM14*50))) ->  | DS14: =IF(C14<>"",C14,"") ->  | EB14: =IF($C14="","", IF(EA14=1,0,IF(DY14<>0,500,DT14*$AE14/$AH14+DU14/$AH14*5+DV14/$AH14*25+DW14*50+DX14*50))) ->  | ED14: =IF(C14<>"",C14,"") ->  | EM14: =IF($C14="","", IF(EL14=1,0,IF(EJ14<>0,500,EE14*$AE14/$AH14+EF14/$AH14*5+EG14/$AH14*25+EH14*50+EI14*50))) ->  | EO14: =IF(C14<>"",C14,"") ->  | EX14: =IF($C14="","", IF(EW14=1,0,IF(EU14<>0,500,EP14*$AE14/$AH14+EQ14/$AH14*5+ER14/$AH14*25+ES14*50+ET14*50))) ->  | EZ14: =IF(C14<>"",C14,"") ->  | FI14: =IF($C14="","", IF(FH14=1,0,IF(FF14<>0,500,FA14*$AE14/$AH14+FB14/$AH14*5+FC14/$AH14*25+FD14*50+FE14*50))) ->  | FK14: =IF(C14<>"",C14,"") ->  | FT14: =IF($C14="","", IF(FS14=1,0,IF(FQ14<>0,500,FL14*$AE14/$AH14+FM14/$AH14*5+FN14/$AH14*25+FO14*50+FP14*50))) ->  | FV14: =IF(C14<>"",C14,"") ->  | GE14: =IF($C14="","", IF(GD14=1,0,IF(GB14<>0,500,FW14*$AE14/$AH14+FX14/$AH14*5+FY14/$AH14*25+FZ14*50+GA14*50))) ->  | GG14: =IF(C14<>"",C14,"") ->  | GP14: =IF($C14="","", IF(GO14=1,0,IF(GM14<>0,500,GH14*$AE14/$AH14+GI14/$AH14*5+GJ14/$AH14*25+GK14*50+GL14*50))) ->  | GR14: =IF(C14<>"",C14,"") ->  | HA14: =IF($C14="","", IF(GZ14=1,0,IF(GX14<>0,500,GS14*$AE14/$AH14+GT14/$AH14*5+GU14/$AH14*25+GV14*50+GW14*50))) ->  | HC14: =IF(C14<>"",C14,"") ->  | HL14: =IF($C14="","", IF(HK14=1,0,IF(HI14<>0,500,HD14*$AE14/$AH14+HE14/$AH14*5+HF14/$AH14*25+HG14*50+HH14*50))) ->  | HN14: =IF(C14<>"",C14,"") ->  | HW14: =IF($C14="","", IF(HV14=1,0,IF(HT14<>0,500,HO14*$AE14/$AH14+HP14/$AH14*5+HQ14/$AH14*25+HR14*50+HS14*50))) ->  | HY14: =IF(C14<>"",C14,"") ->  | IH14: =IF($C14="","", IF(IG14=1,0,IF(IE14<>0,500,HZ14*$AE14/$AH14+IA14/$AH14*5+IB14/$AH14*25+IC14*50+ID14*50))) -> 
B15: =IF(C15=0,"",ROW(C15)-4) ->  | H15: =IF(C15=0,"",IF(OR(BB15=1,BC15<>0),BC15,"-")) ->  | I15: =IF(C15=0,"",IF(OR(BM15=1,BN15<>0),BN15,"-")) ->  | J15: =IF(C15=0,"",IF(OR(BX15=1,BY15<>0),BY15," -")) ->  | K15: =IF(C15=0,"",IF(OR(CJ15<>0,CI15=1),CJ15," -")) ->  | L15: =IF(C15=0,"",IF(OR(CU15<>0,CT15=1),CU15," -")) ->  | M15: =IF(C15=0,"",IF(OR(DF15<>0,DE15=1),DF15," -")) ->  | N15: =IF(C15=0,"",IF(OR(DQ15<>0,DP15=1),DQ15," -")) ->  | O15: =IF(C15=0,"",IF(OR(EB15<>0,EA15=1),EB15," -")) ->  | P15: =IF(C15=0,"",IF(OR(EM15<>0,EL15=1),EM15," -")) ->  | Q15: =IF(C15=0,"",IF(OR(EX15<>0,EW15=1),EX15," -")) ->  | R15: =IF(C15=0,"",IF(OR(FI15<>0,FH15=1),FI15," -")) ->  | S15: =IF(C15=0,"",IF(OR(FT15<>0,FS15=1),FT15," -")) ->  | T15: =IF(C15=0,"",IF(OR(GE15<>0,GD15=1),GE15," -")) ->  | U15: =IF(C15=0,"",IF(OR(GP15<>0,GO15=1),GP15," -")) ->  | V15: =IF(C15=0,"",IF(OR(HA15<>0,GZ15=1),HA15," -")) ->  | W15: =IF(C15=0,"",IF(OR(HL15<>0,HK15=1),HL15," -")) ->  | X15: =IF(C15=0,"",IF(AJ15<>0,AJ15," -")) ->  | Y15: =IF(C15=0,"",IF(OR(HW15<>0,HV15=1),HW15," -")) ->  | Z15: =IF(C15=0,"",IF(OR(IH15<>0,IG15=1),IH15," -")) ->  | AA15: =IF(C15=0,"",IF(AL15=1,"DNF",IF(AL15=2,"DSQ",IF(AM15<>1,"~ "&ROUND(SUM(H15:X15),3),ROUND(SUM(H15:X15),3))))) ->  | AD15: =IF(C15<>"",C15,"") ->  | AE15: =IF(AD15<>"",3,"") ->  | AH15: =IF(AD15<>"",(AF15/1000*AG15/1000)/2,"") ->  | AP15: =IF(C15=0,99999,IF(AL15>0,9999,SUM(H15:X15)-AN15)) -> 99999 | AQ15: =IF(C15=0,99999,IF(AL15=1,9999,SUM(Y15:Z15))) -> 99999 | AT15: =IF(C15<>"",C15,"") ->  | BC15: =IF($C15="","", IF(BB15=1,0,IF(AZ15<>0,500,AU15*$AE15/$AH15+AV15/$AH15*5+AW15/$AH15*25+AX15*50+AY15*50))) ->  | BE15: =IF(C15<>"",C15,"") ->  | BN15: =IF($C15="","", IF(BM15=1,0,IF(BK15<>0,500,BF15*$AE15/$AH15+BG15/$AH15*5+BH15/$AH15*25+BI15*50+BJ15*50))) ->  | BP15: =IF(C15<>"",C15,"") ->  | BY15: =IF($C15="","", IF(BX15=1,0,IF(BV15<>0,500,BQ15*$AE15/$AH15+BR15/$AH15*5+BS15/$AH15*25+BT15*50+BU15*50))) ->  | CA15: =IF(C15<>"",C15,"") ->  | CJ15: =IF($C15="","", IF(CI15=1,0,IF(CG15<>0,500,CB15*$AE15/$AH15+CC15/$AH15*5+CD15/$AH15*25+CE15*50+CF15*50))) ->  | CL15: =IF(C15<>"",C15,"") ->  | CU15: =IF($C15="","", IF(CT15=1,0,IF(CR15<>0,500,CM15*$AE15/$AH15+CN15/$AH15*5+CO15/$AH15*25+CP15*50+CQ15*50))) ->  | CW15: =IF(C15<>"",C15,"") ->  | DF15: =IF($C15="","", IF(DE15=1,0,IF(DC15<>0,500,CX15*$AE15/$AH15+CY15/$AH15*5+CZ15/$AH15*25+DA15*50+DB15*50))) ->  | DH15: =IF(C15<>"",C15,"") ->  | DQ15: =IF($C15="","", IF(DP15=1,0,IF(DN15<>0,500,DI15*$AE15/$AH15+DJ15/$AH15*5+DK15/$AH15*25+DL15*50+DM15*50))) ->  | DS15: =IF(C15<>"",C15,"") ->  | EB15: =IF($C15="","", IF(EA15=1,0,IF(DY15<>0,500,DT15*$AE15/$AH15+DU15/$AH15*5+DV15/$AH15*25+DW15*50+DX15*50))) ->  | ED15: =IF(C15<>"",C15,"") ->  | EM15: =IF($C15="","", IF(EL15=1,0,IF(EJ15<>0,500,EE15*$AE15/$AH15+EF15/$AH15*5+EG15/$AH15*25+EH15*50+EI15*50))) ->  | EO15: =IF(C15<>"",C15,"") ->  | EX15: =IF($C15="","", IF(EW15=1,0,IF(EU15<>0,500,EP15*$AE15/$AH15+EQ15/$AH15*5+ER15/$AH15*25+ES15*50+ET15*50))) ->  | EZ15: =IF(C15<>"",C15,"") ->  | FI15: =IF($C15="","", IF(FH15=1,0,IF(FF15<>0,500,FA15*$AE15/$AH15+FB15/$AH15*5+FC15/$AH15*25+FD15*50+FE15*50))) ->  | FK15: =IF(C15<>"",C15,"") ->  | FT15: =IF($C15="","", IF(FS15=1,0,IF(FQ15<>0,500,FL15*$AE15/$AH15+FM15/$AH15*5+FN15/$AH15*25+FO15*50+FP15*50))) ->  | FV15: =IF(C15<>"",C15,"") ->  | GE15: =IF($C15="","", IF(GD15=1,0,IF(GB15<>0,500,FW15*$AE15/$AH15+FX15/$AH15*5+FY15/$AH15*25+FZ15*50+GA15*50))) ->  | GG15: =IF(C15<>"",C15,"") ->  | GP15: =IF($C15="","", IF(GO15=1,0,IF(GM15<>0,500,GH15*$AE15/$AH15+GI15/$AH15*5+GJ15/$AH15*25+GK15*50+GL15*50))) ->  | GR15: =IF(C15<>"",C15,"") ->  | HA15: =IF($C15="","", IF(GZ15=1,0,IF(GX15<>0,500,GS15*$AE15/$AH15+GT15/$AH15*5+GU15/$AH15*25+GV15*50+GW15*50))) ->  | HC15: =IF(C15<>"",C15,"") ->  | HL15: =IF($C15="","", IF(HK15=1,0,IF(HI15<>0,500,HD15*$AE15/$AH15+HE15/$AH15*5+HF15/$AH15*25+HG15*50+HH15*50))) ->  | HN15: =IF(C15<>"",C15,"") ->  | HW15: =IF($C15="","", IF(HV15=1,0,IF(HT15<>0,500,HO15*$AE15/$AH15+HP15/$AH15*5+HQ15/$AH15*25+HR15*50+HS15*50))) ->  | HY15: =IF(C15<>"",C15,"") ->  | IH15: =IF($C15="","", IF(IG15=1,0,IF(IE15<>0,500,HZ15*$AE15/$AH15+IA15/$AH15*5+IB15/$AH15*25+IC15*50+ID15*50))) -> 
B16: =IF(C16=0,"",ROW(C16)-4) ->  | H16: =IF(C16=0,"",IF(OR(BB16=1,BC16<>0),BC16,"-")) ->  | I16: =IF(C16=0,"",IF(OR(BM16=1,BN16<>0),BN16,"-")) ->  | J16: =IF(C16=0,"",IF(OR(BX16=1,BY16<>0),BY16," -")) ->  | K16: =IF(C16=0,"",IF(OR(CJ16<>0,CI16=1),CJ16," -")) ->  | L16: =IF(C16=0,"",IF(OR(CU16<>0,CT16=1),CU16," -")) ->  | M16: =IF(C16=0,"",IF(OR(DF16<>0,DE16=1),DF16," -")) ->  | N16: =IF(C16=0,"",IF(OR(DQ16<>0,DP16=1),DQ16," -")) ->  | O16: =IF(C16=0,"",IF(OR(EB16<>0,EA16=1),EB16," -")) ->  | P16: =IF(C16=0,"",IF(OR(EM16<>0,EL16=1),EM16," -")) ->  | Q16: =IF(C16=0,"",IF(OR(EX16<>0,EW16=1),EX16," -")) ->  | R16: =IF(C16=0,"",IF(OR(FI16<>0,FH16=1),FI16," -")) ->  | S16: =IF(C16=0,"",IF(OR(FT16<>0,FS16=1),FT16," -")) ->  | T16: =IF(C16=0,"",IF(OR(GE16<>0,GD16=1),GE16," -")) ->  | U16: =IF(C16=0,"",IF(OR(GP16<>0,GO16=1),GP16," -")) ->  | V16: =IF(C16=0,"",IF(OR(HA16<>0,GZ16=1),HA16," -")) ->  | W16: =IF(C16=0,"",IF(OR(HL16<>0,HK16=1),HL16," -")) ->  | X16: =IF(C16=0,"",IF(AJ16<>0,AJ16," -")) ->  | Y16: =IF(C16=0,"",IF(OR(HW16<>0,HV16=1),HW16," -")) ->  | Z16: =IF(C16=0,"",IF(OR(IH16<>0,IG16=1),IH16," -")) ->  | AA16: =IF(C16=0,"",IF(AL16=1,"DNF",IF(AL16=2,"DSQ",IF(AM16<>1,"~ "&ROUND(SUM(H16:X16),3),ROUND(SUM(H16:X16),3))))) ->  | AD16: =IF(C16<>"",C16,"") ->  | AE16: =IF(AD16<>"",3,"") ->  | AH16: =IF(AD16<>"",(AF16/1000*AG16/1000)/2,"") ->  | AP16: =IF(C16=0,99999,IF(AL16>0,9999,SUM(H16:X16)-AN16)) -> 99999 | AQ16: =IF(C16=0,99999,IF(AL16=1,9999,SUM(Y16:Z16))) -> 99999 | AT16: =IF(C16<>"",C16,"") ->  | BC16: =IF($C16="","", IF(BB16=1,0,IF(AZ16<>0,500,AU16*$AE16/$AH16+AV16/$AH16*5+AW16/$AH16*25+AX16*50+AY16*50))) ->  | BE16: =IF(C16<>"",C16,"") ->  | BN16: =IF($C16="","", IF(BM16=1,0,IF(BK16<>0,500,BF16*$AE16/$AH16+BG16/$AH16*5+BH16/$AH16*25+BI16*50+BJ16*50))) ->  | BP16: =IF(C16<>"",C16,"") ->  | BY16: =IF($C16="","", IF(BX16=1,0,IF(BV16<>0,500,BQ16*$AE16/$AH16+BR16/$AH16*5+BS16/$AH16*25+BT16*50+BU16*50))) ->  | CA16: =IF(C16<>"",C16,"") ->  | CJ16: =IF($C16="","", IF(CI16=1,0,IF(CG16<>0,500,CB16*$AE16/$AH16+CC16/$AH16*5+CD16/$AH16*25+CE16*50+CF16*50))) ->  | CL16: =IF(C16<>"",C16,"") ->  | CU16: =IF($C16="","", IF(CT16=1,0,IF(CR16<>0,500,CM16*$AE16/$AH16+CN16/$AH16*5+CO16/$AH16*25+CP16*50+CQ16*50))) ->  | CW16: =IF(C16<>"",C16,"") ->  | DF16: =IF($C16="","", IF(DE16=1,0,IF(DC16<>0,500,CX16*$AE16/$AH16+CY16/$AH16*5+CZ16/$AH16*25+DA16*50+DB16*50))) ->  | DH16: =IF(C16<>"",C16,"") ->  | DQ16: =IF($C16="","", IF(DP16=1,0,IF(DN16<>0,500,DI16*$AE16/$AH16+DJ16/$AH16*5+DK16/$AH16*25+DL16*50+DM16*50))) ->  | DS16: =IF(C16<>"",C16,"") ->  | EB16: =IF($C16="","", IF(EA16=1,0,IF(DY16<>0,500,DT16*$AE16/$AH16+DU16/$AH16*5+DV16/$AH16*25+DW16*50+DX16*50))) ->  | ED16: =IF(C16<>"",C16,"") ->  | EM16: =IF($C16="","", IF(EL16=1,0,IF(EJ16<>0,500,EE16*$AE16/$AH16+EF16/$AH16*5+EG16/$AH16*25+EH16*50+EI16*50))) ->  | EO16: =IF(C16<>"",C16,"") ->  | EX16: =IF($C16="","", IF(EW16=1,0,IF(EU16<>0,500,EP16*$AE16/$AH16+EQ16/$AH16*5+ER16/$AH16*25+ES16*50+ET16*50))) ->  | EZ16: =IF(C16<>"",C16,"") ->  | FI16: =IF($C16="","", IF(FH16=1,0,IF(FF16<>0,500,FA16*$AE16/$AH16+FB16/$AH16*5+FC16/$AH16*25+FD16*50+FE16*50))) ->  | FK16: =IF(C16<>"",C16,"") ->  | FT16: =IF($C16="","", IF(FS16=1,0,IF(FQ16<>0,500,FL16*$AE16/$AH16+FM16/$AH16*5+FN16/$AH16*25+FO16*50+FP16*50))) ->  | FV16: =IF(C16<>"",C16,"") ->  | GE16: =IF($C16="","", IF(GD16=1,0,IF(GB16<>0,500,FW16*$AE16/$AH16+FX16/$AH16*5+FY16/$AH16*25+FZ16*50+GA16*50))) ->  | GG16: =IF(C16<>"",C16,"") ->  | GP16: =IF($C16="","", IF(GO16=1,0,IF(GM16<>0,500,GH16*$AE16/$AH16+GI16/$AH16*5+GJ16/$AH16*25+GK16*50+GL16*50))) ->  | GR16: =IF(C16<>"",C16,"") ->  | HA16: =IF($C16="","", IF(GZ16=1,0,IF(GX16<>0,500,GS16*$AE16/$AH16+GT16/$AH16*5+GU16/$AH16*25+GV16*50+GW16*50))) ->  | HC16: =IF(C16<>"",C16,"") ->  | HL16: =IF($C16="","", IF(HK16=1,0,IF(HI16<>0,500,HD16*$AE16/$AH16+HE16/$AH16*5+HF16/$AH16*25+HG16*50+HH16*50))) ->  | HN16: =IF(C16<>"",C16,"") ->  | HW16: =IF($C16="","", IF(HV16=1,0,IF(HT16<>0,500,HO16*$AE16/$AH16+HP16/$AH16*5+HQ16/$AH16*25+HR16*50+HS16*50))) ->  | HY16: =IF(C16<>"",C16,"") ->  | IH16: =IF($C16="","", IF(IG16=1,0,IF(IE16<>0,500,HZ16*$AE16/$AH16+IA16/$AH16*5+IB16/$AH16*25+IC16*50+ID16*50))) -> 
B17: =IF(C17=0,"",ROW(C17)-4) ->  | H17: =IF(C17=0,"",IF(OR(BB17=1,BC17<>0),BC17,"-")) ->  | I17: =IF(C17=0,"",IF(OR(BM17=1,BN17<>0),BN17,"-")) ->  | J17: =IF(C17=0,"",IF(OR(BX17=1,BY17<>0),BY17," -")) ->  | K17: =IF(C17=0,"",IF(OR(CJ17<>0,CI17=1),CJ17," -")) ->  | L17: =IF(C17=0,"",IF(OR(CU17<>0,CT17=1),CU17," -")) ->  | M17: =IF(C17=0,"",IF(OR(DF17<>0,DE17=1),DF17," -")) ->  | N17: =IF(C17=0,"",IF(OR(DQ17<>0,DP17=1),DQ17," -")) ->  | O17: =IF(C17=0,"",IF(OR(EB17<>0,EA17=1),EB17," -")) ->  | P17: =IF(C17=0,"",IF(OR(EM17<>0,EL17=1),EM17," -")) ->  | Q17: =IF(C17=0,"",IF(OR(EX17<>0,EW17=1),EX17," -")) ->  | R17: =IF(C17=0,"",IF(OR(FI17<>0,FH17=1),FI17," -")) ->  | S17: =IF(C17=0,"",IF(OR(FT17<>0,FS17=1),FT17," -")) ->  | T17: =IF(C17=0,"",IF(OR(GE17<>0,GD17=1),GE17," -")) ->  | U17: =IF(C17=0,"",IF(OR(GP17<>0,GO17=1),GP17," -")) ->  | V17: =IF(C17=0,"",IF(OR(HA17<>0,GZ17=1),HA17," -")) ->  | W17: =IF(C17=0,"",IF(OR(HL17<>0,HK17=1),HL17," -")) ->  | X17: =IF(C17=0,"",IF(AJ17<>0,AJ17," -")) ->  | Y17: =IF(C17=0,"",IF(OR(HW17<>0,HV17=1),HW17," -")) ->  | Z17: =IF(C17=0,"",IF(OR(IH17<>0,IG17=1),IH17," -")) ->  | AA17: =IF(C17=0,"",IF(AL17=1,"DNF",IF(AL17=2,"DSQ",IF(AM17<>1,"~ "&ROUND(SUM(H17:X17),3),ROUND(SUM(H17:X17),3))))) ->  | AD17: =IF(C17<>"",C17,"") ->  | AE17: =IF(AD17<>"",3,"") ->  | AH17: =IF(AD17<>"",(AF17/1000*AG17/1000)/2,"") ->  | AP17: =IF(C17=0,99999,IF(AL17>0,9999,SUM(H17:X17)-AN17)) -> 99999 | AQ17: =IF(C17=0,99999,IF(AL17=1,9999,SUM(Y17:Z17))) -> 99999 | AT17: =IF(C17<>"",C17,"") ->  | BC17: =IF($C17="","", IF(BB17=1,0,IF(AZ17<>0,500,AU17*$AE17/$AH17+AV17/$AH17*5+AW17/$AH17*25+AX17*50+AY17*50))) ->  | BE17: =IF(C17<>"",C17,"") ->  | BN17: =IF($C17="","", IF(BM17=1,0,IF(BK17<>0,500,BF17*$AE17/$AH17+BG17/$AH17*5+BH17/$AH17*25+BI17*50+BJ17*50))) ->  | BP17: =IF(C17<>"",C17,"") ->  | BY17: =IF($C17="","", IF(BX17=1,0,IF(BV17<>0,500,BQ17*$AE17/$AH17+BR17/$AH17*5+BS17/$AH17*25+BT17*50+BU17*50))) ->  | CA17: =IF(C17<>"",C17,"") ->  | CJ17: =IF($C17="","", IF(CI17=1,0,IF(CG17<>0,500,CB17*$AE17/$AH17+CC17/$AH17*5+CD17/$AH17*25+CE17*50+CF17*50))) ->  | CL17: =IF(C17<>"",C17,"") ->  | CU17: =IF($C17="","", IF(CT17=1,0,IF(CR17<>0,500,CM17*$AE17/$AH17+CN17/$AH17*5+CO17/$AH17*25+CP17*50+CQ17*50))) ->  | CW17: =IF(C17<>"",C17,"") ->  | DF17: =IF($C17="","", IF(DE17=1,0,IF(DC17<>0,500,CX17*$AE17/$AH17+CY17/$AH17*5+CZ17/$AH17*25+DA17*50+DB17*50))) ->  | DH17: =IF(C17<>"",C17,"") ->  | DQ17: =IF($C17="","", IF(DP17=1,0,IF(DN17<>0,500,DI17*$AE17/$AH17+DJ17/$AH17*5+DK17/$AH17*25+DL17*50+DM17*50))) ->  | DS17: =IF(C17<>"",C17,"") ->  | EB17: =IF($C17="","", IF(EA17=1,0,IF(DY17<>0,500,DT17*$AE17/$AH17+DU17/$AH17*5+DV17/$AH17*25+DW17*50+DX17*50))) ->  | ED17: =IF(C17<>"",C17,"") ->  | EM17: =IF($C17="","", IF(EL17=1,0,IF(EJ17<>0,500,EE17*$AE17/$AH17+EF17/$AH17*5+EG17/$AH17*25+EH17*50+EI17*50))) ->  | EO17: =IF(C17<>"",C17,"") ->  | EX17: =IF($C17="","", IF(EW17=1,0,IF(EU17<>0,500,EP17*$AE17/$AH17+EQ17/$AH17*5+ER17/$AH17*25+ES17*50+ET17*50))) ->  | EZ17: =IF(C17<>"",C17,"") ->  | FI17: =IF($C17="","", IF(FH17=1,0,IF(FF17<>0,500,FA17*$AE17/$AH17+FB17/$AH17*5+FC17/$AH17*25+FD17*50+FE17*50))) ->  | FK17: =IF(C17<>"",C17,"") ->  | FT17: =IF($C17="","", IF(FS17=1,0,IF(FQ17<>0,500,FL17*$AE17/$AH17+FM17/$AH17*5+FN17/$AH17*25+FO17*50+FP17*50))) ->  | FV17: =IF(C17<>"",C17,"") ->  | GE17: =IF($C17="","", IF(GD17=1,0,IF(GB17<>0,500,FW17*$AE17/$AH17+FX17/$AH17*5+FY17/$AH17*25+FZ17*50+GA17*50))) ->  | GG17: =IF(C17<>"",C17,"") ->  | GP17: =IF($C17="","", IF(GO17=1,0,IF(GM17<>0,500,GH17*$AE17/$AH17+GI17/$AH17*5+GJ17/$AH17*25+GK17*50+GL17*50))) ->  | GR17: =IF(C17<>"",C17,"") ->  | HA17: =IF($C17="","", IF(GZ17=1,0,IF(GX17<>0,500,GS17*$AE17/$AH17+GT17/$AH17*5+GU17/$AH17*25+GV17*50+GW17*50))) ->  | HC17: =IF(C17<>"",C17,"") ->  | HL17: =IF($C17="","", IF(HK17=1,0,IF(HI17<>0,500,HD17*$AE17/$AH17+HE17/$AH17*5+HF17/$AH17*25+HG17*50+HH17*50))) ->  | HN17: =IF(C17<>"",C17,"") ->  | HW17: =IF($C17="","", IF(HV17=1,0,IF(HT17<>0,500,HO17*$AE17/$AH17+HP17/$AH17*5+HQ17/$AH17*25+HR17*50+HS17*50))) ->  | HY17: =IF(C17<>"",C17,"") ->  | IH17: =IF($C17="","", IF(IG17=1,0,IF(IE17<>0,500,HZ17*$AE17/$AH17+IA17/$AH17*5+IB17/$AH17*25+IC17*50+ID17*50))) -> 
B18: =IF(C18=0,"",ROW(C18)-4) ->  | H18: =IF(C18=0,"",IF(OR(BB18=1,BC18<>0),BC18,"-")) ->  | I18: =IF(C18=0,"",IF(OR(BM18=1,BN18<>0),BN18,"-")) ->  | J18: =IF(C18=0,"",IF(OR(BX18=1,BY18<>0),BY18," -")) ->  | K18: =IF(C18=0,"",IF(OR(CJ18<>0,CI18=1),CJ18," -")) ->  | L18: =IF(C18=0,"",IF(OR(CU18<>0,CT18=1),CU18," -")) ->  | M18: =IF(C18=0,"",IF(OR(DF18<>0,DE18=1),DF18," -")) ->  | N18: =IF(C18=0,"",IF(OR(DQ18<>0,DP18=1),DQ18," -")) ->  | O18: =IF(C18=0,"",IF(OR(EB18<>0,EA18=1),EB18," -")) ->  | P18: =IF(C18=0,"",IF(OR(EM18<>0,EL18=1),EM18," -")) ->  | Q18: =IF(C18=0,"",IF(OR(EX18<>0,EW18=1),EX18," -")) ->  | R18: =IF(C18=0,"",IF(OR(FI18<>0,FH18=1),FI18," -")) ->  | S18: =IF(C18=0,"",IF(OR(FT18<>0,FS18=1),FT18," -")) ->  | T18: =IF(C18=0,"",IF(OR(GE18<>0,GD18=1),GE18," -")) ->  | U18: =IF(C18=0,"",IF(OR(GP18<>0,GO18=1),GP18," -")) ->  | V18: =IF(C18=0,"",IF(OR(HA18<>0,GZ18=1),HA18," -")) ->  | W18: =IF(C18=0,"",IF(OR(HL18<>0,HK18=1),HL18," -")) ->  | X18: =IF(C18=0,"",IF(AJ18<>0,AJ18," -")) ->  | Y18: =IF(C18=0,"",IF(OR(HW18<>0,HV18=1),HW18," -")) ->  | Z18: =IF(C18=0,"",IF(OR(IH18<>0,IG18=1),IH18," -")) ->  | AA18: =IF(C18=0,"",IF(AL18=1,"DNF",IF(AL18=2,"DSQ",IF(AM18<>1,"~ "&ROUND(SUM(H18:X18),3),ROUND(SUM(H18:X18),3))))) ->  | AD18: =IF(C18<>"",C18,"") ->  | AE18: =IF(AD18<>"",3,"") ->  | AH18: =IF(AD18<>"",(AF18/1000*AG18/1000)/2,"") ->  | AP18: =IF(C18=0,99999,IF(AL18>0,9999,SUM(H18:X18)-AN18)) -> 99999 | AQ18: =IF(C18=0,99999,IF(AL18=1,9999,SUM(Y18:Z18))) -> 99999 | AT18: =IF(C18<>"",C18,"") ->  | BC18: =IF($C18="","", IF(BB18=1,0,IF(AZ18<>0,500,AU18*$AE18/$AH18+AV18/$AH18*5+AW18/$AH18*25+AX18*50+AY18*50))) ->  | BE18: =IF(C18<>"",C18,"") ->  | BN18: =IF($C18="","", IF(BM18=1,0,IF(BK18<>0,500,BF18*$AE18/$AH18+BG18/$AH18*5+BH18/$AH18*25+BI18*50+BJ18*50))) ->  | BP18: =IF(C18<>"",C18,"") ->  | BY18: =IF($C18="","", IF(BX18=1,0,IF(BV18<>0,500,BQ18*$AE18/$AH18+BR18/$AH18*5+BS18/$AH18*25+BT18*50+BU18*50))) ->  | CA18: =IF(C18<>"",C18,"") ->  | CJ18: =IF($C18="","", IF(CI18=1,0,IF(CG18<>0,500,CB18*$AE18/$AH18+CC18/$AH18*5+CD18/$AH18*25+CE18*50+CF18*50))) ->  | CL18: =IF(C18<>"",C18,"") ->  | CU18: =IF($C18="","", IF(CT18=1,0,IF(CR18<>0,500,CM18*$AE18/$AH18+CN18/$AH18*5+CO18/$AH18*25+CP18*50+CQ18*50))) ->  | CW18: =IF(C18<>"",C18,"") ->  | DF18: =IF($C18="","", IF(DE18=1,0,IF(DC18<>0,500,CX18*$AE18/$AH18+CY18/$AH18*5+CZ18/$AH18*25+DA18*50+DB18*50))) ->  | DH18: =IF(C18<>"",C18,"") ->  | DQ18: =IF($C18="","", IF(DP18=1,0,IF(DN18<>0,500,DI18*$AE18/$AH18+DJ18/$AH18*5+DK18/$AH18*25+DL18*50+DM18*50))) ->  | DS18: =IF(C18<>"",C18,"") ->  | EB18: =IF($C18="","", IF(EA18=1,0,IF(DY18<>0,500,DT18*$AE18/$AH18+DU18/$AH18*5+DV18/$AH18*25+DW18*50+DX18*50))) ->  | ED18: =IF(C18<>"",C18,"") ->  | EM18: =IF($C18="","", IF(EL18=1,0,IF(EJ18<>0,500,EE18*$AE18/$AH18+EF18/$AH18*5+EG18/$AH18*25+EH18*50+EI18*50))) ->  | EO18: =IF(C18<>"",C18,"") ->  | EX18: =IF($C18="","", IF(EW18=1,0,IF(EU18<>0,500,EP18*$AE18/$AH18+EQ18/$AH18*5+ER18/$AH18*25+ES18*50+ET18*50))) ->  | EZ18: =IF(C18<>"",C18,"") ->  | FI18: =IF($C18="","", IF(FH18=1,0,IF(FF18<>0,500,FA18*$AE18/$AH18+FB18/$AH18*5+FC18/$AH18*25+FD18*50+FE18*50))) ->  | FK18: =IF(C18<>"",C18,"") ->  | FT18: =IF($C18="","", IF(FS18=1,0,IF(FQ18<>0,500,FL18*$AE18/$AH18+FM18/$AH18*5+FN18/$AH18*25+FO18*50+FP18*50))) ->  | FV18: =IF(C18<>"",C18,"") ->  | GE18: =IF($C18="","", IF(GD18=1,0,IF(GB18<>0,500,FW18*$AE18/$AH18+FX18/$AH18*5+FY18/$AH18*25+FZ18*50+GA18*50))) ->  | GG18: =IF(C18<>"",C18,"") ->  | GP18: =IF($C18="","", IF(GO18=1,0,IF(GM18<>0,500,GH18*$AE18/$AH18+GI18/$AH18*5+GJ18/$AH18*25+GK18*50+GL18*50))) ->  | GR18: =IF(C18<>"",C18,"") ->  | HA18: =IF($C18="","", IF(GZ18=1,0,IF(GX18<>0,500,GS18*$AE18/$AH18+GT18/$AH18*5+GU18/$AH18*25+GV18*50+GW18*50))) ->  | HC18: =IF(C18<>"",C18,"") ->  | HL18: =IF($C18="","", IF(HK18=1,0,IF(HI18<>0,500,HD18*$AE18/$AH18+HE18/$AH18*5+HF18/$AH18*25+HG18*50+HH18*50))) ->  | HN18: =IF(C18<>"",C18,"") ->  | HW18: =IF($C18="","", IF(HV18=1,0,IF(HT18<>0,500,HO18*$AE18/$AH18+HP18/$AH18*5+HQ18/$AH18*25+HR18*50+HS18*50))) ->  | HY18: =IF(C18<>"",C18,"") ->  | IH18: =IF($C18="","", IF(IG18=1,0,IF(IE18<>0,500,HZ18*$AE18/$AH18+IA18/$AH18*5+IB18/$AH18*25+IC18*50+ID18*50))) -> 
B19: =IF(C19=0,"",ROW(C19)-4) ->  | H19: =IF(C19=0,"",IF(OR(BB19=1,BC19<>0),BC19,"-")) ->  | I19: =IF(C19=0,"",IF(OR(BM19=1,BN19<>0),BN19,"-")) ->  | J19: =IF(C19=0,"",IF(OR(BX19=1,BY19<>0),BY19," -")) ->  | K19: =IF(C19=0,"",IF(OR(CJ19<>0,CI19=1),CJ19," -")) ->  | L19: =IF(C19=0,"",IF(OR(CU19<>0,CT19=1),CU19," -")) ->  | M19: =IF(C19=0,"",IF(OR(DF19<>0,DE19=1),DF19," -")) ->  | N19: =IF(C19=0,"",IF(OR(DQ19<>0,DP19=1),DQ19," -")) ->  | O19: =IF(C19=0,"",IF(OR(EB19<>0,EA19=1),EB19," -")) ->  | P19: =IF(C19=0,"",IF(OR(EM19<>0,EL19=1),EM19," -")) ->  | Q19: =IF(C19=0,"",IF(OR(EX19<>0,EW19=1),EX19," -")) ->  | R19: =IF(C19=0,"",IF(OR(FI19<>0,FH19=1),FI19," -")) ->  | S19: =IF(C19=0,"",IF(OR(FT19<>0,FS19=1),FT19," -")) ->  | T19: =IF(C19=0,"",IF(OR(GE19<>0,GD19=1),GE19," -")) ->  | U19: =IF(C19=0,"",IF(OR(GP19<>0,GO19=1),GP19," -")) ->  | V19: =IF(C19=0,"",IF(OR(HA19<>0,GZ19=1),HA19," -")) ->  | W19: =IF(C19=0,"",IF(OR(HL19<>0,HK19=1),HL19," -")) ->  | X19: =IF(C19=0,"",IF(AJ19<>0,AJ19," -")) ->  | Y19: =IF(C19=0,"",IF(OR(HW19<>0,HV19=1),HW19," -")) ->  | Z19: =IF(C19=0,"",IF(OR(IH19<>0,IG19=1),IH19," -")) ->  | AA19: =IF(C19=0,"",IF(AL19=1,"DNF",IF(AL19=2,"DSQ",IF(AM19<>1,"~ "&ROUND(SUM(H19:X19),3),ROUND(SUM(H19:X19),3))))) ->  | AD19: =IF(C19<>"",C19,"") ->  | AE19: =IF(AD19<>"",3,"") ->  | AH19: =IF(AD19<>"",(AF19/1000*AG19/1000)/2,"") ->  | AP19: =IF(C19=0,99999,IF(AL19>0,9999,SUM(H19:X19)-AN19)) -> 99999 | AQ19: =IF(C19=0,99999,IF(AL19=1,9999,SUM(Y19:Z19))) -> 99999 | AT19: =IF(C19<>"",C19,"") ->  | BC19: =IF($C19="","", IF(BB19=1,0,IF(AZ19<>0,500,AU19*$AE19/$AH19+AV19/$AH19*5+AW19/$AH19*25+AX19*50+AY19*50))) ->  | BE19: =IF(C19<>"",C19,"") ->  | BN19: =IF($C19="","", IF(BM19=1,0,IF(BK19<>0,500,BF19*$AE19/$AH19+BG19/$AH19*5+BH19/$AH19*25+BI19*50+BJ19*50))) ->  | BP19: =IF(C19<>"",C19,"") ->  | BY19: =IF($C19="","", IF(BX19=1,0,IF(BV19<>0,500,BQ19*$AE19/$AH19+BR19/$AH19*5+BS19/$AH19*25+BT19*50+BU19*50))) ->  | CA19: =IF(C19<>"",C19,"") ->  | CJ19: =IF($C19="","", IF(CI19=1,0,IF(CG19<>0,500,CB19*$AE19/$AH19+CC19/$AH19*5+CD19/$AH19*25+CE19*50+CF19*50))) ->  | CL19: =IF(C19<>"",C19,"") ->  | CU19: =IF($C19="","", IF(CT19=1,0,IF(CR19<>0,500,CM19*$AE19/$AH19+CN19/$AH19*5+CO19/$AH19*25+CP19*50+CQ19*50))) ->  | CW19: =IF(C19<>"",C19,"") ->  | DF19: =IF($C19="","", IF(DE19=1,0,IF(DC19<>0,500,CX19*$AE19/$AH19+CY19/$AH19*5+CZ19/$AH19*25+DA19*50+DB19*50))) ->  | DH19: =IF(C19<>"",C19,"") ->  | DQ19: =IF($C19="","", IF(DP19=1,0,IF(DN19<>0,500,DI19*$AE19/$AH19+DJ19/$AH19*5+DK19/$AH19*25+DL19*50+DM19*50))) ->  | DS19: =IF(C19<>"",C19,"") ->  | EB19: =IF($C19="","", IF(EA19=1,0,IF(DY19<>0,500,DT19*$AE19/$AH19+DU19/$AH19*5+DV19/$AH19*25+DW19*50+DX19*50))) ->  | ED19: =IF(C19<>"",C19,"") ->  | EM19: =IF($C19="","", IF(EL19=1,0,IF(EJ19<>0,500,EE19*$AE19/$AH19+EF19/$AH19*5+EG19/$AH19*25+EH19*50+EI19*50))) ->  | EO19: =IF(C19<>"",C19,"") ->  | EX19: =IF($C19="","", IF(EW19=1,0,IF(EU19<>0,500,EP19*$AE19/$AH19+EQ19/$AH19*5+ER19/$AH19*25+ES19*50+ET19*50))) ->  | EZ19: =IF(C19<>"",C19,"") ->  | FI19: =IF($C19="","", IF(FH19=1,0,IF(FF19<>0,500,FA19*$AE19/$AH19+FB19/$AH19*5+FC19/$AH19*25+FD19*50+FE19*50))) ->  | FK19: =IF(C19<>"",C19,"") ->  | FT19: =IF($C19="","", IF(FS19=1,0,IF(FQ19<>0,500,FL19*$AE19/$AH19+FM19/$AH19*5+FN19/$AH19*25+FO19*50+FP19*50))) ->  | FV19: =IF(C19<>"",C19,"") ->  | GE19: =IF($C19="","", IF(GD19=1,0,IF(GB19<>0,500,FW19*$AE19/$AH19+FX19/$AH19*5+FY19/$AH19*25+FZ19*50+GA19*50))) ->  | GG19: =IF(C19<>"",C19,"") ->  | GP19: =IF($C19="","", IF(GO19=1,0,IF(GM19<>0,500,GH19*$AE19/$AH19+GI19/$AH19*5+GJ19/$AH19*25+GK19*50+GL19*50))) ->  | GR19: =IF(C19<>"",C19,"") ->  | HA19: =IF($C19="","", IF(GZ19=1,0,IF(GX19<>0,500,GS19*$AE19/$AH19+GT19/$AH19*5+GU19/$AH19*25+GV19*50+GW19*50))) ->  | HC19: =IF(C19<>"",C19,"") ->  | HL19: =IF($C19="","", IF(HK19=1,0,IF(HI19<>0,500,HD19*$AE19/$AH19+HE19/$AH19*5+HF19/$AH19*25+HG19*50+HH19*50))) ->  | HN19: =IF(C19<>"",C19,"") ->  | HW19: =IF($C19="","", IF(HV19=1,0,IF(HT19<>0,500,HO19*$AE19/$AH19+HP19/$AH19*5+HQ19/$AH19*25+HR19*50+HS19*50))) ->  | HY19: =IF(C19<>"",C19,"") ->  | IH19: =IF($C19="","", IF(IG19=1,0,IF(IE19<>0,500,HZ19*$AE19/$AH19+IA19/$AH19*5+IB19/$AH19*25+IC19*50+ID19*50))) -> 
B20: =IF(C20=0,"",ROW(C20)-4) ->  | H20: =IF(C20=0,"",IF(OR(BB20=1,BC20<>0),BC20,"-")) ->  | I20: =IF(C20=0,"",IF(OR(BM20=1,BN20<>0),BN20,"-")) ->  | J20: =IF(C20=0,"",IF(OR(BX20=1,BY20<>0),BY20," -")) ->  | K20: =IF(C20=0,"",IF(OR(CJ20<>0,CI20=1),CJ20," -")) ->  | L20: =IF(C20=0,"",IF(OR(CU20<>0,CT20=1),CU20," -")) ->  | M20: =IF(C20=0,"",IF(OR(DF20<>0,DE20=1),DF20," -")) ->  | N20: =IF(C20=0,"",IF(OR(DQ20<>0,DP20=1),DQ20," -")) ->  | O20: =IF(C20=0,"",IF(OR(EB20<>0,EA20=1),EB20," -")) ->  | P20: =IF(C20=0,"",IF(OR(EM20<>0,EL20=1),EM20," -")) ->  | Q20: =IF(C20=0,"",IF(OR(EX20<>0,EW20=1),EX20," -")) ->  | R20: =IF(C20=0,"",IF(OR(FI20<>0,FH20=1),FI20," -")) ->  | S20: =IF(C20=0,"",IF(OR(FT20<>0,FS20=1),FT20," -")) ->  | T20: =IF(C20=0,"",IF(OR(GE20<>0,GD20=1),GE20," -")) ->  | U20: =IF(C20=0,"",IF(OR(GP20<>0,GO20=1),GP20," -")) ->  | V20: =IF(C20=0,"",IF(OR(HA20<>0,GZ20=1),HA20," -")) ->  | W20: =IF(C20=0,"",IF(OR(HL20<>0,HK20=1),HL20," -")) ->  | X20: =IF(C20=0,"",IF(AJ20<>0,AJ20," -")) ->  | Y20: =IF(C20=0,"",IF(OR(HW20<>0,HV20=1),HW20," -")) ->  | Z20: =IF(C20=0,"",IF(OR(IH20<>0,IG20=1),IH20," -")) ->  | AA20: =IF(C20=0,"",IF(AL20=1,"DNF",IF(AL20=2,"DSQ",IF(AM20<>1,"~ "&ROUND(SUM(H20:X20),3),ROUND(SUM(H20:X20),3))))) ->  | AD20: =IF(C20<>"",C20,"") ->  | AE20: =IF(AD20<>"",3,"") ->  | AH20: =IF(AD20<>"",(AF20/1000*AG20/1000)/2,"") ->  | AP20: =IF(C20=0,99999,IF(AL20>0,9999,SUM(H20:X20)-AN20)) -> 99999 | AQ20: =IF(C20=0,99999,IF(AL20=1,9999,SUM(Y20:Z20))) -> 99999 | AT20: =IF(C20<>"",C20,"") ->  | BC20: =IF($C20="","", IF(BB20=1,0,IF(AZ20<>0,500,AU20*$AE20/$AH20+AV20/$AH20*5+AW20/$AH20*25+AX20*50+AY20*50))) ->  | BE20: =IF(C20<>"",C20,"") ->  | BN20: =IF($C20="","", IF(BM20=1,0,IF(BK20<>0,500,BF20*$AE20/$AH20+BG20/$AH20*5+BH20/$AH20*25+BI20*50+BJ20*50))) ->  | BP20: =IF(C20<>"",C20,"") ->  | BY20: =IF($C20="","", IF(BX20=1,0,IF(BV20<>0,500,BQ20*$AE20/$AH20+BR20/$AH20*5+BS20/$AH20*25+BT20*50+BU20*50))) ->  | CA20: =IF(C20<>"",C20,"") ->  | CJ20: =IF($C20="","", IF(CI20=1,0,IF(CG20<>0,500,CB20*$AE20/$AH20+CC20/$AH20*5+CD20/$AH20*25+CE20*50+CF20*50))) ->  | CL20: =IF(C20<>"",C20,"") ->  | CU20: =IF($C20="","", IF(CT20=1,0,IF(CR20<>0,500,CM20*$AE20/$AH20+CN20/$AH20*5+CO20/$AH20*25+CP20*50+CQ20*50))) ->  | CW20: =IF(C20<>"",C20,"") ->  | DF20: =IF($C20="","", IF(DE20=1,0,IF(DC20<>0,500,CX20*$AE20/$AH20+CY20/$AH20*5+CZ20/$AH20*25+DA20*50+DB20*50))) ->  | DH20: =IF(C20<>"",C20,"") ->  | DQ20: =IF($C20="","", IF(DP20=1,0,IF(DN20<>0,500,DI20*$AE20/$AH20+DJ20/$AH20*5+DK20/$AH20*25+DL20*50+DM20*50))) ->  | DS20: =IF(C20<>"",C20,"") ->  | EB20: =IF($C20="","", IF(EA20=1,0,IF(DY20<>0,500,DT20*$AE20/$AH20+DU20/$AH20*5+DV20/$AH20*25+DW20*50+DX20*50))) ->  | ED20: =IF(C20<>"",C20,"") ->  | EM20: =IF($C20="","", IF(EL20=1,0,IF(EJ20<>0,500,EE20*$AE20/$AH20+EF20/$AH20*5+EG20/$AH20*25+EH20*50+EI20*50))) ->  | EO20: =IF(C20<>"",C20,"") ->  | EX20: =IF($C20="","", IF(EW20=1,0,IF(EU20<>0,500,EP20*$AE20/$AH20+EQ20/$AH20*5+ER20/$AH20*25+ES20*50+ET20*50))) ->  | EZ20: =IF(C20<>"",C20,"") ->  | FI20: =IF($C20="","", IF(FH20=1,0,IF(FF20<>0,500,FA20*$AE20/$AH20+FB20/$AH20*5+FC20/$AH20*25+FD20*50+FE20*50))) ->  | FK20: =IF(C20<>"",C20,"") ->  | FT20: =IF($C20="","", IF(FS20=1,0,IF(FQ20<>0,500,FL20*$AE20/$AH20+FM20/$AH20*5+FN20/$AH20*25+FO20*50+FP20*50))) ->  | FV20: =IF(C20<>"",C20,"") ->  | GE20: =IF($C20="","", IF(GD20=1,0,IF(GB20<>0,500,FW20*$AE20/$AH20+FX20/$AH20*5+FY20/$AH20*25+FZ20*50+GA20*50))) ->  | GG20: =IF(C20<>"",C20,"") ->  | GP20: =IF($C20="","", IF(GO20=1,0,IF(GM20<>0,500,GH20*$AE20/$AH20+GI20/$AH20*5+GJ20/$AH20*25+GK20*50+GL20*50))) ->  | GR20: =IF(C20<>"",C20,"") ->  | HA20: =IF($C20="","", IF(GZ20=1,0,IF(GX20<>0,500,GS20*$AE20/$AH20+GT20/$AH20*5+GU20/$AH20*25+GV20*50+GW20*50))) ->  | HC20: =IF(C20<>"",C20,"") ->  | HL20: =IF($C20="","", IF(HK20=1,0,IF(HI20<>0,500,HD20*$AE20/$AH20+HE20/$AH20*5+HF20/$AH20*25+HG20*50+HH20*50))) ->  | HN20: =IF(C20<>"",C20,"") ->  | HW20: =IF($C20="","", IF(HV20=1,0,IF(HT20<>0,500,HO20*$AE20/$AH20+HP20/$AH20*5+HQ20/$AH20*25+HR20*50+HS20*50))) ->  | HY20: =IF(C20<>"",C20,"") ->  | IH20: =IF($C20="","", IF(IG20=1,0,IF(IE20<>0,500,HZ20*$AE20/$AH20+IA20/$AH20*5+IB20/$AH20*25+IC20*50+ID20*50))) -> 
B21: =IF(C21=0,"",ROW(C21)-4) ->  | H21: =IF(C21=0,"",IF(OR(BB21=1,BC21<>0),BC21,"-")) ->  | I21: =IF(C21=0,"",IF(OR(BM21=1,BN21<>0),BN21,"-")) ->  | J21: =IF(C21=0,"",IF(OR(BX21=1,BY21<>0),BY21," -")) ->  | K21: =IF(C21=0,"",IF(OR(CJ21<>0,CI21=1),CJ21," -")) ->  | L21: =IF(C21=0,"",IF(OR(CU21<>0,CT21=1),CU21," -")) ->  | M21: =IF(C21=0,"",IF(OR(DF21<>0,DE21=1),DF21," -")) ->  | N21: =IF(C21=0,"",IF(OR(DQ21<>0,DP21=1),DQ21," -")) ->  | O21: =IF(C21=0,"",IF(OR(EB21<>0,EA21=1),EB21," -")) ->  | P21: =IF(C21=0,"",IF(OR(EM21<>0,EL21=1),EM21," -")) ->  | Q21: =IF(C21=0,"",IF(OR(EX21<>0,EW21=1),EX21," -")) ->  | R21: =IF(C21=0,"",IF(OR(FI21<>0,FH21=1),FI21," -")) ->  | S21: =IF(C21=0,"",IF(OR(FT21<>0,FS21=1),FT21," -")) ->  | T21: =IF(C21=0,"",IF(OR(GE21<>0,GD21=1),GE21," -")) ->  | U21: =IF(C21=0,"",IF(OR(GP21<>0,GO21=1),GP21," -")) ->  | V21: =IF(C21=0,"",IF(OR(HA21<>0,GZ21=1),HA21," -")) ->  | W21: =IF(C21=0,"",IF(OR(HL21<>0,HK21=1),HL21," -")) ->  | X21: =IF(C21=0,"",IF(AJ21<>0,AJ21," -")) ->  | Y21: =IF(C21=0,"",IF(OR(HW21<>0,HV21=1),HW21," -")) ->  | Z21: =IF(C21=0,"",IF(OR(IH21<>0,IG21=1),IH21," -")) ->  | AA21: =IF(C21=0,"",IF(AL21=1,"DNF",IF(AL21=2,"DSQ",IF(AM21<>1,"~ "&ROUND(SUM(H21:X21),3),ROUND(SUM(H21:X21),3))))) ->  | AD21: =IF(C21<>"",C21,"") ->  | AE21: =IF(AD21<>"",3,"") ->  | AH21: =IF(AD21<>"",(AF21/1000*AG21/1000)/2,"") ->  | AP21: =IF(C21=0,99999,IF(AL21>0,9999,SUM(H21:X21)-AN21)) -> 99999 | AQ21: =IF(C21=0,99999,IF(AL21=1,9999,SUM(Y21:Z21))) -> 99999 | AT21: =IF(C21<>"",C21,"") ->  | BC21: =IF($C21="","", IF(BB21=1,0,IF(AZ21<>0,500,AU21*$AE21/$AH21+AV21/$AH21*5+AW21/$AH21*25+AX21*50+AY21*50))) ->  | BE21: =IF(C21<>"",C21,"") ->  | BN21: =IF($C21="","", IF(BM21=1,0,IF(BK21<>0,500,BF21*$AE21/$AH21+BG21/$AH21*5+BH21/$AH21*25+BI21*50+BJ21*50))) ->  | BP21: =IF(C21<>"",C21,"") ->  | BY21: =IF($C21="","", IF(BX21=1,0,IF(BV21<>0,500,BQ21*$AE21/$AH21+BR21/$AH21*5+BS21/$AH21*25+BT21*50+BU21*50))) ->  | CA21: =IF(C21<>"",C21,"") ->  | CJ21: =IF($C21="","", IF(CI21=1,0,IF(CG21<>0,500,CB21*$AE21/$AH21+CC21/$AH21*5+CD21/$AH21*25+CE21*50+CF21*50))) ->  | CL21: =IF(C21<>"",C21,"") ->  | CU21: =IF($C21="","", IF(CT21=1,0,IF(CR21<>0,500,CM21*$AE21/$AH21+CN21/$AH21*5+CO21/$AH21*25+CP21*50+CQ21*50))) ->  | CW21: =IF(C21<>"",C21,"") ->  | DF21: =IF($C21="","", IF(DE21=1,0,IF(DC21<>0,500,CX21*$AE21/$AH21+CY21/$AH21*5+CZ21/$AH21*25+DA21*50+DB21*50))) ->  | DH21: =IF(C21<>"",C21,"") ->  | DQ21: =IF($C21="","", IF(DP21=1,0,IF(DN21<>0,500,DI21*$AE21/$AH21+DJ21/$AH21*5+DK21/$AH21*25+DL21*50+DM21*50))) ->  | DS21: =IF(C21<>"",C21,"") ->  | EB21: =IF($C21="","", IF(EA21=1,0,IF(DY21<>0,500,DT21*$AE21/$AH21+DU21/$AH21*5+DV21/$AH21*25+DW21*50+DX21*50))) ->  | ED21: =IF(C21<>"",C21,"") ->  | EM21: =IF($C21="","", IF(EL21=1,0,IF(EJ21<>0,500,EE21*$AE21/$AH21+EF21/$AH21*5+EG21/$AH21*25+EH21*50+EI21*50))) ->  | EO21: =IF(C21<>"",C21,"") ->  | EX21: =IF($C21="","", IF(EW21=1,0,IF(EU21<>0,500,EP21*$AE21/$AH21+EQ21/$AH21*5+ER21/$AH21*25+ES21*50+ET21*50))) ->  | EZ21: =IF(C21<>"",C21,"") ->  | FI21: =IF($C21="","", IF(FH21=1,0,IF(FF21<>0,500,FA21*$AE21/$AH21+FB21/$AH21*5+FC21/$AH21*25+FD21*50+FE21*50))) ->  | FK21: =IF(C21<>"",C21,"") ->  | FT21: =IF($C21="","", IF(FS21=1,0,IF(FQ21<>0,500,FL21*$AE21/$AH21+FM21/$AH21*5+FN21/$AH21*25+FO21*50+FP21*50))) ->  | FV21: =IF(C21<>"",C21,"") ->  | GE21: =IF($C21="","", IF(GD21=1,0,IF(GB21<>0,500,FW21*$AE21/$AH21+FX21/$AH21*5+FY21/$AH21*25+FZ21*50+GA21*50))) ->  | GG21: =IF(C21<>"",C21,"") ->  | GP21: =IF($C21="","", IF(GO21=1,0,IF(GM21<>0,500,GH21*$AE21/$AH21+GI21/$AH21*5+GJ21/$AH21*25+GK21*50+GL21*50))) ->  | GR21: =IF(C21<>"",C21,"") ->  | HA21: =IF($C21="","", IF(GZ21=1,0,IF(GX21<>0,500,GS21*$AE21/$AH21+GT21/$AH21*5+GU21/$AH21*25+GV21*50+GW21*50))) ->  | HC21: =IF(C21<>"",C21,"") ->  | HL21: =IF($C21="","", IF(HK21=1,0,IF(HI21<>0,500,HD21*$AE21/$AH21+HE21/$AH21*5+HF21/$AH21*25+HG21*50+HH21*50))) ->  | HN21: =IF(C21<>"",C21,"") ->  | HW21: =IF($C21="","", IF(HV21=1,0,IF(HT21<>0,500,HO21*$AE21/$AH21+HP21/$AH21*5+HQ21/$AH21*25+HR21*50+HS21*50))) ->  | HY21: =IF(C21<>"",C21,"") ->  | IH21: =IF($C21="","", IF(IG21=1,0,IF(IE21<>0,500,HZ21*$AE21/$AH21+IA21/$AH21*5+IB21/$AH21*25+IC21*50+ID21*50))) -> 
B22: =IF(C22=0,"",ROW(C22)-4) ->  | H22: =IF(C22=0,"",IF(OR(BB22=1,BC22<>0),BC22,"-")) ->  | I22: =IF(C22=0,"",IF(OR(BM22=1,BN22<>0),BN22,"-")) ->  | J22: =IF(C22=0,"",IF(OR(BX22=1,BY22<>0),BY22," -")) ->  | K22: =IF(C22=0,"",IF(OR(CJ22<>0,CI22=1),CJ22," -")) ->  | L22: =IF(C22=0,"",IF(OR(CU22<>0,CT22=1),CU22," -")) ->  | M22: =IF(C22=0,"",IF(OR(DF22<>0,DE22=1),DF22," -")) ->  | N22: =IF(C22=0,"",IF(OR(DQ22<>0,DP22=1),DQ22," -")) ->  | O22: =IF(C22=0,"",IF(OR(EB22<>0,EA22=1),EB22," -")) ->  | P22: =IF(C22=0,"",IF(OR(EM22<>0,EL22=1),EM22," -")) ->  | Q22: =IF(C22=0,"",IF(OR(EX22<>0,EW22=1),EX22," -")) ->  | R22: =IF(C22=0,"",IF(OR(FI22<>0,FH22=1),FI22," -")) ->  | S22: =IF(C22=0,"",IF(OR(FT22<>0,FS22=1),FT22," -")) ->  | T22: =IF(C22=0,"",IF(OR(GE22<>0,GD22=1),GE22," -")) ->  | U22: =IF(C22=0,"",IF(OR(GP22<>0,GO22=1),GP22," -")) ->  | V22: =IF(C22=0,"",IF(OR(HA22<>0,GZ22=1),HA22," -")) ->  | W22: =IF(C22=0,"",IF(OR(HL22<>0,HK22=1),HL22," -")) ->  | X22: =IF(C22=0,"",IF(AJ22<>0,AJ22," -")) ->  | Y22: =IF(C22=0,"",IF(OR(HW22<>0,HV22=1),HW22," -")) ->  | Z22: =IF(C22=0,"",IF(OR(IH22<>0,IG22=1),IH22," -")) ->  | AA22: =IF(C22=0,"",IF(AL22=1,"DNF",IF(AL22=2,"DSQ",IF(AM22<>1,"~ "&ROUND(SUM(H22:X22),3),ROUND(SUM(H22:X22),3))))) ->  | AD22: =IF(C22<>"",C22,"") ->  | AE22: =IF(AD22<>"",3,"") ->  | AH22: =IF(AD22<>"",(AF22/1000*AG22/1000)/2,"") ->  | AP22: =IF(C22=0,99999,IF(AL22>0,9999,SUM(H22:X22)-AN22)) -> 99999 | AQ22: =IF(C22=0,99999,IF(AL22=1,9999,SUM(Y22:Z22))) -> 99999 | AT22: =IF(C22<>"",C22,"") ->  | BC22: =IF($C22="","", IF(BB22=1,0,IF(AZ22<>0,500,AU22*$AE22/$AH22+AV22/$AH22*5+AW22/$AH22*25+AX22*50+AY22*50))) ->  | BE22: =IF(C22<>"",C22,"") ->  | BN22: =IF($C22="","", IF(BM22=1,0,IF(BK22<>0,500,BF22*$AE22/$AH22+BG22/$AH22*5+BH22/$AH22*25+BI22*50+BJ22*50))) ->  | BP22: =IF(C22<>"",C22,"") ->  | BY22: =IF($C22="","", IF(BX22=1,0,IF(BV22<>0,500,BQ22*$AE22/$AH22+BR22/$AH22*5+BS22/$AH22*25+BT22*50+BU22*50))) ->  | CA22: =IF(C22<>"",C22,"") ->  | CJ22: =IF($C22="","", IF(CI22=1,0,IF(CG22<>0,500,CB22*$AE22/$AH22+CC22/$AH22*5+CD22/$AH22*25+CE22*50+CF22*50))) ->  | CL22: =IF(C22<>"",C22,"") ->  | CU22: =IF($C22="","", IF(CT22=1,0,IF(CR22<>0,500,CM22*$AE22/$AH22+CN22/$AH22*5+CO22/$AH22*25+CP22*50+CQ22*50))) ->  | CW22: =IF(C22<>"",C22,"") ->  | DF22: =IF($C22="","", IF(DE22=1,0,IF(DC22<>0,500,CX22*$AE22/$AH22+CY22/$AH22*5+CZ22/$AH22*25+DA22*50+DB22*50))) ->  | DH22: =IF(C22<>"",C22,"") ->  | DQ22: =IF($C22="","", IF(DP22=1,0,IF(DN22<>0,500,DI22*$AE22/$AH22+DJ22/$AH22*5+DK22/$AH22*25+DL22*50+DM22*50))) ->  | DS22: =IF(C22<>"",C22,"") ->  | EB22: =IF($C22="","", IF(EA22=1,0,IF(DY22<>0,500,DT22*$AE22/$AH22+DU22/$AH22*5+DV22/$AH22*25+DW22*50+DX22*50))) ->  | ED22: =IF(C22<>"",C22,"") ->  | EM22: =IF($C22="","", IF(EL22=1,0,IF(EJ22<>0,500,EE22*$AE22/$AH22+EF22/$AH22*5+EG22/$AH22*25+EH22*50+EI22*50))) ->  | EO22: =IF(C22<>"",C22,"") ->  | EX22: =IF($C22="","", IF(EW22=1,0,IF(EU22<>0,500,EP22*$AE22/$AH22+EQ22/$AH22*5+ER22/$AH22*25+ES22*50+ET22*50))) ->  | EZ22: =IF(C22<>"",C22,"") ->  | FI22: =IF($C22="","", IF(FH22=1,0,IF(FF22<>0,500,FA22*$AE22/$AH22+FB22/$AH22*5+FC22/$AH22*25+FD22*50+FE22*50))) ->  | FK22: =IF(C22<>"",C22,"") ->  | FT22: =IF($C22="","", IF(FS22=1,0,IF(FQ22<>0,500,FL22*$AE22/$AH22+FM22/$AH22*5+FN22/$AH22*25+FO22*50+FP22*50))) ->  | FV22: =IF(C22<>"",C22,"") ->  | GE22: =IF($C22="","", IF(GD22=1,0,IF(GB22<>0,500,FW22*$AE22/$AH22+FX22/$AH22*5+FY22/$AH22*25+FZ22*50+GA22*50))) ->  | GG22: =IF(C22<>"",C22,"") ->  | GP22: =IF($C22="","", IF(GO22=1,0,IF(GM22<>0,500,GH22*$AE22/$AH22+GI22/$AH22*5+GJ22/$AH22*25+GK22*50+GL22*50))) ->  | GR22: =IF(C22<>"",C22,"") ->  | HA22: =IF($C22="","", IF(GZ22=1,0,IF(GX22<>0,500,GS22*$AE22/$AH22+GT22/$AH22*5+GU22/$AH22*25+GV22*50+GW22*50))) ->  | HC22: =IF(C22<>"",C22,"") ->  | HL22: =IF($C22="","", IF(HK22=1,0,IF(HI22<>0,500,HD22*$AE22/$AH22+HE22/$AH22*5+HF22/$AH22*25+HG22*50+HH22*50))) ->  | HN22: =IF(C22<>"",C22,"") ->  | HW22: =IF($C22="","", IF(HV22=1,0,IF(HT22<>0,500,HO22*$AE22/$AH22+HP22/$AH22*5+HQ22/$AH22*25+HR22*50+HS22*50))) ->  | HY22: =IF(C22<>"",C22,"") ->  | IH22: =IF($C22="","", IF(IG22=1,0,IF(IE22<>0,500,HZ22*$AE22/$AH22+IA22/$AH22*5+IB22/$AH22*25+IC22*50+ID22*50))) -> 
B23: =IF(C23=0,"",ROW(C23)-4) ->  | H23: =IF(C23=0,"",IF(OR(BB23=1,BC23<>0),BC23,"-")) ->  | I23: =IF(C23=0,"",IF(OR(BM23=1,BN23<>0),BN23,"-")) ->  | J23: =IF(C23=0,"",IF(OR(BX23=1,BY23<>0),BY23," -")) ->  | K23: =IF(C23=0,"",IF(OR(CJ23<>0,CI23=1),CJ23," -")) ->  | L23: =IF(C23=0,"",IF(OR(CU23<>0,CT23=1),CU23," -")) ->  | M23: =IF(C23=0,"",IF(OR(DF23<>0,DE23=1),DF23," -")) ->  | N23: =IF(C23=0,"",IF(OR(DQ23<>0,DP23=1),DQ23," -")) ->  | O23: =IF(C23=0,"",IF(OR(EB23<>0,EA23=1),EB23," -")) ->  | P23: =IF(C23=0,"",IF(OR(EM23<>0,EL23=1),EM23," -")) ->  | Q23: =IF(C23=0,"",IF(OR(EX23<>0,EW23=1),EX23," -")) ->  | R23: =IF(C23=0,"",IF(OR(FI23<>0,FH23=1),FI23," -")) ->  | S23: =IF(C23=0,"",IF(OR(FT23<>0,FS23=1),FT23," -")) ->  | T23: =IF(C23=0,"",IF(OR(GE23<>0,GD23=1),GE23," -")) ->  | U23: =IF(C23=0,"",IF(OR(GP23<>0,GO23=1),GP23," -")) ->  | V23: =IF(C23=0,"",IF(OR(HA23<>0,GZ23=1),HA23," -")) ->  | W23: =IF(C23=0,"",IF(OR(HL23<>0,HK23=1),HL23," -")) ->  | X23: =IF(C23=0,"",IF(AJ23<>0,AJ23," -")) ->  | Y23: =IF(C23=0,"",IF(OR(HW23<>0,HV23=1),HW23," -")) ->  | Z23: =IF(C23=0,"",IF(OR(IH23<>0,IG23=1),IH23," -")) ->  | AA23: =IF(C23=0,"",IF(AL23=1,"DNF",IF(AL23=2,"DSQ",IF(AM23<>1,"~ "&ROUND(SUM(H23:X23),3),ROUND(SUM(H23:X23),3))))) ->  | AD23: =IF(C23<>"",C23,"") ->  | AE23: =IF(AD23<>"",3,"") ->  | AH23: =IF(AD23<>"",(AF23/1000*AG23/1000)/2,"") ->  | AP23: =IF(C23=0,99999,IF(AL23>0,9999,SUM(H23:X23)-AN23)) -> 99999 | AQ23: =IF(C23=0,99999,IF(AL23=1,9999,SUM(Y23:Z23))) -> 99999 | AT23: =IF(C23<>"",C23,"") ->  | BC23: =IF($C23="","", IF(BB23=1,0,IF(AZ23<>0,500,AU23*$AE23/$AH23+AV23/$AH23*5+AW23/$AH23*25+AX23*50+AY23*50))) ->  | BE23: =IF(C23<>"",C23,"") ->  | BN23: =IF($C23="","", IF(BM23=1,0,IF(BK23<>0,500,BF23*$AE23/$AH23+BG23/$AH23*5+BH23/$AH23*25+BI23*50+BJ23*50))) ->  | BP23: =IF(C23<>"",C23,"") ->  | BY23: =IF($C23="","", IF(BX23=1,0,IF(BV23<>0,500,BQ23*$AE23/$AH23+BR23/$AH23*5+BS23/$AH23*25+BT23*50+BU23*50))) ->  | CA23: =IF(C23<>"",C23,"") ->  | CJ23: =IF($C23="","", IF(CI23=1,0,IF(CG23<>0,500,CB23*$AE23/$AH23+CC23/$AH23*5+CD23/$AH23*25+CE23*50+CF23*50))) ->  | CL23: =IF(C23<>"",C23,"") ->  | CU23: =IF($C23="","", IF(CT23=1,0,IF(CR23<>0,500,CM23*$AE23/$AH23+CN23/$AH23*5+CO23/$AH23*25+CP23*50+CQ23*50))) ->  | CW23: =IF(C23<>"",C23,"") ->  | DF23: =IF($C23="","", IF(DE23=1,0,IF(DC23<>0,500,CX23*$AE23/$AH23+CY23/$AH23*5+CZ23/$AH23*25+DA23*50+DB23*50))) ->  | DH23: =IF(C23<>"",C23,"") ->  | DQ23: =IF($C23="","", IF(DP23=1,0,IF(DN23<>0,500,DI23*$AE23/$AH23+DJ23/$AH23*5+DK23/$AH23*25+DL23*50+DM23*50))) ->  | DS23: =IF(C23<>"",C23,"") ->  | EB23: =IF($C23="","", IF(EA23=1,0,IF(DY23<>0,500,DT23*$AE23/$AH23+DU23/$AH23*5+DV23/$AH23*25+DW23*50+DX23*50))) ->  | ED23: =IF(C23<>"",C23,"") ->  | EM23: =IF($C23="","", IF(EL23=1,0,IF(EJ23<>0,500,EE23*$AE23/$AH23+EF23/$AH23*5+EG23/$AH23*25+EH23*50+EI23*50))) ->  | EO23: =IF(C23<>"",C23,"") ->  | EX23: =IF($C23="","", IF(EW23=1,0,IF(EU23<>0,500,EP23*$AE23/$AH23+EQ23/$AH23*5+ER23/$AH23*25+ES23*50+ET23*50))) ->  | EZ23: =IF(C23<>"",C23,"") ->  | FI23: =IF($C23="","", IF(FH23=1,0,IF(FF23<>0,500,FA23*$AE23/$AH23+FB23/$AH23*5+FC23/$AH23*25+FD23*50+FE23*50))) ->  | FK23: =IF(C23<>"",C23,"") ->  | FT23: =IF($C23="","", IF(FS23=1,0,IF(FQ23<>0,500,FL23*$AE23/$AH23+FM23/$AH23*5+FN23/$AH23*25+FO23*50+FP23*50))) ->  | FV23: =IF(C23<>"",C23,"") ->  | GE23: =IF($C23="","", IF(GD23=1,0,IF(GB23<>0,500,FW23*$AE23/$AH23+FX23/$AH23*5+FY23/$AH23*25+FZ23*50+GA23*50))) ->  | GG23: =IF(C23<>"",C23,"") ->  | GP23: =IF($C23="","", IF(GO23=1,0,IF(GM23<>0,500,GH23*$AE23/$AH23+GI23/$AH23*5+GJ23/$AH23*25+GK23*50+GL23*50))) ->  | GR23: =IF(C23<>"",C23,"") ->  | HA23: =IF($C23="","", IF(GZ23=1,0,IF(GX23<>0,500,GS23*$AE23/$AH23+GT23/$AH23*5+GU23/$AH23*25+GV23*50+GW23*50))) ->  | HC23: =IF(C23<>"",C23,"") ->  | HL23: =IF($C23="","", IF(HK23=1,0,IF(HI23<>0,500,HD23*$AE23/$AH23+HE23/$AH23*5+HF23/$AH23*25+HG23*50+HH23*50))) ->  | HN23: =IF(C23<>"",C23,"") ->  | HW23: =IF($C23="","", IF(HV23=1,0,IF(HT23<>0,500,HO23*$AE23/$AH23+HP23/$AH23*5+HQ23/$AH23*25+HR23*50+HS23*50))) ->  | HY23: =IF(C23<>"",C23,"") ->  | IH23: =IF($C23="","", IF(IG23=1,0,IF(IE23<>0,500,HZ23*$AE23/$AH23+IA23/$AH23*5+IB23/$AH23*25+IC23*50+ID23*50))) -> 
B24: =IF(C24=0,"",ROW(C24)-4) ->  | H24: =IF(C24=0,"",IF(OR(BB24=1,BC24<>0),BC24,"-")) ->  | I24: =IF(C24=0,"",IF(OR(BM24=1,BN24<>0),BN24,"-")) ->  | J24: =IF(C24=0,"",IF(OR(BX24=1,BY24<>0),BY24," -")) ->  | K24: =IF(C24=0,"",IF(OR(CJ24<>0,CI24=1),CJ24," -")) ->  | L24: =IF(C24=0,"",IF(OR(CU24<>0,CT24=1),CU24," -")) ->  | M24: =IF(C24=0,"",IF(OR(DF24<>0,DE24=1),DF24," -")) ->  | N24: =IF(C24=0,"",IF(OR(DQ24<>0,DP24=1),DQ24," -")) ->  | O24: =IF(C24=0,"",IF(OR(EB24<>0,EA24=1),EB24," -")) ->  | P24: =IF(C24=0,"",IF(OR(EM24<>0,EL24=1),EM24," -")) ->  | Q24: =IF(C24=0,"",IF(OR(EX24<>0,EW24=1),EX24," -")) ->  | R24: =IF(C24=0,"",IF(OR(FI24<>0,FH24=1),FI24," -")) ->  | S24: =IF(C24=0,"",IF(OR(FT24<>0,FS24=1),FT24," -")) ->  | T24: =IF(C24=0,"",IF(OR(GE24<>0,GD24=1),GE24," -")) ->  | U24: =IF(C24=0,"",IF(OR(GP24<>0,GO24=1),GP24," -")) ->  | V24: =IF(C24=0,"",IF(OR(HA24<>0,GZ24=1),HA24," -")) ->  | W24: =IF(C24=0,"",IF(OR(HL24<>0,HK24=1),HL24," -")) ->  | X24: =IF(C24=0,"",IF(AJ24<>0,AJ24," -")) ->  | Y24: =IF(C24=0,"",IF(OR(HW24<>0,HV24=1),HW24," -")) ->  | Z24: =IF(C24=0,"",IF(OR(IH24<>0,IG24=1),IH24," -")) ->  | AA24: =IF(C24=0,"",IF(AL24=1,"DNF",IF(AL24=2,"DSQ",IF(AM24<>1,"~ "&ROUND(SUM(H24:X24),3),ROUND(SUM(H24:X24),3))))) ->  | AD24: =IF(C24<>"",C24,"") ->  | AE24: =IF(AD24<>"",3,"") ->  | AH24: =IF(AD24<>"",(AF24/1000*AG24/1000)/2,"") ->  | AP24: =IF(C24=0,99999,IF(AL24>0,9999,SUM(H24:X24)-AN24)) -> 99999 | AQ24: =IF(C24=0,99999,IF(AL24=1,9999,SUM(Y24:Z24))) -> 99999 | AT24: =IF(C24<>"",C24,"") ->  | BC24: =IF($C24="","", IF(BB24=1,0,IF(AZ24<>0,500,AU24*$AE24/$AH24+AV24/$AH24*5+AW24/$AH24*25+AX24*50+AY24*50))) ->  | BE24: =IF(C24<>"",C24,"") ->  | BN24: =IF($C24="","", IF(BM24=1,0,IF(BK24<>0,500,BF24*$AE24/$AH24+BG24/$AH24*5+BH24/$AH24*25+BI24*50+BJ24*50))) ->  | BP24: =IF(C24<>"",C24,"") ->  | BY24: =IF($C24="","", IF(BX24=1,0,IF(BV24<>0,500,BQ24*$AE24/$AH24+BR24/$AH24*5+BS24/$AH24*25+BT24*50+BU24*50))) ->  | CA24: =IF(C24<>"",C24,"") ->  | CJ24: =IF($C24="","", IF(CI24=1,0,IF(CG24<>0,500,CB24*$AE24/$AH24+CC24/$AH24*5+CD24/$AH24*25+CE24*50+CF24*50))) ->  | CL24: =IF(C24<>"",C24,"") ->  | CU24: =IF($C24="","", IF(CT24=1,0,IF(CR24<>0,500,CM24*$AE24/$AH24+CN24/$AH24*5+CO24/$AH24*25+CP24*50+CQ24*50))) ->  | CW24: =IF(C24<>"",C24,"") ->  | DF24: =IF($C24="","", IF(DE24=1,0,IF(DC24<>0,500,CX24*$AE24/$AH24+CY24/$AH24*5+CZ24/$AH24*25+DA24*50+DB24*50))) ->  | DH24: =IF(C24<>"",C24,"") ->  | DQ24: =IF($C24="","", IF(DP24=1,0,IF(DN24<>0,500,DI24*$AE24/$AH24+DJ24/$AH24*5+DK24/$AH24*25+DL24*50+DM24*50))) ->  | DS24: =IF(C24<>"",C24,"") ->  | EB24: =IF($C24="","", IF(EA24=1,0,IF(DY24<>0,500,DT24*$AE24/$AH24+DU24/$AH24*5+DV24/$AH24*25+DW24*50+DX24*50))) ->  | ED24: =IF(C24<>"",C24,"") ->  | EM24: =IF($C24="","", IF(EL24=1,0,IF(EJ24<>0,500,EE24*$AE24/$AH24+EF24/$AH24*5+EG24/$AH24*25+EH24*50+EI24*50))) ->  | EO24: =IF(C24<>"",C24,"") ->  | EX24: =IF($C24="","", IF(EW24=1,0,IF(EU24<>0,500,EP24*$AE24/$AH24+EQ24/$AH24*5+ER24/$AH24*25+ES24*50+ET24*50))) ->  | EZ24: =IF(C24<>"",C24,"") ->  | FI24: =IF($C24="","", IF(FH24=1,0,IF(FF24<>0,500,FA24*$AE24/$AH24+FB24/$AH24*5+FC24/$AH24*25+FD24*50+FE24*50))) ->  | FK24: =IF(C24<>"",C24,"") ->  | FT24: =IF($C24="","", IF(FS24=1,0,IF(FQ24<>0,500,FL24*$AE24/$AH24+FM24/$AH24*5+FN24/$AH24*25+FO24*50+FP24*50))) ->  | FV24: =IF(C24<>"",C24,"") ->  | GE24: =IF($C24="","", IF(GD24=1,0,IF(GB24<>0,500,FW24*$AE24/$AH24+FX24/$AH24*5+FY24/$AH24*25+FZ24*50+GA24*50))) ->  | GG24: =IF(C24<>"",C24,"") ->  | GP24: =IF($C24="","", IF(GO24=1,0,IF(GM24<>0,500,GH24*$AE24/$AH24+GI24/$AH24*5+GJ24/$AH24*25+GK24*50+GL24*50))) ->  | GR24: =IF(C24<>"",C24,"") ->  | HA24: =IF($C24="","", IF(GZ24=1,0,IF(GX24<>0,500,GS24*$AE24/$AH24+GT24/$AH24*5+GU24/$AH24*25+GV24*50+GW24*50))) ->  | HC24: =IF(C24<>"",C24,"") ->  | HL24: =IF($C24="","", IF(HK24=1,0,IF(HI24<>0,500,HD24*$AE24/$AH24+HE24/$AH24*5+HF24/$AH24*25+HG24*50+HH24*50))) ->  | HN24: =IF(C24<>"",C24,"") ->  | HW24: =IF($C24="","", IF(HV24=1,0,IF(HT24<>0,500,HO24*$AE24/$AH24+HP24/$AH24*5+HQ24/$AH24*25+HR24*50+HS24*50))) ->  | HY24: =IF(C24<>"",C24,"") ->  | IH24: =IF($C24="","", IF(IG24=1,0,IF(IE24<>0,500,HZ24*$AE24/$AH24+IA24/$AH24*5+IB24/$AH24*25+IC24*50+ID24*50))) -> 
B25: =IF(C25=0,"",ROW(C25)-4) ->  | H25: =IF(C25=0,"",IF(OR(BB25=1,BC25<>0),BC25,"-")) ->  | I25: =IF(C25=0,"",IF(OR(BM25=1,BN25<>0),BN25,"-")) ->  | J25: =IF(C25=0,"",IF(OR(BX25=1,BY25<>0),BY25," -")) ->  | K25: =IF(C25=0,"",IF(OR(CJ25<>0,CI25=1),CJ25," -")) ->  | L25: =IF(C25=0,"",IF(OR(CU25<>0,CT25=1),CU25," -")) ->  | M25: =IF(C25=0,"",IF(OR(DF25<>0,DE25=1),DF25," -")) ->  | N25: =IF(C25=0,"",IF(OR(DQ25<>0,DP25=1),DQ25," -")) ->  | O25: =IF(C25=0,"",IF(OR(EB25<>0,EA25=1),EB25," -")) ->  | P25: =IF(C25=0,"",IF(OR(EM25<>0,EL25=1),EM25," -")) ->  | Q25: =IF(C25=0,"",IF(OR(EX25<>0,EW25=1),EX25," -")) ->  | R25: =IF(C25=0,"",IF(OR(FI25<>0,FH25=1),FI25," -")) ->  | S25: =IF(C25=0,"",IF(OR(FT25<>0,FS25=1),FT25," -")) ->  | T25: =IF(C25=0,"",IF(OR(GE25<>0,GD25=1),GE25," -")) ->  | U25: =IF(C25=0,"",IF(OR(GP25<>0,GO25=1),GP25," -")) ->  | V25: =IF(C25=0,"",IF(OR(HA25<>0,GZ25=1),HA25," -")) ->  | W25: =IF(C25=0,"",IF(OR(HL25<>0,HK25=1),HL25," -")) ->  | X25: =IF(C25=0,"",IF(AJ25<>0,AJ25," -")) ->  | Y25: =IF(C25=0,"",IF(OR(HW25<>0,HV25=1),HW25," -")) ->  | Z25: =IF(C25=0,"",IF(OR(IH25<>0,IG25=1),IH25," -")) ->  | AA25: =IF(C25=0,"",IF(AL25=1,"DNF",IF(AL25=2,"DSQ",IF(AM25<>1,"~ "&ROUND(SUM(H25:X25),3),ROUND(SUM(H25:X25),3))))) ->  | AD25: =IF(C25<>"",C25,"") ->  | AE25: =IF(AD25<>"",3,"") ->  | AH25: =IF(AD25<>"",(AF25/1000*AG25/1000)/2,"") ->  | AP25: =IF(C25=0,99999,IF(AL25>0,9999,SUM(H25:X25)-AN25)) -> 99999 | AQ25: =IF(C25=0,99999,IF(AL25=1,9999,SUM(Y25:Z25))) -> 99999 | AT25: =IF(C25<>"",C25,"") ->  | BC25: =IF($C25="","", IF(BB25=1,0,IF(AZ25<>0,500,AU25*$AE25/$AH25+AV25/$AH25*5+AW25/$AH25*25+AX25*50+AY25*50))) ->  | BE25: =IF(C25<>"",C25,"") ->  | BN25: =IF($C25="","", IF(BM25=1,0,IF(BK25<>0,500,BF25*$AE25/$AH25+BG25/$AH25*5+BH25/$AH25*25+BI25*50+BJ25*50))) ->  | BP25: =IF(C25<>"",C25,"") ->  | BY25: =IF($C25="","", IF(BX25=1,0,IF(BV25<>0,500,BQ25*$AE25/$AH25+BR25/$AH25*5+BS25/$AH25*25+BT25*50+BU25*50))) ->  | CA25: =IF(C25<>"",C25,"") ->  | CJ25: =IF($C25="","", IF(CI25=1,0,IF(CG25<>0,500,CB25*$AE25/$AH25+CC25/$AH25*5+CD25/$AH25*25+CE25*50+CF25*50))) ->  | CL25: =IF(C25<>"",C25,"") ->  | CU25: =IF($C25="","", IF(CT25=1,0,IF(CR25<>0,500,CM25*$AE25/$AH25+CN25/$AH25*5+CO25/$AH25*25+CP25*50+CQ25*50))) ->  | CW25: =IF(C25<>"",C25,"") ->  | DF25: =IF($C25="","", IF(DE25=1,0,IF(DC25<>0,500,CX25*$AE25/$AH25+CY25/$AH25*5+CZ25/$AH25*25+DA25*50+DB25*50))) ->  | DH25: =IF(C25<>"",C25,"") ->  | DQ25: =IF($C25="","", IF(DP25=1,0,IF(DN25<>0,500,DI25*$AE25/$AH25+DJ25/$AH25*5+DK25/$AH25*25+DL25*50+DM25*50))) ->  | DS25: =IF(C25<>"",C25,"") ->  | EB25: =IF($C25="","", IF(EA25=1,0,IF(DY25<>0,500,DT25*$AE25/$AH25+DU25/$AH25*5+DV25/$AH25*25+DW25*50+DX25*50))) ->  | ED25: =IF(C25<>"",C25,"") ->  | EM25: =IF($C25="","", IF(EL25=1,0,IF(EJ25<>0,500,EE25*$AE25/$AH25+EF25/$AH25*5+EG25/$AH25*25+EH25*50+EI25*50))) ->  | EO25: =IF(C25<>"",C25,"") ->  | EX25: =IF($C25="","", IF(EW25=1,0,IF(EU25<>0,500,EP25*$AE25/$AH25+EQ25/$AH25*5+ER25/$AH25*25+ES25*50+ET25*50))) ->  | EZ25: =IF(C25<>"",C25,"") ->  | FI25: =IF($C25="","", IF(FH25=1,0,IF(FF25<>0,500,FA25*$AE25/$AH25+FB25/$AH25*5+FC25/$AH25*25+FD25*50+FE25*50))) ->  | FK25: =IF(C25<>"",C25,"") ->  | FT25: =IF($C25="","", IF(FS25=1,0,IF(FQ25<>0,500,FL25*$AE25/$AH25+FM25/$AH25*5+FN25/$AH25*25+FO25*50+FP25*50))) ->  | FV25: =IF(C25<>"",C25,"") ->  | GE25: =IF($C25="","", IF(GD25=1,0,IF(GB25<>0,500,FW25*$AE25/$AH25+FX25/$AH25*5+FY25/$AH25*25+FZ25*50+GA25*50))) ->  | GG25: =IF(C25<>"",C25,"") ->  | GP25: =IF($C25="","", IF(GO25=1,0,IF(GM25<>0,500,GH25*$AE25/$AH25+GI25/$AH25*5+GJ25/$AH25*25+GK25*50+GL25*50))) ->  | GR25: =IF(C25<>"",C25,"") ->  | HA25: =IF($C25="","", IF(GZ25=1,0,IF(GX25<>0,500,GS25*$AE25/$AH25+GT25/$AH25*5+GU25/$AH25*25+GV25*50+GW25*50))) ->  | HC25: =IF(C25<>"",C25,"") ->  | HL25: =IF($C25="","", IF(HK25=1,0,IF(HI25<>0,500,HD25*$AE25/$AH25+HE25/$AH25*5+HF25/$AH25*25+HG25*50+HH25*50))) ->  | HN25: =IF(C25<>"",C25,"") ->  | HW25: =IF($C25="","", IF(HV25=1,0,IF(HT25<>0,500,HO25*$AE25/$AH25+HP25/$AH25*5+HQ25/$AH25*25+HR25*50+HS25*50))) ->  | HY25: =IF(C25<>"",C25,"") ->  | IH25: =IF($C25="","", IF(IG25=1,0,IF(IE25<>0,500,HZ25*$AE25/$AH25+IA25/$AH25*5+IB25/$AH25*25+IC25*50+ID25*50))) -> 
B26: =IF(C26=0,"",ROW(C26)-4) ->  | H26: =IF(C26=0,"",IF(OR(BB26=1,BC26<>0),BC26,"-")) ->  | I26: =IF(C26=0,"",IF(OR(BM26=1,BN26<>0),BN26,"-")) ->  | J26: =IF(C26=0,"",IF(OR(BX26=1,BY26<>0),BY26," -")) ->  | K26: =IF(C26=0,"",IF(OR(CJ26<>0,CI26=1),CJ26," -")) ->  | L26: =IF(C26=0,"",IF(OR(CU26<>0,CT26=1),CU26," -")) ->  | M26: =IF(C26=0,"",IF(OR(DF26<>0,DE26=1),DF26," -")) ->  | N26: =IF(C26=0,"",IF(OR(DQ26<>0,DP26=1),DQ26," -")) ->  | O26: =IF(C26=0,"",IF(OR(EB26<>0,EA26=1),EB26," -")) ->  | P26: =IF(C26=0,"",IF(OR(EM26<>0,EL26=1),EM26," -")) ->  | Q26: =IF(C26=0,"",IF(OR(EX26<>0,EW26=1),EX26," -")) ->  | R26: =IF(C26=0,"",IF(OR(FI26<>0,FH26=1),FI26," -")) ->  | S26: =IF(C26=0,"",IF(OR(FT26<>0,FS26=1),FT26," -")) ->  | T26: =IF(C26=0,"",IF(OR(GE26<>0,GD26=1),GE26," -")) ->  | U26: =IF(C26=0,"",IF(OR(GP26<>0,GO26=1),GP26," -")) ->  | V26: =IF(C26=0,"",IF(OR(HA26<>0,GZ26=1),HA26," -")) ->  | W26: =IF(C26=0,"",IF(OR(HL26<>0,HK26=1),HL26," -")) ->  | X26: =IF(C26=0,"",IF(AJ26<>0,AJ26," -")) ->  | Y26: =IF(C26=0,"",IF(OR(HW26<>0,HV26=1),HW26," -")) ->  | Z26: =IF(C26=0,"",IF(OR(IH26<>0,IG26=1),IH26," -")) ->  | AA26: =IF(C26=0,"",IF(AL26=1,"DNF",IF(AL26=2,"DSQ",IF(AM26<>1,"~ "&ROUND(SUM(H26:X26),3),ROUND(SUM(H26:X26),3))))) ->  | AD26: =IF(C26<>"",C26,"") ->  | AE26: =IF(AD26<>"",3,"") ->  | AH26: =IF(AD26<>"",(AF26/1000*AG26/1000)/2,"") ->  | AP26: =IF(C26=0,99999,IF(AL26>0,9999,SUM(H26:X26)-AN26)) -> 99999 | AQ26: =IF(C26=0,99999,IF(AL26=1,9999,SUM(Y26:Z26))) -> 99999 | AT26: =IF(C26<>"",C26,"") ->  | BC26: =IF($C26="","", IF(BB26=1,0,IF(AZ26<>0,500,AU26*$AE26/$AH26+AV26/$AH26*5+AW26/$AH26*25+AX26*50+AY26*50))) ->  | BE26: =IF(C26<>"",C26,"") ->  | BN26: =IF($C26="","", IF(BM26=1,0,IF(BK26<>0,500,BF26*$AE26/$AH26+BG26/$AH26*5+BH26/$AH26*25+BI26*50+BJ26*50))) ->  | BP26: =IF(C26<>"",C26,"") ->  | BY26: =IF($C26="","", IF(BX26=1,0,IF(BV26<>0,500,BQ26*$AE26/$AH26+BR26/$AH26*5+BS26/$AH26*25+BT26*50+BU26*50))) ->  | CA26: =IF(C26<>"",C26,"") ->  | CJ26: =IF($C26="","", IF(CI26=1,0,IF(CG26<>0,500,CB26*$AE26/$AH26+CC26/$AH26*5+CD26/$AH26*25+CE26*50+CF26*50))) ->  | CL26: =IF(C26<>"",C26,"") ->  | CU26: =IF($C26="","", IF(CT26=1,0,IF(CR26<>0,500,CM26*$AE26/$AH26+CN26/$AH26*5+CO26/$AH26*25+CP26*50+CQ26*50))) ->  | CW26: =IF(C26<>"",C26,"") ->  | DF26: =IF($C26="","", IF(DE26=1,0,IF(DC26<>0,500,CX26*$AE26/$AH26+CY26/$AH26*5+CZ26/$AH26*25+DA26*50+DB26*50))) ->  | DH26: =IF(C26<>"",C26,"") ->  | DQ26: =IF($C26="","", IF(DP26=1,0,IF(DN26<>0,500,DI26*$AE26/$AH26+DJ26/$AH26*5+DK26/$AH26*25+DL26*50+DM26*50))) ->  | DS26: =IF(C26<>"",C26,"") ->  | EB26: =IF($C26="","", IF(EA26=1,0,IF(DY26<>0,500,DT26*$AE26/$AH26+DU26/$AH26*5+DV26/$AH26*25+DW26*50+DX26*50))) ->  | ED26: =IF(C26<>"",C26,"") ->  | EM26: =IF($C26="","", IF(EL26=1,0,IF(EJ26<>0,500,EE26*$AE26/$AH26+EF26/$AH26*5+EG26/$AH26*25+EH26*50+EI26*50))) ->  | EO26: =IF(C26<>"",C26,"") ->  | EX26: =IF($C26="","", IF(EW26=1,0,IF(EU26<>0,500,EP26*$AE26/$AH26+EQ26/$AH26*5+ER26/$AH26*25+ES26*50+ET26*50))) ->  | EZ26: =IF(C26<>"",C26,"") ->  | FI26: =IF($C26="","", IF(FH26=1,0,IF(FF26<>0,500,FA26*$AE26/$AH26+FB26/$AH26*5+FC26/$AH26*25+FD26*50+FE26*50))) ->  | FK26: =IF(C26<>"",C26,"") ->  | FT26: =IF($C26="","", IF(FS26=1,0,IF(FQ26<>0,500,FL26*$AE26/$AH26+FM26/$AH26*5+FN26/$AH26*25+FO26*50+FP26*50))) ->  | FV26: =IF(C26<>"",C26,"") ->  | GE26: =IF($C26="","", IF(GD26=1,0,IF(GB26<>0,500,FW26*$AE26/$AH26+FX26/$AH26*5+FY26/$AH26*25+FZ26*50+GA26*50))) ->  | GG26: =IF(C26<>"",C26,"") ->  | GP26: =IF($C26="","", IF(GO26=1,0,IF(GM26<>0,500,GH26*$AE26/$AH26+GI26/$AH26*5+GJ26/$AH26*25+GK26*50+GL26*50))) ->  | GR26: =IF(C26<>"",C26,"") ->  | HA26: =IF($C26="","", IF(GZ26=1,0,IF(GX26<>0,500,GS26*$AE26/$AH26+GT26/$AH26*5+GU26/$AH26*25+GV26*50+GW26*50))) ->  | HC26: =IF(C26<>"",C26,"") ->  | HL26: =IF($C26="","", IF(HK26=1,0,IF(HI26<>0,500,HD26*$AE26/$AH26+HE26/$AH26*5+HF26/$AH26*25+HG26*50+HH26*50))) ->  | HN26: =IF(C26<>"",C26,"") ->  | HW26: =IF($C26="","", IF(HV26=1,0,IF(HT26<>0,500,HO26*$AE26/$AH26+HP26/$AH26*5+HQ26/$AH26*25+HR26*50+HS26*50))) ->  | HY26: =IF(C26<>"",C26,"") ->  | IH26: =IF($C26="","", IF(IG26=1,0,IF(IE26<>0,500,HZ26*$AE26/$AH26+IA26/$AH26*5+IB26/$AH26*25+IC26*50+ID26*50))) -> 
B27: =IF(C27=0,"",ROW(C27)-4) ->  | H27: =IF(C27=0,"",IF(OR(BB27=1,BC27<>0),BC27,"-")) ->  | I27: =IF(C27=0,"",IF(OR(BM27=1,BN27<>0),BN27,"-")) ->  | J27: =IF(C27=0,"",IF(OR(BX27=1,BY27<>0),BY27," -")) ->  | K27: =IF(C27=0,"",IF(OR(CJ27<>0,CI27=1),CJ27," -")) ->  | L27: =IF(C27=0,"",IF(OR(CU27<>0,CT27=1),CU27," -")) ->  | M27: =IF(C27=0,"",IF(OR(DF27<>0,DE27=1),DF27," -")) ->  | N27: =IF(C27=0,"",IF(OR(DQ27<>0,DP27=1),DQ27," -")) ->  | O27: =IF(C27=0,"",IF(OR(EB27<>0,EA27=1),EB27," -")) ->  | P27: =IF(C27=0,"",IF(OR(EM27<>0,EL27=1),EM27," -")) ->  | Q27: =IF(C27=0,"",IF(OR(EX27<>0,EW27=1),EX27," -")) ->  | R27: =IF(C27=0,"",IF(OR(FI27<>0,FH27=1),FI27," -")) ->  | S27: =IF(C27=0,"",IF(OR(FT27<>0,FS27=1),FT27," -")) ->  | T27: =IF(C27=0,"",IF(OR(GE27<>0,GD27=1),GE27," -")) ->  | U27: =IF(C27=0,"",IF(OR(GP27<>0,GO27=1),GP27," -")) ->  | V27: =IF(C27=0,"",IF(OR(HA27<>0,GZ27=1),HA27," -")) ->  | W27: =IF(C27=0,"",IF(OR(HL27<>0,HK27=1),HL27," -")) ->  | X27: =IF(C27=0,"",IF(AJ27<>0,AJ27," -")) ->  | Y27: =IF(C27=0,"",IF(OR(HW27<>0,HV27=1),HW27," -")) ->  | Z27: =IF(C27=0,"",IF(OR(IH27<>0,IG27=1),IH27," -")) ->  | AA27: =IF(C27=0,"",IF(AL27=1,"DNF",IF(AL27=2,"DSQ",IF(AM27<>1,"~ "&ROUND(SUM(H27:X27),3),ROUND(SUM(H27:X27),3))))) ->  | AD27: =IF(C27<>"",C27,"") ->  | AE27: =IF(AD27<>"",3,"") ->  | AH27: =IF(AD27<>"",(AF27/1000*AG27/1000)/2,"") ->  | AP27: =IF(C27=0,99999,IF(AL27>0,9999,SUM(H27:X27)-AN27)) -> 99999 | AQ27: =IF(C27=0,99999,IF(AL27=1,9999,SUM(Y27:Z27))) -> 99999 | AT27: =IF(C27<>"",C27,"") ->  | BC27: =IF($C27="","", IF(BB27=1,0,IF(AZ27<>0,500,AU27*$AE27/$AH27+AV27/$AH27*5+AW27/$AH27*25+AX27*50+AY27*50))) ->  | BE27: =IF(C27<>"",C27,"") ->  | BN27: =IF($C27="","", IF(BM27=1,0,IF(BK27<>0,500,BF27*$AE27/$AH27+BG27/$AH27*5+BH27/$AH27*25+BI27*50+BJ27*50))) ->  | BP27: =IF(C27<>"",C27,"") ->  | BY27: =IF($C27="","", IF(BX27=1,0,IF(BV27<>0,500,BQ27*$AE27/$AH27+BR27/$AH27*5+BS27/$AH27*25+BT27*50+BU27*50))) ->  | CA27: =IF(C27<>"",C27,"") ->  | CJ27: =IF($C27="","", IF(CI27=1,0,IF(CG27<>0,500,CB27*$AE27/$AH27+CC27/$AH27*5+CD27/$AH27*25+CE27*50+CF27*50))) ->  | CL27: =IF(C27<>"",C27,"") ->  | CU27: =IF($C27="","", IF(CT27=1,0,IF(CR27<>0,500,CM27*$AE27/$AH27+CN27/$AH27*5+CO27/$AH27*25+CP27*50+CQ27*50))) ->  | CW27: =IF(C27<>"",C27,"") ->  | DF27: =IF($C27="","", IF(DE27=1,0,IF(DC27<>0,500,CX27*$AE27/$AH27+CY27/$AH27*5+CZ27/$AH27*25+DA27*50+DB27*50))) ->  | DH27: =IF(C27<>"",C27,"") ->  | DQ27: =IF($C27="","", IF(DP27=1,0,IF(DN27<>0,500,DI27*$AE27/$AH27+DJ27/$AH27*5+DK27/$AH27*25+DL27*50+DM27*50))) ->  | DS27: =IF(C27<>"",C27,"") ->  | EB27: =IF($C27="","", IF(EA27=1,0,IF(DY27<>0,500,DT27*$AE27/$AH27+DU27/$AH27*5+DV27/$AH27*25+DW27*50+DX27*50))) ->  | ED27: =IF(C27<>"",C27,"") ->  | EM27: =IF($C27="","", IF(EL27=1,0,IF(EJ27<>0,500,EE27*$AE27/$AH27+EF27/$AH27*5+EG27/$AH27*25+EH27*50+EI27*50))) ->  | EO27: =IF(C27<>"",C27,"") ->  | EX27: =IF($C27="","", IF(EW27=1,0,IF(EU27<>0,500,EP27*$AE27/$AH27+EQ27/$AH27*5+ER27/$AH27*25+ES27*50+ET27*50))) ->  | EZ27: =IF(C27<>"",C27,"") ->  | FI27: =IF($C27="","", IF(FH27=1,0,IF(FF27<>0,500,FA27*$AE27/$AH27+FB27/$AH27*5+FC27/$AH27*25+FD27*50+FE27*50))) ->  | FK27: =IF(C27<>"",C27,"") ->  | FT27: =IF($C27="","", IF(FS27=1,0,IF(FQ27<>0,500,FL27*$AE27/$AH27+FM27/$AH27*5+FN27/$AH27*25+FO27*50+FP27*50))) ->  | FV27: =IF(C27<>"",C27,"") ->  | GE27: =IF($C27="","", IF(GD27=1,0,IF(GB27<>0,500,FW27*$AE27/$AH27+FX27/$AH27*5+FY27/$AH27*25+FZ27*50+GA27*50))) ->  | GG27: =IF(C27<>"",C27,"") ->  | GP27: =IF($C27="","", IF(GO27=1,0,IF(GM27<>0,500,GH27*$AE27/$AH27+GI27/$AH27*5+GJ27/$AH27*25+GK27*50+GL27*50))) ->  | GR27: =IF(C27<>"",C27,"") ->  | HA27: =IF($C27="","", IF(GZ27=1,0,IF(GX27<>0,500,GS27*$AE27/$AH27+GT27/$AH27*5+GU27/$AH27*25+GV27*50+GW27*50))) ->  | HC27: =IF(C27<>"",C27,"") ->  | HL27: =IF($C27="","", IF(HK27=1,0,IF(HI27<>0,500,HD27*$AE27/$AH27+HE27/$AH27*5+HF27/$AH27*25+HG27*50+HH27*50))) ->  | HN27: =IF(C27<>"",C27,"") ->  | HW27: =IF($C27="","", IF(HV27=1,0,IF(HT27<>0,500,HO27*$AE27/$AH27+HP27/$AH27*5+HQ27/$AH27*25+HR27*50+HS27*50))) ->  | HY27: =IF(C27<>"",C27,"") ->  | IH27: =IF($C27="","", IF(IG27=1,0,IF(IE27<>0,500,HZ27*$AE27/$AH27+IA27/$AH27*5+IB27/$AH27*25+IC27*50+ID27*50))) -> 
B28: =IF(C28=0,"",ROW(C28)-4) ->  | H28: =IF(C28=0,"",IF(OR(BB28=1,BC28<>0),BC28,"-")) ->  | I28: =IF(C28=0,"",IF(OR(BM28=1,BN28<>0),BN28,"-")) ->  | J28: =IF(C28=0,"",IF(OR(BX28=1,BY28<>0),BY28," -")) ->  | K28: =IF(C28=0,"",IF(OR(CJ28<>0,CI28=1),CJ28," -")) ->  | L28: =IF(C28=0,"",IF(OR(CU28<>0,CT28=1),CU28," -")) ->  | M28: =IF(C28=0,"",IF(OR(DF28<>0,DE28=1),DF28," -")) ->  | N28: =IF(C28=0,"",IF(OR(DQ28<>0,DP28=1),DQ28," -")) ->  | O28: =IF(C28=0,"",IF(OR(EB28<>0,EA28=1),EB28," -")) ->  | P28: =IF(C28=0,"",IF(OR(EM28<>0,EL28=1),EM28," -")) ->  | Q28: =IF(C28=0,"",IF(OR(EX28<>0,EW28=1),EX28," -")) ->  | R28: =IF(C28=0,"",IF(OR(FI28<>0,FH28=1),FI28," -")) ->  | S28: =IF(C28=0,"",IF(OR(FT28<>0,FS28=1),FT28," -")) ->  | T28: =IF(C28=0,"",IF(OR(GE28<>0,GD28=1),GE28," -")) ->  | U28: =IF(C28=0,"",IF(OR(GP28<>0,GO28=1),GP28," -")) ->  | V28: =IF(C28=0,"",IF(OR(HA28<>0,GZ28=1),HA28," -")) ->  | W28: =IF(C28=0,"",IF(OR(HL28<>0,HK28=1),HL28," -")) ->  | X28: =IF(C28=0,"",IF(AJ28<>0,AJ28," -")) ->  | Y28: =IF(C28=0,"",IF(OR(HW28<>0,HV28=1),HW28," -")) ->  | Z28: =IF(C28=0,"",IF(OR(IH28<>0,IG28=1),IH28," -")) ->  | AA28: =IF(C28=0,"",IF(AL28=1,"DNF",IF(AL28=2,"DSQ",IF(AM28<>1,"~ "&ROUND(SUM(H28:X28),3),ROUND(SUM(H28:X28),3))))) ->  | AD28: =IF(C28<>"",C28,"") ->  | AE28: =IF(AD28<>"",3,"") ->  | AH28: =IF(AD28<>"",(AF28/1000*AG28/1000)/2,"") ->  | AP28: =IF(C28=0,99999,IF(AL28>0,9999,SUM(H28:X28)-AN28)) -> 99999 | AQ28: =IF(C28=0,99999,IF(AL28=1,9999,SUM(Y28:Z28))) -> 99999 | AT28: =IF(C28<>"",C28,"") ->  | BC28: =IF($C28="","", IF(BB28=1,0,IF(AZ28<>0,500,AU28*$AE28/$AH28+AV28/$AH28*5+AW28/$AH28*25+AX28*50+AY28*50))) ->  | BE28: =IF(C28<>"",C28,"") ->  | BN28: =IF($C28="","", IF(BM28=1,0,IF(BK28<>0,500,BF28*$AE28/$AH28+BG28/$AH28*5+BH28/$AH28*25+BI28*50+BJ28*50))) ->  | BP28: =IF(C28<>"",C28,"") ->  | BY28: =IF($C28="","", IF(BX28=1,0,IF(BV28<>0,500,BQ28*$AE28/$AH28+BR28/$AH28*5+BS28/$AH28*25+BT28*50+BU28*50))) ->  | CA28: =IF(C28<>"",C28,"") ->  | CJ28: =IF($C28="","", IF(CI28=1,0,IF(CG28<>0,500,CB28*$AE28/$AH28+CC28/$AH28*5+CD28/$AH28*25+CE28*50+CF28*50))) ->  | CL28: =IF(C28<>"",C28,"") ->  | CU28: =IF($C28="","", IF(CT28=1,0,IF(CR28<>0,500,CM28*$AE28/$AH28+CN28/$AH28*5+CO28/$AH28*25+CP28*50+CQ28*50))) ->  | CW28: =IF(C28<>"",C28,"") ->  | DF28: =IF($C28="","", IF(DE28=1,0,IF(DC28<>0,500,CX28*$AE28/$AH28+CY28/$AH28*5+CZ28/$AH28*25+DA28*50+DB28*50))) ->  | DH28: =IF(C28<>"",C28,"") ->  | DQ28: =IF($C28="","", IF(DP28=1,0,IF(DN28<>0,500,DI28*$AE28/$AH28+DJ28/$AH28*5+DK28/$AH28*25+DL28*50+DM28*50))) ->  | DS28: =IF(C28<>"",C28,"") ->  | EB28: =IF($C28="","", IF(EA28=1,0,IF(DY28<>0,500,DT28*$AE28/$AH28+DU28/$AH28*5+DV28/$AH28*25+DW28*50+DX28*50))) ->  | ED28: =IF(C28<>"",C28,"") ->  | EM28: =IF($C28="","", IF(EL28=1,0,IF(EJ28<>0,500,EE28*$AE28/$AH28+EF28/$AH28*5+EG28/$AH28*25+EH28*50+EI28*50))) ->  | EO28: =IF(C28<>"",C28,"") ->  | EX28: =IF($C28="","", IF(EW28=1,0,IF(EU28<>0,500,EP28*$AE28/$AH28+EQ28/$AH28*5+ER28/$AH28*25+ES28*50+ET28*50))) ->  | EZ28: =IF(C28<>"",C28,"") ->  | FI28: =IF($C28="","", IF(FH28=1,0,IF(FF28<>0,500,FA28*$AE28/$AH28+FB28/$AH28*5+FC28/$AH28*25+FD28*50+FE28*50))) ->  | FK28: =IF(C28<>"",C28,"") ->  | FT28: =IF($C28="","", IF(FS28=1,0,IF(FQ28<>0,500,FL28*$AE28/$AH28+FM28/$AH28*5+FN28/$AH28*25+FO28*50+FP28*50))) ->  | FV28: =IF(C28<>"",C28,"") ->  | GE28: =IF($C28="","", IF(GD28=1,0,IF(GB28<>0,500,FW28*$AE28/$AH28+FX28/$AH28*5+FY28/$AH28*25+FZ28*50+GA28*50))) ->  | GG28: =IF(C28<>"",C28,"") ->  | GP28: =IF($C28="","", IF(GO28=1,0,IF(GM28<>0,500,GH28*$AE28/$AH28+GI28/$AH28*5+GJ28/$AH28*25+GK28*50+GL28*50))) ->  | GR28: =IF(C28<>"",C28,"") ->  | HA28: =IF($C28="","", IF(GZ28=1,0,IF(GX28<>0,500,GS28*$AE28/$AH28+GT28/$AH28*5+GU28/$AH28*25+GV28*50+GW28*50))) ->  | HC28: =IF(C28<>"",C28,"") ->  | HL28: =IF($C28="","", IF(HK28=1,0,IF(HI28<>0,500,HD28*$AE28/$AH28+HE28/$AH28*5+HF28/$AH28*25+HG28*50+HH28*50))) ->  | HN28: =IF(C28<>"",C28,"") ->  | HW28: =IF($C28="","", IF(HV28=1,0,IF(HT28<>0,500,HO28*$AE28/$AH28+HP28/$AH28*5+HQ28/$AH28*25+HR28*50+HS28*50))) ->  | HY28: =IF(C28<>"",C28,"") ->  | IH28: =IF($C28="","", IF(IG28=1,0,IF(IE28<>0,500,HZ28*$AE28/$AH28+IA28/$AH28*5+IB28/$AH28*25+IC28*50+ID28*50))) -> 
B29: =IF(C29=0,"",ROW(C29)-4) ->  | H29: =IF(C29=0,"",IF(OR(BB29=1,BC29<>0),BC29,"-")) ->  | I29: =IF(C29=0,"",IF(OR(BM29=1,BN29<>0),BN29,"-")) ->  | J29: =IF(C29=0,"",IF(OR(BX29=1,BY29<>0),BY29," -")) ->  | K29: =IF(C29=0,"",IF(OR(CJ29<>0,CI29=1),CJ29," -")) ->  | L29: =IF(C29=0,"",IF(OR(CU29<>0,CT29=1),CU29," -")) ->  | M29: =IF(C29=0,"",IF(OR(DF29<>0,DE29=1),DF29," -")) ->  | N29: =IF(C29=0,"",IF(OR(DQ29<>0,DP29=1),DQ29," -")) ->  | O29: =IF(C29=0,"",IF(OR(EB29<>0,EA29=1),EB29," -")) ->  | P29: =IF(C29=0,"",IF(OR(EM29<>0,EL29=1),EM29," -")) ->  | Q29: =IF(C29=0,"",IF(OR(EX29<>0,EW29=1),EX29," -")) ->  | R29: =IF(C29=0,"",IF(OR(FI29<>0,FH29=1),FI29," -")) ->  | S29: =IF(C29=0,"",IF(OR(FT29<>0,FS29=1),FT29," -")) ->  | T29: =IF(C29=0,"",IF(OR(GE29<>0,GD29=1),GE29," -")) ->  | U29: =IF(C29=0,"",IF(OR(GP29<>0,GO29=1),GP29," -")) ->  | V29: =IF(C29=0,"",IF(OR(HA29<>0,GZ29=1),HA29," -")) ->  | W29: =IF(C29=0,"",IF(OR(HL29<>0,HK29=1),HL29," -")) ->  | X29: =IF(C29=0,"",IF(AJ29<>0,AJ29," -")) ->  | Y29: =IF(C29=0,"",IF(OR(HW29<>0,HV29=1),HW29," -")) ->  | Z29: =IF(C29=0,"",IF(OR(IH29<>0,IG29=1),IH29," -")) ->  | AA29: =IF(C29=0,"",IF(AL29=1,"DNF",IF(AL29=2,"DSQ",IF(AM29<>1,"~ "&ROUND(SUM(H29:X29),3),ROUND(SUM(H29:X29),3))))) ->  | AD29: =IF(C29<>"",C29,"") ->  | AE29: =IF(AD29<>"",3,"") ->  | AH29: =IF(AD29<>"",(AF29/1000*AG29/1000)/2,"") ->  | AP29: =IF(C29=0,99999,IF(AL29>0,9999,SUM(H29:X29)-AN29)) -> 99999 | AQ29: =IF(C29=0,99999,IF(AL29=1,9999,SUM(Y29:Z29))) -> 99999 | AT29: =IF(C29<>"",C29,"") ->  | BC29: =IF($C29="","", IF(BB29=1,0,IF(AZ29<>0,500,AU29*$AE29/$AH29+AV29/$AH29*5+AW29/$AH29*25+AX29*50+AY29*50))) ->  | BE29: =IF(C29<>"",C29,"") ->  | BN29: =IF($C29="","", IF(BM29=1,0,IF(BK29<>0,500,BF29*$AE29/$AH29+BG29/$AH29*5+BH29/$AH29*25+BI29*50+BJ29*50))) ->  | BP29: =IF(C29<>"",C29,"") ->  | BY29: =IF($C29="","", IF(BX29=1,0,IF(BV29<>0,500,BQ29*$AE29/$AH29+BR29/$AH29*5+BS29/$AH29*25+BT29*50+BU29*50))) ->  | CA29: =IF(C29<>"",C29,"") ->  | CJ29: =IF($C29="","", IF(CI29=1,0,IF(CG29<>0,500,CB29*$AE29/$AH29+CC29/$AH29*5+CD29/$AH29*25+CE29*50+CF29*50))) ->  | CL29: =IF(C29<>"",C29,"") ->  | CU29: =IF($C29="","", IF(CT29=1,0,IF(CR29<>0,500,CM29*$AE29/$AH29+CN29/$AH29*5+CO29/$AH29*25+CP29*50+CQ29*50))) ->  | CW29: =IF(C29<>"",C29,"") ->  | DF29: =IF($C29="","", IF(DE29=1,0,IF(DC29<>0,500,CX29*$AE29/$AH29+CY29/$AH29*5+CZ29/$AH29*25+DA29*50+DB29*50))) ->  | DH29: =IF(C29<>"",C29,"") ->  | DQ29: =IF($C29="","", IF(DP29=1,0,IF(DN29<>0,500,DI29*$AE29/$AH29+DJ29/$AH29*5+DK29/$AH29*25+DL29*50+DM29*50))) ->  | DS29: =IF(C29<>"",C29,"") ->  | EB29: =IF($C29="","", IF(EA29=1,0,IF(DY29<>0,500,DT29*$AE29/$AH29+DU29/$AH29*5+DV29/$AH29*25+DW29*50+DX29*50))) ->  | ED29: =IF(C29<>"",C29,"") ->  | EM29: =IF($C29="","", IF(EL29=1,0,IF(EJ29<>0,500,EE29*$AE29/$AH29+EF29/$AH29*5+EG29/$AH29*25+EH29*50+EI29*50))) ->  | EO29: =IF(C29<>"",C29,"") ->  | EX29: =IF($C29="","", IF(EW29=1,0,IF(EU29<>0,500,EP29*$AE29/$AH29+EQ29/$AH29*5+ER29/$AH29*25+ES29*50+ET29*50))) ->  | EZ29: =IF(C29<>"",C29,"") ->  | FI29: =IF($C29="","", IF(FH29=1,0,IF(FF29<>0,500,FA29*$AE29/$AH29+FB29/$AH29*5+FC29/$AH29*25+FD29*50+FE29*50))) ->  | FK29: =IF(C29<>"",C29,"") ->  | FT29: =IF($C29="","", IF(FS29=1,0,IF(FQ29<>0,500,FL29*$AE29/$AH29+FM29/$AH29*5+FN29/$AH29*25+FO29*50+FP29*50))) ->  | FV29: =IF(C29<>"",C29,"") ->  | GE29: =IF($C29="","", IF(GD29=1,0,IF(GB29<>0,500,FW29*$AE29/$AH29+FX29/$AH29*5+FY29/$AH29*25+FZ29*50+GA29*50))) ->  | GG29: =IF(C29<>"",C29,"") ->  | GP29: =IF($C29="","", IF(GO29=1,0,IF(GM29<>0,500,GH29*$AE29/$AH29+GI29/$AH29*5+GJ29/$AH29*25+GK29*50+GL29*50))) ->  | GR29: =IF(C29<>"",C29,"") ->  | HA29: =IF($C29="","", IF(GZ29=1,0,IF(GX29<>0,500,GS29*$AE29/$AH29+GT29/$AH29*5+GU29/$AH29*25+GV29*50+GW29*50))) ->  | HC29: =IF(C29<>"",C29,"") ->  | HL29: =IF($C29="","", IF(HK29=1,0,IF(HI29<>0,500,HD29*$AE29/$AH29+HE29/$AH29*5+HF29/$AH29*25+HG29*50+HH29*50))) ->  | HN29: =IF(C29<>"",C29,"") ->  | HW29: =IF($C29="","", IF(HV29=1,0,IF(HT29<>0,500,HO29*$AE29/$AH29+HP29/$AH29*5+HQ29/$AH29*25+HR29*50+HS29*50))) ->  | HY29: =IF(C29<>"",C29,"") ->  | IH29: =IF($C29="","", IF(IG29=1,0,IF(IE29<>0,500,HZ29*$AE29/$AH29+IA29/$AH29*5+IB29/$AH29*25+IC29*50+ID29*50))) -> 
B30: =IF(C30=0,"",ROW(C30)-4) ->  | H30: =IF(C30=0,"",IF(OR(BB30=1,BC30<>0),BC30,"-")) ->  | I30: =IF(C30=0,"",IF(OR(BM30=1,BN30<>0),BN30,"-")) ->  | J30: =IF(C30=0,"",IF(OR(BX30=1,BY30<>0),BY30," -")) ->  | K30: =IF(C30=0,"",IF(OR(CJ30<>0,CI30=1),CJ30," -")) ->  | L30: =IF(C30=0,"",IF(OR(CU30<>0,CT30=1),CU30," -")) ->  | M30: =IF(C30=0,"",IF(OR(DF30<>0,DE30=1),DF30," -")) ->  | N30: =IF(C30=0,"",IF(OR(DQ30<>0,DP30=1),DQ30," -")) ->  | O30: =IF(C30=0,"",IF(OR(EB30<>0,EA30=1),EB30," -")) ->  | P30: =IF(C30=0,"",IF(OR(EM30<>0,EL30=1),EM30," -")) ->  | Q30: =IF(C30=0,"",IF(OR(EX30<>0,EW30=1),EX30," -")) ->  | R30: =IF(C30=0,"",IF(OR(FI30<>0,FH30=1),FI30," -")) ->  | S30: =IF(C30=0,"",IF(OR(FT30<>0,FS30=1),FT30," -")) ->  | T30: =IF(C30=0,"",IF(OR(GE30<>0,GD30=1),GE30," -")) ->  | U30: =IF(C30=0,"",IF(OR(GP30<>0,GO30=1),GP30," -")) ->  | V30: =IF(C30=0,"",IF(OR(HA30<>0,GZ30=1),HA30," -")) ->  | W30: =IF(C30=0,"",IF(OR(HL30<>0,HK30=1),HL30," -")) ->  | X30: =IF(C30=0,"",IF(AJ30<>0,AJ30," -")) ->  | Y30: =IF(C30=0,"",IF(OR(HW30<>0,HV30=1),HW30," -")) ->  | Z30: =IF(C30=0,"",IF(OR(IH30<>0,IG30=1),IH30," -")) ->  | AA30: =IF(C30=0,"",IF(AL30=1,"DNF",IF(AL30=2,"DSQ",IF(AM30<>1,"~ "&ROUND(SUM(H30:X30),3),ROUND(SUM(H30:X30),3))))) ->  | AD30: =IF(C30<>"",C30,"") ->  | AE30: =IF(AD30<>"",3,"") ->  | AH30: =IF(AD30<>"",(AF30/1000*AG30/1000)/2,"") ->  | AP30: =IF(C30=0,99999,IF(AL30>0,9999,SUM(H30:X30)-AN30)) -> 99999 | AQ30: =IF(C30=0,99999,IF(AL30=1,9999,SUM(Y30:Z30))) -> 99999 | AT30: =IF(C30<>"",C30,"") ->  | BC30: =IF($C30="","", IF(BB30=1,0,IF(AZ30<>0,500,AU30*$AE30/$AH30+AV30/$AH30*5+AW30/$AH30*25+AX30*50+AY30*50))) ->  | BE30: =IF(C30<>"",C30,"") ->  | BN30: =IF($C30="","", IF(BM30=1,0,IF(BK30<>0,500,BF30*$AE30/$AH30+BG30/$AH30*5+BH30/$AH30*25+BI30*50+BJ30*50))) ->  | BP30: =IF(C30<>"",C30,"") ->  | BY30: =IF($C30="","", IF(BX30=1,0,IF(BV30<>0,500,BQ30*$AE30/$AH30+BR30/$AH30*5+BS30/$AH30*25+BT30*50+BU30*50))) ->  | CA30: =IF(C30<>"",C30,"") ->  | CJ30: =IF($C30="","", IF(CI30=1,0,IF(CG30<>0,500,CB30*$AE30/$AH30+CC30/$AH30*5+CD30/$AH30*25+CE30*50+CF30*50))) ->  | CL30: =IF(C30<>"",C30,"") ->  | CU30: =IF($C30="","", IF(CT30=1,0,IF(CR30<>0,500,CM30*$AE30/$AH30+CN30/$AH30*5+CO30/$AH30*25+CP30*50+CQ30*50))) ->  | CW30: =IF(C30<>"",C30,"") ->  | DF30: =IF($C30="","", IF(DE30=1,0,IF(DC30<>0,500,CX30*$AE30/$AH30+CY30/$AH30*5+CZ30/$AH30*25+DA30*50+DB30*50))) ->  | DH30: =IF(C30<>"",C30,"") ->  | DQ30: =IF($C30="","", IF(DP30=1,0,IF(DN30<>0,500,DI30*$AE30/$AH30+DJ30/$AH30*5+DK30/$AH30*25+DL30*50+DM30*50))) ->  | DS30: =IF(C30<>"",C30,"") ->  | EB30: =IF($C30="","", IF(EA30=1,0,IF(DY30<>0,500,DT30*$AE30/$AH30+DU30/$AH30*5+DV30/$AH30*25+DW30*50+DX30*50))) ->  | ED30: =IF(C30<>"",C30,"") ->  | EM30: =IF($C30="","", IF(EL30=1,0,IF(EJ30<>0,500,EE30*$AE30/$AH30+EF30/$AH30*5+EG30/$AH30*25+EH30*50+EI30*50))) ->  | EO30: =IF(C30<>"",C30,"") ->  | EX30: =IF($C30="","", IF(EW30=1,0,IF(EU30<>0,500,EP30*$AE30/$AH30+EQ30/$AH30*5+ER30/$AH30*25+ES30*50+ET30*50))) ->  | EZ30: =IF(C30<>"",C30,"") ->  | FI30: =IF($C30="","", IF(FH30=1,0,IF(FF30<>0,500,FA30*$AE30/$AH30+FB30/$AH30*5+FC30/$AH30*25+FD30*50+FE30*50))) ->  | FK30: =IF(C30<>"",C30,"") ->  | FT30: =IF($C30="","", IF(FS30=1,0,IF(FQ30<>0,500,FL30*$AE30/$AH30+FM30/$AH30*5+FN30/$AH30*25+FO30*50+FP30*50))) ->  | FV30: =IF(C30<>"",C30,"") ->  | GE30: =IF($C30="","", IF(GD30=1,0,IF(GB30<>0,500,FW30*$AE30/$AH30+FX30/$AH30*5+FY30/$AH30*25+FZ30*50+GA30*50))) ->  | GG30: =IF(C30<>"",C30,"") ->  | GP30: =IF($C30="","", IF(GO30=1,0,IF(GM30<>0,500,GH30*$AE30/$AH30+GI30/$AH30*5+GJ30/$AH30*25+GK30*50+GL30*50))) ->  | GR30: =IF(C30<>"",C30,"") ->  | HA30: =IF($C30="","", IF(GZ30=1,0,IF(GX30<>0,500,GS30*$AE30/$AH30+GT30/$AH30*5+GU30/$AH30*25+GV30*50+GW30*50))) ->  | HC30: =IF(C30<>"",C30,"") ->  | HL30: =IF($C30="","", IF(HK30=1,0,IF(HI30<>0,500,HD30*$AE30/$AH30+HE30/$AH30*5+HF30/$AH30*25+HG30*50+HH30*50))) ->  | HN30: =IF(C30<>"",C30,"") ->  | HW30: =IF($C30="","", IF(HV30=1,0,IF(HT30<>0,500,HO30*$AE30/$AH30+HP30/$AH30*5+HQ30/$AH30*25+HR30*50+HS30*50))) ->  | HY30: =IF(C30<>"",C30,"") ->  | IH30: =IF($C30="","", IF(IG30=1,0,IF(IE30<>0,500,HZ30*$AE30/$AH30+IA30/$AH30*5+IB30/$AH30*25+IC30*50+ID30*50))) -> 
B31: =IF(C31=0,"",ROW(C31)-4) ->  | H31: =IF(C31=0,"",IF(OR(BB31=1,BC31<>0),BC31,"-")) ->  | I31: =IF(C31=0,"",IF(OR(BM31=1,BN31<>0),BN31,"-")) ->  | J31: =IF(C31=0,"",IF(OR(BX31=1,BY31<>0),BY31," -")) ->  | K31: =IF(C31=0,"",IF(OR(CJ31<>0,CI31=1),CJ31," -")) ->  | L31: =IF(C31=0,"",IF(OR(CU31<>0,CT31=1),CU31," -")) ->  | M31: =IF(C31=0,"",IF(OR(DF31<>0,DE31=1),DF31," -")) ->  | N31: =IF(C31=0,"",IF(OR(DQ31<>0,DP31=1),DQ31," -")) ->  | O31: =IF(C31=0,"",IF(OR(EB31<>0,EA31=1),EB31," -")) ->  | P31: =IF(C31=0,"",IF(OR(EM31<>0,EL31=1),EM31," -")) ->  | Q31: =IF(C31=0,"",IF(OR(EX31<>0,EW31=1),EX31," -")) ->  | R31: =IF(C31=0,"",IF(OR(FI31<>0,FH31=1),FI31," -")) ->  | S31: =IF(C31=0,"",IF(OR(FT31<>0,FS31=1),FT31," -")) ->  | T31: =IF(C31=0,"",IF(OR(GE31<>0,GD31=1),GE31," -")) ->  | U31: =IF(C31=0,"",IF(OR(GP31<>0,GO31=1),GP31," -")) ->  | V31: =IF(C31=0,"",IF(OR(HA31<>0,GZ31=1),HA31," -")) ->  | W31: =IF(C31=0,"",IF(OR(HL31<>0,HK31=1),HL31," -")) ->  | X31: =IF(C31=0,"",IF(AJ31<>0,AJ31," -")) ->  | Y31: =IF(C31=0,"",IF(OR(HW31<>0,HV31=1),HW31," -")) ->  | Z31: =IF(C31=0,"",IF(OR(IH31<>0,IG31=1),IH31," -")) ->  | AA31: =IF(C31=0,"",IF(AL31=1,"DNF",IF(AL31=2,"DSQ",IF(AM31<>1,"~ "&ROUND(SUM(H31:X31),3),ROUND(SUM(H31:X31),3))))) ->  | AD31: =IF(C31<>"",C31,"") ->  | AE31: =IF(AD31<>"",3,"") ->  | AH31: =IF(AD31<>"",(AF31/1000*AG31/1000)/2,"") ->  | AP31: =IF(C31=0,99999,IF(AL31>0,9999,SUM(H31:X31)-AN31)) -> 99999 | AQ31: =IF(C31=0,99999,IF(AL31=1,9999,SUM(Y31:Z31))) -> 99999 | AT31: =IF(C31<>"",C31,"") ->  | BC31: =IF($C31="","", IF(BB31=1,0,IF(AZ31<>0,500,AU31*$AE31/$AH31+AV31/$AH31*5+AW31/$AH31*25+AX31*50+AY31*50))) ->  | BE31: =IF(C31<>"",C31,"") ->  | BN31: =IF($C31="","", IF(BM31=1,0,IF(BK31<>0,500,BF31*$AE31/$AH31+BG31/$AH31*5+BH31/$AH31*25+BI31*50+BJ31*50))) ->  | BP31: =IF(C31<>"",C31,"") ->  | BY31: =IF($C31="","", IF(BX31=1,0,IF(BV31<>0,500,BQ31*$AE31/$AH31+BR31/$AH31*5+BS31/$AH31*25+BT31*50+BU31*50))) ->  | CA31: =IF(C31<>"",C31,"") ->  | CJ31: =IF($C31="","", IF(CI31=1,0,IF(CG31<>0,500,CB31*$AE31/$AH31+CC31/$AH31*5+CD31/$AH31*25+CE31*50+CF31*50))) ->  | CL31: =IF(C31<>"",C31,"") ->  | CU31: =IF($C31="","", IF(CT31=1,0,IF(CR31<>0,500,CM31*$AE31/$AH31+CN31/$AH31*5+CO31/$AH31*25+CP31*50+CQ31*50))) ->  | CW31: =IF(C31<>"",C31,"") ->  | DF31: =IF($C31="","", IF(DE31=1,0,IF(DC31<>0,500,CX31*$AE31/$AH31+CY31/$AH31*5+CZ31/$AH31*25+DA31*50+DB31*50))) ->  | DH31: =IF(C31<>"",C31,"") ->  | DQ31: =IF($C31="","", IF(DP31=1,0,IF(DN31<>0,500,DI31*$AE31/$AH31+DJ31/$AH31*5+DK31/$AH31*25+DL31*50+DM31*50))) ->  | DS31: =IF(C31<>"",C31,"") ->  | EB31: =IF($C31="","", IF(EA31=1,0,IF(DY31<>0,500,DT31*$AE31/$AH31+DU31/$AH31*5+DV31/$AH31*25+DW31*50+DX31*50))) ->  | ED31: =IF(C31<>"",C31,"") ->  | EM31: =IF($C31="","", IF(EL31=1,0,IF(EJ31<>0,500,EE31*$AE31/$AH31+EF31/$AH31*5+EG31/$AH31*25+EH31*50+EI31*50))) ->  | EO31: =IF(C31<>"",C31,"") ->  | EX31: =IF($C31="","", IF(EW31=1,0,IF(EU31<>0,500,EP31*$AE31/$AH31+EQ31/$AH31*5+ER31/$AH31*25+ES31*50+ET31*50))) ->  | EZ31: =IF(C31<>"",C31,"") ->  | FI31: =IF($C31="","", IF(FH31=1,0,IF(FF31<>0,500,FA31*$AE31/$AH31+FB31/$AH31*5+FC31/$AH31*25+FD31*50+FE31*50))) ->  | FK31: =IF(C31<>"",C31,"") ->  | FT31: =IF($C31="","", IF(FS31=1,0,IF(FQ31<>0,500,FL31*$AE31/$AH31+FM31/$AH31*5+FN31/$AH31*25+FO31*50+FP31*50))) ->  | FV31: =IF(C31<>"",C31,"") ->  | GE31: =IF($C31="","", IF(GD31=1,0,IF(GB31<>0,500,FW31*$AE31/$AH31+FX31/$AH31*5+FY31/$AH31*25+FZ31*50+GA31*50))) ->  | GG31: =IF(C31<>"",C31,"") ->  | GP31: =IF($C31="","", IF(GO31=1,0,IF(GM31<>0,500,GH31*$AE31/$AH31+GI31/$AH31*5+GJ31/$AH31*25+GK31*50+GL31*50))) ->  | GR31: =IF(C31<>"",C31,"") ->  | HA31: =IF($C31="","", IF(GZ31=1,0,IF(GX31<>0,500,GS31*$AE31/$AH31+GT31/$AH31*5+GU31/$AH31*25+GV31*50+GW31*50))) ->  | HC31: =IF(C31<>"",C31,"") ->  | HL31: =IF($C31="","", IF(HK31=1,0,IF(HI31<>0,500,HD31*$AE31/$AH31+HE31/$AH31*5+HF31/$AH31*25+HG31*50+HH31*50))) ->  | HN31: =IF(C31<>"",C31,"") ->  | HW31: =IF($C31="","", IF(HV31=1,0,IF(HT31<>0,500,HO31*$AE31/$AH31+HP31/$AH31*5+HQ31/$AH31*25+HR31*50+HS31*50))) ->  | HY31: =IF(C31<>"",C31,"") ->  | IH31: =IF($C31="","", IF(IG31=1,0,IF(IE31<>0,500,HZ31*$AE31/$AH31+IA31/$AH31*5+IB31/$AH31*25+IC31*50+ID31*50))) -> 
B32: =IF(C32=0,"",ROW(C32)-4) ->  | H32: =IF(C32=0,"",IF(OR(BB32=1,BC32<>0),BC32,"-")) ->  | I32: =IF(C32=0,"",IF(OR(BM32=1,BN32<>0),BN32,"-")) ->  | J32: =IF(C32=0,"",IF(OR(BX32=1,BY32<>0),BY32," -")) ->  | K32: =IF(C32=0,"",IF(OR(CJ32<>0,CI32=1),CJ32," -")) ->  | L32: =IF(C32=0,"",IF(OR(CU32<>0,CT32=1),CU32," -")) ->  | M32: =IF(C32=0,"",IF(OR(DF32<>0,DE32=1),DF32," -")) ->  | N32: =IF(C32=0,"",IF(OR(DQ32<>0,DP32=1),DQ32," -")) ->  | O32: =IF(C32=0,"",IF(OR(EB32<>0,EA32=1),EB32," -")) ->  | P32: =IF(C32=0,"",IF(OR(EM32<>0,EL32=1),EM32," -")) ->  | Q32: =IF(C32=0,"",IF(OR(EX32<>0,EW32=1),EX32," -")) ->  | R32: =IF(C32=0,"",IF(OR(FI32<>0,FH32=1),FI32," -")) ->  | S32: =IF(C32=0,"",IF(OR(FT32<>0,FS32=1),FT32," -")) ->  | T32: =IF(C32=0,"",IF(OR(GE32<>0,GD32=1),GE32," -")) ->  | U32: =IF(C32=0,"",IF(OR(GP32<>0,GO32=1),GP32," -")) ->  | V32: =IF(C32=0,"",IF(OR(HA32<>0,GZ32=1),HA32," -")) ->  | W32: =IF(C32=0,"",IF(OR(HL32<>0,HK32=1),HL32," -")) ->  | X32: =IF(C32=0,"",IF(AJ32<>0,AJ32," -")) ->  | Y32: =IF(C32=0,"",IF(OR(HW32<>0,HV32=1),HW32," -")) ->  | Z32: =IF(C32=0,"",IF(OR(IH32<>0,IG32=1),IH32," -")) ->  | AA32: =IF(C32=0,"",IF(AL32=1,"DNF",IF(AL32=2,"DSQ",IF(AM32<>1,"~ "&ROUND(SUM(H32:X32),3),ROUND(SUM(H32:X32),3))))) ->  | AD32: =IF(C32<>"",C32,"") ->  | AE32: =IF(AD32<>"",3,"") ->  | AH32: =IF(AD32<>"",(AF32/1000*AG32/1000)/2,"") ->  | AP32: =IF(C32=0,99999,IF(AL32>0,9999,SUM(H32:X32)-AN32)) -> 99999 | AQ32: =IF(C32=0,99999,IF(AL32=1,9999,SUM(Y32:Z32))) -> 99999 | AT32: =IF(C32<>"",C32,"") ->  | BC32: =IF($C32="","", IF(BB32=1,0,IF(AZ32<>0,500,AU32*$AE32/$AH32+AV32/$AH32*5+AW32/$AH32*25+AX32*50+AY32*50))) ->  | BE32: =IF(C32<>"",C32,"") ->  | BN32: =IF($C32="","", IF(BM32=1,0,IF(BK32<>0,500,BF32*$AE32/$AH32+BG32/$AH32*5+BH32/$AH32*25+BI32*50+BJ32*50))) ->  | BP32: =IF(C32<>"",C32,"") ->  | BY32: =IF($C32="","", IF(BX32=1,0,IF(BV32<>0,500,BQ32*$AE32/$AH32+BR32/$AH32*5+BS32/$AH32*25+BT32*50+BU32*50))) ->  | CA32: =IF(C32<>"",C32,"") ->  | CJ32: =IF($C32="","", IF(CI32=1,0,IF(CG32<>0,500,CB32*$AE32/$AH32+CC32/$AH32*5+CD32/$AH32*25+CE32*50+CF32*50))) ->  | CL32: =IF(C32<>"",C32,"") ->  | CU32: =IF($C32="","", IF(CT32=1,0,IF(CR32<>0,500,CM32*$AE32/$AH32+CN32/$AH32*5+CO32/$AH32*25+CP32*50+CQ32*50))) ->  | CW32: =IF(C32<>"",C32,"") ->  | DF32: =IF($C32="","", IF(DE32=1,0,IF(DC32<>0,500,CX32*$AE32/$AH32+CY32/$AH32*5+CZ32/$AH32*25+DA32*50+DB32*50))) ->  | DH32: =IF(C32<>"",C32,"") ->  | DQ32: =IF($C32="","", IF(DP32=1,0,IF(DN32<>0,500,DI32*$AE32/$AH32+DJ32/$AH32*5+DK32/$AH32*25+DL32*50+DM32*50))) ->  | DS32: =IF(C32<>"",C32,"") ->  | EB32: =IF($C32="","", IF(EA32=1,0,IF(DY32<>0,500,DT32*$AE32/$AH32+DU32/$AH32*5+DV32/$AH32*25+DW32*50+DX32*50))) ->  | ED32: =IF(C32<>"",C32,"") ->  | EM32: =IF($C32="","", IF(EL32=1,0,IF(EJ32<>0,500,EE32*$AE32/$AH32+EF32/$AH32*5+EG32/$AH32*25+EH32*50+EI32*50))) ->  | EO32: =IF(C32<>"",C32,"") ->  | EX32: =IF($C32="","", IF(EW32=1,0,IF(EU32<>0,500,EP32*$AE32/$AH32+EQ32/$AH32*5+ER32/$AH32*25+ES32*50+ET32*50))) ->  | EZ32: =IF(C32<>"",C32,"") ->  | FI32: =IF($C32="","", IF(FH32=1,0,IF(FF32<>0,500,FA32*$AE32/$AH32+FB32/$AH32*5+FC32/$AH32*25+FD32*50+FE32*50))) ->  | FK32: =IF(C32<>"",C32,"") ->  | FT32: =IF($C32="","", IF(FS32=1,0,IF(FQ32<>0,500,FL32*$AE32/$AH32+FM32/$AH32*5+FN32/$AH32*25+FO32*50+FP32*50))) ->  | FV32: =IF(C32<>"",C32,"") ->  | GE32: =IF($C32="","", IF(GD32=1,0,IF(GB32<>0,500,FW32*$AE32/$AH32+FX32/$AH32*5+FY32/$AH32*25+FZ32*50+GA32*50))) ->  | GG32: =IF(C32<>"",C32,"") ->  | GP32: =IF($C32="","", IF(GO32=1,0,IF(GM32<>0,500,GH32*$AE32/$AH32+GI32/$AH32*5+GJ32/$AH32*25+GK32*50+GL32*50))) ->  | GR32: =IF(C32<>"",C32,"") ->  | HA32: =IF($C32="","", IF(GZ32=1,0,IF(GX32<>0,500,GS32*$AE32/$AH32+GT32/$AH32*5+GU32/$AH32*25+GV32*50+GW32*50))) ->  | HC32: =IF(C32<>"",C32,"") ->  | HL32: =IF($C32="","", IF(HK32=1,0,IF(HI32<>0,500,HD32*$AE32/$AH32+HE32/$AH32*5+HF32/$AH32*25+HG32*50+HH32*50))) ->  | HN32: =IF(C32<>"",C32,"") ->  | HW32: =IF($C32="","", IF(HV32=1,0,IF(HT32<>0,500,HO32*$AE32/$AH32+HP32/$AH32*5+HQ32/$AH32*25+HR32*50+HS32*50))) ->  | HY32: =IF(C32<>"",C32,"") ->  | IH32: =IF($C32="","", IF(IG32=1,0,IF(IE32<>0,500,HZ32*$AE32/$AH32+IA32/$AH32*5+IB32/$AH32*25+IC32*50+ID32*50))) -> 
B33: =IF(C33=0,"",ROW(C33)-4) ->  | H33: =IF(C33=0,"",IF(OR(BB33=1,BC33<>0),BC33,"-")) ->  | I33: =IF(C33=0,"",IF(OR(BM33=1,BN33<>0),BN33,"-")) ->  | J33: =IF(C33=0,"",IF(OR(BX33=1,BY33<>0),BY33," -")) ->  | K33: =IF(C33=0,"",IF(OR(CJ33<>0,CI33=1),CJ33," -")) ->  | L33: =IF(C33=0,"",IF(OR(CU33<>0,CT33=1),CU33," -")) ->  | M33: =IF(C33=0,"",IF(OR(DF33<>0,DE33=1),DF33," -")) ->  | N33: =IF(C33=0,"",IF(OR(DQ33<>0,DP33=1),DQ33," -")) ->  | O33: =IF(C33=0,"",IF(OR(EB33<>0,EA33=1),EB33," -")) ->  | P33: =IF(C33=0,"",IF(OR(EM33<>0,EL33=1),EM33," -")) ->  | Q33: =IF(C33=0,"",IF(OR(EX33<>0,EW33=1),EX33," -")) ->  | R33: =IF(C33=0,"",IF(OR(FI33<>0,FH33=1),FI33," -")) ->  | S33: =IF(C33=0,"",IF(OR(FT33<>0,FS33=1),FT33," -")) ->  | T33: =IF(C33=0,"",IF(OR(GE33<>0,GD33=1),GE33," -")) ->  | U33: =IF(C33=0,"",IF(OR(GP33<>0,GO33=1),GP33," -")) ->  | V33: =IF(C33=0,"",IF(OR(HA33<>0,GZ33=1),HA33," -")) ->  | W33: =IF(C33=0,"",IF(OR(HL33<>0,HK33=1),HL33," -")) ->  | X33: =IF(C33=0,"",IF(AJ33<>0,AJ33," -")) ->  | Y33: =IF(C33=0,"",IF(OR(HW33<>0,HV33=1),HW33," -")) ->  | Z33: =IF(C33=0,"",IF(OR(IH33<>0,IG33=1),IH33," -")) ->  | AA33: =IF(C33=0,"",IF(AL33=1,"DNF",IF(AL33=2,"DSQ",IF(AM33<>1,"~ "&ROUND(SUM(H33:X33),3),ROUND(SUM(H33:X33),3))))) ->  | AD33: =IF(C33<>"",C33,"") ->  | AE33: =IF(AD33<>"",3,"") ->  | AH33: =IF(AD33<>"",(AF33/1000*AG33/1000)/2,"") ->  | AP33: =IF(C33=0,99999,IF(AL33>0,9999,SUM(H33:X33)-AN33)) -> 99999 | AQ33: =IF(C33=0,99999,IF(AL33=1,9999,SUM(Y33:Z33))) -> 99999 | AT33: =IF(C33<>"",C33,"") ->  | BC33: =IF($C33="","", IF(BB33=1,0,IF(AZ33<>0,500,AU33*$AE33/$AH33+AV33/$AH33*5+AW33/$AH33*25+AX33*50+AY33*50))) ->  | BE33: =IF(C33<>"",C33,"") ->  | BN33: =IF($C33="","", IF(BM33=1,0,IF(BK33<>0,500,BF33*$AE33/$AH33+BG33/$AH33*5+BH33/$AH33*25+BI33*50+BJ33*50))) ->  | BP33: =IF(C33<>"",C33,"") ->  | BY33: =IF($C33="","", IF(BX33=1,0,IF(BV33<>0,500,BQ33*$AE33/$AH33+BR33/$AH33*5+BS33/$AH33*25+BT33*50+BU33*50))) ->  | CA33: =IF(C33<>"",C33,"") ->  | CJ33: =IF($C33="","", IF(CI33=1,0,IF(CG33<>0,500,CB33*$AE33/$AH33+CC33/$AH33*5+CD33/$AH33*25+CE33*50+CF33*50))) ->  | CL33: =IF(C33<>"",C33,"") ->  | CU33: =IF($C33="","", IF(CT33=1,0,IF(CR33<>0,500,CM33*$AE33/$AH33+CN33/$AH33*5+CO33/$AH33*25+CP33*50+CQ33*50))) ->  | CW33: =IF(C33<>"",C33,"") ->  | DF33: =IF($C33="","", IF(DE33=1,0,IF(DC33<>0,500,CX33*$AE33/$AH33+CY33/$AH33*5+CZ33/$AH33*25+DA33*50+DB33*50))) ->  | DH33: =IF(C33<>"",C33,"") ->  | DQ33: =IF($C33="","", IF(DP33=1,0,IF(DN33<>0,500,DI33*$AE33/$AH33+DJ33/$AH33*5+DK33/$AH33*25+DL33*50+DM33*50))) ->  | DS33: =IF(C33<>"",C33,"") ->  | EB33: =IF($C33="","", IF(EA33=1,0,IF(DY33<>0,500,DT33*$AE33/$AH33+DU33/$AH33*5+DV33/$AH33*25+DW33*50+DX33*50))) ->  | ED33: =IF(C33<>"",C33,"") ->  | EM33: =IF($C33="","", IF(EL33=1,0,IF(EJ33<>0,500,EE33*$AE33/$AH33+EF33/$AH33*5+EG33/$AH33*25+EH33*50+EI33*50))) ->  | EO33: =IF(C33<>"",C33,"") ->  | EX33: =IF($C33="","", IF(EW33=1,0,IF(EU33<>0,500,EP33*$AE33/$AH33+EQ33/$AH33*5+ER33/$AH33*25+ES33*50+ET33*50))) ->  | EZ33: =IF(C33<>"",C33,"") ->  | FI33: =IF($C33="","", IF(FH33=1,0,IF(FF33<>0,500,FA33*$AE33/$AH33+FB33/$AH33*5+FC33/$AH33*25+FD33*50+FE33*50))) ->  | FK33: =IF(C33<>"",C33,"") ->  | FT33: =IF($C33="","", IF(FS33=1,0,IF(FQ33<>0,500,FL33*$AE33/$AH33+FM33/$AH33*5+FN33/$AH33*25+FO33*50+FP33*50))) ->  | FV33: =IF(C33<>"",C33,"") ->  | GE33: =IF($C33="","", IF(GD33=1,0,IF(GB33<>0,500,FW33*$AE33/$AH33+FX33/$AH33*5+FY33/$AH33*25+FZ33*50+GA33*50))) ->  | GG33: =IF(C33<>"",C33,"") ->  | GP33: =IF($C33="","", IF(GO33=1,0,IF(GM33<>0,500,GH33*$AE33/$AH33+GI33/$AH33*5+GJ33/$AH33*25+GK33*50+GL33*50))) ->  | GR33: =IF(C33<>"",C33,"") ->  | HA33: =IF($C33="","", IF(GZ33=1,0,IF(GX33<>0,500,GS33*$AE33/$AH33+GT33/$AH33*5+GU33/$AH33*25+GV33*50+GW33*50))) ->  | HC33: =IF(C33<>"",C33,"") ->  | HL33: =IF($C33="","", IF(HK33=1,0,IF(HI33<>0,500,HD33*$AE33/$AH33+HE33/$AH33*5+HF33/$AH33*25+HG33*50+HH33*50))) ->  | HN33: =IF(C33<>"",C33,"") ->  | HW33: =IF($C33="","", IF(HV33=1,0,IF(HT33<>0,500,HO33*$AE33/$AH33+HP33/$AH33*5+HQ33/$AH33*25+HR33*50+HS33*50))) ->  | HY33: =IF(C33<>"",C33,"") ->  | IH33: =IF($C33="","", IF(IG33=1,0,IF(IE33<>0,500,HZ33*$AE33/$AH33+IA33/$AH33*5+IB33/$AH33*25+IC33*50+ID33*50))) -> 
B34: =IF(C34=0,"",ROW(C34)-4) ->  | H34: =IF(C34=0,"",IF(OR(BB34=1,BC34<>0),BC34,"-")) ->  | I34: =IF(C34=0,"",IF(OR(BM34=1,BN34<>0),BN34,"-")) ->  | J34: =IF(C34=0,"",IF(OR(BX34=1,BY34<>0),BY34," -")) ->  | K34: =IF(C34=0,"",IF(OR(CJ34<>0,CI34=1),CJ34," -")) ->  | L34: =IF(C34=0,"",IF(OR(CU34<>0,CT34=1),CU34," -")) ->  | M34: =IF(C34=0,"",IF(OR(DF34<>0,DE34=1),DF34," -")) ->  | N34: =IF(C34=0,"",IF(OR(DQ34<>0,DP34=1),DQ34," -")) ->  | O34: =IF(C34=0,"",IF(OR(EB34<>0,EA34=1),EB34," -")) ->  | P34: =IF(C34=0,"",IF(OR(EM34<>0,EL34=1),EM34," -")) ->  | Q34: =IF(C34=0,"",IF(OR(EX34<>0,EW34=1),EX34," -")) ->  | R34: =IF(C34=0,"",IF(OR(FI34<>0,FH34=1),FI34," -")) ->  | S34: =IF(C34=0,"",IF(OR(FT34<>0,FS34=1),FT34," -")) ->  | T34: =IF(C34=0,"",IF(OR(GE34<>0,GD34=1),GE34," -")) ->  | U34: =IF(C34=0,"",IF(OR(GP34<>0,GO34=1),GP34," -")) ->  | V34: =IF(C34=0,"",IF(OR(HA34<>0,GZ34=1),HA34," -")) ->  | W34: =IF(C34=0,"",IF(OR(HL34<>0,HK34=1),HL34," -")) ->  | X34: =IF(C34=0,"",IF(AJ34<>0,AJ34," -")) ->  | Y34: =IF(C34=0,"",IF(OR(HW34<>0,HV34=1),HW34," -")) ->  | Z34: =IF(C34=0,"",IF(OR(IH34<>0,IG34=1),IH34," -")) ->  | AA34: =IF(C34=0,"",IF(AL34=1,"DNF",IF(AL34=2,"DSQ",IF(AM34<>1,"~ "&ROUND(SUM(H34:X34),3),ROUND(SUM(H34:X34),3))))) ->  | AD34: =IF(C34<>"",C34,"") ->  | AE34: =IF(AD34<>"",3,"") ->  | AH34: =IF(AD34<>"",(AF34/1000*AG34/1000)/2,"") ->  | AP34: =IF(C34=0,99999,IF(AL34>0,9999,SUM(H34:X34)-AN34)) -> 99999 | AQ34: =IF(C34=0,99999,IF(AL34=1,9999,SUM(Y34:Z34))) -> 99999 | AT34: =IF(C34<>"",C34,"") ->  | BC34: =IF($C34="","", IF(BB34=1,0,IF(AZ34<>0,500,AU34*$AE34/$AH34+AV34/$AH34*5+AW34/$AH34*25+AX34*50+AY34*50))) ->  | BE34: =IF(C34<>"",C34,"") ->  | BN34: =IF($C34="","", IF(BM34=1,0,IF(BK34<>0,500,BF34*$AE34/$AH34+BG34/$AH34*5+BH34/$AH34*25+BI34*50+BJ34*50))) ->  | BP34: =IF(C34<>"",C34,"") ->  | BY34: =IF($C34="","", IF(BX34=1,0,IF(BV34<>0,500,BQ34*$AE34/$AH34+BR34/$AH34*5+BS34/$AH34*25+BT34*50+BU34*50))) ->  | CA34: =IF(C34<>"",C34,"") ->  | CJ34: =IF($C34="","", IF(CI34=1,0,IF(CG34<>0,500,CB34*$AE34/$AH34+CC34/$AH34*5+CD34/$AH34*25+CE34*50+CF34*50))) ->  | CL34: =IF(C34<>"",C34,"") ->  | CU34: =IF($C34="","", IF(CT34=1,0,IF(CR34<>0,500,CM34*$AE34/$AH34+CN34/$AH34*5+CO34/$AH34*25+CP34*50+CQ34*50))) ->  | CW34: =IF(C34<>"",C34,"") ->  | DF34: =IF($C34="","", IF(DE34=1,0,IF(DC34<>0,500,CX34*$AE34/$AH34+CY34/$AH34*5+CZ34/$AH34*25+DA34*50+DB34*50))) ->  | DH34: =IF(C34<>"",C34,"") ->  | DQ34: =IF($C34="","", IF(DP34=1,0,IF(DN34<>0,500,DI34*$AE34/$AH34+DJ34/$AH34*5+DK34/$AH34*25+DL34*50+DM34*50))) ->  | DS34: =IF(C34<>"",C34,"") ->  | EB34: =IF($C34="","", IF(EA34=1,0,IF(DY34<>0,500,DT34*$AE34/$AH34+DU34/$AH34*5+DV34/$AH34*25+DW34*50+DX34*50))) ->  | ED34: =IF(C34<>"",C34,"") ->  | EM34: =IF($C34="","", IF(EL34=1,0,IF(EJ34<>0,500,EE34*$AE34/$AH34+EF34/$AH34*5+EG34/$AH34*25+EH34*50+EI34*50))) ->  | EO34: =IF(C34<>"",C34,"") ->  | EX34: =IF($C34="","", IF(EW34=1,0,IF(EU34<>0,500,EP34*$AE34/$AH34+EQ34/$AH34*5+ER34/$AH34*25+ES34*50+ET34*50))) ->  | EZ34: =IF(C34<>"",C34,"") ->  | FI34: =IF($C34="","", IF(FH34=1,0,IF(FF34<>0,500,FA34*$AE34/$AH34+FB34/$AH34*5+FC34/$AH34*25+FD34*50+FE34*50))) ->  | FK34: =IF(C34<>"",C34,"") ->  | FT34: =IF($C34="","", IF(FS34=1,0,IF(FQ34<>0,500,FL34*$AE34/$AH34+FM34/$AH34*5+FN34/$AH34*25+FO34*50+FP34*50))) ->  | FV34: =IF(C34<>"",C34,"") ->  | GE34: =IF($C34="","", IF(GD34=1,0,IF(GB34<>0,500,FW34*$AE34/$AH34+FX34/$AH34*5+FY34/$AH34*25+FZ34*50+GA34*50))) ->  | GG34: =IF(C34<>"",C34,"") ->  | GP34: =IF($C34="","", IF(GO34=1,0,IF(GM34<>0,500,GH34*$AE34/$AH34+GI34/$AH34*5+GJ34/$AH34*25+GK34*50+GL34*50))) ->  | GR34: =IF(C34<>"",C34,"") ->  | HA34: =IF($C34="","", IF(GZ34=1,0,IF(GX34<>0,500,GS34*$AE34/$AH34+GT34/$AH34*5+GU34/$AH34*25+GV34*50+GW34*50))) ->  | HC34: =IF(C34<>"",C34,"") ->  | HL34: =IF($C34="","", IF(HK34=1,0,IF(HI34<>0,500,HD34*$AE34/$AH34+HE34/$AH34*5+HF34/$AH34*25+HG34*50+HH34*50))) ->  | HN34: =IF(C34<>"",C34,"") ->  | HW34: =IF($C34="","", IF(HV34=1,0,IF(HT34<>0,500,HO34*$AE34/$AH34+HP34/$AH34*5+HQ34/$AH34*25+HR34*50+HS34*50))) ->  | HY34: =IF(C34<>"",C34,"") ->  | IH34: =IF($C34="","", IF(IG34=1,0,IF(IE34<>0,500,HZ34*$AE34/$AH34+IA34/$AH34*5+IB34/$AH34*25+IC34*50+ID34*50))) -> 
B35: =IF(C35=0,"",ROW(C35)-4) ->  | H35: =IF(C35=0,"",IF(OR(BB35=1,BC35<>0),BC35,"-")) ->  | I35: =IF(C35=0,"",IF(OR(BM35=1,BN35<>0),BN35,"-")) ->  | J35: =IF(C35=0,"",IF(OR(BX35=1,BY35<>0),BY35," -")) ->  | K35: =IF(C35=0,"",IF(OR(CJ35<>0,CI35=1),CJ35," -")) ->  | L35: =IF(C35=0,"",IF(OR(CU35<>0,CT35=1),CU35," -")) ->  | M35: =IF(C35=0,"",IF(OR(DF35<>0,DE35=1),DF35," -")) ->  | N35: =IF(C35=0,"",IF(OR(DQ35<>0,DP35=1),DQ35," -")) ->  | O35: =IF(C35=0,"",IF(OR(EB35<>0,EA35=1),EB35," -")) ->  | P35: =IF(C35=0,"",IF(OR(EM35<>0,EL35=1),EM35," -")) ->  | Q35: =IF(C35=0,"",IF(OR(EX35<>0,EW35=1),EX35," -")) ->  | R35: =IF(C35=0,"",IF(OR(FI35<>0,FH35=1),FI35," -")) ->  | S35: =IF(C35=0,"",IF(OR(FT35<>0,FS35=1),FT35," -")) ->  | T35: =IF(C35=0,"",IF(OR(GE35<>0,GD35=1),GE35," -")) ->  | U35: =IF(C35=0,"",IF(OR(GP35<>0,GO35=1),GP35," -")) ->  | V35: =IF(C35=0,"",IF(OR(HA35<>0,GZ35=1),HA35," -")) ->  | W35: =IF(C35=0,"",IF(OR(HL35<>0,HK35=1),HL35," -")) ->  | X35: =IF(C35=0,"",IF(AJ35<>0,AJ35," -")) ->  | Y35: =IF(C35=0,"",IF(OR(HW35<>0,HV35=1),HW35," -")) ->  | Z35: =IF(C35=0,"",IF(OR(IH35<>0,IG35=1),IH35," -")) ->  | AA35: =IF(C35=0,"",IF(AL35=1,"DNF",IF(AL35=2,"DSQ",IF(AM35<>1,"~ "&ROUND(SUM(H35:X35),3),ROUND(SUM(H35:X35),3))))) ->  | AD35: =IF(C35<>"",C35,"") ->  | AE35: =IF(AD35<>"",3,"") ->  | AH35: =IF(AD35<>"",(AF35/1000*AG35/1000)/2,"") ->  | AP35: =IF(C35=0,99999,IF(AL35>0,9999,SUM(H35:X35)-AN35)) -> 99999 | AQ35: =IF(C35=0,99999,IF(AL35=1,9999,SUM(Y35:Z35))) -> 99999 | AT35: =IF(C35<>"",C35,"") ->  | BC35: =IF($C35="","", IF(BB35=1,0,IF(AZ35<>0,500,AU35*$AE35/$AH35+AV35/$AH35*5+AW35/$AH35*25+AX35*50+AY35*50))) ->  | BE35: =IF(C35<>"",C35,"") ->  | BN35: =IF($C35="","", IF(BM35=1,0,IF(BK35<>0,500,BF35*$AE35/$AH35+BG35/$AH35*5+BH35/$AH35*25+BI35*50+BJ35*50))) ->  | BP35: =IF(C35<>"",C35,"") ->  | BY35: =IF($C35="","", IF(BX35=1,0,IF(BV35<>0,500,BQ35*$AE35/$AH35+BR35/$AH35*5+BS35/$AH35*25+BT35*50+BU35*50))) ->  | CA35: =IF(C35<>"",C35,"") ->  | CJ35: =IF($C35="","", IF(CI35=1,0,IF(CG35<>0,500,CB35*$AE35/$AH35+CC35/$AH35*5+CD35/$AH35*25+CE35*50+CF35*50))) ->  | CL35: =IF(C35<>"",C35,"") ->  | CU35: =IF($C35="","", IF(CT35=1,0,IF(CR35<>0,500,CM35*$AE35/$AH35+CN35/$AH35*5+CO35/$AH35*25+CP35*50+CQ35*50))) ->  | CW35: =IF(C35<>"",C35,"") ->  | DF35: =IF($C35="","", IF(DE35=1,0,IF(DC35<>0,500,CX35*$AE35/$AH35+CY35/$AH35*5+CZ35/$AH35*25+DA35*50+DB35*50))) ->  | DH35: =IF(C35<>"",C35,"") ->  | DQ35: =IF($C35="","", IF(DP35=1,0,IF(DN35<>0,500,DI35*$AE35/$AH35+DJ35/$AH35*5+DK35/$AH35*25+DL35*50+DM35*50))) ->  | DS35: =IF(C35<>"",C35,"") ->  | EB35: =IF($C35="","", IF(EA35=1,0,IF(DY35<>0,500,DT35*$AE35/$AH35+DU35/$AH35*5+DV35/$AH35*25+DW35*50+DX35*50))) ->  | ED35: =IF(C35<>"",C35,"") ->  | EM35: =IF($C35="","", IF(EL35=1,0,IF(EJ35<>0,500,EE35*$AE35/$AH35+EF35/$AH35*5+EG35/$AH35*25+EH35*50+EI35*50))) ->  | EO35: =IF(C35<>"",C35,"") ->  | EX35: =IF($C35="","", IF(EW35=1,0,IF(EU35<>0,500,EP35*$AE35/$AH35+EQ35/$AH35*5+ER35/$AH35*25+ES35*50+ET35*50))) ->  | EZ35: =IF(C35<>"",C35,"") ->  | FI35: =IF($C35="","", IF(FH35=1,0,IF(FF35<>0,500,FA35*$AE35/$AH35+FB35/$AH35*5+FC35/$AH35*25+FD35*50+FE35*50))) ->  | FK35: =IF(C35<>"",C35,"") ->  | FT35: =IF($C35="","", IF(FS35=1,0,IF(FQ35<>0,500,FL35*$AE35/$AH35+FM35/$AH35*5+FN35/$AH35*25+FO35*50+FP35*50))) ->  | FV35: =IF(C35<>"",C35,"") ->  | GE35: =IF($C35="","", IF(GD35=1,0,IF(GB35<>0,500,FW35*$AE35/$AH35+FX35/$AH35*5+FY35/$AH35*25+FZ35*50+GA35*50))) ->  | GG35: =IF(C35<>"",C35,"") ->  | GP35: =IF($C35="","", IF(GO35=1,0,IF(GM35<>0,500,GH35*$AE35/$AH35+GI35/$AH35*5+GJ35/$AH35*25+GK35*50+GL35*50))) ->  | GR35: =IF(C35<>"",C35,"") ->  | HA35: =IF($C35="","", IF(GZ35=1,0,IF(GX35<>0,500,GS35*$AE35/$AH35+GT35/$AH35*5+GU35/$AH35*25+GV35*50+GW35*50))) ->  | HC35: =IF(C35<>"",C35,"") ->  | HL35: =IF($C35="","", IF(HK35=1,0,IF(HI35<>0,500,HD35*$AE35/$AH35+HE35/$AH35*5+HF35/$AH35*25+HG35*50+HH35*50))) ->  | HN35: =IF(C35<>"",C35,"") ->  | HW35: =IF($C35="","", IF(HV35=1,0,IF(HT35<>0,500,HO35*$AE35/$AH35+HP35/$AH35*5+HQ35/$AH35*25+HR35*50+HS35*50))) ->  | HY35: =IF(C35<>"",C35,"") ->  | IH35: =IF($C35="","", IF(IG35=1,0,IF(IE35<>0,500,HZ35*$AE35/$AH35+IA35/$AH35*5+IB35/$AH35*25+IC35*50+ID35*50))) -> 
B36: =IF(C36=0,"",ROW(C36)-4) ->  | H36: =IF(C36=0,"",IF(OR(BB36=1,BC36<>0),BC36,"-")) ->  | I36: =IF(C36=0,"",IF(OR(BM36=1,BN36<>0),BN36,"-")) ->  | J36: =IF(C36=0,"",IF(OR(BX36=1,BY36<>0),BY36," -")) ->  | K36: =IF(C36=0,"",IF(OR(CJ36<>0,CI36=1),CJ36," -")) ->  | L36: =IF(C36=0,"",IF(OR(CU36<>0,CT36=1),CU36," -")) ->  | M36: =IF(C36=0,"",IF(OR(DF36<>0,DE36=1),DF36," -")) ->  | N36: =IF(C36=0,"",IF(OR(DQ36<>0,DP36=1),DQ36," -")) ->  | O36: =IF(C36=0,"",IF(OR(EB36<>0,EA36=1),EB36," -")) ->  | P36: =IF(C36=0,"",IF(OR(EM36<>0,EL36=1),EM36," -")) ->  | Q36: =IF(C36=0,"",IF(OR(EX36<>0,EW36=1),EX36," -")) ->  | R36: =IF(C36=0,"",IF(OR(FI36<>0,FH36=1),FI36," -")) ->  | S36: =IF(C36=0,"",IF(OR(FT36<>0,FS36=1),FT36," -")) ->  | T36: =IF(C36=0,"",IF(OR(GE36<>0,GD36=1),GE36," -")) ->  | U36: =IF(C36=0,"",IF(OR(GP36<>0,GO36=1),GP36," -")) ->  | V36: =IF(C36=0,"",IF(OR(HA36<>0,GZ36=1),HA36," -")) ->  | W36: =IF(C36=0,"",IF(OR(HL36<>0,HK36=1),HL36," -")) ->  | X36: =IF(C36=0,"",IF(AJ36<>0,AJ36," -")) ->  | Y36: =IF(C36=0,"",IF(OR(HW36<>0,HV36=1),HW36," -")) ->  | Z36: =IF(C36=0,"",IF(OR(IH36<>0,IG36=1),IH36," -")) ->  | AA36: =IF(C36=0,"",IF(AL36=1,"DNF",IF(AL36=2,"DSQ",IF(AM36<>1,"~ "&ROUND(SUM(H36:X36),3),ROUND(SUM(H36:X36),3))))) ->  | AD36: =IF(C36<>"",C36,"") ->  | AE36: =IF(AD36<>"",3,"") ->  | AH36: =IF(AD36<>"",(AF36/1000*AG36/1000)/2,"") ->  | AP36: =IF(C36=0,99999,IF(AL36>0,9999,SUM(H36:X36)-AN36)) -> 99999 | AQ36: =IF(C36=0,99999,IF(AL36=1,9999,SUM(Y36:Z36))) -> 99999 | AT36: =IF(C36<>"",C36,"") ->  | BC36: =IF($C36="","", IF(BB36=1,0,IF(AZ36<>0,500,AU36*$AE36/$AH36+AV36/$AH36*5+AW36/$AH36*25+AX36*50+AY36*50))) ->  | BE36: =IF(C36<>"",C36,"") ->  | BN36: =IF($C36="","", IF(BM36=1,0,IF(BK36<>0,500,BF36*$AE36/$AH36+BG36/$AH36*5+BH36/$AH36*25+BI36*50+BJ36*50))) ->  | BP36: =IF(C36<>"",C36,"") ->  | BY36: =IF($C36="","", IF(BX36=1,0,IF(BV36<>0,500,BQ36*$AE36/$AH36+BR36/$AH36*5+BS36/$AH36*25+BT36*50+BU36*50))) ->  | CA36: =IF(C36<>"",C36,"") ->  | CJ36: =IF($C36="","", IF(CI36=1,0,IF(CG36<>0,500,CB36*$AE36/$AH36+CC36/$AH36*5+CD36/$AH36*25+CE36*50+CF36*50))) ->  | CL36: =IF(C36<>"",C36,"") ->  | CU36: =IF($C36="","", IF(CT36=1,0,IF(CR36<>0,500,CM36*$AE36/$AH36+CN36/$AH36*5+CO36/$AH36*25+CP36*50+CQ36*50))) ->  | CW36: =IF(C36<>"",C36,"") ->  | DF36: =IF($C36="","", IF(DE36=1,0,IF(DC36<>0,500,CX36*$AE36/$AH36+CY36/$AH36*5+CZ36/$AH36*25+DA36*50+DB36*50))) ->  | DH36: =IF(C36<>"",C36,"") ->  | DQ36: =IF($C36="","", IF(DP36=1,0,IF(DN36<>0,500,DI36*$AE36/$AH36+DJ36/$AH36*5+DK36/$AH36*25+DL36*50+DM36*50))) ->  | DS36: =IF(C36<>"",C36,"") ->  | EB36: =IF($C36="","", IF(EA36=1,0,IF(DY36<>0,500,DT36*$AE36/$AH36+DU36/$AH36*5+DV36/$AH36*25+DW36*50+DX36*50))) ->  | ED36: =IF(C36<>"",C36,"") ->  | EM36: =IF($C36="","", IF(EL36=1,0,IF(EJ36<>0,500,EE36*$AE36/$AH36+EF36/$AH36*5+EG36/$AH36*25+EH36*50+EI36*50))) ->  | EO36: =IF(C36<>"",C36,"") ->  | EX36: =IF($C36="","", IF(EW36=1,0,IF(EU36<>0,500,EP36*$AE36/$AH36+EQ36/$AH36*5+ER36/$AH36*25+ES36*50+ET36*50))) ->  | EZ36: =IF(C36<>"",C36,"") ->  | FI36: =IF($C36="","", IF(FH36=1,0,IF(FF36<>0,500,FA36*$AE36/$AH36+FB36/$AH36*5+FC36/$AH36*25+FD36*50+FE36*50))) ->  | FK36: =IF(C36<>"",C36,"") ->  | FT36: =IF($C36="","", IF(FS36=1,0,IF(FQ36<>0,500,FL36*$AE36/$AH36+FM36/$AH36*5+FN36/$AH36*25+FO36*50+FP36*50))) ->  | FV36: =IF(C36<>"",C36,"") ->  | GE36: =IF($C36="","", IF(GD36=1,0,IF(GB36<>0,500,FW36*$AE36/$AH36+FX36/$AH36*5+FY36/$AH36*25+FZ36*50+GA36*50))) ->  | GG36: =IF(C36<>"",C36,"") ->  | GP36: =IF($C36="","", IF(GO36=1,0,IF(GM36<>0,500,GH36*$AE36/$AH36+GI36/$AH36*5+GJ36/$AH36*25+GK36*50+GL36*50))) ->  | GR36: =IF(C36<>"",C36,"") ->  | HA36: =IF($C36="","", IF(GZ36=1,0,IF(GX36<>0,500,GS36*$AE36/$AH36+GT36/$AH36*5+GU36/$AH36*25+GV36*50+GW36*50))) ->  | HC36: =IF(C36<>"",C36,"") ->  | HL36: =IF($C36="","", IF(HK36=1,0,IF(HI36<>0,500,HD36*$AE36/$AH36+HE36/$AH36*5+HF36/$AH36*25+HG36*50+HH36*50))) ->  | HN36: =IF(C36<>"",C36,"") ->  | HW36: =IF($C36="","", IF(HV36=1,0,IF(HT36<>0,500,HO36*$AE36/$AH36+HP36/$AH36*5+HQ36/$AH36*25+HR36*50+HS36*50))) ->  | HY36: =IF(C36<>"",C36,"") ->  | IH36: =IF($C36="","", IF(IG36=1,0,IF(IE36<>0,500,HZ36*$AE36/$AH36+IA36/$AH36*5+IB36/$AH36*25+IC36*50+ID36*50))) -> 
B37: =IF(C37=0,"",ROW(C37)-4) ->  | H37: =IF(C37=0,"",IF(OR(BB37=1,BC37<>0),BC37,"-")) ->  | I37: =IF(C37=0,"",IF(OR(BM37=1,BN37<>0),BN37,"-")) ->  | J37: =IF(C37=0,"",IF(OR(BX37=1,BY37<>0),BY37," -")) ->  | K37: =IF(C37=0,"",IF(OR(CJ37<>0,CI37=1),CJ37," -")) ->  | L37: =IF(C37=0,"",IF(OR(CU37<>0,CT37=1),CU37," -")) ->  | M37: =IF(C37=0,"",IF(OR(DF37<>0,DE37=1),DF37," -")) ->  | N37: =IF(C37=0,"",IF(OR(DQ37<>0,DP37=1),DQ37," -")) ->  | O37: =IF(C37=0,"",IF(OR(EB37<>0,EA37=1),EB37," -")) ->  | P37: =IF(C37=0,"",IF(OR(EM37<>0,EL37=1),EM37," -")) ->  | Q37: =IF(C37=0,"",IF(OR(EX37<>0,EW37=1),EX37," -")) ->  | R37: =IF(C37=0,"",IF(OR(FI37<>0,FH37=1),FI37," -")) ->  | S37: =IF(C37=0,"",IF(OR(FT37<>0,FS37=1),FT37," -")) ->  | T37: =IF(C37=0,"",IF(OR(GE37<>0,GD37=1),GE37," -")) ->  | U37: =IF(C37=0,"",IF(OR(GP37<>0,GO37=1),GP37," -")) ->  | V37: =IF(C37=0,"",IF(OR(HA37<>0,GZ37=1),HA37," -")) ->  | W37: =IF(C37=0,"",IF(OR(HL37<>0,HK37=1),HL37," -")) ->  | X37: =IF(C37=0,"",IF(AJ37<>0,AJ37," -")) ->  | Y37: =IF(C37=0,"",IF(OR(HW37<>0,HV37=1),HW37," -")) ->  | Z37: =IF(C37=0,"",IF(OR(IH37<>0,IG37=1),IH37," -")) ->  | AA37: =IF(C37=0,"",IF(AL37=1,"DNF",IF(AL37=2,"DSQ",IF(AM37<>1,"~ "&ROUND(SUM(H37:X37),3),ROUND(SUM(H37:X37),3))))) ->  | AD37: =IF(C37<>"",C37,"") ->  | AE37: =IF(AD37<>"",3,"") ->  | AH37: =IF(AD37<>"",(AF37/1000*AG37/1000)/2,"") ->  | AP37: =IF(C37=0,99999,IF(AL37>0,9999,SUM(H37:X37)-AN37)) -> 99999 | AQ37: =IF(C37=0,99999,IF(AL37=1,9999,SUM(Y37:Z37))) -> 99999 | AT37: =IF(C37<>"",C37,"") ->  | BC37: =IF($C37="","", IF(BB37=1,0,IF(AZ37<>0,500,AU37*$AE37/$AH37+AV37/$AH37*5+AW37/$AH37*25+AX37*50+AY37*50))) ->  | BE37: =IF(C37<>"",C37,"") ->  | BN37: =IF($C37="","", IF(BM37=1,0,IF(BK37<>0,500,BF37*$AE37/$AH37+BG37/$AH37*5+BH37/$AH37*25+BI37*50+BJ37*50))) ->  | BP37: =IF(C37<>"",C37,"") ->  | BY37: =IF($C37="","", IF(BX37=1,0,IF(BV37<>0,500,BQ37*$AE37/$AH37+BR37/$AH37*5+BS37/$AH37*25+BT37*50+BU37*50))) ->  | CA37: =IF(C37<>"",C37,"") ->  | CJ37: =IF($C37="","", IF(CI37=1,0,IF(CG37<>0,500,CB37*$AE37/$AH37+CC37/$AH37*5+CD37/$AH37*25+CE37*50+CF37*50))) ->  | CL37: =IF(C37<>"",C37,"") ->  | CU37: =IF($C37="","", IF(CT37=1,0,IF(CR37<>0,500,CM37*$AE37/$AH37+CN37/$AH37*5+CO37/$AH37*25+CP37*50+CQ37*50))) ->  | CW37: =IF(C37<>"",C37,"") ->  | DF37: =IF($C37="","", IF(DE37=1,0,IF(DC37<>0,500,CX37*$AE37/$AH37+CY37/$AH37*5+CZ37/$AH37*25+DA37*50+DB37*50))) ->  | DH37: =IF(C37<>"",C37,"") ->  | DQ37: =IF($C37="","", IF(DP37=1,0,IF(DN37<>0,500,DI37*$AE37/$AH37+DJ37/$AH37*5+DK37/$AH37*25+DL37*50+DM37*50))) ->  | DS37: =IF(C37<>"",C37,"") ->  | EB37: =IF($C37="","", IF(EA37=1,0,IF(DY37<>0,500,DT37*$AE37/$AH37+DU37/$AH37*5+DV37/$AH37*25+DW37*50+DX37*50))) ->  | ED37: =IF(C37<>"",C37,"") ->  | EM37: =IF($C37="","", IF(EL37=1,0,IF(EJ37<>0,500,EE37*$AE37/$AH37+EF37/$AH37*5+EG37/$AH37*25+EH37*50+EI37*50))) ->  | EO37: =IF(C37<>"",C37,"") ->  | EX37: =IF($C37="","", IF(EW37=1,0,IF(EU37<>0,500,EP37*$AE37/$AH37+EQ37/$AH37*5+ER37/$AH37*25+ES37*50+ET37*50))) ->  | EZ37: =IF(C37<>"",C37,"") ->  | FI37: =IF($C37="","", IF(FH37=1,0,IF(FF37<>0,500,FA37*$AE37/$AH37+FB37/$AH37*5+FC37/$AH37*25+FD37*50+FE37*50))) ->  | FK37: =IF(C37<>"",C37,"") ->  | FT37: =IF($C37="","", IF(FS37=1,0,IF(FQ37<>0,500,FL37*$AE37/$AH37+FM37/$AH37*5+FN37/$AH37*25+FO37*50+FP37*50))) ->  | FV37: =IF(C37<>"",C37,"") ->  | GE37: =IF($C37="","", IF(GD37=1,0,IF(GB37<>0,500,FW37*$AE37/$AH37+FX37/$AH37*5+FY37/$AH37*25+FZ37*50+GA37*50))) ->  | GG37: =IF(C37<>"",C37,"") ->  | GP37: =IF($C37="","", IF(GO37=1,0,IF(GM37<>0,500,GH37*$AE37/$AH37+GI37/$AH37*5+GJ37/$AH37*25+GK37*50+GL37*50))) ->  | GR37: =IF(C37<>"",C37,"") ->  | HA37: =IF($C37="","", IF(GZ37=1,0,IF(GX37<>0,500,GS37*$AE37/$AH37+GT37/$AH37*5+GU37/$AH37*25+GV37*50+GW37*50))) ->  | HC37: =IF(C37<>"",C37,"") ->  | HL37: =IF($C37="","", IF(HK37=1,0,IF(HI37<>0,500,HD37*$AE37/$AH37+HE37/$AH37*5+HF37/$AH37*25+HG37*50+HH37*50))) ->  | HN37: =IF(C37<>"",C37,"") ->  | HW37: =IF($C37="","", IF(HV37=1,0,IF(HT37<>0,500,HO37*$AE37/$AH37+HP37/$AH37*5+HQ37/$AH37*25+HR37*50+HS37*50))) ->  | HY37: =IF(C37<>"",C37,"") ->  | IH37: =IF($C37="","", IF(IG37=1,0,IF(IE37<>0,500,HZ37*$AE37/$AH37+IA37/$AH37*5+IB37/$AH37*25+IC37*50+ID37*50))) -> 
B38: =IF(C38=0,"",ROW(C38)-4) ->  | H38: =IF(C38=0,"",IF(OR(BB38=1,BC38<>0),BC38,"-")) ->  | I38: =IF(C38=0,"",IF(OR(BM38=1,BN38<>0),BN38,"-")) ->  | J38: =IF(C38=0,"",IF(OR(BX38=1,BY38<>0),BY38," -")) ->  | K38: =IF(C38=0,"",IF(OR(CJ38<>0,CI38=1),CJ38," -")) ->  | L38: =IF(C38=0,"",IF(OR(CU38<>0,CT38=1),CU38," -")) ->  | M38: =IF(C38=0,"",IF(OR(DF38<>0,DE38=1),DF38," -")) ->  | N38: =IF(C38=0,"",IF(OR(DQ38<>0,DP38=1),DQ38," -")) ->  | O38: =IF(C38=0,"",IF(OR(EB38<>0,EA38=1),EB38," -")) ->  | P38: =IF(C38=0,"",IF(OR(EM38<>0,EL38=1),EM38," -")) ->  | Q38: =IF(C38=0,"",IF(OR(EX38<>0,EW38=1),EX38," -")) ->  | R38: =IF(C38=0,"",IF(OR(FI38<>0,FH38=1),FI38," -")) ->  | S38: =IF(C38=0,"",IF(OR(FT38<>0,FS38=1),FT38," -")) ->  | T38: =IF(C38=0,"",IF(OR(GE38<>0,GD38=1),GE38," -")) ->  | U38: =IF(C38=0,"",IF(OR(GP38<>0,GO38=1),GP38," -")) ->  | V38: =IF(C38=0,"",IF(OR(HA38<>0,GZ38=1),HA38," -")) ->  | W38: =IF(C38=0,"",IF(OR(HL38<>0,HK38=1),HL38," -")) ->  | X38: =IF(C38=0,"",IF(AJ38<>0,AJ38," -")) ->  | Y38: =IF(C38=0,"",IF(OR(HW38<>0,HV38=1),HW38," -")) ->  | Z38: =IF(C38=0,"",IF(OR(IH38<>0,IG38=1),IH38," -")) ->  | AA38: =IF(C38=0,"",IF(AL38=1,"DNF",IF(AL38=2,"DSQ",IF(AM38<>1,"~ "&ROUND(SUM(H38:X38),3),ROUND(SUM(H38:X38),3))))) ->  | AD38: =IF(C38<>"",C38,"") ->  | AE38: =IF(AD38<>"",3,"") ->  | AH38: =IF(AD38<>"",(AF38/1000*AG38/1000)/2,"") ->  | AP38: =IF(C38=0,99999,IF(AL38>0,9999,SUM(H38:X38)-AN38)) -> 99999 | AQ38: =IF(C38=0,99999,IF(AL38=1,9999,SUM(Y38:Z38))) -> 99999 | AT38: =IF(C38<>"",C38,"") ->  | BC38: =IF($C38="","", IF(BB38=1,0,IF(AZ38<>0,500,AU38*$AE38/$AH38+AV38/$AH38*5+AW38/$AH38*25+AX38*50+AY38*50))) ->  | BE38: =IF(C38<>"",C38,"") ->  | BN38: =IF($C38="","", IF(BM38=1,0,IF(BK38<>0,500,BF38*$AE38/$AH38+BG38/$AH38*5+BH38/$AH38*25+BI38*50+BJ38*50))) ->  | BP38: =IF(C38<>"",C38,"") ->  | BY38: =IF($C38="","", IF(BX38=1,0,IF(BV38<>0,500,BQ38*$AE38/$AH38+BR38/$AH38*5+BS38/$AH38*25+BT38*50+BU38*50))) ->  | CA38: =IF(C38<>"",C38,"") ->  | CJ38: =IF($C38="","", IF(CI38=1,0,IF(CG38<>0,500,CB38*$AE38/$AH38+CC38/$AH38*5+CD38/$AH38*25+CE38*50+CF38*50))) ->  | CL38: =IF(C38<>"",C38,"") ->  | CU38: =IF($C38="","", IF(CT38=1,0,IF(CR38<>0,500,CM38*$AE38/$AH38+CN38/$AH38*5+CO38/$AH38*25+CP38*50+CQ38*50))) ->  | CW38: =IF(C38<>"",C38,"") ->  | DF38: =IF($C38="","", IF(DE38=1,0,IF(DC38<>0,500,CX38*$AE38/$AH38+CY38/$AH38*5+CZ38/$AH38*25+DA38*50+DB38*50))) ->  | DH38: =IF(C38<>"",C38,"") ->  | DQ38: =IF($C38="","", IF(DP38=1,0,IF(DN38<>0,500,DI38*$AE38/$AH38+DJ38/$AH38*5+DK38/$AH38*25+DL38*50+DM38*50))) ->  | DS38: =IF(C38<>"",C38,"") ->  | EB38: =IF($C38="","", IF(EA38=1,0,IF(DY38<>0,500,DT38*$AE38/$AH38+DU38/$AH38*5+DV38/$AH38*25+DW38*50+DX38*50))) ->  | ED38: =IF(C38<>"",C38,"") ->  | EM38: =IF($C38="","", IF(EL38=1,0,IF(EJ38<>0,500,EE38*$AE38/$AH38+EF38/$AH38*5+EG38/$AH38*25+EH38*50+EI38*50))) ->  | EO38: =IF(C38<>"",C38,"") ->  | EX38: =IF($C38="","", IF(EW38=1,0,IF(EU38<>0,500,EP38*$AE38/$AH38+EQ38/$AH38*5+ER38/$AH38*25+ES38*50+ET38*50))) ->  | EZ38: =IF(C38<>"",C38,"") ->  | FI38: =IF($C38="","", IF(FH38=1,0,IF(FF38<>0,500,FA38*$AE38/$AH38+FB38/$AH38*5+FC38/$AH38*25+FD38*50+FE38*50))) ->  | FK38: =IF(C38<>"",C38,"") ->  | FT38: =IF($C38="","", IF(FS38=1,0,IF(FQ38<>0,500,FL38*$AE38/$AH38+FM38/$AH38*5+FN38/$AH38*25+FO38*50+FP38*50))) ->  | FV38: =IF(C38<>"",C38,"") ->  | GE38: =IF($C38="","", IF(GD38=1,0,IF(GB38<>0,500,FW38*$AE38/$AH38+FX38/$AH38*5+FY38/$AH38*25+FZ38*50+GA38*50))) ->  | GG38: =IF(C38<>"",C38,"") ->  | GP38: =IF($C38="","", IF(GO38=1,0,IF(GM38<>0,500,GH38*$AE38/$AH38+GI38/$AH38*5+GJ38/$AH38*25+GK38*50+GL38*50))) ->  | GR38: =IF(C38<>"",C38,"") ->  | HA38: =IF($C38="","", IF(GZ38=1,0,IF(GX38<>0,500,GS38*$AE38/$AH38+GT38/$AH38*5+GU38/$AH38*25+GV38*50+GW38*50))) ->  | HC38: =IF(C38<>"",C38,"") ->  | HL38: =IF($C38="","", IF(HK38=1,0,IF(HI38<>0,500,HD38*$AE38/$AH38+HE38/$AH38*5+HF38/$AH38*25+HG38*50+HH38*50))) ->  | HN38: =IF(C38<>"",C38,"") ->  | HW38: =IF($C38="","", IF(HV38=1,0,IF(HT38<>0,500,HO38*$AE38/$AH38+HP38/$AH38*5+HQ38/$AH38*25+HR38*50+HS38*50))) ->  | HY38: =IF(C38<>"",C38,"") ->  | IH38: =IF($C38="","", IF(IG38=1,0,IF(IE38<>0,500,HZ38*$AE38/$AH38+IA38/$AH38*5+IB38/$AH38*25+IC38*50+ID38*50))) -> 
B39: =IF(C39=0,"",ROW(C39)-4) ->  | H39: =IF(C39=0,"",IF(OR(BB39=1,BC39<>0),BC39,"-")) ->  | I39: =IF(C39=0,"",IF(OR(BM39=1,BN39<>0),BN39,"-")) ->  | J39: =IF(C39=0,"",IF(OR(BX39=1,BY39<>0),BY39," -")) ->  | K39: =IF(C39=0,"",IF(OR(CJ39<>0,CI39=1),CJ39," -")) ->  | L39: =IF(C39=0,"",IF(OR(CU39<>0,CT39=1),CU39," -")) ->  | M39: =IF(C39=0,"",IF(OR(DF39<>0,DE39=1),DF39," -")) ->  | N39: =IF(C39=0,"",IF(OR(DQ39<>0,DP39=1),DQ39," -")) ->  | O39: =IF(C39=0,"",IF(OR(EB39<>0,EA39=1),EB39," -")) ->  | P39: =IF(C39=0,"",IF(OR(EM39<>0,EL39=1),EM39," -")) ->  | Q39: =IF(C39=0,"",IF(OR(EX39<>0,EW39=1),EX39," -")) ->  | R39: =IF(C39=0,"",IF(OR(FI39<>0,FH39=1),FI39," -")) ->  | S39: =IF(C39=0,"",IF(OR(FT39<>0,FS39=1),FT39," -")) ->  | T39: =IF(C39=0,"",IF(OR(GE39<>0,GD39=1),GE39," -")) ->  | U39: =IF(C39=0,"",IF(OR(GP39<>0,GO39=1),GP39," -")) ->  | V39: =IF(C39=0,"",IF(OR(HA39<>0,GZ39=1),HA39," -")) ->  | W39: =IF(C39=0,"",IF(OR(HL39<>0,HK39=1),HL39," -")) ->  | X39: =IF(C39=0,"",IF(AJ39<>0,AJ39," -")) ->  | Y39: =IF(C39=0,"",IF(OR(HW39<>0,HV39=1),HW39," -")) ->  | Z39: =IF(C39=0,"",IF(OR(IH39<>0,IG39=1),IH39," -")) ->  | AA39: =IF(C39=0,"",IF(AL39=1,"DNF",IF(AL39=2,"DSQ",IF(AM39<>1,"~ "&ROUND(SUM(H39:X39),3),ROUND(SUM(H39:X39),3))))) ->  | AD39: =IF(C39<>"",C39,"") ->  | AE39: =IF(AD39<>"",3,"") ->  | AH39: =IF(AD39<>"",(AF39/1000*AG39/1000)/2,"") ->  | AP39: =IF(C39=0,99999,IF(AL39>0,9999,SUM(H39:X39)-AN39)) -> 99999 | AQ39: =IF(C39=0,99999,IF(AL39=1,9999,SUM(Y39:Z39))) -> 99999 | AT39: =IF(C39<>"",C39,"") ->  | BC39: =IF($C39="","", IF(BB39=1,0,IF(AZ39<>0,500,AU39*$AE39/$AH39+AV39/$AH39*5+AW39/$AH39*25+AX39*50+AY39*50))) ->  | BE39: =IF(C39<>"",C39,"") ->  | BN39: =IF($C39="","", IF(BM39=1,0,IF(BK39<>0,500,BF39*$AE39/$AH39+BG39/$AH39*5+BH39/$AH39*25+BI39*50+BJ39*50))) ->  | BP39: =IF(C39<>"",C39,"") ->  | BY39: =IF($C39="","", IF(BX39=1,0,IF(BV39<>0,500,BQ39*$AE39/$AH39+BR39/$AH39*5+BS39/$AH39*25+BT39*50+BU39*50))) ->  | CA39: =IF(C39<>"",C39,"") ->  | CJ39: =IF($C39="","", IF(CI39=1,0,IF(CG39<>0,500,CB39*$AE39/$AH39+CC39/$AH39*5+CD39/$AH39*25+CE39*50+CF39*50))) ->  | CL39: =IF(C39<>"",C39,"") ->  | CU39: =IF($C39="","", IF(CT39=1,0,IF(CR39<>0,500,CM39*$AE39/$AH39+CN39/$AH39*5+CO39/$AH39*25+CP39*50+CQ39*50))) ->  | CW39: =IF(C39<>"",C39,"") ->  | DF39: =IF($C39="","", IF(DE39=1,0,IF(DC39<>0,500,CX39*$AE39/$AH39+CY39/$AH39*5+CZ39/$AH39*25+DA39*50+DB39*50))) ->  | DH39: =IF(C39<>"",C39,"") ->  | DQ39: =IF($C39="","", IF(DP39=1,0,IF(DN39<>0,500,DI39*$AE39/$AH39+DJ39/$AH39*5+DK39/$AH39*25+DL39*50+DM39*50))) ->  | DS39: =IF(C39<>"",C39,"") ->  | EB39: =IF($C39="","", IF(EA39=1,0,IF(DY39<>0,500,DT39*$AE39/$AH39+DU39/$AH39*5+DV39/$AH39*25+DW39*50+DX39*50))) ->  | ED39: =IF(C39<>"",C39,"") ->  | EM39: =IF($C39="","", IF(EL39=1,0,IF(EJ39<>0,500,EE39*$AE39/$AH39+EF39/$AH39*5+EG39/$AH39*25+EH39*50+EI39*50))) ->  | EO39: =IF(C39<>"",C39,"") ->  | EX39: =IF($C39="","", IF(EW39=1,0,IF(EU39<>0,500,EP39*$AE39/$AH39+EQ39/$AH39*5+ER39/$AH39*25+ES39*50+ET39*50))) ->  | EZ39: =IF(C39<>"",C39,"") ->  | FI39: =IF($C39="","", IF(FH39=1,0,IF(FF39<>0,500,FA39*$AE39/$AH39+FB39/$AH39*5+FC39/$AH39*25+FD39*50+FE39*50))) ->  | FK39: =IF(C39<>"",C39,"") ->  | FT39: =IF($C39="","", IF(FS39=1,0,IF(FQ39<>0,500,FL39*$AE39/$AH39+FM39/$AH39*5+FN39/$AH39*25+FO39*50+FP39*50))) ->  | FV39: =IF(C39<>"",C39,"") ->  | GE39: =IF($C39="","", IF(GD39=1,0,IF(GB39<>0,500,FW39*$AE39/$AH39+FX39/$AH39*5+FY39/$AH39*25+FZ39*50+GA39*50))) ->  | GG39: =IF(C39<>"",C39,"") ->  | GP39: =IF($C39="","", IF(GO39=1,0,IF(GM39<>0,500,GH39*$AE39/$AH39+GI39/$AH39*5+GJ39/$AH39*25+GK39*50+GL39*50))) ->  | GR39: =IF(C39<>"",C39,"") ->  | HA39: =IF($C39="","", IF(GZ39=1,0,IF(GX39<>0,500,GS39*$AE39/$AH39+GT39/$AH39*5+GU39/$AH39*25+GV39*50+GW39*50))) ->  | HC39: =IF(C39<>"",C39,"") ->  | HL39: =IF($C39="","", IF(HK39=1,0,IF(HI39<>0,500,HD39*$AE39/$AH39+HE39/$AH39*5+HF39/$AH39*25+HG39*50+HH39*50))) ->  | HN39: =IF(C39<>"",C39,"") ->  | HW39: =IF($C39="","", IF(HV39=1,0,IF(HT39<>0,500,HO39*$AE39/$AH39+HP39/$AH39*5+HQ39/$AH39*25+HR39*50+HS39*50))) ->  | HY39: =IF(C39<>"",C39,"") ->  | IH39: =IF($C39="","", IF(IG39=1,0,IF(IE39<>0,500,HZ39*$AE39/$AH39+IA39/$AH39*5+IB39/$AH39*25+IC39*50+ID39*50))) -> 

Sheet Standard
B1: =Settings!C2 -> Eurotrial Finland 2025 : 18-20.7.2025 - Results | V1: =NOW() -> 2025-07-20T20:32:14.320 | AD1: =B1 -> Eurotrial Finland 2025 : 18-20.7.2025 - Results | AT1: =B1 -> Eurotrial Finland 2025 : 18-20.7.2025 - Results | BE1: =B1 -> Eurotrial Finland 2025 : 18-20.7.2025 - Results | BP1: =B1 -> Eurotrial Finland 2025 : 18-20.7.2025 - Results | CA1: =B1 -> Eurotrial Finland 2025 : 18-20.7.2025 - Results | CL1: =B1 -> Eurotrial Finland 2025 : 18-20.7.2025 - Results | CW1: =B1 -> Eurotrial Finland 2025 : 18-20.7.2025 - Results | DH1: =B1 -> Eurotrial Finland 2025 : 18-20.7.2025 - Results | DS1: =B1 -> Eurotrial Finland 2025 : 18-20.7.2025 - Results | ED1: =B1 -> Eurotrial Finland 2025 : 18-20.7.2025 - Results | EO1: =B1 -> Eurotrial Finland 2025 : 18-20.7.2025 - Results | EZ1: =B1 -> Eurotrial Finland 2025 : 18-20.7.2025 - Results | FK1: =B1 -> Eurotrial Finland 2025 : 18-20.7.2025 - Results | FV1: =B1 -> Eurotrial Finland 2025 : 18-20.7.2025 - Results | GG1: =B1 -> Eurotrial Finland 2025 : 18-20.7.2025 - Results | GR1: =B1 -> Eurotrial Finland 2025 : 18-20.7.2025 - Results | HC1: =B1 -> Eurotrial Finland 2025 : 18-20.7.2025 - Results | HN1: =B1 -> Eurotrial Finland 2025 : 18-20.7.2025 - Results | HY1: =B1 -> Eurotrial Finland 2025 : 18-20.7.2025 - Results
B2: Class: Standard | AD2: =B2 -> Class: Standard | AT2: =B2 -> Class: Standard | BC2: =AT3 -> Section L1 | BE2: =B2 -> Class: Standard | BN2: =BE3 -> Section L2 | BP2: =B2 -> Class: Standard | BY2: =BP3 -> Section L3 | CA2: =B2 -> Class: Standard | CJ2: =CA3 -> Section L4 | CL2: =B2 -> Class: Standard | CU2: =CL3 -> Section L5 | CW2: =B2 -> Class: Standard | DF2: =CW3 -> Section L6 | DH2: =B2 -> Class: Standard | DQ2: =DH3 -> Section L7 | DS2: =B2 -> Class: Standard | EB2: =DS3 -> Section L9 | ED2: =B2 -> Class: Standard | EM2: =ED3 -> Section S1 | EO2: =B2 -> Class: Standard | EX2: =EO3 -> Section S2 | EZ2: =B2 -> Class: Standard | FI2: =EZ3 -> Section S3 | FK2: =B2 -> Class: Standard | FT2: =FK3 -> Section S4 | FV2: =B2 -> Class: Standard | GE2: =FV3 -> Section S5 | GG2: =B2 -> Class: Standard | GP2: =GG3 -> Section S6 | GR2: =B2 -> Class: Standard | HA2: =GR3 -> Section S7 | HC2: =B2 -> Class: Standard | HL2: =HC3 -> Section S9 | HN2: =B2 -> Class: Standard | HW2: =HN3 -> Run-off section 1 | HY2: =B2 -> Class: Standard | IH2: =HY3 -> Run-off section 2
AP3: Helper columns for ordering | AT3: Section L1 | AV3: =AT3 -> Section L1 | AX3: =AT3 -> Section L1 | AZ3: =AT3 -> Section L1 | BB3: =AT3 -> Section L1 | BE3: Section L2 | BG3: =BE3 -> Section L2 | BI3: =BE3 -> Section L2 | BK3: =BE3 -> Section L2 | BM3: =BE3 -> Section L2 | BP3: Section L3 | BR3: =BP3 -> Section L3 | BT3: =BP3 -> Section L3 | BV3: =BP3 -> Section L3 | BX3: =BP3 -> Section L3 | CA3: Section L4 | CC3: =CA3 -> Section L4 | CE3: =CA3 -> Section L4 | CG3: =CA3 -> Section L4 | CI3: =CA3 -> Section L4 | CL3: Section L5 | CN3: =CL3 -> Section L5 | CP3: =CL3 -> Section L5 | CR3: =CL3 -> Section L5 | CT3: =CL3 -> Section L5 | CW3: Section L6 | CY3: =CW3 -> Section L6 | DA3: =CW3 -> Section L6 | DC3: =CW3 -> Section L6 | DE3: =CW3 -> Section L6 | DH3: Section L7 | DJ3: =DH3 -> Section L7 | DL3: =DH3 -> Section L7 | DN3: =DH3 -> Section L7 | DP3: =DH3 -> Section L7 | DS3: Section L9 | DU3: =DS3 -> Section L9 | DW3: =DS3 -> Section L9 | DY3: =DS3 -> Section L9 | EA3: =DS3 -> Section L9 | ED3: Section S1 | EF3: =ED3 -> Section S1 | EH3: =ED3 -> Section S1 | EJ3: =ED3 -> Section S1 | EL3: =ED3 -> Section S1 | EO3: Section S2 | EQ3: =EO3 -> Section S2 | ES3: =EO3 -> Section S2 | EU3: =EO3 -> Section S2 | EW3: =EO3 -> Section S2 | EZ3: Section S3 | FB3: =EZ3 -> Section S3 | FD3: =EZ3 -> Section S3 | FF3: =EZ3 -> Section S3 | FH3: =EZ3 -> Section S3 | FK3: Section S4 | FM3: =FK3 -> Section S4 | FO3: =FK3 -> Section S4 | FQ3: =FK3 -> Section S4 | FS3: =FK3 -> Section S4 | FV3: Section S5 | FX3: =FV3 -> Section S5 | FZ3: =FV3 -> Section S5 | GB3: =FV3 -> Section S5 | GD3: =FV3 -> Section S5 | GG3: Section S6 | GI3: =GG3 -> Section S6 | GK3: =GG3 -> Section S6 | GM3: =GG3 -> Section S6 | GO3: =GG3 -> Section S6 | GR3: Section S7 | GT3: =GR3 -> Section S7 | GV3: =GR3 -> Section S7 | GX3: =GR3 -> Section S7 | GZ3: =GR3 -> Section S7 | HC3: Section S9 | HE3: =HC3 -> Section S9 | HG3: =HC3 -> Section S9 | HI3: =HC3 -> Section S9 | HK3: =HC3 -> Section S9 | HN3: Run-off section 1 | HP3: Run-off section 1 | HR3: Run-off section 1 | HT3: Run-off section 1 | HV3: Run-off section 1 | HY3: Run-off section 2 | IA3: Run-off section 2 | IC3: Run-off section 2 | IE3: Run-off section 2 | IG3: Run-off section 2
B4: Pos. | C4: Race # | D4: Team | E4: Car | F4: Driver | G4: Co-Driver | H4: L1 | I4: L2 | J4: L3 | K4: L4 | L4: L5 | M4: L6 | N4: L7 | O4: L9 | P4: S1 | Q4: S2 | R4: S3 | S4: S4 | T4: S5 | U4: S6 | V4: S7 | W4: S9 | X4: Extra penalty | Y4: Run-off 1 | Z4: Run-off 2 | AA4: Total | AD4: Race # | AE4: Car base reverse points | AF4: Car width (mm) | AG4: Car wheelbase (mm) | AH4: "Magic Number" | AI4: Traditional reverse points | AJ4: Extra penalty | AK4: Extra penalty reason | AL4: DNF = 1 DSQ = 2 | AM4: Ended race (1 if ok) | AN4: Order change (1 = go higher) | AP4: Result points, do not change | AQ4: Run-off points do not change | AT4: Race # | AU4: Reverse | AV4: Touching / Driving under (5) | AW4: Broken post / stick (25) | AX4: Not Passed Gate (50) | AY4: Section not completed (50) | AZ4: Not driven section (500) | BA4: Comment | BB4: Clean (1 = ok) | BC4: Total | BE4: Race # | BF4: Reverse | BG4: Touching / Driving under (5) | BH4: Broken post / stick (25) | BI4: Not Passed Gate (50) | BJ4: Section not completed (50) | BK4: Not driven section (500) | BL4: Comment | BM4: Clean (1 = ok) | BN4: Total | BP4: Race # | BQ4: Reverse | BR4: Touching / Driving under (5) | BS4: Broken post / stick (25) | BT4: Not Passed Gate (50) | BU4: Section not completed (50) | BV4: Not driven section (500) | BW4: Comment | BX4: Clean (1 = ok) | BY4: Total | CA4: Race # | CB4: Reverse | CC4: Touching / Driving under (5) | CD4: Broken post / stick (25) | CE4: Not Passed Gate (50) | CF4: Section not completed (50) | CG4: Not driven section (500) | CH4: Comment | CI4: Clean (1 = ok) | CJ4: Total | CL4: Race # | CM4: Reverse | CN4: Touching / Driving under (5) | CO4: Broken post / stick (25) | CP4: Not Passed Gate (50) | CQ4: Section not completed (50) | CR4: Not driven section (500) | CS4: Comment | CT4: Clean (1 = ok) | CU4: Total | CW4: Race # | CX4: Reverse | CY4: Touching / Driving under (5) | CZ4: Broken post / stick (25) | DA4: Not Passed Gate (50) | DB4: Section not completed (50) | DC4: Not driven section (500) | DD4: Comment | DE4: Clean (1 = ok) | DF4: Total | DH4: Race # | DI4: Reverse | DJ4: Touching / Driving under (5) | DK4: Broken post / stick (25) | DL4: Not Passed Gate (50) | DM4: Section not completed (50) | DN4: Not driven section (500) | DO4: Comment | DP4: Clean (1 = ok) | DQ4: Total | DS4: Race # | DT4: Reverse | DU4: Touching / Driving under (5) | DV4: Broken post / stick (25) | DW4: Not Passed Gate (50) | DX4: Section not completed (50) | DY4: Not driven section (500) | DZ4: Comment | EA4: Clean (1 = ok) | EB4: Total | ED4: Race # | EE4: Reverse | EF4: Touching / Driving under (5) | EG4: Broken post / stick (25) | EH4: Not Passed Gate (50) | EI4: Section not completed (50) | EJ4: Not driven section (500) | EK4: Comment | EL4: Clean (1 = ok) | EM4: Total | EO4: Race # | EP4: Reverse | EQ4: Touching / Driving under (5) | ER4: Broken post / stick (25) | ES4: Not Passed Gate (50) | ET4: Section not completed (50) | EU4: Not driven section (500) | EV4: Comment | EW4: Clean (1 = ok) | EX4: Total | EZ4: Race # | FA4: Reverse | FB4: Touching / Driving under (5) | FC4: Broken post / stick (25) | FD4: Not Passed Gate (50) | FE4: Section not completed (50) | FF4: Not driven section (500) | FG4: Comment | FH4: Clean (1 = ok) | FI4: Total | FK4: Race # | FL4: Reverse | FM4: Touching / Driving under (5) | FN4: Broken post / stick (25) | FO4: Not Passed Gate (50) | FP4: Section not completed (50) | FQ4: Not driven section (500) | FR4: Comment | FS4: Clean (1 = ok) | FT4: Total | FV4: Race # | FW4: Reverse | FX4: Touching / Driving under (5) | FY4: Broken post / stick (25) | FZ4: Not Passed Gate (50) | GA4: Section not completed (50) | GB4: Not driven section (500) | GC4: Comment | GD4: Clean (1 = ok) | GE4: Total | GG4: Race # | GH4: Reverse | GI4: Touching / Driving under (5) | GJ4: Broken post / stick (25) | GK4: Not Passed Gate (50) | GL4: Section not completed (50) | GM4: Not driven section (500) | GN4: Comment | GO4: Clean (1 = ok) | GP4: Total | GR4: Race # | GS4: Reverse | GT4: Touching / Driving under (5) | GU4: Broken post / stick (25) | GV4: Not Passed Gate (50) | GW4: Section not completed (50) | GX4: Not driven section (500) | GY4: Comment | GZ4: Clean (1 = ok) | HA4: Total | HC4: Race # | HD4: Reverse | HE4: Touching / Driving under (5) | HF4: Broken post / stick (25) | HG4: Not Passed Gate (50) | HH4: Section not completed (50) | HI4: Not driven section (500) | HJ4: Comment | HK4: Clean (1 = ok) | HL4: Total | HN4: Race # | HO4: Reverse | HP4: Touching / Driving under (5) | HQ4: Broken post / stick (25) | HR4: Not Passed Gate (50) | HS4: Section not completed (50) | HT4: Not driven section (500) | HU4: Comment | HV4: Clean (1 = ok) | HW4: Total | HY4: Race # | HZ4: Reverse | IA4: Touching / Driving under (5) | IB4: Broken post / stick (25) | IC4: Not Passed Gate (50) | ID4: Section not completed (50) | IE4: Not driven section (500) | IF4: Comment | IG4: Clean (1 = ok) | IH4: Total
B5: =IF(C5=0,"",ROW(C5)-4) -> 1 | C5: 211 | D5: Finland | E5: Pajero KR | F5: Hannu Kuivaniemi | G5: Katri Tervala | H5: =IF(C5=0,"",IF(OR(BB5=1,BC5<>0),BC5,"-")) -> 2.321478317 | I5: =IF(C5=0,"",IF(OR(BM5=1,BN5<>0),BN5,"-")) -> 1.39288699 | J5: =IF(C5=0,"",IF(OR(BX5=1,BY5<>0),BY5," -")) -> 3.714365308 | K5: =IF(C5=0,"",IF(OR(CJ5<>0,CI5=1),CJ5," -")) -> 1.39288699 | L5: =IF(C5=0,"",IF(OR(CU5<>0,CT5=1),CU5," -")) -> 1.39288699 | M5: =IF(C5=0,"",IF(OR(DF5<>0,DE5=1),DF5," -")) -> 2.785773981 | N5: =IF(C5=0,"",IF(OR(DQ5<>0,DP5=1),DQ5," -")) -> 1.39288699 | O5: =IF(C5=0,"",IF(OR(EB5<>0,EA5=1),EB5," -")) -> 5.107252298 | P5: =IF(C5=0,"",IF(OR(EM5<>0,EL5=1),EM5," -")) -> 0 | Q5: =IF(C5=0,"",IF(OR(EX5<>0,EW5=1),EX5," -")) -> 0 | R5: =IF(C5=0,"",IF(OR(FI5<>0,FH5=1),FI5," -")) -> 0 | S5: =IF(C5=0,"",IF(OR(FT5<>0,FS5=1),FT5," -")) -> 2.785773981 | T5: =IF(C5=0,"",IF(OR(GE5<>0,GD5=1),GE5," -")) -> 11.60739159 | U5: =IF(C5=0,"",IF(OR(GP5<>0,GO5=1),GP5," -")) -> 1.39288699 | V5: =IF(C5=0,"",IF(OR(HA5<>0,GZ5=1),HA5," -")) -> 54.17866097 | W5: =IF(C5=0,"",IF(OR(HL5<>0,HK5=1),HL5," -")) -> 0 | X5: =IF(C5=0,"",IF(AJ5<>0,AJ5," -")) -> - | Y5: =IF(C5=0,"",IF(OR(HW5<>0,HV5=1),HW5," -")) -> - | Z5: =IF(C5=0,"",IF(OR(IH5<>0,IG5=1),IH5," -")) -> - | AA5: =IF(C5=0,"",IF(AL5=1,"DNF",IF(AL5=2,"DSQ",IF(AM5<>1,"~ "&ROUND(SUM(H5:X5),3),ROUND(SUM(H5:X5),3))))) -> 89.465 | AD5: =IF(C5<>"",C5,"") -> 211 | AE5: =IF(AD5<>"",3,"") -> 3 | AF5: 1780 | AG5: 2420 | AH5: =IF(AD5<>"",(AF5/1000*AG5/1000)/2,"") -> 2.1538 | AI5: 3 | AM5: 1 | AP5: =IF(C5=0,99999,IF(AL5>0,9999,SUM(H5:X5)-AN5)) -> 89.4651314 | AQ5: =IF(C5=0,99999,IF(AL5=1,9999,SUM(Y5:Z5))) -> 0 | AT5: =IF(C5<>"",C5,"") -> 211 | AV5: 1 | BC5: =IF($C5="","", IF(BB5=1,0,IF(AZ5<>0,500,AU5*$AE5/$AH5+AV5/$AH5*5+AW5/$AH5*25+AX5*50+AY5*50))) -> 2.321478317 | BE5: =IF(C5<>"",C5,"") -> 211 | BF5: 1 | BN5: =IF($C5="","", IF(BM5=1,0,IF(BK5<>0,500,BF5*$AE5/$AH5+BG5/$AH5*5+BH5/$AH5*25+BI5*50+BJ5*50))) -> 1.39288699 | BP5: =IF(C5<>"",C5,"") -> 211 | BQ5: 1 | BR5: 1 | BY5: =IF($C5="","", IF(BX5=1,0,IF(BV5<>0,500,BQ5*$AE5/$AH5+BR5/$AH5*5+BS5/$AH5*25+BT5*50+BU5*50))) -> 3.714365308 | CA5: =IF(C5<>"",C5,"") -> 211 | CB5: 1 | CJ5: =IF($C5="","", IF(CI5=1,0,IF(CG5<>0,500,CB5*$AE5/$AH5+CC5/$AH5*5+CD5/$AH5*25+CE5*50+CF5*50))) -> 1.39288699 | CL5: =IF(C5<>"",C5,"") -> 211 | CM5: 1 | CU5: =IF($C5="","", IF(CT5=1,0,IF(CR5<>0,500,CM5*$AE5/$AH5+CN5/$AH5*5+CO5/$AH5*25+CP5*50+CQ5*50))) -> 1.39288699 | CW5: =IF(C5<>"",C5,"") -> 211 | CX5: 2 | DF5: =IF($C5="","", IF(DE5=1,0,IF(DC5<>0,500,CX5*$AE5/$AH5+CY5/$AH5*5+CZ5/$AH5*25+DA5*50+DB5*50))) -> 2.785773981 | DH5: =IF(C5<>"",C5,"") -> 211 | DI5: 1 | DQ5: =IF($C5="","", IF(DP5=1,0,IF(DN5<>0,500,DI5*$AE5/$AH5+DJ5/$AH5*5+DK5/$AH5*25+DL5*50+DM5*50))) -> 1.39288699 | DS5: =IF(C5<>"",C5,"") -> 211 | DT5: 2 | DU5: 1 | EB5: =IF($C5="","", IF(EA5=1,0,IF(DY5<>0,500,DT5*$AE5/$AH5+DU5/$AH5*5+DV5/$AH5*25+DW5*50+DX5*50))) -> 5.107252298 | ED5: =IF(C5<>"",C5,"") -> 211 | EL5: 1 | EM5: =IF($C5="","", IF(EL5=1,0,IF(EJ5<>0,500,EE5*$AE5/$AH5+EF5/$AH5*5+EG5/$AH5*25+EH5*50+EI5*50))) -> 0 | EO5: =IF(C5<>"",C5,"") -> 211 | EW5: 1 | EX5: =IF($C5="","", IF(EW5=1,0,IF(EU5<>0,500,EP5*$AE5/$AH5+EQ5/$AH5*5+ER5/$AH5*25+ES5*50+ET5*50))) -> 0 | EZ5: =IF(C5<>"",C5,"") -> 211 | FH5: 1 | FI5: =IF($C5="","", IF(FH5=1,0,IF(FF5<>0,500,FA5*$AE5/$AH5+FB5/$AH5*5+FC5/$AH5*25+FD5*50+FE5*50))) -> 0 | FK5: =IF(C5<>"",C5,"") -> 211 | FL5: 2 | FT5: =IF($C5="","", IF(FS5=1,0,IF(FQ5<>0,500,FL5*$AE5/$AH5+FM5/$AH5*5+FN5/$AH5*25+FO5*50+FP5*50))) -> 2.785773981 | FV5: =IF(C5<>"",C5,"") -> 211 | FY5: 1 | GE5: =IF($C5="","", IF(GD5=1,0,IF(GB5<>0,500,FW5*$AE5/$AH5+FX5/$AH5*5+FY5/$AH5*25+FZ5*50+GA5*50))) -> 11.60739159 | GG5: =IF(C5<>"",C5,"") -> 211 | GH5: 1 | GP5: =IF($C5="","", IF(GO5=1,0,IF(GM5<>0,500,GH5*$AE5/$AH5+GI5/$AH5*5+GJ5/$AH5*25+GK5*50+GL5*50))) -> 1.39288699 | GR5: =IF(C5<>"",C5,"") -> 211 | GS5: 3 | GW5: 1 | GY5: reversed to allready driven port | HA5: =IF($C5="","", IF(GZ5=1,0,IF(GX5<>0,500,GS5*$AE5/$AH5+GT5/$AH5*5+GU5/$AH5*25+GV5*50+GW5*50))) -> 54.17866097 | HC5: =IF(C5<>"",C5,"") -> 211 | HK5: 1 | HL5: =IF($C5="","", IF(HK5=1,0,IF(HI5<>0,500,HD5*$AE5/$AH5+HE5/$AH5*5+HF5/$AH5*25+HG5*50+HH5*50))) -> 0 | HN5: =IF(C5<>"",C5,"") -> 211 | HW5: =IF($C5="","", IF(HV5=1,0,IF(HT5<>0,500,HO5*$AE5/$AH5+HP5/$AH5*5+HQ5/$AH5*25+HR5*50+HS5*50))) -> 0 | HY5: =IF(C5<>"",C5,"") -> 211 | IH5: =IF($C5="","", IF(IG5=1,0,IF(IE5<>0,500,HZ5*$AE5/$AH5+IA5/$AH5*5+IB5/$AH5*25+IC5*50+ID5*50))) -> 0
B6: =IF(C6=0,"",ROW(C6)-4) -> 2 | C6: 220 | D6: Sweden | E6: Mersu | F6: Jani Huhtala | G6: Visa Huhtala | H6: =IF(C6=0,"",IF(OR(BB6=1,BC6<>0),BC6,"-")) -> 13.25757576 | I6: =IF(C6=0,"",IF(OR(BM6=1,BN6<>0),BN6,"-")) -> 8.049242424 | J6: =IF(C6=0,"",IF(OR(BX6=1,BY6<>0),BY6," -")) -> 1.420454545 | K6: =IF(C6=0,"",IF(OR(CJ6<>0,CI6=1),CJ6," -")) -> 1.420454545 | L6: =IF(C6=0,"",IF(OR(CU6<>0,CT6=1),CU6," -")) -> 11.36363636 | M6: =IF(C6=0,"",IF(OR(DF6<>0,DE6=1),DF6," -")) -> 10.89015152 | N6: =IF(C6=0,"",IF(OR(DQ6<>0,DP6=1),DQ6," -")) -> 13.25757576 | O6: =IF(C6=0,"",IF(OR(EB6<>0,EA6=1),EB6," -")) -> 2.840909091 | P6: =IF(C6=0,"",IF(OR(EM6<>0,EL6=1),EM6," -")) -> 0 | Q6: =IF(C6=0,"",IF(OR(EX6<>0,EW6=1),EX6," -")) -> 0 | R6: =IF(C6=0,"",IF(OR(FI6<>0,FH6=1),FI6," -")) -> 4.261363636 | S6: =IF(C6=0,"",IF(OR(FT6<>0,FS6=1),FT6," -")) -> 8.996212121 | T6: =IF(C6=0,"",IF(OR(GE6<>0,GD6=1),GE6," -")) -> 3.787878788 | U6: =IF(C6=0,"",IF(OR(GP6<>0,GO6=1),GP6," -")) -> 4.261363636 | V6: =IF(C6=0,"",IF(OR(HA6<>0,GZ6=1),HA6," -")) -> 1.420454545 | W6: =IF(C6=0,"",IF(OR(HL6<>0,HK6=1),HL6," -")) -> 8.049242424 | X6: =IF(C6=0,"",IF(AJ6<>0,AJ6," -")) -> - | Y6: =IF(C6=0,"",IF(OR(HW6<>0,HV6=1),HW6," -")) -> - | Z6: =IF(C6=0,"",IF(OR(IH6<>0,IG6=1),IH6," -")) -> - | AA6: =IF(C6=0,"",IF(AL6=1,"DNF",IF(AL6=2,"DSQ",IF(AM6<>1,"~ "&ROUND(SUM(H6:X6),3),ROUND(SUM(H6:X6),3))))) -> 93.277 | AD6: =IF(C6<>"",C6,"") -> 220 | AE6: =IF(AD6<>"",3,"") -> 3 | AF6: 1760 | AG6: 2400 | AH6: =IF(AD6<>"",(AF6/1000*AG6/1000)/2,"") -> 2.112 | AI6: 3 | AM6: 1 | AP6: =IF(C6=0,99999,IF(AL6>0,9999,SUM(H6:X6)-AN6)) -> 93.27651515 | AQ6: =IF(C6=0,99999,IF(AL6=1,9999,SUM(Y6:Z6))) -> 0 | AT6: =IF(C6<>"",C6,"") -> 220 | AU6: 1 | AW6: 1 | BC6: =IF($C6="","", IF(BB6=1,0,IF(AZ6<>0,500,AU6*$AE6/$AH6+AV6/$AH6*5+AW6/$AH6*25+AX6*50+AY6*50))) -> 13.25757576 | BE6: =IF(C6<>"",C6,"") -> 220 | BF6: 4 | BG6: 1 | BN6: =IF($C6="","", IF(BM6=1,0,IF(BK6<>0,500,BF6*$AE6/$AH6+BG6/$AH6*5+BH6/$AH6*25+BI6*50+BJ6*50))) -> 8.049242424 | BP6: =IF(C6<>"",C6,"") -> 220 | BQ6: 1 | BY6: =IF($C6="","", IF(BX6=1,0,IF(BV6<>0,500,BQ6*$AE6/$AH6+BR6/$AH6*5+BS6/$AH6*25+BT6*50+BU6*50))) -> 1.420454545 | CA6: =IF(C6<>"",C6,"") -> 220 | CB6: 1 | CJ6: =IF($C6="","", IF(CI6=1,0,IF(CG6<>0,500,CB6*$AE6/$AH6+CC6/$AH6*5+CD6/$AH6*25+CE6*50+CF6*50))) -> 1.420454545 | CL6: =IF(C6<>"",C6,"") -> 220 | CM6: 8 | CU6: =IF($C6="","", IF(CT6=1,0,IF(CR6<>0,500,CM6*$AE6/$AH6+CN6/$AH6*5+CO6/$AH6*25+CP6*50+CQ6*50))) -> 11.36363636 | CW6: =IF(C6<>"",C6,"") -> 220 | CX6: 6 | CY6: 1 | DF6: =IF($C6="","", IF(DE6=1,0,IF(DC6<>0,500,CX6*$AE6/$AH6+CY6/$AH6*5+CZ6/$AH6*25+DA6*50+DB6*50))) -> 10.89015152 | DH6: =IF(C6<>"",C6,"") -> 220 | DI6: 1 | DK6: 1 | DQ6: =IF($C6="","", IF(DP6=1,0,IF(DN6<>0,500,DI6*$AE6/$AH6+DJ6/$AH6*5+DK6/$AH6*25+DL6*50+DM6*50))) -> 13.25757576 | DS6: =IF(C6<>"",C6,"") -> 220 | DT6: 2 | EB6: =IF($C6="","", IF(EA6=1,0,IF(DY6<>0,500,DT6*$AE6/$AH6+DU6/$AH6*5+DV6/$AH6*25+DW6*50+DX6*50))) -> 2.840909091 | ED6: =IF(C6<>"",C6,"") -> 220 | EL6: 1 | EM6: =IF($C6="","", IF(EL6=1,0,IF(EJ6<>0,500,EE6*$AE6/$AH6+EF6/$AH6*5+EG6/$AH6*25+EH6*50+EI6*50))) -> 0 | EO6: =IF(C6<>"",C6,"") -> 220 | EW6: 1 | EX6: =IF($C6="","", IF(EW6=1,0,IF(EU6<>0,500,EP6*$AE6/$AH6+EQ6/$AH6*5+ER6/$AH6*25+ES6*50+ET6*50))) -> 0 | EZ6: =IF(C6<>"",C6,"") -> 220 | FA6: 3 | FI6: =IF($C6="","", IF(FH6=1,0,IF(FF6<>0,500,FA6*$AE6/$AH6+FB6/$AH6*5+FC6/$AH6*25+FD6*50+FE6*50))) -> 4.261363636 | FK6: =IF(C6<>"",C6,"") -> 220 | FL6: 3 | FM6: 2 | FT6: =IF($C6="","", IF(FS6=1,0,IF(FQ6<>0,500,FL6*$AE6/$AH6+FM6/$AH6*5+FN6/$AH6*25+FO6*50+FP6*50))) -> 8.996212121 | FV6: =IF(C6<>"",C6,"") -> 220 | FW6: 1 | FX6: 1 | GE6: =IF($C6="","", IF(GD6=1,0,IF(GB6<>0,500,FW6*$AE6/$AH6+FX6/$AH6*5+FY6/$AH6*25+FZ6*50+GA6*50))) -> 3.787878788 | GG6: =IF(C6<>"",C6,"") -> 220 | GH6: 3 | GP6: =IF($C6="","", IF(GO6=1,0,IF(GM6<>0,500,GH6*$AE6/$AH6+GI6/$AH6*5+GJ6/$AH6*25+GK6*50+GL6*50))) -> 4.261363636 | GR6: =IF(C6<>"",C6,"") -> 220 | GS6: 1 | HA6: =IF($C6="","", IF(GZ6=1,0,IF(GX6<>0,500,GS6*$AE6/$AH6+GT6/$AH6*5+GU6/$AH6*25+GV6*50+GW6*50))) -> 1.420454545 | HC6: =IF(C6<>"",C6,"") -> 220 | HD6: 4 | HE6: 1 | HL6: =IF($C6="","", IF(HK6=1,0,IF(HI6<>0,500,HD6*$AE6/$AH6+HE6/$AH6*5+HF6/$AH6*25+HG6*50+HH6*50))) -> 8.049242424 | HN6: =IF(C6<>"",C6,"") -> 220 | HW6: =IF($C6="","", IF(HV6=1,0,IF(HT6<>0,500,HO6*$AE6/$AH6+HP6/$AH6*5+HQ6/$AH6*25+HR6*50+HS6*50))) -> 0 | HY6: =IF(C6<>"",C6,"") -> 220 | IH6: =IF($C6="","", IF(IG6=1,0,IF(IE6<>0,500,HZ6*$AE6/$AH6+IA6/$AH6*5+IB6/$AH6*25+IC6*50+ID6*50))) -> 0
B7: =IF(C7=0,"",ROW(C7)-4) -> 3 | C7: 214 | D7: Finland | E7: Suzuki Jimny | F7: Jimi Hämäläinen | G7: Saku Juopperi | H7: =IF(C7=0,"",IF(OR(BB7=1,BC7<>0),BC7,"-")) -> 0 | I7: =IF(C7=0,"",IF(OR(BM7=1,BN7<>0),BN7,"-")) -> 6.111111111 | J7: =IF(C7=0,"",IF(OR(BX7=1,BY7<>0),BY7," -")) -> 0 | K7: =IF(C7=0,"",IF(OR(CJ7<>0,CI7=1),CJ7," -")) -> 0 | L7: =IF(C7=0,"",IF(OR(CU7<>0,CT7=1),CU7," -")) -> 5 | M7: =IF(C7=0,"",IF(OR(DF7<>0,DE7=1),DF7," -")) -> 106.6666667 | N7: =IF(C7=0,"",IF(OR(DQ7<>0,DP7=1),DQ7," -")) -> 0 | O7: =IF(C7=0,"",IF(OR(EB7<>0,EA7=1),EB7," -")) -> 1.666666667 | P7: =IF(C7=0,"",IF(OR(EM7<>0,EL7=1),EM7," -")) -> 0 | Q7: =IF(C7=0,"",IF(OR(EX7<>0,EW7=1),EX7," -")) -> 0 | R7: =IF(C7=0,"",IF(OR(FI7<>0,FH7=1),FI7," -")) -> 0 | S7: =IF(C7=0,"",IF(OR(FT7<>0,FS7=1),FT7," -")) -> 0 | T7: =IF(C7=0,"",IF(OR(GE7<>0,GD7=1),GE7," -")) -> 2.777777778 | U7: =IF(C7=0,"",IF(OR(GP7<>0,GO7=1),GP7," -")) -> 0 | V7: =IF(C7=0,"",IF(OR(HA7<>0,GZ7=1),HA7," -")) -> 8.888888889 | W7: =IF(C7=0,"",IF(OR(HL7<>0,HK7=1),HL7," -")) -> 13.88888889 | X7: =IF(C7=0,"",IF(AJ7<>0,AJ7," -")) -> - | Y7: =IF(C7=0,"",IF(OR(HW7<>0,HV7=1),HW7," -")) -> - | Z7: =IF(C7=0,"",IF(OR(IH7<>0,IG7=1),IH7," -")) -> - | AA7: =IF(C7=0,"",IF(AL7=1,"DNF",IF(AL7=2,"DSQ",IF(AM7<>1,"~ "&ROUND(SUM(H7:X7),3),ROUND(SUM(H7:X7),3))))) -> 145 | AD7: =IF(C7<>"",C7,"") -> 214 | AE7: =IF(AD7<>"",3,"") -> 3 | AF7: 1600 | AG7: 2250 | AH7: =IF(AD7<>"",(AF7/1000*AG7/1000)/2,"") -> 1.8 | AI7: 4 | AM7: 1 | AP7: =IF(C7=0,99999,IF(AL7>0,9999,SUM(H7:X7)-AN7)) -> 145 | AQ7: =IF(C7=0,99999,IF(AL7=1,9999,SUM(Y7:Z7))) -> 0 | AT7: =IF(C7<>"",C7,"") -> 214 | BB7: 1 | BC7: =IF($C7="","", IF(BB7=1,0,IF(AZ7<>0,500,AU7*$AE7/$AH7+AV7/$AH7*5+AW7/$AH7*25+AX7*50+AY7*50))) -> 0 | BE7: =IF(C7<>"",C7,"") -> 214 | BF7: 2 | BG7: 1 | BN7: =IF($C7="","", IF(BM7=1,0,IF(BK7<>0,500,BF7*$AE7/$AH7+BG7/$AH7*5+BH7/$AH7*25+BI7*50+BJ7*50))) -> 6.111111111 | BP7: =IF(C7<>"",C7,"") -> 214 | BX7: 1 | BY7: =IF($C7="","", IF(BX7=1,0,IF(BV7<>0,500,BQ7*$AE7/$AH7+BR7/$AH7*5+BS7/$AH7*25+BT7*50+BU7*50))) -> 0 | CA7: =IF(C7<>"",C7,"") -> 214 | CI7: 1 | CJ7: =IF($C7="","", IF(CI7=1,0,IF(CG7<>0,500,CB7*$AE7/$AH7+CC7/$AH7*5+CD7/$AH7*25+CE7*50+CF7*50))) -> 0 | CL7: =IF(C7<>"",C7,"") -> 214 | CM7: 3 | CU7: =IF($C7="","", IF(CT7=1,0,IF(CR7<>0,500,CM7*$AE7/$AH7+CN7/$AH7*5+CO7/$AH7*25+CP7*50+CQ7*50))) -> 5 | CW7: =IF(C7<>"",C7,"") -> 214 | CX7: 4 | DA7: 1 | DB7: 1 | DD7: time | DF7: =IF($C7="","", IF(DE7=1,0,IF(DC7<>0,500,CX7*$AE7/$AH7+CY7/$AH7*5+CZ7/$AH7*25+DA7*50+DB7*50))) -> 106.6666667 | DH7: =IF(C7<>"",C7,"") -> 214 | DP7: 1 | DQ7: =IF($C7="","", IF(DP7=1,0,IF(DN7<>0,500,DI7*$AE7/$AH7+DJ7/$AH7*5+DK7/$AH7*25+DL7*50+DM7*50))) -> 0 | DS7: =IF(C7<>"",C7,"") -> 214 | DT7: 1 | EB7: =IF($C7="","", IF(EA7=1,0,IF(DY7<>0,500,DT7*$AE7/$AH7+DU7/$AH7*5+DV7/$AH7*25+DW7*50+DX7*50))) -> 1.666666667 | ED7: =IF(C7<>"",C7,"") -> 214 | EL7: 1 | EM7: =IF($C7="","", IF(EL7=1,0,IF(EJ7<>0,500,EE7*$AE7/$AH7+EF7/$AH7*5+EG7/$AH7*25+EH7*50+EI7*50))) -> 0 | EO7: =IF(C7<>"",C7,"") -> 214 | EW7: 1 | EX7: =IF($C7="","", IF(EW7=1,0,IF(EU7<>0,500,EP7*$AE7/$AH7+EQ7/$AH7*5+ER7/$AH7*25+ES7*50+ET7*50))) -> 0 | EZ7: =IF(C7<>"",C7,"") -> 214 | FH7: 1 | FI7: =IF($C7="","", IF(FH7=1,0,IF(FF7<>0,500,FA7*$AE7/$AH7+FB7/$AH7*5+FC7/$AH7*25+FD7*50+FE7*50))) -> 0 | FK7: =IF(C7<>"",C7,"") -> 214 | FS7: 1 | FT7: =IF($C7="","", IF(FS7=1,0,IF(FQ7<>0,500,FL7*$AE7/$AH7+FM7/$AH7*5+FN7/$AH7*25+FO7*50+FP7*50))) -> 0 | FV7: =IF(C7<>"",C7,"") -> 214 | FX7: 1 | GE7: =IF($C7="","", IF(GD7=1,0,IF(GB7<>0,500,FW7*$AE7/$AH7+FX7/$AH7*5+FY7/$AH7*25+FZ7*50+GA7*50))) -> 2.777777778 | GG7: =IF(C7<>"",C7,"") -> 214 | GO7: 1 | GP7: =IF($C7="","", IF(GO7=1,0,IF(GM7<>0,500,GH7*$AE7/$AH7+GI7/$AH7*5+GJ7/$AH7*25+GK7*50+GL7*50))) -> 0 | GR7: =IF(C7<>"",C7,"") -> 214 | GS7: 2 | GT7: 2 | HA7: =IF($C7="","", IF(GZ7=1,0,IF(GX7<>0,500,GS7*$AE7/$AH7+GT7/$AH7*5+GU7/$AH7*25+GV7*50+GW7*50))) -> 8.888888889 | HC7: =IF(C7<>"",C7,"") -> 214 | HF7: 1 | HL7: =IF($C7="","", IF(HK7=1,0,IF(HI7<>0,500,HD7*$AE7/$AH7+HE7/$AH7*5+HF7/$AH7*25+HG7*50+HH7*50))) -> 13.88888889 | HN7: =IF(C7<>"",C7,"") -> 214 | HW7: =IF($C7="","", IF(HV7=1,0,IF(HT7<>0,500,HO7*$AE7/$AH7+HP7/$AH7*5+HQ7/$AH7*25+HR7*50+HS7*50))) -> 0 | HY7: =IF(C7<>"",C7,"") -> 214 | IH7: =IF($C7="","", IF(IG7=1,0,IF(IE7<>0,500,HZ7*$AE7/$AH7+IA7/$AH7*5+IB7/$AH7*25+IC7*50+ID7*50))) -> 0
B8: =IF(C8=0,"",ROW(C8)-4) -> 4 | C8: 206 | D8: Finland | E8: Jeep Cherokee | F8: Veeti Orvasto | G8: Joel Asp | H8: =IF(C8=0,"",IF(OR(BB8=1,BC8<>0),BC8,"-")) -> 2.27998176 | I8: =IF(C8=0,"",IF(OR(BM8=1,BN8<>0),BN8,"-")) -> 5.471956224 | J8: =IF(C8=0,"",IF(OR(BX8=1,BY8<>0),BY8," -")) -> 11.3999088 | K8: =IF(C8=0,"",IF(OR(CJ8<>0,CI8=1),CJ8," -")) -> 2.735978112 | L8: =IF(C8=0,"",IF(OR(CU8<>0,CT8=1),CU8," -")) -> 5.471956224 | M8: =IF(C8=0,"",IF(OR(DF8<>0,DE8=1),DF8," -")) -> 5.471956224 | N8: =IF(C8=0,"",IF(OR(DQ8<>0,DP8=1),DQ8," -")) -> 2.735978112 | O8: =IF(C8=0,"",IF(OR(EB8<>0,EA8=1),EB8," -")) -> 114.1358869 | P8: =IF(C8=0,"",IF(OR(EM8<>0,EL8=1),EM8," -")) -> 0 | Q8: =IF(C8=0,"",IF(OR(EX8<>0,EW8=1),EX8," -")) -> 0 | R8: =IF(C8=0,"",IF(OR(FI8<>0,FH8=1),FI8," -")) -> 1.367989056 | S8: =IF(C8=0,"",IF(OR(FT8<>0,FS8=1),FT8," -")) -> 3.647970816 | T8: =IF(C8=0,"",IF(OR(GE8<>0,GD8=1),GE8," -")) -> 0 | U8: =IF(C8=0,"",IF(OR(GP8<>0,GO8=1),GP8," -")) -> 0 | V8: =IF(C8=0,"",IF(OR(HA8<>0,GZ8=1),HA8," -")) -> 3.647970816 | W8: =IF(C8=0,"",IF(OR(HL8<>0,HK8=1),HL8," -")) -> 0 | X8: =IF(C8=0,"",IF(AJ8<>0,AJ8," -")) -> - | Y8: =IF(C8=0,"",IF(OR(HW8<>0,HV8=1),HW8," -")) -> - | Z8: =IF(C8=0,"",IF(OR(IH8<>0,IG8=1),IH8," -")) -> - | AA8: =IF(C8=0,"",IF(AL8=1,"DNF",IF(AL8=2,"DSQ",IF(AM8<>1,"~ "&ROUND(SUM(H8:X8),3),ROUND(SUM(H8:X8),3))))) -> 158.368 | AD8: =IF(C8<>"",C8,"") -> 206 | AE8: =IF(AD8<>"",3,"") -> 3 | AF8: 1720 | AG8: 2550 | AH8: =IF(AD8<>"",(AF8/1000*AG8/1000)/2,"") -> 2.193 | AI8: 2 | AM8: 1 | AP8: =IF(C8=0,99999,IF(AL8>0,9999,SUM(H8:X8)-AN8)) -> 158.3675331 | AQ8: =IF(C8=0,99999,IF(AL8=1,9999,SUM(Y8:Z8))) -> 0 | AT8: =IF(C8<>"",C8,"") -> 206 | AV8: 1 | BC8: =IF($C8="","", IF(BB8=1,0,IF(AZ8<>0,500,AU8*$AE8/$AH8+AV8/$AH8*5+AW8/$AH8*25+AX8*50+AY8*50))) -> 2.27998176 | BE8: =IF(C8<>"",C8,"") -> 206 | BF8: 4 | BN8: =IF($C8="","", IF(BM8=1,0,IF(BK8<>0,500,BF8*$AE8/$AH8+BG8/$AH8*5+BH8/$AH8*25+BI8*50+BJ8*50))) -> 5.471956224 | BP8: =IF(C8<>"",C8,"") -> 206 | BS8: 1 | BY8: =IF($C8="","", IF(BX8=1,0,IF(BV8<>0,500,BQ8*$AE8/$AH8+BR8/$AH8*5+BS8/$AH8*25+BT8*50+BU8*50))) -> 11.3999088 | CA8: =IF(C8<>"",C8,"") -> 206 | CB8: 2 | CJ8: =IF($C8="","", IF(CI8=1,0,IF(CG8<>0,500,CB8*$AE8/$AH8+CC8/$AH8*5+CD8/$AH8*25+CE8*50+CF8*50))) -> 2.735978112 | CL8: =IF(C8<>"",C8,"") -> 206 | CM8: 4 | CU8: =IF($C8="","", IF(CT8=1,0,IF(CR8<>0,500,CM8*$AE8/$AH8+CN8/$AH8*5+CO8/$AH8*25+CP8*50+CQ8*50))) -> 5.471956224 | CW8: =IF(C8<>"",C8,"") -> 206 | CX8: 4 | DF8: =IF($C8="","", IF(DE8=1,0,IF(DC8<>0,500,CX8*$AE8/$AH8+CY8/$AH8*5+CZ8/$AH8*25+DA8*50+DB8*50))) -> 5.471956224 | DH8: =IF(C8<>"",C8,"") -> 206 | DI8: 2 | DQ8: =IF($C8="","", IF(DP8=1,0,IF(DN8<>0,500,DI8*$AE8/$AH8+DJ8/$AH8*5+DK8/$AH8*25+DL8*50+DM8*50))) -> 2.735978112 | DS8: =IF(C8<>"",C8,"") -> 206 | DT8: 7 | DU8: 2 | DW8: 1 | DX8: 1 | EB8: =IF($C8="","", IF(EA8=1,0,IF(DY8<>0,500,DT8*$AE8/$AH8+DU8/$AH8*5+DV8/$AH8*25+DW8*50+DX8*50))) -> 114.1358869 | ED8: =IF(C8<>"",C8,"") -> 206 | EL8: 1 | EM8: =IF($C8="","", IF(EL8=1,0,IF(EJ8<>0,500,EE8*$AE8/$AH8+EF8/$AH8*5+EG8/$AH8*25+EH8*50+EI8*50))) -> 0 | EO8: =IF(C8<>"",C8,"") -> 206 | EW8: 1 | EX8: =IF($C8="","", IF(EW8=1,0,IF(EU8<>0,500,EP8*$AE8/$AH8+EQ8/$AH8*5+ER8/$AH8*25+ES8*50+ET8*50))) -> 0 | EZ8: =IF(C8<>"",C8,"") -> 206 | FA8: 1 | FI8: =IF($C8="","", IF(FH8=1,0,IF(FF8<>0,500,FA8*$AE8/$AH8+FB8/$AH8*5+FC8/$AH8*25+FD8*50+FE8*50))) -> 1.367989056 | FK8: =IF(C8<>"",C8,"") -> 206 | FL8: 1 | FM8: 1 | FT8: =IF($C8="","", IF(FS8=1,0,IF(FQ8<>0,500,FL8*$AE8/$AH8+FM8/$AH8*5+FN8/$AH8*25+FO8*50+FP8*50))) -> 3.647970816 | FV8: =IF(C8<>"",C8,"") -> 206 | GD8: 1 | GE8: =IF($C8="","", IF(GD8=1,0,IF(GB8<>0,500,FW8*$AE8/$AH8+FX8/$AH8*5+FY8/$AH8*25+FZ8*50+GA8*50))) -> 0 | GG8: =IF(C8<>"",C8,"") -> 206 | GO8: 1 | GP8: =IF($C8="","", IF(GO8=1,0,IF(GM8<>0,500,GH8*$AE8/$AH8+GI8/$AH8*5+GJ8/$AH8*25+GK8*50+GL8*50))) -> 0 | GR8: =IF(C8<>"",C8,"") -> 206 | GS8: 1 | GT8: 1 | HA8: =IF($C8="","", IF(GZ8=1,0,IF(GX8<>0,500,GS8*$AE8/$AH8+GT8/$AH8*5+GU8/$AH8*25+GV8*50+GW8*50))) -> 3.647970816 | HC8: =IF(C8<>"",C8,"") -> 206 | HK8: 1 | HL8: =IF($C8="","", IF(HK8=1,0,IF(HI8<>0,500,HD8*$AE8/$AH8+HE8/$AH8*5+HF8/$AH8*25+HG8*50+HH8*50))) -> 0 | HN8: =IF(C8<>"",C8,"") -> 206 | HW8: =IF($C8="","", IF(HV8=1,0,IF(HT8<>0,500,HO8*$AE8/$AH8+HP8/$AH8*5+HQ8/$AH8*25+HR8*50+HS8*50))) -> 0 | HY8: =IF(C8<>"",C8,"") -> 206 | IH8: =IF($C8="","", IF(IG8=1,0,IF(IE8<>0,500,HZ8*$AE8/$AH8+IA8/$AH8*5+IB8/$AH8*25+IC8*50+ID8*50))) -> 0
B9: =IF(C9=0,"",ROW(C9)-4) -> 5 | C9: 203 | D9: Germany | E9: Suzuki Samurai | F9: Max Zehnder | G9: Sarah Wild | H9: =IF(C9=0,"",IF(OR(BB9=1,BC9<>0),BC9,"-")) -> 3.39731612 | I9: =IF(C9=0,"",IF(OR(BM9=1,BN9<>0),BN9,"-")) -> 8.153558689 | J9: =IF(C9=0,"",IF(OR(BX9=1,BY9<>0),BY9," -")) -> 22.42228639 | K9: =IF(C9=0,"",IF(OR(CJ9<>0,CI9=1),CJ9," -")) -> 0 | L9: =IF(C9=0,"",IF(OR(CU9<>0,CT9=1),CU9," -")) -> 0 | M9: =IF(C9=0,"",IF(OR(DF9<>0,DE9=1),DF9," -")) -> 8.153558689 | N9: =IF(C9=0,"",IF(OR(DQ9<>0,DP9=1),DQ9," -")) -> 2.038389672 | O9: =IF(C9=0,"",IF(OR(EB9<>0,EA9=1),EB9," -")) -> 150 | P9: =IF(C9=0,"",IF(OR(EM9<>0,EL9=1),EM9," -")) -> 0 | Q9: =IF(C9=0,"",IF(OR(EX9<>0,EW9=1),EX9," -")) -> 0 | R9: =IF(C9=0,"",IF(OR(FI9<>0,FH9=1),FI9," -")) -> 0 | S9: =IF(C9=0,"",IF(OR(FT9<>0,FS9=1),FT9," -")) -> 2.038389672 | T9: =IF(C9=0,"",IF(OR(GE9<>0,GD9=1),GE9," -")) -> 0 | U9: =IF(C9=0,"",IF(OR(GP9<>0,GO9=1),GP9," -")) -> 2.038389672 | V9: =IF(C9=0,"",IF(OR(HA9<>0,GZ9=1),HA9," -")) -> 2.038389672 | W9: =IF(C9=0,"",IF(OR(HL9<>0,HK9=1),HL9," -")) -> 0 | X9: =IF(C9=0,"",IF(AJ9<>0,AJ9," -")) -> - | Y9: =IF(C9=0,"",IF(OR(HW9<>0,HV9=1),HW9," -")) -> - | Z9: =IF(C9=0,"",IF(OR(IH9<>0,IG9=1),IH9," -")) -> - | AA9: =IF(C9=0,"",IF(AL9=1,"DNF",IF(AL9=2,"DSQ",IF(AM9<>1,"~ "&ROUND(SUM(H9:X9),3),ROUND(SUM(H9:X9),3))))) -> 200.28 | AD9: =IF(C9<>"",C9,"") -> 203 | AE9: =IF(AD9<>"",3,"") -> 3 | AF9: 1450 | AG9: 2030 | AH9: =IF(AD9<>"",(AF9/1000*AG9/1000)/2,"") -> 1.47175 | AI9: 5 | AM9: 1 | AP9: =IF(C9=0,99999,IF(AL9>0,9999,SUM(H9:X9)-AN9)) -> 200.2802786 | AQ9: =IF(C9=0,99999,IF(AL9=1,9999,SUM(Y9:Z9))) -> 0 | AT9: =IF(C9<>"",C9,"") -> 203 | AV9: 1 | BC9: =IF($C9="","", IF(BB9=1,0,IF(AZ9<>0,500,AU9*$AE9/$AH9+AV9/$AH9*5+AW9/$AH9*25+AX9*50+AY9*50))) -> 3.39731612 | BE9: =IF(C9<>"",C9,"") -> 203 | BF9: 4 | BN9: =IF($C9="","", IF(BM9=1,0,IF(BK9<>0,500,BF9*$AE9/$AH9+BG9/$AH9*5+BH9/$AH9*25+BI9*50+BJ9*50))) -> 8.153558689 | BP9: =IF(C9<>"",C9,"") -> 203 | BQ9: 1 | BR9: 1 | BS9: 1 | BY9: =IF($C9="","", IF(BX9=1,0,IF(BV9<>0,500,BQ9*$AE9/$AH9+BR9/$AH9*5+BS9/$AH9*25+BT9*50+BU9*50))) -> 22.42228639 | CA9: =IF(C9<>"",C9,"") -> 203 | CI9: 1 | CJ9: =IF($C9="","", IF(CI9=1,0,IF(CG9<>0,500,CB9*$AE9/$AH9+CC9/$AH9*5+CD9/$AH9*25+CE9*50+CF9*50))) -> 0 | CL9: =IF(C9<>"",C9,"") -> 203 | CT9: 1 | CU9: =IF($C9="","", IF(CT9=1,0,IF(CR9<>0,500,CM9*$AE9/$AH9+CN9/$AH9*5+CO9/$AH9*25+CP9*50+CQ9*50))) -> 0 | CW9: =IF(C9<>"",C9,"") -> 203 | CX9: 4 | DF9: =IF($C9="","", IF(DE9=1,0,IF(DC9<>0,500,CX9*$AE9/$AH9+CY9/$AH9*5+CZ9/$AH9*25+DA9*50+DB9*50))) -> 8.153558689 | DH9: =IF(C9<>"",C9,"") -> 203 | DI9: 1 | DQ9: =IF($C9="","", IF(DP9=1,0,IF(DN9<>0,500,DI9*$AE9/$AH9+DJ9/$AH9*5+DK9/$AH9*25+DL9*50+DM9*50))) -> 2.038389672 | DS9: =IF(C9<>"",C9,"") -> 203 | DW9: 2 | DX9: 1 | DZ9: door opened during stage | EB9: =IF($C9="","", IF(EA9=1,0,IF(DY9<>0,500,DT9*$AE9/$AH9+DU9/$AH9*5+DV9/$AH9*25+DW9*50+DX9*50))) -> 150 | ED9: =IF(C9<>"",C9,"") -> 203 | EL9: 1 | EM9: =IF($C9="","", IF(EL9=1,0,IF(EJ9<>0,500,EE9*$AE9/$AH9+EF9/$AH9*5+EG9/$AH9*25+EH9*50+EI9*50))) -> 0 | EO9: =IF(C9<>"",C9,"") -> 203 | EW9: 1 | EX9: =IF($C9="","", IF(EW9=1,0,IF(EU9<>0,500,EP9*$AE9/$AH9+EQ9/$AH9*5+ER9/$AH9*25+ES9*50+ET9*50))) -> 0 | EZ9: =IF(C9<>"",C9,"") -> 203 | FH9: 1 | FI9: =IF($C9="","", IF(FH9=1,0,IF(FF9<>0,500,FA9*$AE9/$AH9+FB9/$AH9*5+FC9/$AH9*25+FD9*50+FE9*50))) -> 0 | FK9: =IF(C9<>"",C9,"") -> 203 | FL9: 1 | FT9: =IF($C9="","", IF(FS9=1,0,IF(FQ9<>0,500,FL9*$AE9/$AH9+FM9/$AH9*5+FN9/$AH9*25+FO9*50+FP9*50))) -> 2.038389672 | FV9: =IF(C9<>"",C9,"") -> 203 | GD9: 1 | GE9: =IF($C9="","", IF(GD9=1,0,IF(GB9<>0,500,FW9*$AE9/$AH9+FX9/$AH9*5+FY9/$AH9*25+FZ9*50+GA9*50))) -> 0 | GG9: =IF(C9<>"",C9,"") -> 203 | GH9: 1 | GP9: =IF($C9="","", IF(GO9=1,0,IF(GM9<>0,500,GH9*$AE9/$AH9+GI9/$AH9*5+GJ9/$AH9*25+GK9*50+GL9*50))) -> 2.038389672 | GR9: =IF(C9<>"",C9,"") -> 203 | GS9: 1 | HA9: =IF($C9="","", IF(GZ9=1,0,IF(GX9<>0,500,GS9*$AE9/$AH9+GT9/$AH9*5+GU9/$AH9*25+GV9*50+GW9*50))) -> 2.038389672 | HC9: =IF(C9<>"",C9,"") -> 203 | HK9: 1 | HL9: =IF($C9="","", IF(HK9=1,0,IF(HI9<>0,500,HD9*$AE9/$AH9+HE9/$AH9*5+HF9/$AH9*25+HG9*50+HH9*50))) -> 0 | HN9: =IF(C9<>"",C9,"") -> 203 | HW9: =IF($C9="","", IF(HV9=1,0,IF(HT9<>0,500,HO9*$AE9/$AH9+HP9/$AH9*5+HQ9/$AH9*25+HR9*50+HS9*50))) -> 0 | HY9: =IF(C9<>"",C9,"") -> 203 | IH9: =IF($C9="","", IF(IG9=1,0,IF(IE9<>0,500,HZ9*$AE9/$AH9+IA9/$AH9*5+IB9/$AH9*25+IC9*50+ID9*50))) -> 0
B10: =IF(C10=0,"",ROW(C10)-4) -> 6 | C10: 210 | D10: Austria | E10: Suzuki Samurai | F10: Christian Wegscheider | H10: =IF(C10=0,"",IF(OR(BB10=1,BC10<>0),BC10,"-")) -> 0 | I10: =IF(C10=0,"",IF(OR(BM10=1,BN10<>0),BN10,"-")) -> 4.076779344 | J10: =IF(C10=0,"",IF(OR(BX10=1,BY10<>0),BY10," -")) -> 2.038389672 | K10: =IF(C10=0,"",IF(OR(CJ10<>0,CI10=1),CJ10," -")) -> 2.038389672 | L10: =IF(C10=0,"",IF(OR(CU10<>0,CT10=1),CU10," -")) -> 8.153558689 | M10: =IF(C10=0,"",IF(OR(DF10<>0,DE10=1),DF10," -")) -> 116.3071174 | N10: =IF(C10=0,"",IF(OR(DQ10<>0,DP10=1),DQ10," -")) -> 5.435705792 | O10: =IF(C10=0,"",IF(OR(EB10<>0,EA10=1),EB10," -")) -> 11.55087481 | P10: =IF(C10=0,"",IF(OR(EM10<>0,EL10=1),EM10," -")) -> 0 | Q10: =IF(C10=0,"",IF(OR(EX10<>0,EW10=1),EX10," -")) -> 3.39731612 | R10: =IF(C10=0,"",IF(OR(FI10<>0,FH10=1),FI10," -")) -> 2.038389672 | S10: =IF(C10=0,"",IF(OR(FT10<>0,FS10=1),FT10," -")) -> 200 | T10: =IF(C10=0,"",IF(OR(GE10<>0,GD10=1),GE10," -")) -> 0 | U10: =IF(C10=0,"",IF(OR(GP10<>0,GO10=1),GP10," -")) -> 2.038389672 | V10: =IF(C10=0,"",IF(OR(HA10<>0,GZ10=1),HA10," -")) -> 5.435705792 | W10: =IF(C10=0,"",IF(OR(HL10<>0,HK10=1),HL10," -")) -> 0 | X10: =IF(C10=0,"",IF(AJ10<>0,AJ10," -")) -> - | Y10: =IF(C10=0,"",IF(OR(HW10<>0,HV10=1),HW10," -")) -> - | Z10: =IF(C10=0,"",IF(OR(IH10<>0,IG10=1),IH10," -")) -> - | AA10: =IF(C10=0,"",IF(AL10=1,"DNF",IF(AL10=2,"DSQ",IF(AM10<>1,"~ "&ROUND(SUM(H10:X10),3),ROUND(SUM(H10:X10),3))))) -> 362.511 | AD10: =IF(C10<>"",C10,"") -> 210 | AE10: =IF(AD10<>"",3,"") -> 3 | AF10: 1450 | AG10: 2030 | AH10: =IF(AD10<>"",(AF10/1000*AG10/1000)/2,"") -> 1.47175 | AI10: 5 | AM10: 1 | AP10: =IF(C10=0,99999,IF(AL10>0,9999,SUM(H10:X10)-AN10)) -> 362.5106166 | AQ10: =IF(C10=0,99999,IF(AL10=1,9999,SUM(Y10:Z10))) -> 0 | AT10: =IF(C10<>"",C10,"") -> 210 | BB10: 1 | BC10: =IF($C10="","", IF(BB10=1,0,IF(AZ10<>0,500,AU10*$AE10/$AH10+AV10/$AH10*5+AW10/$AH10*25+AX10*50+AY10*50))) -> 0 | BE10: =IF(C10<>"",C10,"") -> 210 | BF10: 2 | BN10: =IF($C10="","", IF(BM10=1,0,IF(BK10<>0,500,BF10*$AE10/$AH10+BG10/$AH10*5+BH10/$AH10*25+BI10*50+BJ10*50))) -> 4.076779344 | BP10: =IF(C10<>"",C10,"") -> 210 | BQ10: 1 | BY10: =IF($C10="","", IF(BX10=1,0,IF(BV10<>0,500,BQ10*$AE10/$AH10+BR10/$AH10*5+BS10/$AH10*25+BT10*50+BU10*50))) -> 2.038389672 | CA10: =IF(C10<>"",C10,"") -> 210 | CB10: 1 | CJ10: =IF($C10="","", IF(CI10=1,0,IF(CG10<>0,500,CB10*$AE10/$AH10+CC10/$AH10*5+CD10/$AH10*25+CE10*50+CF10*50))) -> 2.038389672 | CL10: =IF(C10<>"",C10,"") -> 210 | CM10: 4 | CU10: =IF($C10="","", IF(CT10=1,0,IF(CR10<>0,500,CM10*$AE10/$AH10+CN10/$AH10*5+CO10/$AH10*25+CP10*50+CQ10*50))) -> 8.153558689 | CW10: =IF(C10<>"",C10,"") -> 210 | CX10: 8 | DA10: 1 | DB10: 1 | DD10: time | DF10: =IF($C10="","", IF(DE10=1,0,IF(DC10<>0,500,CX10*$AE10/$AH10+CY10/$AH10*5+CZ10/$AH10*25+DA10*50+DB10*50))) -> 116.3071174 | DH10: =IF(C10<>"",C10,"") -> 210 | DI10: 1 | DJ10: 1 | DQ10: =IF($C10="","", IF(DP10=1,0,IF(DN10<>0,500,DI10*$AE10/$AH10+DJ10/$AH10*5+DK10/$AH10*25+DL10*50+DM10*50))) -> 5.435705792 | DS10: =IF(C10<>"",C10,"") -> 210 | DT10: 4 | DU10: 1 | EB10: =IF($C10="","", IF(EA10=1,0,IF(DY10<>0,500,DT10*$AE10/$AH10+DU10/$AH10*5+DV10/$AH10*25+DW10*50+DX10*50))) -> 11.55087481 | ED10: =IF(C10<>"",C10,"") -> 210 | EL10: 1 | EM10: =IF($C10="","", IF(EL10=1,0,IF(EJ10<>0,500,EE10*$AE10/$AH10+EF10/$AH10*5+EG10/$AH10*25+EH10*50+EI10*50))) -> 0 | EO10: =IF(C10<>"",C10,"") -> 210 | EQ10: 1 | EX10: =IF($C10="","", IF(EW10=1,0,IF(EU10<>0,500,EP10*$AE10/$AH10+EQ10/$AH10*5+ER10/$AH10*25+ES10*50+ET10*50))) -> 3.39731612 | EZ10: =IF(C10<>"",C10,"") -> 210 | FA10: 1 | FI10: =IF($C10="","", IF(FH10=1,0,IF(FF10<>0,500,FA10*$AE10/$AH10+FB10/$AH10*5+FC10/$AH10*25+FD10*50+FE10*50))) -> 2.038389672 | FK10: =IF(C10<>"",C10,"") -> 210 | FO10: 3 | FP10: 1 | FR10: wrong direction | FT10: =IF($C10="","", IF(FS10=1,0,IF(FQ10<>0,500,FL10*$AE10/$AH10+FM10/$AH10*5+FN10/$AH10*25+FO10*50+FP10*50))) -> 200 | FV10: =IF(C10<>"",C10,"") -> 210 | GD10: 1 | GE10: =IF($C10="","", IF(GD10=1,0,IF(GB10<>0,500,FW10*$AE10/$AH10+FX10/$AH10*5+FY10/$AH10*25+FZ10*50+GA10*50))) -> 0 | GG10: =IF(C10<>"",C10,"") -> 210 | GH10: 1 | GP10: =IF($C10="","", IF(GO10=1,0,IF(GM10<>0,500,GH10*$AE10/$AH10+GI10/$AH10*5+GJ10/$AH10*25+GK10*50+GL10*50))) -> 2.038389672 | GR10: =IF(C10<>"",C10,"") -> 210 | GS10: 1 | GT10: 1 | HA10: =IF($C10="","", IF(GZ10=1,0,IF(GX10<>0,500,GS10*$AE10/$AH10+GT10/$AH10*5+GU10/$AH10*25+GV10*50+GW10*50))) -> 5.435705792 | HC10: =IF(C10<>"",C10,"") -> 210 | HK10: 1 | HL10: =IF($C10="","", IF(HK10=1,0,IF(HI10<>0,500,HD10*$AE10/$AH10+HE10/$AH10*5+HF10/$AH10*25+HG10*50+HH10*50))) -> 0 | HN10: =IF(C10<>"",C10,"") -> 210 | HW10: =IF($C10="","", IF(HV10=1,0,IF(HT10<>0,500,HO10*$AE10/$AH10+HP10/$AH10*5+HQ10/$AH10*25+HR10*50+HS10*50))) -> 0 | HY10: =IF(C10<>"",C10,"") -> 210 | IH10: =IF($C10="","", IF(IG10=1,0,IF(IE10<>0,500,HZ10*$AE10/$AH10+IA10/$AH10*5+IB10/$AH10*25+IC10*50+ID10*50))) -> 0
B11: =IF(C11=0,"",ROW(C11)-4) -> 7 | C11: 212 | D11: Norway | E11: Suzuki Jimny | F11: Dennis Fast | G11: Karoline Helleren | H11: =IF(C11=0,"",IF(OR(BB11=1,BC11<>0),BC11,"-")) -> 0 | I11: =IF(C11=0,"",IF(OR(BM11=1,BN11<>0),BN11,"-")) -> 165.5555556 | J11: =IF(C11=0,"",IF(OR(BX11=1,BY11<>0),BY11," -")) -> 10.55555556 | K11: =IF(C11=0,"",IF(OR(CJ11<>0,CI11=1),CJ11," -")) -> 2.777777778 | L11: =IF(C11=0,"",IF(OR(CU11<>0,CT11=1),CU11," -")) -> 106.6666667 | M11: =IF(C11=0,"",IF(OR(DF11<>0,DE11=1),DF11," -")) -> 26.11111111 | N11: =IF(C11=0,"",IF(OR(DQ11<>0,DP11=1),DQ11," -")) -> 1.666666667 | O11: =IF(C11=0,"",IF(OR(EB11<>0,EA11=1),EB11," -")) -> 8.888888889 | P11: =IF(C11=0,"",IF(OR(EM11<>0,EL11=1),EM11," -")) -> 0 | Q11: =IF(C11=0,"",IF(OR(EX11<>0,EW11=1),EX11," -")) -> 0 | R11: =IF(C11=0,"",IF(OR(FI11<>0,FH11=1),FI11," -")) -> 17.22222222 | S11: =IF(C11=0,"",IF(OR(FT11<>0,FS11=1),FT11," -")) -> 1.666666667 | T11: =IF(C11=0,"",IF(OR(GE11<>0,GD11=1),GE11," -")) -> 18.33333333 | U11: =IF(C11=0,"",IF(OR(GP11<>0,GO11=1),GP11," -")) -> 9.444444444 | V11: =IF(C11=0,"",IF(OR(HA11<>0,GZ11=1),HA11," -")) -> 15.55555556 | W11: =IF(C11=0,"",IF(OR(HL11<>0,HK11=1),HL11," -")) -> 11.11111111 | X11: =IF(C11=0,"",IF(AJ11<>0,AJ11," -")) -> - | Y11: =IF(C11=0,"",IF(OR(HW11<>0,HV11=1),HW11," -")) -> - | Z11: =IF(C11=0,"",IF(OR(IH11<>0,IG11=1),IH11," -")) -> - | AA11: =IF(C11=0,"",IF(AL11=1,"DNF",IF(AL11=2,"DSQ",IF(AM11<>1,"~ "&ROUND(SUM(H11:X11),3),ROUND(SUM(H11:X11),3))))) -> 395.556 | AD11: =IF(C11<>"",C11,"") -> 212 | AE11: =IF(AD11<>"",3,"") -> 3 | AF11: 1600 | AG11: 2250 | AH11: =IF(AD11<>"",(AF11/1000*AG11/1000)/2,"") -> 1.8 | AI11: 4 | AM11: 1 | AP11: =IF(C11=0,99999,IF(AL11>0,9999,SUM(H11:X11)-AN11)) -> 395.5555556 | AQ11: =IF(C11=0,99999,IF(AL11=1,9999,SUM(Y11:Z11))) -> 0 | AT11: =IF(C11<>"",C11,"") -> 212 | BB11: 1 | BC11: =IF($C11="","", IF(BB11=1,0,IF(AZ11<>0,500,AU11*$AE11/$AH11+AV11/$AH11*5+AW11/$AH11*25+AX11*50+AY11*50))) -> 0 | BE11: =IF(C11<>"",C11,"") -> 212 | BF11: 1 | BH11: 1 | BI11: 2 | BJ11: 1 | BN11: =IF($C11="","", IF(BM11=1,0,IF(BK11<>0,500,BF11*$AE11/$AH11+BG11/$AH11*5+BH11/$AH11*25+BI11*50+BJ11*50))) -> 165.5555556 | BP11: =IF(C11<>"",C11,"") -> 212 | BQ11: 3 | BR11: 2 | BY11: =IF($C11="","", IF(BX11=1,0,IF(BV11<>0,500,BQ11*$AE11/$AH11+BR11/$AH11*5+BS11/$AH11*25+BT11*50+BU11*50))) -> 10.55555556 | CA11: =IF(C11<>"",C11,"") -> 212 | CC11: 1 | CJ11: =IF($C11="","", IF(CI11=1,0,IF(CG11<>0,500,CB11*$AE11/$AH11+CC11/$AH11*5+CD11/$AH11*25+CE11*50+CF11*50))) -> 2.777777778 | CL11: =IF(C11<>"",C11,"") -> 212 | CM11: 4 | CP11: 1 | CQ11: 1 | CU11: =IF($C11="","", IF(CT11=1,0,IF(CR11<>0,500,CM11*$AE11/$AH11+CN11/$AH11*5+CO11/$AH11*25+CP11*50+CQ11*50))) -> 106.6666667 | CW11: =IF(C11<>"",C11,"") -> 212 | CX11: 4 | CY11: 2 | CZ11: 1 | DF11: =IF($C11="","", IF(DE11=1,0,IF(DC11<>0,500,CX11*$AE11/$AH11+CY11/$AH11*5+CZ11/$AH11*25+DA11*50+DB11*50))) -> 26.11111111 | DH11: =IF(C11<>"",C11,"") -> 212 | DI11: 1 | DQ11: =IF($C11="","", IF(DP11=1,0,IF(DN11<>0,500,DI11*$AE11/$AH11+DJ11/$AH11*5+DK11/$AH11*25+DL11*50+DM11*50))) -> 1.666666667 | DS11: =IF(C11<>"",C11,"") -> 212 | DT11: 2 | DU11: 2 | EB11: =IF($C11="","", IF(EA11=1,0,IF(DY11<>0,500,DT11*$AE11/$AH11+DU11/$AH11*5+DV11/$AH11*25+DW11*50+DX11*50))) -> 8.888888889 | ED11: =IF(C11<>"",C11,"") -> 212 | EL11: 1 | EM11: =IF($C11="","", IF(EL11=1,0,IF(EJ11<>0,500,EE11*$AE11/$AH11+EF11/$AH11*5+EG11/$AH11*25+EH11*50+EI11*50))) -> 0 | EO11: =IF(C11<>"",C11,"") -> 212 | EW11: 1 | EX11: =IF($C11="","", IF(EW11=1,0,IF(EU11<>0,500,EP11*$AE11/$AH11+EQ11/$AH11*5+ER11/$AH11*25+ES11*50+ET11*50))) -> 0 | EZ11: =IF(C11<>"",C11,"") -> 212 | FA11: 2 | FC11: 1 | FI11: =IF($C11="","", IF(FH11=1,0,IF(FF11<>0,500,FA11*$AE11/$AH11+FB11/$AH11*5+FC11/$AH11*25+FD11*50+FE11*50))) -> 17.22222222 | FK11: =IF(C11<>"",C11,"") -> 212 | FL11: 1 | FT11: =IF($C11="","", IF(FS11=1,0,IF(FQ11<>0,500,FL11*$AE11/$AH11+FM11/$AH11*5+FN11/$AH11*25+FO11*50+FP11*50))) -> 1.666666667 | FV11: =IF(C11<>"",C11,"") -> 212 | FW11: 1 | FX11: 1 | FY11: 1 | GE11: =IF($C11="","", IF(GD11=1,0,IF(GB11<>0,500,FW11*$AE11/$AH11+FX11/$AH11*5+FY11/$AH11*25+FZ11*50+GA11*50))) -> 18.33333333 | GG11: =IF(C11<>"",C11,"") -> 212 | GH11: 4 | GI11: 1 | GP11: =IF($C11="","", IF(GO11=1,0,IF(GM11<>0,500,GH11*$AE11/$AH11+GI11/$AH11*5+GJ11/$AH11*25+GK11*50+GL11*50))) -> 9.444444444 | GR11: =IF(C11<>"",C11,"") -> 212 | GS11: 1 | GU11: 1 | HA11: =IF($C11="","", IF(GZ11=1,0,IF(GX11<>0,500,GS11*$AE11/$AH11+GT11/$AH11*5+GU11/$AH11*25+GV11*50+GW11*50))) -> 15.55555556 | HC11: =IF(C11<>"",C11,"") -> 212 | HD11: 5 | HE11: 1 | HJ11: Wau! | HL11: =IF($C11="","", IF(HK11=1,0,IF(HI11<>0,500,HD11*$AE11/$AH11+HE11/$AH11*5+HF11/$AH11*25+HG11*50+HH11*50))) -> 11.11111111 | HN11: =IF(C11<>"",C11,"") -> 212 | HW11: =IF($C11="","", IF(HV11=1,0,IF(HT11<>0,500,HO11*$AE11/$AH11+HP11/$AH11*5+HQ11/$AH11*25+HR11*50+HS11*50))) -> 0 | HY11: =IF(C11<>"",C11,"") -> 212 | IH11: =IF($C11="","", IF(IG11=1,0,IF(IE11<>0,500,HZ11*$AE11/$AH11+IA11/$AH11*5+IB11/$AH11*25+IC11*50+ID11*50))) -> 0
B12: =IF(C12=0,"",ROW(C12)-4) -> 8 | C12: 222 | D12: Finland | E12: Suzuki Samurai | F12: Tuure Ruhanen | G12: Elina Rahikainen | H12: =IF(C12=0,"",IF(OR(BB12=1,BC12<>0),BC12,"-")) -> 0 | I12: =IF(C12=0,"",IF(OR(BM12=1,BN12<>0),BN12,"-")) -> 2.038389672 | J12: =IF(C12=0,"",IF(OR(BX12=1,BY12<>0),BY12," -")) -> 22.42228639 | K12: =IF(C12=0,"",IF(OR(CJ12<>0,CI12=1),CJ12," -")) -> 0 | L12: =IF(C12=0,"",IF(OR(CU12<>0,CT12=1),CU12," -")) -> 18.34550705 | M12: =IF(C12=0,"",IF(OR(DF12<>0,DE12=1),DF12," -")) -> 104.0767793 | N12: =IF(C12=0,"",IF(OR(DQ12<>0,DP12=1),DQ12," -")) -> 2.038389672 | O12: =IF(C12=0,"",IF(OR(EB12<>0,EA12=1),EB12," -")) -> 102.0383897 | P12: =IF(C12=0,"",IF(OR(EM12<>0,EL12=1),EM12," -")) -> 0 | Q12: =IF(C12=0,"",IF(OR(EX12<>0,EW12=1),EX12," -")) -> 5.435705792 | R12: =IF(C12=0,"",IF(OR(FI12<>0,FH12=1),FI12," -")) -> 2.038389672 | S12: =IF(C12=0,"",IF(OR(FT12<>0,FS12=1),FT12," -")) -> 2.038389672 | T12: =IF(C12=0,"",IF(OR(GE12<>0,GD12=1),GE12," -")) -> 260.8714116 | U12: =IF(C12=0,"",IF(OR(GP12<>0,GO12=1),GP12," -")) -> 0 | V12: =IF(C12=0,"",IF(OR(HA12<>0,GZ12=1),HA12," -")) -> 21.06335995 | W12: =IF(C12=0,"",IF(OR(HL12<>0,HK12=1),HL12," -")) -> 9.512485137 | X12: =IF(C12=0,"",IF(AJ12<>0,AJ12," -")) -> - | Y12: =IF(C12=0,"",IF(OR(HW12<>0,HV12=1),HW12," -")) -> - | Z12: =IF(C12=0,"",IF(OR(IH12<>0,IG12=1),IH12," -")) -> - | AA12: =IF(C12=0,"",IF(AL12=1,"DNF",IF(AL12=2,"DSQ",IF(AM12<>1,"~ "&ROUND(SUM(H12:X12),3),ROUND(SUM(H12:X12),3))))) -> 551.919 | AD12: =IF(C12<>"",C12,"") -> 222 | AE12: =IF(AD12<>"",3,"") -> 3 | AF12: 1450 | AG12: 2030 | AH12: =IF(AD12<>"",(AF12/1000*AG12/1000)/2,"") -> 1.47175 | AI12: 5 | AM12: 1 | AP12: =IF(C12=0,99999,IF(AL12>0,9999,SUM(H12:X12)-AN12)) -> 551.9194836 | AQ12: =IF(C12=0,99999,IF(AL12=1,9999,SUM(Y12:Z12))) -> 0 | AT12: =IF(C12<>"",C12,"") -> 222 | BB12: 1 | BC12: =IF($C12="","", IF(BB12=1,0,IF(AZ12<>0,500,AU12*$AE12/$AH12+AV12/$AH12*5+AW12/$AH12*25+AX12*50+AY12*50))) -> 0 | BE12: =IF(C12<>"",C12,"") -> 222 | BF12: 1 | BN12: =IF($C12="","", IF(BM12=1,0,IF(BK12<>0,500,BF12*$AE12/$AH12+BG12/$AH12*5+BH12/$AH12*25+BI12*50+BJ12*50))) -> 2.038389672 | BP12: =IF(C12<>"",C12,"") -> 222 | BQ12: 1 | BR12: 1 | BS12: 1 | BY12: =IF($C12="","", IF(BX12=1,0,IF(BV12<>0,500,BQ12*$AE12/$AH12+BR12/$AH12*5+BS12/$AH12*25+BT12*50+BU12*50))) -> 22.42228639 | CA12: =IF(C12<>"",C12,"") -> 222 | CI12: 1 | CJ12: =IF($C12="","", IF(CI12=1,0,IF(CG12<>0,500,CB12*$AE12/$AH12+CC12/$AH12*5+CD12/$AH12*25+CE12*50+CF12*50))) -> 0 | CL12: =IF(C12<>"",C12,"") -> 222 | CM12: 4 | CN12: 3 | CU12: =IF($C12="","", IF(CT12=1,0,IF(CR12<>0,500,CM12*$AE12/$AH12+CN12/$AH12*5+CO12/$AH12*25+CP12*50+CQ12*50))) -> 18.34550705 | CW12: =IF(C12<>"",C12,"") -> 222 | CX12: 2 | DA12: 1 | DB12: 1 | DF12: =IF($C12="","", IF(DE12=1,0,IF(DC12<>0,500,CX12*$AE12/$AH12+CY12/$AH12*5+CZ12/$AH12*25+DA12*50+DB12*50))) -> 104.0767793 | DH12: =IF(C12<>"",C12,"") -> 222 | DI12: 1 | DQ12: =IF($C12="","", IF(DP12=1,0,IF(DN12<>0,500,DI12*$AE12/$AH12+DJ12/$AH12*5+DK12/$AH12*25+DL12*50+DM12*50))) -> 2.038389672 | DS12: =IF(C12<>"",C12,"") -> 222 | DT12: 1 | DW12: 1 | DX12: 1 | DZ12: stuck | EB12: =IF($C12="","", IF(EA12=1,0,IF(DY12<>0,500,DT12*$AE12/$AH12+DU12/$AH12*5+DV12/$AH12*25+DW12*50+DX12*50))) -> 102.0383897 | ED12: =IF(C12<>"",C12,"") -> 222 | EL12: 1 | EM12: =IF($C12="","", IF(EL12=1,0,IF(EJ12<>0,500,EE12*$AE12/$AH12+EF12/$AH12*5+EG12/$AH12*25+EH12*50+EI12*50))) -> 0 | EO12: =IF(C12<>"",C12,"") -> 222 | EP12: 1 | EQ12: 1 | EX12: =IF($C12="","", IF(EW12=1,0,IF(EU12<>0,500,EP12*$AE12/$AH12+EQ12/$AH12*5+ER12/$AH12*25+ES12*50+ET12*50))) -> 5.435705792 | EZ12: =IF(C12<>"",C12,"") -> 222 | FA12: 1 | FI12: =IF($C12="","", IF(FH12=1,0,IF(FF12<>0,500,FA12*$AE12/$AH12+FB12/$AH12*5+FC12/$AH12*25+FD12*50+FE12*50))) -> 2.038389672 | FK12: =IF(C12<>"",C12,"") -> 222 | FL12: 1 | FT12: =IF($C12="","", IF(FS12=1,0,IF(FQ12<>0,500,FL12*$AE12/$AH12+FM12/$AH12*5+FN12/$AH12*25+FO12*50+FP12*50))) -> 2.038389672 | FV12: =IF(C12<>"",C12,"") -> 222 | FW12: 2 | FX12: 2 | FZ12: 4 | GA12: 1 | GE12: =IF($C12="","", IF(GD12=1,0,IF(GB12<>0,500,FW12*$AE12/$AH12+FX12/$AH12*5+FY12/$AH12*25+FZ12*50+GA12*50))) -> 260.8714116 | GG12: =IF(C12<>"",C12,"") -> 222 | GO12: 1 | GP12: =IF($C12="","", IF(GO12=1,0,IF(GM12<>0,500,GH12*$AE12/$AH12+GI12/$AH12*5+GJ12/$AH12*25+GK12*50+GL12*50))) -> 0 | GR12: =IF(C12<>"",C12,"") -> 222 | GS12: 2 | GU12: 1 | HA12: =IF($C12="","", IF(GZ12=1,0,IF(GX12<>0,500,GS12*$AE12/$AH12+GT12/$AH12*5+GU12/$AH12*25+GV12*50+GW12*50))) -> 21.06335995 | HC12: =IF(C12<>"",C12,"") -> 222 | HD12: 3 | HE12: 1 | HL12: =IF($C12="","", IF(HK12=1,0,IF(HI12<>0,500,HD12*$AE12/$AH12+HE12/$AH12*5+HF12/$AH12*25+HG12*50+HH12*50))) -> 9.512485137 | HN12: =IF(C12<>"",C12,"") -> 222 | HW12: =IF($C12="","", IF(HV12=1,0,IF(HT12<>0,500,HO12*$AE12/$AH12+HP12/$AH12*5+HQ12/$AH12*25+HR12*50+HS12*50))) -> 0 | HY12: =IF(C12<>"",C12,"") -> 222 | IH12: =IF($C12="","", IF(IG12=1,0,IF(IE12<>0,500,HZ12*$AE12/$AH12+IA12/$AH12*5+IB12/$AH12*25+IC12*50+ID12*50))) -> 0
B13: =IF(C13=0,"",ROW(C13)-4) -> 9 | C13: 217 | D13: Finland | E13: Jeep Cherokee XJ | F13: Toni Laesmaa | G13: Samu Juutilainen | H13: =IF(C13=0,"",IF(OR(BB13=1,BC13<>0),BC13,"-")) -> 2.27998176 | I13: =IF(C13=0,"",IF(OR(BM13=1,BN13<>0),BN13,"-")) -> 13.67989056 | J13: =IF(C13=0,"",IF(OR(BX13=1,BY13<>0),BY13," -")) -> 17.78385773 | K13: =IF(C13=0,"",IF(OR(CJ13<>0,CI13=1),CJ13," -")) -> 1.367989056 | L13: =IF(C13=0,"",IF(OR(CU13<>0,CT13=1),CU13," -")) -> 200 | M13: =IF(C13=0,"",IF(OR(DF13<>0,DE13=1),DF13," -")) -> 5.471956224 | N13: =IF(C13=0,"",IF(OR(DQ13<>0,DP13=1),DQ13," -")) -> 1.367989056 | O13: =IF(C13=0,"",IF(OR(EB13<>0,EA13=1),EB13," -")) -> 259.5759234 | P13: =IF(C13=0,"",IF(OR(EM13<>0,EL13=1),EM13," -")) -> 0 | Q13: =IF(C13=0,"",IF(OR(EX13<>0,EW13=1),EX13," -")) -> 0 | R13: =IF(C13=0,"",IF(OR(FI13<>0,FH13=1),FI13," -")) -> 1.367989056 | S13: =IF(C13=0,"",IF(OR(FT13<>0,FS13=1),FT13," -")) -> 2.735978112 | T13: =IF(C13=0,"",IF(OR(GE13<>0,GD13=1),GE13," -")) -> 74.16780666 | U13: =IF(C13=0,"",IF(OR(GP13<>0,GO13=1),GP13," -")) -> 0 | V13: =IF(C13=0,"",IF(OR(HA13<>0,GZ13=1),HA13," -")) -> 1.367989056 | W13: =IF(C13=0,"",IF(OR(HL13<>0,HK13=1),HL13," -")) -> 2.735978112 | X13: =IF(C13=0,"",IF(AJ13<>0,AJ13," -")) -> - | Y13: =IF(C13=0,"",IF(OR(HW13<>0,HV13=1),HW13," -")) -> - | Z13: =IF(C13=0,"",IF(OR(IH13<>0,IG13=1),IH13," -")) -> - | AA13: =IF(C13=0,"",IF(AL13=1,"DNF",IF(AL13=2,"DSQ",IF(AM13<>1,"~ "&ROUND(SUM(H13:X13),3),ROUND(SUM(H13:X13),3))))) -> 583.903 | AD13: =IF(C13<>"",C13,"") -> 217 | AE13: =IF(AD13<>"",3,"") -> 3 | AF13: 1720 | AG13: 2550 | AH13: =IF(AD13<>"",(AF13/1000*AG13/1000)/2,"") -> 2.193 | AI13: 2 | AM13: 1 | AP13: =IF(C13=0,99999,IF(AL13>0,9999,SUM(H13:X13)-AN13)) -> 583.9033288 | AQ13: =IF(C13=0,99999,IF(AL13=1,9999,SUM(Y13:Z13))) -> 0 | AT13: =IF(C13<>"",C13,"") -> 217 | AV13: 1 | BC13: =IF($C13="","", IF(BB13=1,0,IF(AZ13<>0,500,AU13*$AE13/$AH13+AV13/$AH13*5+AW13/$AH13*25+AX13*50+AY13*50))) -> 2.27998176 | BE13: =IF(C13<>"",C13,"") -> 217 | BG13: 1 | BH13: 1 | BN13: =IF($C13="","", IF(BM13=1,0,IF(BK13<>0,500,BF13*$AE13/$AH13+BG13/$AH13*5+BH13/$AH13*25+BI13*50+BJ13*50))) -> 13.67989056 | BP13: =IF(C13<>"",C13,"") -> 217 | BQ13: 3 | BR13: 1 | BS13: 1 | BY13: =IF($C13="","", IF(BX13=1,0,IF(BV13<>0,500,BQ13*$AE13/$AH13+BR13/$AH13*5+BS13/$AH13*25+BT13*50+BU13*50))) -> 17.78385773 | CA13: =IF(C13<>"",C13,"") -> 217 | CB13: 1 | CJ13: =IF($C13="","", IF(CI13=1,0,IF(CG13<>0,500,CB13*$AE13/$AH13+CC13/$AH13*5+CD13/$AH13*25+CE13*50+CF13*50))) -> 1.367989056 | CL13: =IF(C13<>"",C13,"") -> 217 | CP13: 3 | CQ13: 1 | CU13: =IF($C13="","", IF(CT13=1,0,IF(CR13<>0,500,CM13*$AE13/$AH13+CN13/$AH13*5+CO13/$AH13*25+CP13*50+CQ13*50))) -> 200 | CW13: =IF(C13<>"",C13,"") -> 217 | CX13: 4 | DF13: =IF($C13="","", IF(DE13=1,0,IF(DC13<>0,500,CX13*$AE13/$AH13+CY13/$AH13*5+CZ13/$AH13*25+DA13*50+DB13*50))) -> 5.471956224 | DH13: =IF(C13<>"",C13,"") -> 217 | DI13: 1 | DQ13: =IF($C13="","", IF(DP13=1,0,IF(DN13<>0,500,DI13*$AE13/$AH13+DJ13/$AH13*5+DK13/$AH13*25+DL13*50+DM13*50))) -> 1.367989056 | DS13: =IF(C13<>"",C13,"") -> 217 | DT13: 7 | DW13: 4 | DX13: 1 | DZ13: technical failure | EB13: =IF($C13="","", IF(EA13=1,0,IF(DY13<>0,500,DT13*$AE13/$AH13+DU13/$AH13*5+DV13/$AH13*25+DW13*50+DX13*50))) -> 259.5759234 | ED13: =IF(C13<>"",C13,"") -> 217 | EL13: 1 | EM13: =IF($C13="","", IF(EL13=1,0,IF(EJ13<>0,500,EE13*$AE13/$AH13+EF13/$AH13*5+EG13/$AH13*25+EH13*50+EI13*50))) -> 0 | EO13: =IF(C13<>"",C13,"") -> 217 | EW13: 1 | EX13: =IF($C13="","", IF(EW13=1,0,IF(EU13<>0,500,EP13*$AE13/$AH13+EQ13/$AH13*5+ER13/$AH13*25+ES13*50+ET13*50))) -> 0 | EZ13: =IF(C13<>"",C13,"") -> 217 | FA13: 1 | FI13: =IF($C13="","", IF(FH13=1,0,IF(FF13<>0,500,FA13*$AE13/$AH13+FB13/$AH13*5+FC13/$AH13*25+FD13*50+FE13*50))) -> 1.367989056 | FK13: =IF(C13<>"",C13,"") -> 217 | FL13: 2 | FT13: =IF($C13="","", IF(FS13=1,0,IF(FQ13<>0,500,FL13*$AE13/$AH13+FM13/$AH13*5+FN13/$AH13*25+FO13*50+FP13*50))) -> 2.735978112 | FV13: =IF(C13<>"",C13,"") -> 217 | FW13: 1 | FY13: 2 | GA13: 1 | GE13: =IF($C13="","", IF(GD13=1,0,IF(GB13<>0,500,FW13*$AE13/$AH13+FX13/$AH13*5+FY13/$AH13*25+FZ13*50+GA13*50))) -> 74.16780666 | GG13: =IF(C13<>"",C13,"") -> 217 | GO13: 1 | GP13: =IF($C13="","", IF(GO13=1,0,IF(GM13<>0,500,GH13*$AE13/$AH13+GI13/$AH13*5+GJ13/$AH13*25+GK13*50+GL13*50))) -> 0 | GR13: =IF(C13<>"",C13,"") -> 217 | GS13: 1 | HA13: =IF($C13="","", IF(GZ13=1,0,IF(GX13<>0,500,GS13*$AE13/$AH13+GT13/$AH13*5+GU13/$AH13*25+GV13*50+GW13*50))) -> 1.367989056 | HC13: =IF(C13<>"",C13,"") -> 217 | HD13: 2 | HL13: =IF($C13="","", IF(HK13=1,0,IF(HI13<>0,500,HD13*$AE13/$AH13+HE13/$AH13*5+HF13/$AH13*25+HG13*50+HH13*50))) -> 2.735978112 | HN13: =IF(C13<>"",C13,"") -> 217 | HW13: =IF($C13="","", IF(HV13=1,0,IF(HT13<>0,500,HO13*$AE13/$AH13+HP13/$AH13*5+HQ13/$AH13*25+HR13*50+HS13*50))) -> 0 | HY13: =IF(C13<>"",C13,"") -> 217 | IH13: =IF($C13="","", IF(IG13=1,0,IF(IE13<>0,500,HZ13*$AE13/$AH13+IA13/$AH13*5+IB13/$AH13*25+IC13*50+ID13*50))) -> 0
B14: =IF(C14=0,"",ROW(C14)-4) -> 10 | C14: 209 | D14: Switzerland | E14: Jeep TJ 1997 | F14: Marcel Voegtlin | G14: Elisa Moosmann | H14: =IF(C14=0,"",IF(OR(BB14=1,BC14<>0),BC14,"-")) -> 13.44537815 | I14: =IF(C14=0,"",IF(OR(BM14=1,BN14<>0),BN14,"-")) -> 3.841536615 | J14: =IF(C14=0,"",IF(OR(BX14=1,BY14<>0),BY14," -")) -> 105.7623049 | K14: =IF(C14=0,"",IF(OR(CJ14<>0,CI14=1),CJ14," -")) -> 14.88595438 | L14: =IF(C14=0,"",IF(OR(CU14<>0,CT14=1),CU14," -")) -> 151.4405762 | M14: =IF(C14=0,"",IF(OR(DF14<>0,DE14=1),DF14," -")) -> 105.7623049 | N14: =IF(C14=0,"",IF(OR(DQ14<>0,DP14=1),DQ14," -")) -> 2.881152461 | O14: =IF(C14=0,"",IF(OR(EB14<>0,EA14=1),EB14," -")) -> 16.32653061 | P14: =IF(C14=0,"",IF(OR(EM14<>0,EL14=1),EM14," -")) -> 14.88595438 | Q14: =IF(C14=0,"",IF(OR(EX14<>0,EW14=1),EX14," -")) -> 4.801920768 | R14: =IF(C14=0,"",IF(OR(FI14<>0,FH14=1),FI14," -")) -> 5.762304922 | S14: =IF(C14=0,"",IF(OR(FT14<>0,FS14=1),FT14," -")) -> 109.6038415 | T14: =IF(C14=0,"",IF(OR(GE14<>0,GD14=1),GE14," -")) -> 0 | U14: =IF(C14=0,"",IF(OR(GP14<>0,GO14=1),GP14," -")) -> 107.2028812 | V14: =IF(C14=0,"",IF(OR(HA14<>0,GZ14=1),HA14," -")) -> 5.282112845 | W14: =IF(C14=0,"",IF(OR(HL14<>0,HK14=1),HL14," -")) -> 2.881152461 | X14: =IF(C14=0,"",IF(AJ14<>0,AJ14," -")) -> - | Y14: =IF(C14=0,"",IF(OR(HW14<>0,HV14=1),HW14," -")) -> - | Z14: =IF(C14=0,"",IF(OR(IH14<>0,IG14=1),IH14," -")) -> - | AA14: =IF(C14=0,"",IF(AL14=1,"DNF",IF(AL14=2,"DSQ",IF(AM14<>1,"~ "&ROUND(SUM(H14:X14),3),ROUND(SUM(H14:X14),3))))) -> 664.766 | AD14: =IF(C14<>"",C14,"") -> 209 | AE14: =IF(AD14<>"",3,"") -> 3 | AF14: 1750 | AG14: 2380 | AH14: =IF(AD14<>"",(AF14/1000*AG14/1000)/2,"") -> 2.0825 | AI14: 3 | AM14: 1 | AP14: =IF(C14=0,99999,IF(AL14>0,9999,SUM(H14:X14)-AN14)) -> 664.7659064 | AQ14: =IF(C14=0,99999,IF(AL14=1,9999,SUM(Y14:Z14))) -> 0 | AT14: =IF(C14<>"",C14,"") -> 209 | AU14: 1 | AW14: 1 | BC14: =IF($C14="","", IF(BB14=1,0,IF(AZ14<>0,500,AU14*$AE14/$AH14+AV14/$AH14*5+AW14/$AH14*25+AX14*50+AY14*50))) -> 13.44537815 | BE14: =IF(C14<>"",C14,"") -> 209 | BF14: 1 | BG14: 1 | BN14: =IF($C14="","", IF(BM14=1,0,IF(BK14<>0,500,BF14*$AE14/$AH14+BG14/$AH14*5+BH14/$AH14*25+BI14*50+BJ14*50))) -> 3.841536615 | BP14: =IF(C14<>"",C14,"") -> 209 | BQ14: 4 | BT14: 1 | BU14: 1 | BW14: got stucked | BY14: =IF($C14="","", IF(BX14=1,0,IF(BV14<>0,500,BQ14*$AE14/$AH14+BR14/$AH14*5+BS14/$AH14*25+BT14*50+BU14*50))) -> 105.7623049 | CA14: =IF(C14<>"",C14,"") -> 209 | CB14: 2 | CD14: 1 | CJ14: =IF($C14="","", IF(CI14=1,0,IF(CG14<>0,500,CB14*$AE14/$AH14+CC14/$AH14*5+CD14/$AH14*25+CE14*50+CF14*50))) -> 14.88595438 | CL14: =IF(C14<>"",C14,"") -> 209 | CM14: 1 | CP14: 2 | CQ14: 1 | CU14: =IF($C14="","", IF(CT14=1,0,IF(CR14<>0,500,CM14*$AE14/$AH14+CN14/$AH14*5+CO14/$AH14*25+CP14*50+CQ14*50))) -> 151.4405762 | CW14: =IF(C14<>"",C14,"") -> 209 | CX14: 4 | DA14: 1 | DB14: 1 | DD14: time | DF14: =IF($C14="","", IF(DE14=1,0,IF(DC14<>0,500,CX14*$AE14/$AH14+CY14/$AH14*5+CZ14/$AH14*25+DA14*50+DB14*50))) -> 105.7623049 | DH14: =IF(C14<>"",C14,"") -> 209 | DI14: 2 | DQ14: =IF($C14="","", IF(DP14=1,0,IF(DN14<>0,500,DI14*$AE14/$AH14+DJ14/$AH14*5+DK14/$AH14*25+DL14*50+DM14*50))) -> 2.881152461 | DS14: =IF(C14<>"",C14,"") -> 209 | DT14: 3 | DV14: 1 | EB14: =IF($C14="","", IF(EA14=1,0,IF(DY14<>0,500,DT14*$AE14/$AH14+DU14/$AH14*5+DV14/$AH14*25+DW14*50+DX14*50))) -> 16.32653061 | ED14: =IF(C14<>"",C14,"") -> 209 | EE14: 2 | EG14: 1 | EM14: =IF($C14="","", IF(EL14=1,0,IF(EJ14<>0,500,EE14*$AE14/$AH14+EF14/$AH14*5+EG14/$AH14*25+EH14*50+EI14*50))) -> 14.88595438 | EO14: =IF(C14<>"",C14,"") -> 209 | EQ14: 2 | EX14: =IF($C14="","", IF(EW14=1,0,IF(EU14<>0,500,EP14*$AE14/$AH14+EQ14/$AH14*5+ER14/$AH14*25+ES14*50+ET14*50))) -> 4.801920768 | EZ14: =IF(C14<>"",C14,"") -> 209 | FA14: 4 | FI14: =IF($C14="","", IF(FH14=1,0,IF(FF14<>0,500,FA14*$AE14/$AH14+FB14/$AH14*5+FC14/$AH14*25+FD14*50+FE14*50))) -> 5.762304922 | FK14: =IF(C14<>"",C14,"") -> 209 | FL14: 5 | FM14: 1 | FO14: 1 | FP14: 1 | FR14: time | FT14: =IF($C14="","", IF(FS14=1,0,IF(FQ14<>0,500,FL14*$AE14/$AH14+FM14/$AH14*5+FN14/$AH14*25+FO14*50+FP14*50))) -> 109.6038415 | FV14: =IF(C14<>"",C14,"") -> 209 | GD14: 1 | GE14: =IF($C14="","", IF(GD14=1,0,IF(GB14<>0,500,FW14*$AE14/$AH14+FX14/$AH14*5+FY14/$AH14*25+FZ14*50+GA14*50))) -> 0 | GG14: =IF(C14<>"",C14,"") -> 209 | GH14: 5 | GK14: 1 | GL14: 1 | GN14: time | GP14: =IF($C14="","", IF(GO14=1,0,IF(GM14<>0,500,GH14*$AE14/$AH14+GI14/$AH14*5+GJ14/$AH14*25+GK14*50+GL14*50))) -> 107.2028812 | GR14: =IF(C14<>"",C14,"") -> 209 | GS14: 2 | GT14: 1 | HA14: =IF($C14="","", IF(GZ14=1,0,IF(GX14<>0,500,GS14*$AE14/$AH14+GT14/$AH14*5+GU14/$AH14*25+GV14*50+GW14*50))) -> 5.282112845 | HC14: =IF(C14<>"",C14,"") -> 209 | HD14: 2 | HL14: =IF($C14="","", IF(HK14=1,0,IF(HI14<>0,500,HD14*$AE14/$AH14+HE14/$AH14*5+HF14/$AH14*25+HG14*50+HH14*50))) -> 2.881152461 | HN14: =IF(C14<>"",C14,"") -> 209 | HW14: =IF($C14="","", IF(HV14=1,0,IF(HT14<>0,500,HO14*$AE14/$AH14+HP14/$AH14*5+HQ14/$AH14*25+HR14*50+HS14*50))) -> 0 | HY14: =IF(C14<>"",C14,"") -> 209 | IH14: =IF($C14="","", IF(IG14=1,0,IF(IE14<>0,500,HZ14*$AE14/$AH14+IA14/$AH14*5+IB14/$AH14*25+IC14*50+ID14*50))) -> 0
B15: =IF(C15=0,"",ROW(C15)-4) -> 11 | C15: 213 | D15: Norway | E15: Suzuki SJ410 | F15: Jørund Asdal | G15: Ådne Grunnsvoll | H15: =IF(C15=0,"",IF(OR(BB15=1,BC15<>0),BC15,"-")) -> 9.512485137 | I15: =IF(C15=0,"",IF(OR(BM15=1,BN15<>0),BN15,"-")) -> 2.038389672 | J15: =IF(C15=0,"",IF(OR(BX15=1,BY15<>0),BY15," -")) -> 124.4606761 | K15: =IF(C15=0,"",IF(OR(CJ15<>0,CI15=1),CJ15," -")) -> 5.435705792 | L15: =IF(C15=0,"",IF(OR(CU15<>0,CT15=1),CU15," -")) -> 124.4606761 | M15: =IF(C15=0,"",IF(OR(DF15<>0,DE15=1),DF15," -")) -> 127.178529 | N15: =IF(C15=0,"",IF(OR(DQ15<>0,DP15=1),DQ15," -")) -> 11.55087481 | O15: =IF(C15=0,"",IF(OR(EB15<>0,EA15=1),EB15," -")) -> 104.0767793 | P15: =IF(C15=0,"",IF(OR(EM15<>0,EL15=1),EM15," -")) -> 3.39731612 | Q15: =IF(C15=0,"",IF(OR(EX15<>0,EW15=1),EX15," -")) -> 4.076779344 | R15: =IF(C15=0,"",IF(OR(FI15<>0,FH15=1),FI15," -")) -> 5.435705792 | S15: =IF(C15=0,"",IF(OR(FT15<>0,FS15=1),FT15," -")) -> 2.038389672 | T15: =IF(C15=0,"",IF(OR(GE15<>0,GD15=1),GE15," -")) -> 0 | U15: =IF(C15=0,"",IF(OR(GP15<>0,GO15=1),GP15," -")) -> 108.1535587 | V15: =IF(C15=0,"",IF(OR(HA15<>0,GZ15=1),HA15," -")) -> 19.02497027 | W15: =IF(C15=0,"",IF(OR(HL15<>0,HK15=1),HL15," -")) -> 125.1401393 | X15: =IF(C15=0,"",IF(AJ15<>0,AJ15," -")) -> - | Y15: =IF(C15=0,"",IF(OR(HW15<>0,HV15=1),HW15," -")) -> - | Z15: =IF(C15=0,"",IF(OR(IH15<>0,IG15=1),IH15," -")) -> - | AA15: =IF(C15=0,"",IF(AL15=1,"DNF",IF(AL15=2,"DSQ",IF(AM15<>1,"~ "&ROUND(SUM(H15:X15),3),ROUND(SUM(H15:X15),3))))) -> 775.981 | AD15: =IF(C15<>"",C15,"") -> 213 | AE15: =IF(AD15<>"",3,"") -> 3 | AF15: 1450 | AG15: 2030 | AH15: =IF(AD15<>"",(AF15/1000*AG15/1000)/2,"") -> 1.47175 | AI15: 5 | AM15: 1 | AP15: =IF(C15=0,99999,IF(AL15>0,9999,SUM(H15:X15)-AN15)) -> 775.980975 | AQ15: =IF(C15=0,99999,IF(AL15=1,9999,SUM(Y15:Z15))) -> 0 | AT15: =IF(C15<>"",C15,"") -> 213 | AU15: 3 | AV15: 1 | BC15: =IF($C15="","", IF(BB15=1,0,IF(AZ15<>0,500,AU15*$AE15/$AH15+AV15/$AH15*5+AW15/$AH15*25+AX15*50+AY15*50))) -> 9.512485137 | BE15: =IF(C15<>"",C15,"") -> 213 | BF15: 1 | BN15: =IF($C15="","", IF(BM15=1,0,IF(BK15<>0,500,BF15*$AE15/$AH15+BG15/$AH15*5+BH15/$AH15*25+BI15*50+BJ15*50))) -> 2.038389672 | BP15: =IF(C15<>"",C15,"") -> 213 | BQ15: 2 | BR15: 1 | BS15: 1 | BT15: 1 | BU15: 1 | BW15: stuck | BY15: =IF($C15="","", IF(BX15=1,0,IF(BV15<>0,500,BQ15*$AE15/$AH15+BR15/$AH15*5+BS15/$AH15*25+BT15*50+BU15*50))) -> 124.4606761 | CA15: =IF(C15<>"",C15,"") -> 213 | CB15: 1 | CC15: 1 | CJ15: =IF($C15="","", IF(CI15=1,0,IF(CG15<>0,500,CB15*$AE15/$AH15+CC15/$AH15*5+CD15/$AH15*25+CE15*50+CF15*50))) -> 5.435705792 | CL15: =IF(C15<>"",C15,"") -> 213 | CM15: 2 | CN15: 1 | CO15: 1 | CP15: 1 | CQ15: 1 | CS15: time | CU15: =IF($C15="","", IF(CT15=1,0,IF(CR15<>0,500,CM15*$AE15/$AH15+CN15/$AH15*5+CO15/$AH15*25+CP15*50+CQ15*50))) -> 124.4606761 | CW15: =IF(C15<>"",C15,"") -> 213 | CX15: 5 | CZ15: 1 | DA15: 1 | DB15: 1 | DD15: time | DF15: =IF($C15="","", IF(DE15=1,0,IF(DC15<>0,500,CX15*$AE15/$AH15+CY15/$AH15*5+CZ15/$AH15*25+DA15*50+DB15*50))) -> 127.178529 | DH15: =IF(C15<>"",C15,"") -> 213 | DI15: 4 | DJ15: 1 | DQ15: =IF($C15="","", IF(DP15=1,0,IF(DN15<>0,500,DI15*$AE15/$AH15+DJ15/$AH15*5+DK15/$AH15*25+DL15*50+DM15*50))) -> 11.55087481 | DS15: =IF(C15<>"",C15,"") -> 213 | DT15: 2 | DW15: 1 | DX15: 1 | EB15: =IF($C15="","", IF(EA15=1,0,IF(DY15<>0,500,DT15*$AE15/$AH15+DU15/$AH15*5+DV15/$AH15*25+DW15*50+DX15*50))) -> 104.0767793 | ED15: =IF(C15<>"",C15,"") -> 213 | EF15: 1 | EM15: =IF($C15="","", IF(EL15=1,0,IF(EJ15<>0,500,EE15*$AE15/$AH15+EF15/$AH15*5+EG15/$AH15*25+EH15*50+EI15*50))) -> 3.39731612 | EO15: =IF(C15<>"",C15,"") -> 213 | EP15: 2 | EX15: =IF($C15="","", IF(EW15=1,0,IF(EU15<>0,500,EP15*$AE15/$AH15+EQ15/$AH15*5+ER15/$AH15*25+ES15*50+ET15*50))) -> 4.076779344 | EZ15: =IF(C15<>"",C15,"") -> 213 | FA15: 1 | FB15: 1 | FI15: =IF($C15="","", IF(FH15=1,0,IF(FF15<>0,500,FA15*$AE15/$AH15+FB15/$AH15*5+FC15/$AH15*25+FD15*50+FE15*50))) -> 5.435705792 | FK15: =IF(C15<>"",C15,"") -> 213 | FL15: 1 | FT15: =IF($C15="","", IF(FS15=1,0,IF(FQ15<>0,500,FL15*$AE15/$AH15+FM15/$AH15*5+FN15/$AH15*25+FO15*50+FP15*50))) -> 2.038389672 | FV15: =IF(C15<>"",C15,"") -> 213 | GD15: 1 | GE15: =IF($C15="","", IF(GD15=1,0,IF(GB15<>0,500,FW15*$AE15/$AH15+FX15/$AH15*5+FY15/$AH15*25+FZ15*50+GA15*50))) -> 0 | GG15: =IF(C15<>"",C15,"") -> 213 | GH15: 4 | GK15: 1 | GL15: 1 | GN15: time | GP15: =IF($C15="","", IF(GO15=1,0,IF(GM15<>0,500,GH15*$AE15/$AH15+GI15/$AH15*5+GJ15/$AH15*25+GK15*50+GL15*50))) -> 108.1535587 | GR15: =IF(C15<>"",C15,"") -> 213 | GS15: 1 | GU15: 1 | HA15: =IF($C15="","", IF(GZ15=1,0,IF(GX15<>0,500,GS15*$AE15/$AH15+GT15/$AH15*5+GU15/$AH15*25+GV15*50+GW15*50))) -> 19.02497027 | HC15: =IF(C15<>"",C15,"") -> 213 | HD15: 4 | HF15: 1 | HG15: 1 | HH15: 1 | HL15: =IF($C15="","", IF(HK15=1,0,IF(HI15<>0,500,HD15*$AE15/$AH15+HE15/$AH15*5+HF15/$AH15*25+HG15*50+HH15*50))) -> 125.1401393 | HN15: =IF(C15<>"",C15,"") -> 213 | HW15: =IF($C15="","", IF(HV15=1,0,IF(HT15<>0,500,HO15*$AE15/$AH15+HP15/$AH15*5+HQ15/$AH15*25+HR15*50+HS15*50))) -> 0 | HY15: =IF(C15<>"",C15,"") -> 213 | IH15: =IF($C15="","", IF(IG15=1,0,IF(IE15<>0,500,HZ15*$AE15/$AH15+IA15/$AH15*5+IB15/$AH15*25+IC15*50+ID15*50))) -> 0
B16: =IF(C16=0,"",ROW(C16)-4) -> 12 | C16: 223 | D16: Norway | E16: Suzuki 413 | F16: Mads Zimmermann | G16: Vilde Zimmermann | H16: =IF(C16=0,"",IF(OR(BB16=1,BC16<>0),BC16,"-")) -> 25.81960251 | I16: =IF(C16=0,"",IF(OR(BM16=1,BN16<>0),BN16,"-")) -> 257.4740955 | J16: =IF(C16=0,"",IF(OR(BX16=1,BY16<>0),BY16," -")) -> 119.0249703 | K16: =IF(C16=0,"",IF(OR(CJ16<>0,CI16=1),CJ16," -")) -> 7.474095465 | L16: =IF(C16=0,"",IF(OR(CU16<>0,CT16=1),CU16," -")) -> 117.6660438 | M16: =IF(C16=0,"",IF(OR(DF16<>0,DE16=1),DF16," -")) -> 108.1535587 | N16: =IF(C16=0,"",IF(OR(DQ16<>0,DP16=1),DQ16," -")) -> 5.435705792 | O16: =IF(C16=0,"",IF(OR(EB16<>0,EA16=1),EB16," -")) -> 127.178529 | P16: =IF(C16=0,"",IF(OR(EM16<>0,EL16=1),EM16," -")) -> 7.474095465 | Q16: =IF(C16=0,"",IF(OR(EX16<>0,EW16=1),EX16," -")) -> 2.038389672 | R16: =IF(C16=0,"",IF(OR(FI16<>0,FH16=1),FI16," -")) -> 2.038389672 | S16: =IF(C16=0,"",IF(OR(FT16<>0,FS16=1),FT16," -")) -> 11.55087481 | T16: =IF(C16=0,"",IF(OR(GE16<>0,GD16=1),GE16," -")) -> 4.076779344 | U16: =IF(C16=0,"",IF(OR(GP16<>0,GO16=1),GP16," -")) -> 6.115169016 | V16: =IF(C16=0,"",IF(OR(HA16<>0,GZ16=1),HA16," -")) -> 12.90980126 | W16: =IF(C16=0,"",IF(OR(HL16<>0,HK16=1),HL16," -")) -> 105.4357058 | X16: =IF(C16=0,"",IF(AJ16<>0,AJ16," -")) -> - | Y16: =IF(C16=0,"",IF(OR(HW16<>0,HV16=1),HW16," -")) -> - | Z16: =IF(C16=0,"",IF(OR(IH16<>0,IG16=1),IH16," -")) -> - | AA16: =IF(C16=0,"",IF(AL16=1,"DNF",IF(AL16=2,"DSQ",IF(AM16<>1,"~ "&ROUND(SUM(H16:X16),3),ROUND(SUM(H16:X16),3))))) -> 919.866 | AD16: =IF(C16<>"",C16,"") -> 223 | AE16: =IF(AD16<>"",3,"") -> 3 | AF16: 1450 | AG16: 2030 | AH16: =IF(AD16<>"",(AF16/1000*AG16/1000)/2,"") -> 1.47175 | AI16: 5 | AM16: 1 | AP16: =IF(C16=0,99999,IF(AL16>0,9999,SUM(H16:X16)-AN16)) -> 919.865806 | AQ16: =IF(C16=0,99999,IF(AL16=1,9999,SUM(Y16:Z16))) -> 0 | AT16: =IF(C16<>"",C16,"") -> 223 | AU16: 1 | AV16: 2 | AW16: 1 | BC16: =IF($C16="","", IF(BB16=1,0,IF(AZ16<>0,500,AU16*$AE16/$AH16+AV16/$AH16*5+AW16/$AH16*25+AX16*50+AY16*50))) -> 25.81960251 | BE16: =IF(C16<>"",C16,"") -> 223 | BF16: 2 | BG16: 1 | BI16: 4 | BJ16: 1 | BN16: =IF($C16="","", IF(BM16=1,0,IF(BK16<>0,500,BF16*$AE16/$AH16+BG16/$AH16*5+BH16/$AH16*25+BI16*50+BJ16*50))) -> 257.4740955 | BP16: =IF(C16<>"",C16,"") -> 223 | BQ16: 1 | BS16: 1 | BT16: 1 | BU16: 1 | BW16: stuck | BY16: =IF($C16="","", IF(BX16=1,0,IF(BV16<>0,500,BQ16*$AE16/$AH16+BR16/$AH16*5+BS16/$AH16*25+BT16*50+BU16*50))) -> 119.0249703 | CA16: =IF(C16<>"",C16,"") -> 223 | CB16: 2 | CC16: 1 | CJ16: =IF($C16="","", IF(CI16=1,0,IF(CG16<>0,500,CB16*$AE16/$AH16+CC16/$AH16*5+CD16/$AH16*25+CE16*50+CF16*50))) -> 7.474095465 | CL16: =IF(C16<>"",C16,"") -> 223 | CM16: 7 | CN16: 1 | CP16: 1 | CQ16: 1 | CU16: =IF($C16="","", IF(CT16=1,0,IF(CR16<>0,500,CM16*$AE16/$AH16+CN16/$AH16*5+CO16/$AH16*25+CP16*50+CQ16*50))) -> 117.6660438 | CW16: =IF(C16<>"",C16,"") -> 223 | CX16: 4 | DA16: 1 | DB16: 1 | DF16: =IF($C16="","", IF(DE16=1,0,IF(DC16<>0,500,CX16*$AE16/$AH16+CY16/$AH16*5+CZ16/$AH16*25+DA16*50+DB16*50))) -> 108.1535587 | DH16: =IF(C16<>"",C16,"") -> 223 | DI16: 1 | DJ16: 1 | DQ16: =IF($C16="","", IF(DP16=1,0,IF(DN16<>0,500,DI16*$AE16/$AH16+DJ16/$AH16*5+DK16/$AH16*25+DL16*50+DM16*50))) -> 5.435705792 | DS16: =IF(C16<>"",C16,"") -> 223 | DT16: 5 | DV16: 1 | DW16: 1 | DX16: 1 | EB16: =IF($C16="","", IF(EA16=1,0,IF(DY16<>0,500,DT16*$AE16/$AH16+DU16/$AH16*5+DV16/$AH16*25+DW16*50+DX16*50))) -> 127.178529 | ED16: =IF(C16<>"",C16,"") -> 223 | EE16: 2 | EF16: 1 | EM16: =IF($C16="","", IF(EL16=1,0,IF(EJ16<>0,500,EE16*$AE16/$AH16+EF16/$AH16*5+EG16/$AH16*25+EH16*50+EI16*50))) -> 7.474095465 | EO16: =IF(C16<>"",C16,"") -> 223 | EP16: 1 | EX16: =IF($C16="","", IF(EW16=1,0,IF(EU16<>0,500,EP16*$AE16/$AH16+EQ16/$AH16*5+ER16/$AH16*25+ES16*50+ET16*50))) -> 2.038389672 | EZ16: =IF(C16<>"",C16,"") -> 223 | FA16: 1 | FI16: =IF($C16="","", IF(FH16=1,0,IF(FF16<>0,500,FA16*$AE16/$AH16+FB16/$AH16*5+FC16/$AH16*25+FD16*50+FE16*50))) -> 2.038389672 | FK16: =IF(C16<>"",C16,"") -> 223 | FL16: 4 | FM16: 1 | FT16: =IF($C16="","", IF(FS16=1,0,IF(FQ16<>0,500,FL16*$AE16/$AH16+FM16/$AH16*5+FN16/$AH16*25+FO16*50+FP16*50))) -> 11.55087481 | FV16: =IF(C16<>"",C16,"") -> 223 | FW16: 2 | GE16: =IF($C16="","", IF(GD16=1,0,IF(GB16<>0,500,FW16*$AE16/$AH16+FX16/$AH16*5+FY16/$AH16*25+FZ16*50+GA16*50))) -> 4.076779344 | GG16: =IF(C16<>"",C16,"") -> 223 | GH16: 3 | GP16: =IF($C16="","", IF(GO16=1,0,IF(GM16<>0,500,GH16*$AE16/$AH16+GI16/$AH16*5+GJ16/$AH16*25+GK16*50+GL16*50))) -> 6.115169016 | GR16: =IF(C16<>"",C16,"") -> 223 | GS16: 3 | GT16: 2 | HA16: =IF($C16="","", IF(GZ16=1,0,IF(GX16<>0,500,GS16*$AE16/$AH16+GT16/$AH16*5+GU16/$AH16*25+GV16*50+GW16*50))) -> 12.90980126 | HC16: =IF(C16<>"",C16,"") -> 223 | HD16: 1 | HE16: 1 | HG16: 1 | HH16: 1 | HL16: =IF($C16="","", IF(HK16=1,0,IF(HI16<>0,500,HD16*$AE16/$AH16+HE16/$AH16*5+HF16/$AH16*25+HG16*50+HH16*50))) -> 105.4357058 | HN16: =IF(C16<>"",C16,"") -> 223 | HW16: =IF($C16="","", IF(HV16=1,0,IF(HT16<>0,500,HO16*$AE16/$AH16+HP16/$AH16*5+HQ16/$AH16*25+HR16*50+HS16*50))) -> 0 | HY16: =IF(C16<>"",C16,"") -> 223 | IH16: =IF($C16="","", IF(IG16=1,0,IF(IE16<>0,500,HZ16*$AE16/$AH16+IA16/$AH16*5+IB16/$AH16*25+IC16*50+ID16*50))) -> 0
B17: =IF(C17=0,"",ROW(C17)-4) -> 13 | C17: 221 | D17: Norway | E17: Suzuki SJ 413 | F17: Marius Hansen | H17: =IF(C17=0,"",IF(OR(BB17=1,BC17<>0),BC17,"-")) -> 0 | I17: =IF(C17=0,"",IF(OR(BM17=1,BN17<>0),BN17,"-")) -> 250 | J17: =IF(C17=0,"",IF(OR(BX17=1,BY17<>0),BY17," -")) -> 154.0767793 | K17: =IF(C17=0,"",IF(OR(CJ17<>0,CI17=1),CJ17," -")) -> 7.474095465 | L17: =IF(C17=0,"",IF(OR(CU17<>0,CT17=1),CU17," -")) -> 8.153558689 | M17: =IF(C17=0,"",IF(OR(DF17<>0,DE17=1),DF17," -")) -> 48.24188891 | N17: =IF(C17=0,"",IF(OR(DQ17<>0,DP17=1),DQ17," -")) -> 12.23033803 | O17: =IF(C17=0,"",IF(OR(EB17<>0,EA17=1),EB17," -")) -> 110.1919484 | P17: =IF(C17=0,"",IF(OR(EM17<>0,EL17=1),EM17," -")) -> 250 | Q17: =IF(C17=0,"",IF(OR(EX17<>0,EW17=1),EX17," -")) -> 250 | R17: =IF(C17=0,"",IF(OR(FI17<>0,FH17=1),FI17," -")) -> 119.0249703 | S17: =IF(C17=0,"",IF(OR(FT17<>0,FS17=1),FT17," -")) -> 4.076779344 | T17: =IF(C17=0,"",IF(OR(GE17<>0,GD17=1),GE17," -")) -> 271.0633599 | U17: =IF(C17=0,"",IF(OR(GP17<>0,GO17=1),GP17," -")) -> 21.06335995 | V17: =IF(C17=0,"",IF(OR(HA17<>0,GZ17=1),HA17," -")) -> 7.474095465 | W17: =IF(C17=0,"",IF(OR(HL17<>0,HK17=1),HL17," -")) -> 250 | X17: =IF(C17=0,"",IF(AJ17<>0,AJ17," -")) -> - | Y17: =IF(C17=0,"",IF(OR(HW17<>0,HV17=1),HW17," -")) -> - | Z17: =IF(C17=0,"",IF(OR(IH17<>0,IG17=1),IH17," -")) -> - | AA17: =IF(C17=0,"",IF(AL17=1,"DNF",IF(AL17=2,"DSQ",IF(AM17<>1,"~ "&ROUND(SUM(H17:X17),3),ROUND(SUM(H17:X17),3))))) -> 1763.071 | AD17: =IF(C17<>"",C17,"") -> 221 | AE17: =IF(AD17<>"",3,"") -> 3 | AF17: 1450 | AG17: 2030 | AH17: =IF(AD17<>"",(AF17/1000*AG17/1000)/2,"") -> 1.47175 | AI17: 5 | AM17: 1 | AP17: =IF(C17=0,99999,IF(AL17>0,9999,SUM(H17:X17)-AN17)) -> 1763.071174 | AQ17: =IF(C17=0,99999,IF(AL17=1,9999,SUM(Y17:Z17))) -> 0 | AT17: =IF(C17<>"",C17,"") -> 221 | BB17: 1 | BC17: =IF($C17="","", IF(BB17=1,0,IF(AZ17<>0,500,AU17*$AE17/$AH17+AV17/$AH17*5+AW17/$AH17*25+AX17*50+AY17*50))) -> 0 | BE17: =IF(C17<>"",C17,"") -> 221 | BI17: 4 | BJ17: 1 | BL17: Roll over | BN17: =IF($C17="","", IF(BM17=1,0,IF(BK17<>0,500,BF17*$AE17/$AH17+BG17/$AH17*5+BH17/$AH17*25+BI17*50+BJ17*50))) -> 250 | BP17: =IF(C17<>"",C17,"") -> 221 | BQ17: 2 | BT17: 2 | BU17: 1 | BW17: Front right tire broke stick | BY17: =IF($C17="","", IF(BX17=1,0,IF(BV17<>0,500,BQ17*$AE17/$AH17+BR17/$AH17*5+BS17/$AH17*25+BT17*50+BU17*50))) -> 154.0767793 | CA17: =IF(C17<>"",C17,"") -> 221 | CB17: 2 | CC17: 1 | CJ17: =IF($C17="","", IF(CI17=1,0,IF(CG17<>0,500,CB17*$AE17/$AH17+CC17/$AH17*5+CD17/$AH17*25+CE17*50+CF17*50))) -> 7.474095465 | CL17: =IF(C17<>"",C17,"") -> 221 | CM17: 4 | CU17: =IF($C17="","", IF(CT17=1,0,IF(CR17<>0,500,CM17*$AE17/$AH17+CN17/$AH17*5+CO17/$AH17*25+CP17*50+CQ17*50))) -> 8.153558689 | CW17: =IF(C17<>"",C17,"") -> 221 | CX17: 7 | CZ17: 2 | DF17: =IF($C17="","", IF(DE17=1,0,IF(DC17<>0,500,CX17*$AE17/$AH17+CY17/$AH17*5+CZ17/$AH17*25+DA17*50+DB17*50))) -> 48.24188891 | DH17: =IF(C17<>"",C17,"") -> 221 | DI17: 6 | DQ17: =IF($C17="","", IF(DP17=1,0,IF(DN17<>0,500,DI17*$AE17/$AH17+DJ17/$AH17*5+DK17/$AH17*25+DL17*50+DM17*50))) -> 12.23033803 | DS17: =IF(C17<>"",C17,"") -> 221 | DT17: 5 | DW17: 1 | DX17: 1 | DZ17: Stuck | EB17: =IF($C17="","", IF(EA17=1,0,IF(DY17<>0,500,DT17*$AE17/$AH17+DU17/$AH17*5+DV17/$AH17*25+DW17*50+DX17*50))) -> 110.1919484 | ED17: =IF(C17<>"",C17,"") -> 221 | EH17: 4 | EI17: 1 | EM17: =IF($C17="","", IF(EL17=1,0,IF(EJ17<>0,500,EE17*$AE17/$AH17+EF17/$AH17*5+EG17/$AH17*25+EH17*50+EI17*50))) -> 250 | EO17: =IF(C17<>"",C17,"") -> 221 | ES17: 4 | ET17: 1 | EX17: =IF($C17="","", IF(EW17=1,0,IF(EU17<>0,500,EP17*$AE17/$AH17+EQ17/$AH17*5+ER17/$AH17*25+ES17*50+ET17*50))) -> 250 | EZ17: =IF(C17<>"",C17,"") -> 221 | FA17: 1 | FC17: 1 | FD17: 1 | FE17: 1 | FI17: =IF($C17="","", IF(FH17=1,0,IF(FF17<>0,500,FA17*$AE17/$AH17+FB17/$AH17*5+FC17/$AH17*25+FD17*50+FE17*50))) -> 119.0249703 | FK17: =IF(C17<>"",C17,"") -> 221 | FL17: 2 | FT17: =IF($C17="","", IF(FS17=1,0,IF(FQ17<>0,500,FL17*$AE17/$AH17+FM17/$AH17*5+FN17/$AH17*25+FO17*50+FP17*50))) -> 4.076779344 | FV17: =IF(C17<>"",C17,"") -> 221 | FW17: 2 | FY17: 1 | FZ17: 4 | GA17: 1 | GE17: =IF($C17="","", IF(GD17=1,0,IF(GB17<>0,500,FW17*$AE17/$AH17+FX17/$AH17*5+FY17/$AH17*25+FZ17*50+GA17*50))) -> 271.0633599 | GG17: =IF(C17<>"",C17,"") -> 221 | GH17: 2 | GJ17: 1 | GP17: =IF($C17="","", IF(GO17=1,0,IF(GM17<>0,500,GH17*$AE17/$AH17+GI17/$AH17*5+GJ17/$AH17*25+GK17*50+GL17*50))) -> 21.06335995 | GR17: =IF(C17<>"",C17,"") -> 221 | GS17: 2 | GT17: 1 | HA17: =IF($C17="","", IF(GZ17=1,0,IF(GX17<>0,500,GS17*$AE17/$AH17+GT17/$AH17*5+GU17/$AH17*25+GV17*50+GW17*50))) -> 7.474095465 | HC17: =IF(C17<>"",C17,"") -> 221 | HG17: 4 | HH17: 1 | HL17: =IF($C17="","", IF(HK17=1,0,IF(HI17<>0,500,HD17*$AE17/$AH17+HE17/$AH17*5+HF17/$AH17*25+HG17*50+HH17*50))) -> 250 | HN17: =IF(C17<>"",C17,"") -> 221 | HW17: =IF($C17="","", IF(HV17=1,0,IF(HT17<>0,500,HO17*$AE17/$AH17+HP17/$AH17*5+HQ17/$AH17*25+HR17*50+HS17*50))) -> 0 | HY17: =IF(C17<>"",C17,"") -> 221 | IH17: =IF($C17="","", IF(IG17=1,0,IF(IE17<>0,500,HZ17*$AE17/$AH17+IA17/$AH17*5+IB17/$AH17*25+IC17*50+ID17*50))) -> 0
B18: =IF(C18=0,"",ROW(C18)-4) -> 14 | C18: 219 | D18: Norway | E18: Suzuki SJ413 | F18: Thomas André Paulsen | G18: Rebekka Paulsen | H18: =IF(C18=0,"",IF(OR(BB18=1,BC18<>0),BC18,"-")) -> 7.474095465 | I18: =IF(C18=0,"",IF(OR(BM18=1,BN18<>0),BN18,"-")) -> 500 | J18: =IF(C18=0,"",IF(OR(BX18=1,BY18<>0),BY18," -")) -> 500 | K18: =IF(C18=0,"",IF(OR(CJ18<>0,CI18=1),CJ18," -")) -> 90.08833022 | L18: =IF(C18=0,"",IF(OR(CU18<>0,CT18=1),CU18," -")) -> 204.0767793 | M18: =IF(C18=0,"",IF(OR(DF18<>0,DE18=1),DF18," -")) -> 500 | N18: =IF(C18=0,"",IF(OR(DQ18<>0,DP18=1),DQ18," -")) -> 50.9597418 | O18: =IF(C18=0,"",IF(OR(EB18<>0,EA18=1),EB18," -")) -> 500 | P18: =IF(C18=0,"",IF(OR(EM18<>0,EL18=1),EM18," -")) -> 157.4740955 | Q18: =IF(C18=0,"",IF(OR(EX18<>0,EW18=1),EX18," -")) -> 500 | R18: =IF(C18=0,"",IF(OR(FI18<>0,FH18=1),FI18," -")) -> 500 | S18: =IF(C18=0,"",IF(OR(FT18<>0,FS18=1),FT18," -")) -> 23.10174962 | T18: =IF(C18=0,"",IF(OR(GE18<>0,GD18=1),GE18," -")) -> 269.0249703 | U18: =IF(C18=0,"",IF(OR(GP18<>0,GO18=1),GP18," -")) -> 114.9481909 | V18: =IF(C18=0,"",IF(OR(HA18<>0,GZ18=1),HA18," -")) -> 127.178529 | W18: =IF(C18=0,"",IF(OR(HL18<>0,HK18=1),HL18," -")) -> 500 | X18: =IF(C18=0,"",IF(AJ18<>0,AJ18," -")) -> - | Y18: =IF(C18=0,"",IF(OR(HW18<>0,HV18=1),HW18," -")) -> - | Z18: =IF(C18=0,"",IF(OR(IH18<>0,IG18=1),IH18," -")) -> - | AA18: =IF(C18=0,"",IF(AL18=1,"DNF",IF(AL18=2,"DSQ",IF(AM18<>1,"~ "&ROUND(SUM(H18:X18),3),ROUND(SUM(H18:X18),3))))) -> 4544.326 | AD18: =IF(C18<>"",C18,"") -> 219 | AE18: =IF(AD18<>"",3,"") -> 3 | AF18: 1450 | AG18: 2030 | AH18: =IF(AD18<>"",(AF18/1000*AG18/1000)/2,"") -> 1.47175 | AI18: 5 | AM18: 1 | AP18: =IF(C18=0,99999,IF(AL18>0,9999,SUM(H18:X18)-AN18)) -> 4544.326482 | AQ18: =IF(C18=0,99999,IF(AL18=1,9999,SUM(Y18:Z18))) -> 0 | AT18: =IF(C18<>"",C18,"") -> 219 | AU18: 2 | AV18: 1 | BC18: =IF($C18="","", IF(BB18=1,0,IF(AZ18<>0,500,AU18*$AE18/$AH18+AV18/$AH18*5+AW18/$AH18*25+AX18*50+AY18*50))) -> 7.474095465 | BE18: =IF(C18<>"",C18,"") -> 219 | BK18: 1 | BN18: =IF($C18="","", IF(BM18=1,0,IF(BK18<>0,500,BF18*$AE18/$AH18+BG18/$AH18*5+BH18/$AH18*25+BI18*50+BJ18*50))) -> 500 | BP18: =IF(C18<>"",C18,"") -> 219 | BV18: 1 | BY18: =IF($C18="","", IF(BX18=1,0,IF(BV18<>0,500,BQ18*$AE18/$AH18+BR18/$AH18*5+BS18/$AH18*25+BT18*50+BU18*50))) -> 500 | CA18: =IF(C18<>"",C18,"") -> 219 | CB18: 3 | CD18: 2 | CF18: 1 | CH18: time | CJ18: =IF($C18="","", IF(CI18=1,0,IF(CG18<>0,500,CB18*$AE18/$AH18+CC18/$AH18*5+CD18/$AH18*25+CE18*50+CF18*50))) -> 90.08833022 | CL18: =IF(C18<>"",C18,"") -> 219 | CM18: 2 | CP18: 3 | CQ18: 1 | CU18: =IF($C18="","", IF(CT18=1,0,IF(CR18<>0,500,CM18*$AE18/$AH18+CN18/$AH18*5+CO18/$AH18*25+CP18*50+CQ18*50))) -> 204.0767793 | CW18: =IF(C18<>"",C18,"") -> 219 | DC18: 1 | DF18: =IF($C18="","", IF(DE18=1,0,IF(DC18<>0,500,CX18*$AE18/$AH18+CY18/$AH18*5+CZ18/$AH18*25+DA18*50+DB18*50))) -> 500 | DH18: =IF(C18<>"",C18,"") -> 219 | DI18: 5 | DJ18: 2 | DK18: 2 | DQ18: =IF($C18="","", IF(DP18=1,0,IF(DN18<>0,500,DI18*$AE18/$AH18+DJ18/$AH18*5+DK18/$AH18*25+DL18*50+DM18*50))) -> 50.9597418 | DS18: =IF(C18<>"",C18,"") -> 219 | DY18: 1 | EB18: =IF($C18="","", IF(EA18=1,0,IF(DY18<>0,500,DT18*$AE18/$AH18+DU18/$AH18*5+DV18/$AH18*25+DW18*50+DX18*50))) -> 500 | ED18: =IF(C18<>"",C18,"") -> 219 | EE18: 2 | EF18: 1 | EH18: 2 | EI18: 1 | EM18: =IF($C18="","", IF(EL18=1,0,IF(EJ18<>0,500,EE18*$AE18/$AH18+EF18/$AH18*5+EG18/$AH18*25+EH18*50+EI18*50))) -> 157.4740955 | EO18: =IF(C18<>"",C18,"") -> 219 | EU18: 1 | EX18: =IF($C18="","", IF(EW18=1,0,IF(EU18<>0,500,EP18*$AE18/$AH18+EQ18/$AH18*5+ER18/$AH18*25+ES18*50+ET18*50))) -> 500 | EZ18: =IF(C18<>"",C18,"") -> 219 | FF18: 1 | FI18: =IF($C18="","", IF(FH18=1,0,IF(FF18<>0,500,FA18*$AE18/$AH18+FB18/$AH18*5+FC18/$AH18*25+FD18*50+FE18*50))) -> 500 | FK18: =IF(C18<>"",C18,"") -> 219 | FL18: 3 | FN18: 1 | FT18: =IF($C18="","", IF(FS18=1,0,IF(FQ18<>0,500,FL18*$AE18/$AH18+FM18/$AH18*5+FN18/$AH18*25+FO18*50+FP18*50))) -> 23.10174962 | FV18: =IF(C18<>"",C18,"") -> 219 | FW18: 1 | FY18: 1 | FZ18: 4 | GA18: 1 | GC18: roll over | GE18: =IF($C18="","", IF(GD18=1,0,IF(GB18<>0,500,FW18*$AE18/$AH18+FX18/$AH18*5+FY18/$AH18*25+FZ18*50+GA18*50))) -> 269.0249703 | GG18: =IF(C18<>"",C18,"") -> 219 | GH18: 4 | GI18: 2 | GK18: 1 | GL18: 1 | GP18: =IF($C18="","", IF(GO18=1,0,IF(GM18<>0,500,GH18*$AE18/$AH18+GI18/$AH18*5+GJ18/$AH18*25+GK18*50+GL18*50))) -> 114.9481909 | GR18: =IF(C18<>"",C18,"") -> 219 | GS18: 5 | GU18: 1 | GV18: 1 | GW18: 1 | GY18: technical problem | HA18: =IF($C18="","", IF(GZ18=1,0,IF(GX18<>0,500,GS18*$AE18/$AH18+GT18/$AH18*5+GU18/$AH18*25+GV18*50+GW18*50))) -> 127.178529 | HC18: =IF(C18<>"",C18,"") -> 219 | HI18: 1 | HL18: =IF($C18="","", IF(HK18=1,0,IF(HI18<>0,500,HD18*$AE18/$AH18+HE18/$AH18*5+HF18/$AH18*25+HG18*50+HH18*50))) -> 500 | HN18: =IF(C18<>"",C18,"") -> 219 | HW18: =IF($C18="","", IF(HV18=1,0,IF(HT18<>0,500,HO18*$AE18/$AH18+HP18/$AH18*5+HQ18/$AH18*25+HR18*50+HS18*50))) -> 0 | HY18: =IF(C18<>"",C18,"") -> 219 | IH18: =IF($C18="","", IF(IG18=1,0,IF(IE18<>0,500,HZ18*$AE18/$AH18+IA18/$AH18*5+IB18/$AH18*25+IC18*50+ID18*50))) -> 0
B19: =IF(C19=0,"",ROW(C19)-4) -> 15 | C19: 207 | D19: Sweden | E19: Suzuki Jimny | F19: Sven Falck | G19: John Rasby | H19: =IF(C19=0,"",IF(OR(BB19=1,BC19<>0),BC19,"-")) -> 2.777777778 | I19: =IF(C19=0,"",IF(OR(BM19=1,BN19<>0),BN19,"-")) -> 1.666666667 | J19: =IF(C19=0,"",IF(OR(BX19=1,BY19<>0),BY19," -")) -> 18.88888889 | K19: =IF(C19=0,"",IF(OR(CJ19<>0,CI19=1),CJ19," -")) -> 500 | L19: =IF(C19=0,"",IF(OR(CU19<>0,CT19=1),CU19," -")) -> 500 | M19: =IF(C19=0,"",IF(OR(DF19<>0,DE19=1),DF19," -")) -> 500 | N19: =IF(C19=0,"",IF(OR(DQ19<>0,DP19=1),DQ19," -")) -> 116.1111111 | O19: =IF(C19=0,"",IF(OR(EB19<>0,EA19=1),EB19," -")) -> 20 | P19: =IF(C19=0,"",IF(OR(EM19<>0,EL19=1),EM19," -")) -> 500 | Q19: =IF(C19=0,"",IF(OR(EX19<>0,EW19=1),EX19," -")) -> 500 | R19: =IF(C19=0,"",IF(OR(FI19<>0,FH19=1),FI19," -")) -> 500 | S19: =IF(C19=0,"",IF(OR(FT19<>0,FS19=1),FT19," -")) -> 500 | T19: =IF(C19=0,"",IF(OR(GE19<>0,GD19=1),GE19," -")) -> 500 | U19: =IF(C19=0,"",IF(OR(GP19<>0,GO19=1),GP19," -")) -> 500 | V19: =IF(C19=0,"",IF(OR(HA19<>0,GZ19=1),HA19," -")) -> 500 | W19: =IF(C19=0,"",IF(OR(HL19<>0,HK19=1),HL19," -")) -> 500 | X19: =IF(C19=0,"",IF(AJ19<>0,AJ19," -")) -> - | Y19: =IF(C19=0,"",IF(OR(HW19<>0,HV19=1),HW19," -")) -> - | Z19: =IF(C19=0,"",IF(OR(IH19<>0,IG19=1),IH19," -")) -> - | AA19: =IF(C19=0,"",IF(AL19=1,"DNF",IF(AL19=2,"DSQ",IF(AM19<>1,"~ "&ROUND(SUM(H19:X19),3),ROUND(SUM(H19:X19),3))))) -> 5659.444 | AD19: =IF(C19<>"",C19,"") -> 207 | AE19: =IF(AD19<>"",3,"") -> 3 | AF19: 1600 | AG19: 2250 | AH19: =IF(AD19<>"",(AF19/1000*AG19/1000)/2,"") -> 1.8 | AI19: 4 | AM19: 1 | AP19: =IF(C19=0,99999,IF(AL19>0,9999,SUM(H19:X19)-AN19)) -> 5659.444444 | AQ19: =IF(C19=0,99999,IF(AL19=1,9999,SUM(Y19:Z19))) -> 0 | AT19: =IF(C19<>"",C19,"") -> 207 | AV19: 1 | BC19: =IF($C19="","", IF(BB19=1,0,IF(AZ19<>0,500,AU19*$AE19/$AH19+AV19/$AH19*5+AW19/$AH19*25+AX19*50+AY19*50))) -> 2.777777778 | BE19: =IF(C19<>"",C19,"") -> 207 | BF19: 1 | BN19: =IF($C19="","", IF(BM19=1,0,IF(BK19<>0,500,BF19*$AE19/$AH19+BG19/$AH19*5+BH19/$AH19*25+BI19*50+BJ19*50))) -> 1.666666667 | BP19: =IF(C19<>"",C19,"") -> 207 | BQ19: 3 | BS19: 1 | BY19: =IF($C19="","", IF(BX19=1,0,IF(BV19<>0,500,BQ19*$AE19/$AH19+BR19/$AH19*5+BS19/$AH19*25+BT19*50+BU19*50))) -> 18.88888889 | CA19: =IF(C19<>"",C19,"") -> 207 | CG19: 1 | CJ19: =IF($C19="","", IF(CI19=1,0,IF(CG19<>0,500,CB19*$AE19/$AH19+CC19/$AH19*5+CD19/$AH19*25+CE19*50+CF19*50))) -> 500 | CL19: =IF(C19<>"",C19,"") -> 207 | CR19: 1 | CU19: =IF($C19="","", IF(CT19=1,0,IF(CR19<>0,500,CM19*$AE19/$AH19+CN19/$AH19*5+CO19/$AH19*25+CP19*50+CQ19*50))) -> 500 | CW19: =IF(C19<>"",C19,"") -> 207 | DC19: 1 | DF19: =IF($C19="","", IF(DE19=1,0,IF(DC19<>0,500,CX19*$AE19/$AH19+CY19/$AH19*5+CZ19/$AH19*25+DA19*50+DB19*50))) -> 500 | DH19: =IF(C19<>"",C19,"") -> 207 | DI19: 8 | DJ19: 1 | DL19: 1 | DM19: 1 | DO19: winched + time | DQ19: =IF($C19="","", IF(DP19=1,0,IF(DN19<>0,500,DI19*$AE19/$AH19+DJ19/$AH19*5+DK19/$AH19*25+DL19*50+DM19*50))) -> 116.1111111 | DS19: =IF(C19<>"",C19,"") -> 207 | DT19: 2 | DU19: 1 | DV19: 1 | EB19: =IF($C19="","", IF(EA19=1,0,IF(DY19<>0,500,DT19*$AE19/$AH19+DU19/$AH19*5+DV19/$AH19*25+DW19*50+DX19*50))) -> 20 | ED19: =IF(C19<>"",C19,"") -> 207 | EJ19: 1 | EM19: =IF($C19="","", IF(EL19=1,0,IF(EJ19<>0,500,EE19*$AE19/$AH19+EF19/$AH19*5+EG19/$AH19*25+EH19*50+EI19*50))) -> 500 | EO19: =IF(C19<>"",C19,"") -> 207 | EU19: 1 | EX19: =IF($C19="","", IF(EW19=1,0,IF(EU19<>0,500,EP19*$AE19/$AH19+EQ19/$AH19*5+ER19/$AH19*25+ES19*50+ET19*50))) -> 500 | EZ19: =IF(C19<>"",C19,"") -> 207 | FF19: 1 | FI19: =IF($C19="","", IF(FH19=1,0,IF(FF19<>0,500,FA19*$AE19/$AH19+FB19/$AH19*5+FC19/$AH19*25+FD19*50+FE19*50))) -> 500 | FK19: =IF(C19<>"",C19,"") -> 207 | FQ19: 1 | FT19: =IF($C19="","", IF(FS19=1,0,IF(FQ19<>0,500,FL19*$AE19/$AH19+FM19/$AH19*5+FN19/$AH19*25+FO19*50+FP19*50))) -> 500 | FV19: =IF(C19<>"",C19,"") -> 207 | GB19: 1 | GE19: =IF($C19="","", IF(GD19=1,0,IF(GB19<>0,500,FW19*$AE19/$AH19+FX19/$AH19*5+FY19/$AH19*25+FZ19*50+GA19*50))) -> 500 | GG19: =IF(C19<>"",C19,"") -> 207 | GM19: 1 | GP19: =IF($C19="","", IF(GO19=1,0,IF(GM19<>0,500,GH19*$AE19/$AH19+GI19/$AH19*5+GJ19/$AH19*25+GK19*50+GL19*50))) -> 500 | GR19: =IF(C19<>"",C19,"") -> 207 | GX19: 1 | HA19: =IF($C19="","", IF(GZ19=1,0,IF(GX19<>0,500,GS19*$AE19/$AH19+GT19/$AH19*5+GU19/$AH19*25+GV19*50+GW19*50))) -> 500 | HC19: =IF(C19<>"",C19,"") -> 207 | HI19: 1 | HL19: =IF($C19="","", IF(HK19=1,0,IF(HI19<>0,500,HD19*$AE19/$AH19+HE19/$AH19*5+HF19/$AH19*25+HG19*50+HH19*50))) -> 500 | HN19: =IF(C19<>"",C19,"") -> 207 | HW19: =IF($C19="","", IF(HV19=1,0,IF(HT19<>0,500,HO19*$AE19/$AH19+HP19/$AH19*5+HQ19/$AH19*25+HR19*50+HS19*50))) -> 0 | HY19: =IF(C19<>"",C19,"") -> 207 | IH19: =IF($C19="","", IF(IG19=1,0,IF(IE19<>0,500,HZ19*$AE19/$AH19+IA19/$AH19*5+IB19/$AH19*25+IC19*50+ID19*50))) -> 0
B20: =IF(C20=0,"",ROW(C20)-4) -> 16 | C20: 208 | D20: Switzerland | E20: Jeep Wrangler TJ | F20: Kurt Kälin | G20: Nicole Kälin | H20: =IF(C20=0,"",IF(OR(BB20=1,BC20<>0),BC20,"-")) -> 500 | I20: =IF(C20=0,"",IF(OR(BM20=1,BN20<>0),BN20,"-")) -> 500 | J20: =IF(C20=0,"",IF(OR(BX20=1,BY20<>0),BY20," -")) -> 500 | K20: =IF(C20=0,"",IF(OR(CJ20<>0,CI20=1),CJ20," -")) -> 5.762304922 | L20: =IF(C20=0,"",IF(OR(CU20<>0,CT20=1),CU20," -")) -> 155.7623049 | M20: =IF(C20=0,"",IF(OR(DF20<>0,DE20=1),DF20," -")) -> 20.6482593 | N20: =IF(C20=0,"",IF(OR(DQ20<>0,DP20=1),DQ20," -")) -> 500 | O20: =IF(C20=0,"",IF(OR(EB20<>0,EA20=1),EB20," -")) -> 500 | P20: =IF(C20=0,"",IF(OR(EM20<>0,EL20=1),EM20," -")) -> 500 | Q20: =IF(C20=0,"",IF(OR(EX20<>0,EW20=1),EX20," -")) -> 500 | R20: =IF(C20=0,"",IF(OR(FI20<>0,FH20=1),FI20," -")) -> 500 | S20: =IF(C20=0,"",IF(OR(FT20<>0,FS20=1),FT20," -")) -> 500 | T20: =IF(C20=0,"",IF(OR(GE20<>0,GD20=1),GE20," -")) -> 500 | U20: =IF(C20=0,"",IF(OR(GP20<>0,GO20=1),GP20," -")) -> 500 | V20: =IF(C20=0,"",IF(OR(HA20<>0,GZ20=1),HA20," -")) -> 500 | W20: =IF(C20=0,"",IF(OR(HL20<>0,HK20=1),HL20," -")) -> 500 | X20: =IF(C20=0,"",IF(AJ20<>0,AJ20," -")) -> - | Y20: =IF(C20=0,"",IF(OR(HW20<>0,HV20=1),HW20," -")) -> - | Z20: =IF(C20=0,"",IF(OR(IH20<>0,IG20=1),IH20," -")) -> - | AA20: =IF(C20=0,"",IF(AL20=1,"DNF",IF(AL20=2,"DSQ",IF(AM20<>1,"~ "&ROUND(SUM(H20:X20),3),ROUND(SUM(H20:X20),3))))) -> 6682.173 | AD20: =IF(C20<>"",C20,"") -> 208 | AE20: =IF(AD20<>"",3,"") -> 3 | AF20: 1750 | AG20: 2380 | AH20: =IF(AD20<>"",(AF20/1000*AG20/1000)/2,"") -> 2.0825 | AI20: 3 | AM20: 1 | AP20: =IF(C20=0,99999,IF(AL20>0,9999,SUM(H20:X20)-AN20)) -> 6682.172869 | AQ20: =IF(C20=0,99999,IF(AL20=1,9999,SUM(Y20:Z20))) -> 0 | AT20: =IF(C20<>"",C20,"") -> 208 | AZ20: 1 | BC20: =IF($C20="","", IF(BB20=1,0,IF(AZ20<>0,500,AU20*$AE20/$AH20+AV20/$AH20*5+AW20/$AH20*25+AX20*50+AY20*50))) -> 500 | BE20: =IF(C20<>"",C20,"") -> 208 | BK20: 1 | BN20: =IF($C20="","", IF(BM20=1,0,IF(BK20<>0,500,BF20*$AE20/$AH20+BG20/$AH20*5+BH20/$AH20*25+BI20*50+BJ20*50))) -> 500 | BP20: =IF(C20<>"",C20,"") -> 208 | BV20: 1 | BY20: =IF($C20="","", IF(BX20=1,0,IF(BV20<>0,500,BQ20*$AE20/$AH20+BR20/$AH20*5+BS20/$AH20*25+BT20*50+BU20*50))) -> 500 | CA20: =IF(C20<>"",C20,"") -> 208 | CB20: 4 | CJ20: =IF($C20="","", IF(CI20=1,0,IF(CG20<>0,500,CB20*$AE20/$AH20+CC20/$AH20*5+CD20/$AH20*25+CE20*50+CF20*50))) -> 5.762304922 | CL20: =IF(C20<>"",C20,"") -> 208 | CM20: 4 | CP20: 2 | CQ20: 1 | CU20: =IF($C20="","", IF(CT20=1,0,IF(CR20<>0,500,CM20*$AE20/$AH20+CN20/$AH20*5+CO20/$AH20*25+CP20*50+CQ20*50))) -> 155.7623049 | CW20: =IF(C20<>"",C20,"") -> 208 | CX20: 6 | CZ20: 1 | DF20: =IF($C20="","", IF(DE20=1,0,IF(DC20<>0,500,CX20*$AE20/$AH20+CY20/$AH20*5+CZ20/$AH20*25+DA20*50+DB20*50))) -> 20.6482593 | DH20: =IF(C20<>"",C20,"") -> 208 | DN20: 1 | DQ20: =IF($C20="","", IF(DP20=1,0,IF(DN20<>0,500,DI20*$AE20/$AH20+DJ20/$AH20*5+DK20/$AH20*25+DL20*50+DM20*50))) -> 500 | DS20: =IF(C20<>"",C20,"") -> 208 | DY20: 1 | EB20: =IF($C20="","", IF(EA20=1,0,IF(DY20<>0,500,DT20*$AE20/$AH20+DU20/$AH20*5+DV20/$AH20*25+DW20*50+DX20*50))) -> 500 | ED20: =IF(C20<>"",C20,"") -> 208 | EJ20: 1 | EM20: =IF($C20="","", IF(EL20=1,0,IF(EJ20<>0,500,EE20*$AE20/$AH20+EF20/$AH20*5+EG20/$AH20*25+EH20*50+EI20*50))) -> 500 | EO20: =IF(C20<>"",C20,"") -> 208 | EU20: 1 | EX20: =IF($C20="","", IF(EW20=1,0,IF(EU20<>0,500,EP20*$AE20/$AH20+EQ20/$AH20*5+ER20/$AH20*25+ES20*50+ET20*50))) -> 500 | EZ20: =IF(C20<>"",C20,"") -> 208 | FF20: 1 | FI20: =IF($C20="","", IF(FH20=1,0,IF(FF20<>0,500,FA20*$AE20/$AH20+FB20/$AH20*5+FC20/$AH20*25+FD20*50+FE20*50))) -> 500 | FK20: =IF(C20<>"",C20,"") -> 208 | FQ20: 1 | FT20: =IF($C20="","", IF(FS20=1,0,IF(FQ20<>0,500,FL20*$AE20/$AH20+FM20/$AH20*5+FN20/$AH20*25+FO20*50+FP20*50))) -> 500 | FV20: =IF(C20<>"",C20,"") -> 208 | GB20: 1 | GE20: =IF($C20="","", IF(GD20=1,0,IF(GB20<>0,500,FW20*$AE20/$AH20+FX20/$AH20*5+FY20/$AH20*25+FZ20*50+GA20*50))) -> 500 | GG20: =IF(C20<>"",C20,"") -> 208 | GM20: 1 | GP20: =IF($C20="","", IF(GO20=1,0,IF(GM20<>0,500,GH20*$AE20/$AH20+GI20/$AH20*5+GJ20/$AH20*25+GK20*50+GL20*50))) -> 500 | GR20: =IF(C20<>"",C20,"") -> 208 | GX20: 1 | HA20: =IF($C20="","", IF(GZ20=1,0,IF(GX20<>0,500,GS20*$AE20/$AH20+GT20/$AH20*5+GU20/$AH20*25+GV20*50+GW20*50))) -> 500 | HC20: =IF(C20<>"",C20,"") -> 208 | HI20: 1 | HL20: =IF($C20="","", IF(HK20=1,0,IF(HI20<>0,500,HD20*$AE20/$AH20+HE20/$AH20*5+HF20/$AH20*25+HG20*50+HH20*50))) -> 500 | HN20: =IF(C20<>"",C20,"") -> 208 | HW20: =IF($C20="","", IF(HV20=1,0,IF(HT20<>0,500,HO20*$AE20/$AH20+HP20/$AH20*5+HQ20/$AH20*25+HR20*50+HS20*50))) -> 0 | HY20: =IF(C20<>"",C20,"") -> 208 | IH20: =IF($C20="","", IF(IG20=1,0,IF(IE20<>0,500,HZ20*$AE20/$AH20+IA20/$AH20*5+IB20/$AH20*25+IC20*50+ID20*50))) -> 0
B21: =IF(C21=0,"",ROW(C21)-4) -> 17 | C21: 216 | D21: Germany | E21: Suzuki Samurai | F21: Felix May | G21: Thomas May | H21: =IF(C21=0,"",IF(OR(BB21=1,BC21<>0),BC21,"-")) -> 0 | I21: =IF(C21=0,"",IF(OR(BM21=1,BN21<>0),BN21,"-")) -> 9.512485137 | J21: =IF(C21=0,"",IF(OR(BX21=1,BY21<>0),BY21," -")) -> 0 | K21: =IF(C21=0,"",IF(OR(CJ21<>0,CI21=1),CJ21," -")) -> 0 | L21: =IF(C21=0,"",IF(OR(CU21<>0,CT21=1),CU21," -")) -> 21.06335995 | M21: =IF(C21=0,"",IF(OR(DF21<>0,DE21=1),DF21," -")) -> 2.038389672 | N21: =IF(C21=0,"",IF(OR(DQ21<>0,DP21=1),DQ21," -")) -> 0 | O21: =IF(C21=0,"",IF(OR(EB21<>0,EA21=1),EB21," -")) -> 0 | P21: =IF(C21=0,"",IF(OR(EM21<>0,EL21=1),EM21," -")) -> 0 | Q21: =IF(C21=0,"",IF(OR(EX21<>0,EW21=1),EX21," -")) -> 0 | R21: =IF(C21=0,"",IF(OR(FI21<>0,FH21=1),FI21," -")) -> 0 | S21: =IF(C21=0,"",IF(OR(FT21<>0,FS21=1),FT21," -")) -> 0 | T21: =IF(C21=0,"",IF(OR(GE21<>0,GD21=1),GE21," -")) -> 0 | U21: =IF(C21=0,"",IF(OR(GP21<>0,GO21=1),GP21," -")) -> 0 | V21: =IF(C21=0,"",IF(OR(HA21<>0,GZ21=1),HA21," -")) -> 4.076779344 | W21: =IF(C21=0,"",IF(OR(HL21<>0,HK21=1),HL21," -")) -> 2.038389672 | X21: =IF(C21=0,"",IF(AJ21<>0,AJ21," -")) -> - | Y21: =IF(C21=0,"",IF(OR(HW21<>0,HV21=1),HW21," -")) -> - | Z21: =IF(C21=0,"",IF(OR(IH21<>0,IG21=1),IH21," -")) -> - | AA21: =IF(C21=0,"",IF(AL21=1,"DNF",IF(AL21=2,"DSQ",IF(AM21<>1,"~ "&ROUND(SUM(H21:X21),3),ROUND(SUM(H21:X21),3))))) -> DSQ | AD21: =IF(C21<>"",C21,"") -> 216 | AE21: =IF(AD21<>"",3,"") -> 3 | AF21: 1450 | AG21: 2030 | AH21: =IF(AD21<>"",(AF21/1000*AG21/1000)/2,"") -> 1.47175 | AI21: 5 | AK21: Non-compliant car | AL21: 2 | AM21: 1 | AP21: =IF(C21=0,99999,IF(AL21>0,9999,SUM(H21:X21)-AN21)) -> 9999 | AQ21: =IF(C21=0,99999,IF(AL21=1,9999,SUM(Y21:Z21))) -> 0 | AT21: =IF(C21<>"",C21,"") -> 216 | BB21: 1 | BC21: =IF($C21="","", IF(BB21=1,0,IF(AZ21<>0,500,AU21*$AE21/$AH21+AV21/$AH21*5+AW21/$AH21*25+AX21*50+AY21*50))) -> 0 | BE21: =IF(C21<>"",C21,"") -> 216 | BF21: 3 | BG21: 1 | BN21: =IF($C21="","", IF(BM21=1,0,IF(BK21<>0,500,BF21*$AE21/$AH21+BG21/$AH21*5+BH21/$AH21*25+BI21*50+BJ21*50))) -> 9.512485137 | BP21: =IF(C21<>"",C21,"") -> 216 | BX21: 1 | BY21: =IF($C21="","", IF(BX21=1,0,IF(BV21<>0,500,BQ21*$AE21/$AH21+BR21/$AH21*5+BS21/$AH21*25+BT21*50+BU21*50))) -> 0 | CA21: =IF(C21<>"",C21,"") -> 216 | CI21: 1 | CJ21: =IF($C21="","", IF(CI21=1,0,IF(CG21<>0,500,CB21*$AE21/$AH21+CC21/$AH21*5+CD21/$AH21*25+CE21*50+CF21*50))) -> 0 | CL21: =IF(C21<>"",C21,"") -> 216 | CM21: 2 | CO21: 1 | CU21: =IF($C21="","", IF(CT21=1,0,IF(CR21<>0,500,CM21*$AE21/$AH21+CN21/$AH21*5+CO21/$AH21*25+CP21*50+CQ21*50))) -> 21.06335995 | CW21: =IF(C21<>"",C21,"") -> 216 | CX21: 1 | DF21: =IF($C21="","", IF(DE21=1,0,IF(DC21<>0,500,CX21*$AE21/$AH21+CY21/$AH21*5+CZ21/$AH21*25+DA21*50+DB21*50))) -> 2.038389672 | DH21: =IF(C21<>"",C21,"") -> 216 | DP21: 1 | DQ21: =IF($C21="","", IF(DP21=1,0,IF(DN21<>0,500,DI21*$AE21/$AH21+DJ21/$AH21*5+DK21/$AH21*25+DL21*50+DM21*50))) -> 0 | DS21: =IF(C21<>"",C21,"") -> 216 | EA21: 1 | EB21: =IF($C21="","", IF(EA21=1,0,IF(DY21<>0,500,DT21*$AE21/$AH21+DU21/$AH21*5+DV21/$AH21*25+DW21*50+DX21*50))) -> 0 | ED21: =IF(C21<>"",C21,"") -> 216 | EL21: 1 | EM21: =IF($C21="","", IF(EL21=1,0,IF(EJ21<>0,500,EE21*$AE21/$AH21+EF21/$AH21*5+EG21/$AH21*25+EH21*50+EI21*50))) -> 0 | EO21: =IF(C21<>"",C21,"") -> 216 | EW21: 1 | EX21: =IF($C21="","", IF(EW21=1,0,IF(EU21<>0,500,EP21*$AE21/$AH21+EQ21/$AH21*5+ER21/$AH21*25+ES21*50+ET21*50))) -> 0 | EZ21: =IF(C21<>"",C21,"") -> 216 | FH21: 1 | FI21: =IF($C21="","", IF(FH21=1,0,IF(FF21<>0,500,FA21*$AE21/$AH21+FB21/$AH21*5+FC21/$AH21*25+FD21*50+FE21*50))) -> 0 | FK21: =IF(C21<>"",C21,"") -> 216 | FS21: 1 | FT21: =IF($C21="","", IF(FS21=1,0,IF(FQ21<>0,500,FL21*$AE21/$AH21+FM21/$AH21*5+FN21/$AH21*25+FO21*50+FP21*50))) -> 0 | FV21: =IF(C21<>"",C21,"") -> 216 | GD21: 1 | GE21: =IF($C21="","", IF(GD21=1,0,IF(GB21<>0,500,FW21*$AE21/$AH21+FX21/$AH21*5+FY21/$AH21*25+FZ21*50+GA21*50))) -> 0 | GG21: =IF(C21<>"",C21,"") -> 216 | GO21: 1 | GP21: =IF($C21="","", IF(GO21=1,0,IF(GM21<>0,500,GH21*$AE21/$AH21+GI21/$AH21*5+GJ21/$AH21*25+GK21*50+GL21*50))) -> 0 | GR21: =IF(C21<>"",C21,"") -> 216 | GS21: 2 | HA21: =IF($C21="","", IF(GZ21=1,0,IF(GX21<>0,500,GS21*$AE21/$AH21+GT21/$AH21*5+GU21/$AH21*25+GV21*50+GW21*50))) -> 4.076779344 | HC21: =IF(C21<>"",C21,"") -> 216 | HD21: 1 | HL21: =IF($C21="","", IF(HK21=1,0,IF(HI21<>0,500,HD21*$AE21/$AH21+HE21/$AH21*5+HF21/$AH21*25+HG21*50+HH21*50))) -> 2.038389672 | HN21: =IF(C21<>"",C21,"") -> 216 | HW21: =IF($C21="","", IF(HV21=1,0,IF(HT21<>0,500,HO21*$AE21/$AH21+HP21/$AH21*5+HQ21/$AH21*25+HR21*50+HS21*50))) -> 0 | HY21: =IF(C21<>"",C21,"") -> 216 | IH21: =IF($C21="","", IF(IG21=1,0,IF(IE21<>0,500,HZ21*$AE21/$AH21+IA21/$AH21*5+IB21/$AH21*25+IC21*50+ID21*50))) -> 0
B22: =IF(C22=0,"",ROW(C22)-4) -> 18 | C22: 218 | D22: Germany | E22: Suzuki Samurai | F22: Gurber Yasar | G22: Serhat Veysi | H22: =IF(C22=0,"",IF(OR(BB22=1,BC22<>0),BC22,"-")) -> 23.78121284 | I22: =IF(C22=0,"",IF(OR(BM22=1,BN22<>0),BN22,"-")) -> 3.39731612 | J22: =IF(C22=0,"",IF(OR(BX22=1,BY22<>0),BY22," -")) -> 2.038389672 | K22: =IF(C22=0,"",IF(OR(CJ22<>0,CI22=1),CJ22," -")) -> 0 | L22: =IF(C22=0,"",IF(OR(CU22<>0,CT22=1),CU22," -")) -> 4.076779344 | M22: =IF(C22=0,"",IF(OR(DF22<>0,DE22=1),DF22," -")) -> 21.06335995 | N22: =IF(C22=0,"",IF(OR(DQ22<>0,DP22=1),DQ22," -")) -> 0 | O22: =IF(C22=0,"",IF(OR(EB22<>0,EA22=1),EB22," -")) -> 3.39731612 | P22: =IF(C22=0,"",IF(OR(EM22<>0,EL22=1),EM22," -")) -> 2.038389672 | Q22: =IF(C22=0,"",IF(OR(EX22<>0,EW22=1),EX22," -")) -> 2.038389672 | R22: =IF(C22=0,"",IF(OR(FI22<>0,FH22=1),FI22," -")) -> 0 | S22: =IF(C22=0,"",IF(OR(FT22<>0,FS22=1),FT22," -")) -> 2.038389672 | T22: =IF(C22=0,"",IF(OR(GE22<>0,GD22=1),GE22," -")) -> 4.076779344 | U22: =IF(C22=0,"",IF(OR(GP22<>0,GO22=1),GP22," -")) -> 0 | V22: =IF(C22=0,"",IF(OR(HA22<>0,GZ22=1),HA22," -")) -> 6.115169016 | W22: =IF(C22=0,"",IF(OR(HL22<>0,HK22=1),HL22," -")) -> 4.076779344 | X22: =IF(C22=0,"",IF(AJ22<>0,AJ22," -")) -> - | Y22: =IF(C22=0,"",IF(OR(HW22<>0,HV22=1),HW22," -")) -> - | Z22: =IF(C22=0,"",IF(OR(IH22<>0,IG22=1),IH22," -")) -> - | AA22: =IF(C22=0,"",IF(AL22=1,"DNF",IF(AL22=2,"DSQ",IF(AM22<>1,"~ "&ROUND(SUM(H22:X22),3),ROUND(SUM(H22:X22),3))))) -> DSQ | AD22: =IF(C22<>"",C22,"") -> 218 | AE22: =IF(AD22<>"",3,"") -> 3 | AF22: 1450 | AG22: 2030 | AH22: =IF(AD22<>"",(AF22/1000*AG22/1000)/2,"") -> 1.47175 | AI22: 5 | AK22: Non-compliant car | AL22: 2 | AM22: 1 | AP22: =IF(C22=0,99999,IF(AL22>0,9999,SUM(H22:X22)-AN22)) -> 9999 | AQ22: =IF(C22=0,99999,IF(AL22=1,9999,SUM(Y22:Z22))) -> 0 | AT22: =IF(C22<>"",C22,"") -> 218 | AV22: 2 | AW22: 1 | BC22: =IF($C22="","", IF(BB22=1,0,IF(AZ22<>0,500,AU22*$AE22/$AH22+AV22/$AH22*5+AW22/$AH22*25+AX22*50+AY22*50))) -> 23.78121284 | BE22: =IF(C22<>"",C22,"") -> 218 | BG22: 1 | BN22: =IF($C22="","", IF(BM22=1,0,IF(BK22<>0,500,BF22*$AE22/$AH22+BG22/$AH22*5+BH22/$AH22*25+BI22*50+BJ22*50))) -> 3.39731612 | BP22: =IF(C22<>"",C22,"") -> 218 | BQ22: 1 | BY22: =IF($C22="","", IF(BX22=1,0,IF(BV22<>0,500,BQ22*$AE22/$AH22+BR22/$AH22*5+BS22/$AH22*25+BT22*50+BU22*50))) -> 2.038389672 | CA22: =IF(C22<>"",C22,"") -> 218 | CI22: 1 | CJ22: =IF($C22="","", IF(CI22=1,0,IF(CG22<>0,500,CB22*$AE22/$AH22+CC22/$AH22*5+CD22/$AH22*25+CE22*50+CF22*50))) -> 0 | CL22: =IF(C22<>"",C22,"") -> 218 | CM22: 2 | CU22: =IF($C22="","", IF(CT22=1,0,IF(CR22<>0,500,CM22*$AE22/$AH22+CN22/$AH22*5+CO22/$AH22*25+CP22*50+CQ22*50))) -> 4.076779344 | CW22: =IF(C22<>"",C22,"") -> 218 | CX22: 2 | CZ22: 1 | DF22: =IF($C22="","", IF(DE22=1,0,IF(DC22<>0,500,CX22*$AE22/$AH22+CY22/$AH22*5+CZ22/$AH22*25+DA22*50+DB22*50))) -> 21.06335995 | DH22: =IF(C22<>"",C22,"") -> 218 | DP22: 1 | DQ22: =IF($C22="","", IF(DP22=1,0,IF(DN22<>0,500,DI22*$AE22/$AH22+DJ22/$AH22*5+DK22/$AH22*25+DL22*50+DM22*50))) -> 0 | DS22: =IF(C22<>"",C22,"") -> 218 | DU22: 1 | EB22: =IF($C22="","", IF(EA22=1,0,IF(DY22<>0,500,DT22*$AE22/$AH22+DU22/$AH22*5+DV22/$AH22*25+DW22*50+DX22*50))) -> 3.39731612 | ED22: =IF(C22<>"",C22,"") -> 218 | EE22: 1 | EM22: =IF($C22="","", IF(EL22=1,0,IF(EJ22<>0,500,EE22*$AE22/$AH22+EF22/$AH22*5+EG22/$AH22*25+EH22*50+EI22*50))) -> 2.038389672 | EO22: =IF(C22<>"",C22,"") -> 218 | EP22: 1 | EX22: =IF($C22="","", IF(EW22=1,0,IF(EU22<>0,500,EP22*$AE22/$AH22+EQ22/$AH22*5+ER22/$AH22*25+ES22*50+ET22*50))) -> 2.038389672 | EZ22: =IF(C22<>"",C22,"") -> 218 | FH22: 1 | FI22: =IF($C22="","", IF(FH22=1,0,IF(FF22<>0,500,FA22*$AE22/$AH22+FB22/$AH22*5+FC22/$AH22*25+FD22*50+FE22*50))) -> 0 | FK22: =IF(C22<>"",C22,"") -> 218 | FL22: 1 | FT22: =IF($C22="","", IF(FS22=1,0,IF(FQ22<>0,500,FL22*$AE22/$AH22+FM22/$AH22*5+FN22/$AH22*25+FO22*50+FP22*50))) -> 2.038389672 | FV22: =IF(C22<>"",C22,"") -> 218 | FW22: 2 | GE22: =IF($C22="","", IF(GD22=1,0,IF(GB22<>0,500,FW22*$AE22/$AH22+FX22/$AH22*5+FY22/$AH22*25+FZ22*50+GA22*50))) -> 4.076779344 | GG22: =IF(C22<>"",C22,"") -> 218 | GO22: 1 | GP22: =IF($C22="","", IF(GO22=1,0,IF(GM22<>0,500,GH22*$AE22/$AH22+GI22/$AH22*5+GJ22/$AH22*25+GK22*50+GL22*50))) -> 0 | GR22: =IF(C22<>"",C22,"") -> 218 | GS22: 3 | HA22: =IF($C22="","", IF(GZ22=1,0,IF(GX22<>0,500,GS22*$AE22/$AH22+GT22/$AH22*5+GU22/$AH22*25+GV22*50+GW22*50))) -> 6.115169016 | HC22: =IF(C22<>"",C22,"") -> 218 | HD22: 2 | HL22: =IF($C22="","", IF(HK22=1,0,IF(HI22<>0,500,HD22*$AE22/$AH22+HE22/$AH22*5+HF22/$AH22*25+HG22*50+HH22*50))) -> 4.076779344 | HN22: =IF(C22<>"",C22,"") -> 218 | HW22: =IF($C22="","", IF(HV22=1,0,IF(HT22<>0,500,HO22*$AE22/$AH22+HP22/$AH22*5+HQ22/$AH22*25+HR22*50+HS22*50))) -> 0 | HY22: =IF(C22<>"",C22,"") -> 218 | IH22: =IF($C22="","", IF(IG22=1,0,IF(IE22<>0,500,HZ22*$AE22/$AH22+IA22/$AH22*5+IB22/$AH22*25+IC22*50+ID22*50))) -> 0
B23: =IF(C23=0,"",ROW(C23)-4) -> 19 | C23: 215 | D23: Germany | E23: Suzuki Samurai | F23: Thomas May | G23: Felix May | H23: =IF(C23=0,"",IF(OR(BB23=1,BC23<>0),BC23,"-")) -> 2.038389672 | I23: =IF(C23=0,"",IF(OR(BM23=1,BN23<>0),BN23,"-")) -> 5.435705792 | J23: =IF(C23=0,"",IF(OR(BX23=1,BY23<>0),BY23," -")) -> 0 | K23: =IF(C23=0,"",IF(OR(CJ23<>0,CI23=1),CJ23," -")) -> 0 | L23: =IF(C23=0,"",IF(OR(CU23<>0,CT23=1),CU23," -")) -> 2.038389672 | M23: =IF(C23=0,"",IF(OR(DF23<>0,DE23=1),DF23," -")) -> 23.10174962 | N23: =IF(C23=0,"",IF(OR(DQ23<>0,DP23=1),DQ23," -")) -> 0 | O23: =IF(C23=0,"",IF(OR(EB23<>0,EA23=1),EB23," -")) -> 47.56242568 | P23: =IF(C23=0,"",IF(OR(EM23<>0,EL23=1),EM23," -")) -> 0 | Q23: =IF(C23=0,"",IF(OR(EX23<>0,EW23=1),EX23," -")) -> 0 | R23: =IF(C23=0,"",IF(OR(FI23<>0,FH23=1),FI23," -")) -> 0 | S23: =IF(C23=0,"",IF(OR(FT23<>0,FS23=1),FT23," -")) -> 4.076779344 | T23: =IF(C23=0,"",IF(OR(GE23<>0,GD23=1),GE23," -")) -> 0 | U23: =IF(C23=0,"",IF(OR(GP23<>0,GO23=1),GP23," -")) -> 2.038389672 | V23: =IF(C23=0,"",IF(OR(HA23<>0,GZ23=1),HA23," -")) -> 5.435705792 | W23: =IF(C23=0,"",IF(OR(HL23<>0,HK23=1),HL23," -")) -> 108.1535587 | X23: =IF(C23=0,"",IF(AJ23<>0,AJ23," -")) -> - | Y23: =IF(C23=0,"",IF(OR(HW23<>0,HV23=1),HW23," -")) -> - | Z23: =IF(C23=0,"",IF(OR(IH23<>0,IG23=1),IH23," -")) -> - | AA23: =IF(C23=0,"",IF(AL23=1,"DNF",IF(AL23=2,"DSQ",IF(AM23<>1,"~ "&ROUND(SUM(H23:X23),3),ROUND(SUM(H23:X23),3))))) -> DSQ | AD23: =IF(C23<>"",C23,"") -> 215 | AE23: =IF(AD23<>"",3,"") -> 3 | AF23: 1450 | AG23: 2030 | AH23: =IF(AD23<>"",(AF23/1000*AG23/1000)/2,"") -> 1.47175 | AI23: 5 | AK23: Non-compliant car | AL23: 2 | AM23: 1 | AP23: =IF(C23=0,99999,IF(AL23>0,9999,SUM(H23:X23)-AN23)) -> 9999 | AQ23: =IF(C23=0,99999,IF(AL23=1,9999,SUM(Y23:Z23))) -> 0 | AT23: =IF(C23<>"",C23,"") -> 215 | AU23: 1 | BC23: =IF($C23="","", IF(BB23=1,0,IF(AZ23<>0,500,AU23*$AE23/$AH23+AV23/$AH23*5+AW23/$AH23*25+AX23*50+AY23*50))) -> 2.038389672 | BE23: =IF(C23<>"",C23,"") -> 215 | BF23: 1 | BG23: 1 | BN23: =IF($C23="","", IF(BM23=1,0,IF(BK23<>0,500,BF23*$AE23/$AH23+BG23/$AH23*5+BH23/$AH23*25+BI23*50+BJ23*50))) -> 5.435705792 | BP23: =IF(C23<>"",C23,"") -> 215 | BX23: 1 | BY23: =IF($C23="","", IF(BX23=1,0,IF(BV23<>0,500,BQ23*$AE23/$AH23+BR23/$AH23*5+BS23/$AH23*25+BT23*50+BU23*50))) -> 0 | CA23: =IF(C23<>"",C23,"") -> 215 | CI23: 1 | CJ23: =IF($C23="","", IF(CI23=1,0,IF(CG23<>0,500,CB23*$AE23/$AH23+CC23/$AH23*5+CD23/$AH23*25+CE23*50+CF23*50))) -> 0 | CL23: =IF(C23<>"",C23,"") -> 215 | CM23: 1 | CU23: =IF($C23="","", IF(CT23=1,0,IF(CR23<>0,500,CM23*$AE23/$AH23+CN23/$AH23*5+CO23/$AH23*25+CP23*50+CQ23*50))) -> 2.038389672 | CW23: =IF(C23<>"",C23,"") -> 215 | CX23: 3 | CZ23: 1 | DF23: =IF($C23="","", IF(DE23=1,0,IF(DC23<>0,500,CX23*$AE23/$AH23+CY23/$AH23*5+CZ23/$AH23*25+DA23*50+DB23*50))) -> 23.10174962 | DH23: =IF(C23<>"",C23,"") -> 215 | DP23: 1 | DQ23: =IF($C23="","", IF(DP23=1,0,IF(DN23<>0,500,DI23*$AE23/$AH23+DJ23/$AH23*5+DK23/$AH23*25+DL23*50+DM23*50))) -> 0 | DS23: =IF(C23<>"",C23,"") -> 215 | DT23: 5 | DU23: 1 | DV23: 2 | EB23: =IF($C23="","", IF(EA23=1,0,IF(DY23<>0,500,DT23*$AE23/$AH23+DU23/$AH23*5+DV23/$AH23*25+DW23*50+DX23*50))) -> 47.56242568 | ED23: =IF(C23<>"",C23,"") -> 215 | EL23: 1 | EM23: =IF($C23="","", IF(EL23=1,0,IF(EJ23<>0,500,EE23*$AE23/$AH23+EF23/$AH23*5+EG23/$AH23*25+EH23*50+EI23*50))) -> 0 | EO23: =IF(C23<>"",C23,"") -> 215 | EW23: 1 | EX23: =IF($C23="","", IF(EW23=1,0,IF(EU23<>0,500,EP23*$AE23/$AH23+EQ23/$AH23*5+ER23/$AH23*25+ES23*50+ET23*50))) -> 0 | EZ23: =IF(C23<>"",C23,"") -> 215 | FH23: 1 | FI23: =IF($C23="","", IF(FH23=1,0,IF(FF23<>0,500,FA23*$AE23/$AH23+FB23/$AH23*5+FC23/$AH23*25+FD23*50+FE23*50))) -> 0 | FK23: =IF(C23<>"",C23,"") -> 215 | FL23: 2 | FT23: =IF($C23="","", IF(FS23=1,0,IF(FQ23<>0,500,FL23*$AE23/$AH23+FM23/$AH23*5+FN23/$AH23*25+FO23*50+FP23*50))) -> 4.076779344 | FV23: =IF(C23<>"",C23,"") -> 215 | GD23: 1 | GE23: =IF($C23="","", IF(GD23=1,0,IF(GB23<>0,500,FW23*$AE23/$AH23+FX23/$AH23*5+FY23/$AH23*25+FZ23*50+GA23*50))) -> 0 | GG23: =IF(C23<>"",C23,"") -> 215 | GH23: 1 | GP23: =IF($C23="","", IF(GO23=1,0,IF(GM23<>0,500,GH23*$AE23/$AH23+GI23/$AH23*5+GJ23/$AH23*25+GK23*50+GL23*50))) -> 2.038389672 | GR23: =IF(C23<>"",C23,"") -> 215 | GS23: 1 | GT23: 1 | HA23: =IF($C23="","", IF(GZ23=1,0,IF(GX23<>0,500,GS23*$AE23/$AH23+GT23/$AH23*5+GU23/$AH23*25+GV23*50+GW23*50))) -> 5.435705792 | HC23: =IF(C23<>"",C23,"") -> 215 | HD23: 4 | HG23: 1 | HH23: 1 | HJ23: time | HL23: =IF($C23="","", IF(HK23=1,0,IF(HI23<>0,500,HD23*$AE23/$AH23+HE23/$AH23*5+HF23/$AH23*25+HG23*50+HH23*50))) -> 108.1535587 | HN23: =IF(C23<>"",C23,"") -> 215 | HW23: =IF($C23="","", IF(HV23=1,0,IF(HT23<>0,500,HO23*$AE23/$AH23+HP23/$AH23*5+HQ23/$AH23*25+HR23*50+HS23*50))) -> 0 | HY23: =IF(C23<>"",C23,"") -> 215 | IH23: =IF($C23="","", IF(IG23=1,0,IF(IE23<>0,500,HZ23*$AE23/$AH23+IA23/$AH23*5+IB23/$AH23*25+IC23*50+ID23*50))) -> 0
B24: =IF(C24=0,"",ROW(C24)-4) ->  | H24: =IF(C24=0,"",IF(OR(BB24=1,BC24<>0),BC24,"-")) ->  | I24: =IF(C24=0,"",IF(OR(BM24=1,BN24<>0),BN24,"-")) ->  | J24: =IF(C24=0,"",IF(OR(BX24=1,BY24<>0),BY24," -")) ->  | K24: =IF(C24=0,"",IF(OR(CJ24<>0,CI24=1),CJ24," -")) ->  | L24: =IF(C24=0,"",IF(OR(CU24<>0,CT24=1),CU24," -")) ->  | M24: =IF(C24=0,"",IF(OR(DF24<>0,DE24=1),DF24," -")) ->  | N24: =IF(C24=0,"",IF(OR(DQ24<>0,DP24=1),DQ24," -")) ->  | O24: =IF(C24=0,"",IF(OR(EB24<>0,EA24=1),EB24," -")) ->  | P24: =IF(C24=0,"",IF(OR(EM24<>0,EL24=1),EM24," -")) ->  | Q24: =IF(C24=0,"",IF(OR(EX24<>0,EW24=1),EX24," -")) ->  | R24: =IF(C24=0,"",IF(OR(FI24<>0,FH24=1),FI24," -")) ->  | S24: =IF(C24=0,"",IF(OR(FT24<>0,FS24=1),FT24," -")) ->  | T24: =IF(C24=0,"",IF(OR(GE24<>0,GD24=1),GE24," -")) ->  | U24: =IF(C24=0,"",IF(OR(GP24<>0,GO24=1),GP24," -")) ->  | V24: =IF(C24=0,"",IF(OR(HA24<>0,GZ24=1),HA24," -")) ->  | W24: =IF(C24=0,"",IF(OR(HL24<>0,HK24=1),HL24," -")) ->  | X24: =IF(C24=0,"",IF(AJ24<>0,AJ24," -")) ->  | Y24: =IF(C24=0,"",IF(OR(HW24<>0,HV24=1),HW24," -")) ->  | Z24: =IF(C24=0,"",IF(OR(IH24<>0,IG24=1),IH24," -")) ->  | AA24: =IF(C24=0,"",IF(AL24=1,"DNF",IF(AL24=2,"DSQ",IF(AM24<>1,"~ "&ROUND(SUM(H24:X24),3),ROUND(SUM(H24:X24),3))))) ->  | AD24: =IF(C24<>"",C24,"") ->  | AE24: =IF(AD24<>"",3,"") ->  | AH24: =IF(AD24<>"",(AF24/1000*AG24/1000)/2,"") ->  | AP24: =IF(C24=0,99999,IF(AL24>0,9999,SUM(H24:X24)-AN24)) -> 99999 | AQ24: =IF(C24=0,99999,IF(AL24=1,9999,SUM(Y24:Z24))) -> 99999 | AT24: =IF(C24<>"",C24,"") ->  | BC24: =IF($C24="","", IF(BB24=1,0,IF(AZ24<>0,500,AU24*$AE24/$AH24+AV24/$AH24*5+AW24/$AH24*25+AX24*50+AY24*50))) ->  | BE24: =IF(C24<>"",C24,"") ->  | BN24: =IF($C24="","", IF(BM24=1,0,IF(BK24<>0,500,BF24*$AE24/$AH24+BG24/$AH24*5+BH24/$AH24*25+BI24*50+BJ24*50))) ->  | BP24: =IF(C24<>"",C24,"") ->  | BY24: =IF($C24="","", IF(BX24=1,0,IF(BV24<>0,500,BQ24*$AE24/$AH24+BR24/$AH24*5+BS24/$AH24*25+BT24*50+BU24*50))) ->  | CA24: =IF(C24<>"",C24,"") ->  | CJ24: =IF($C24="","", IF(CI24=1,0,IF(CG24<>0,500,CB24*$AE24/$AH24+CC24/$AH24*5+CD24/$AH24*25+CE24*50+CF24*50))) ->  | CL24: =IF(C24<>"",C24,"") ->  | CU24: =IF($C24="","", IF(CT24=1,0,IF(CR24<>0,500,CM24*$AE24/$AH24+CN24/$AH24*5+CO24/$AH24*25+CP24*50+CQ24*50))) ->  | CW24: =IF(C24<>"",C24,"") ->  | DF24: =IF($C24="","", IF(DE24=1,0,IF(DC24<>0,500,CX24*$AE24/$AH24+CY24/$AH24*5+CZ24/$AH24*25+DA24*50+DB24*50))) ->  | DH24: =IF(C24<>"",C24,"") ->  | DQ24: =IF($C24="","", IF(DP24=1,0,IF(DN24<>0,500,DI24*$AE24/$AH24+DJ24/$AH24*5+DK24/$AH24*25+DL24*50+DM24*50))) ->  | DS24: =IF(C24<>"",C24,"") ->  | EB24: =IF($C24="","", IF(EA24=1,0,IF(DY24<>0,500,DT24*$AE24/$AH24+DU24/$AH24*5+DV24/$AH24*25+DW24*50+DX24*50))) ->  | ED24: =IF(C24<>"",C24,"") ->  | EM24: =IF($C24="","", IF(EL24=1,0,IF(EJ24<>0,500,EE24*$AE24/$AH24+EF24/$AH24*5+EG24/$AH24*25+EH24*50+EI24*50))) ->  | EO24: =IF(C24<>"",C24,"") ->  | EX24: =IF($C24="","", IF(EW24=1,0,IF(EU24<>0,500,EP24*$AE24/$AH24+EQ24/$AH24*5+ER24/$AH24*25+ES24*50+ET24*50))) ->  | EZ24: =IF(C24<>"",C24,"") ->  | FI24: =IF($C24="","", IF(FH24=1,0,IF(FF24<>0,500,FA24*$AE24/$AH24+FB24/$AH24*5+FC24/$AH24*25+FD24*50+FE24*50))) ->  | FK24: =IF(C24<>"",C24,"") ->  | FT24: =IF($C24="","", IF(FS24=1,0,IF(FQ24<>0,500,FL24*$AE24/$AH24+FM24/$AH24*5+FN24/$AH24*25+FO24*50+FP24*50))) ->  | FV24: =IF(C24<>"",C24,"") ->  | GE24: =IF($C24="","", IF(GD24=1,0,IF(GB24<>0,500,FW24*$AE24/$AH24+FX24/$AH24*5+FY24/$AH24*25+FZ24*50+GA24*50))) ->  | GG24: =IF(C24<>"",C24,"") ->  | GP24: =IF($C24="","", IF(GO24=1,0,IF(GM24<>0,500,GH24*$AE24/$AH24+GI24/$AH24*5+GJ24/$AH24*25+GK24*50+GL24*50))) ->  | GR24: =IF(C24<>"",C24,"") ->  | HA24: =IF($C24="","", IF(GZ24=1,0,IF(GX24<>0,500,GS24*$AE24/$AH24+GT24/$AH24*5+GU24/$AH24*25+GV24*50+GW24*50))) ->  | HC24: =IF(C24<>"",C24,"") ->  | HL24: =IF($C24="","", IF(HK24=1,0,IF(HI24<>0,500,HD24*$AE24/$AH24+HE24/$AH24*5+HF24/$AH24*25+HG24*50+HH24*50))) ->  | HN24: =IF(C24<>"",C24,"") ->  | HW24: =IF($C24="","", IF(HV24=1,0,IF(HT24<>0,500,HO24*$AE24/$AH24+HP24/$AH24*5+HQ24/$AH24*25+HR24*50+HS24*50))) ->  | HY24: =IF(C24<>"",C24,"") ->  | IH24: =IF($C24="","", IF(IG24=1,0,IF(IE24<>0,500,HZ24*$AE24/$AH24+IA24/$AH24*5+IB24/$AH24*25+IC24*50+ID24*50))) -> 
B25: =IF(C25=0,"",ROW(C25)-4) ->  | H25: =IF(C25=0,"",IF(OR(BB25=1,BC25<>0),BC25,"-")) ->  | I25: =IF(C25=0,"",IF(OR(BM25=1,BN25<>0),BN25,"-")) ->  | J25: =IF(C25=0,"",IF(OR(BX25=1,BY25<>0),BY25," -")) ->  | K25: =IF(C25=0,"",IF(OR(CJ25<>0,CI25=1),CJ25," -")) ->  | L25: =IF(C25=0,"",IF(OR(CU25<>0,CT25=1),CU25," -")) ->  | M25: =IF(C25=0,"",IF(OR(DF25<>0,DE25=1),DF25," -")) ->  | N25: =IF(C25=0,"",IF(OR(DQ25<>0,DP25=1),DQ25," -")) ->  | O25: =IF(C25=0,"",IF(OR(EB25<>0,EA25=1),EB25," -")) ->  | P25: =IF(C25=0,"",IF(OR(EM25<>0,EL25=1),EM25," -")) ->  | Q25: =IF(C25=0,"",IF(OR(EX25<>0,EW25=1),EX25," -")) ->  | R25: =IF(C25=0,"",IF(OR(FI25<>0,FH25=1),FI25," -")) ->  | S25: =IF(C25=0,"",IF(OR(FT25<>0,FS25=1),FT25," -")) ->  | T25: =IF(C25=0,"",IF(OR(GE25<>0,GD25=1),GE25," -")) ->  | U25: =IF(C25=0,"",IF(OR(GP25<>0,GO25=1),GP25," -")) ->  | V25: =IF(C25=0,"",IF(OR(HA25<>0,GZ25=1),HA25," -")) ->  | W25: =IF(C25=0,"",IF(OR(HL25<>0,HK25=1),HL25," -")) ->  | X25: =IF(C25=0,"",IF(AJ25<>0,AJ25," -")) ->  | Y25: =IF(C25=0,"",IF(OR(HW25<>0,HV25=1),HW25," -")) ->  | Z25: =IF(C25=0,"",IF(OR(IH25<>0,IG25=1),IH25," -")) ->  | AA25: =IF(C25=0,"",IF(AL25=1,"DNF",IF(AL25=2,"DSQ",IF(AM25<>1,"~ "&ROUND(SUM(H25:X25),3),ROUND(SUM(H25:X25),3))))) ->  | AD25: =IF(C25<>"",C25,"") ->  | AE25: =IF(AD25<>"",3,"") ->  | AH25: =IF(AD25<>"",(AF25/1000*AG25/1000)/2,"") ->  | AP25: =IF(C25=0,99999,IF(AL25>0,9999,SUM(H25:X25)-AN25)) -> 99999 | AQ25: =IF(C25=0,99999,IF(AL25=1,9999,SUM(Y25:Z25))) -> 99999 | AT25: =IF(C25<>"",C25,"") ->  | BC25: =IF($C25="","", IF(BB25=1,0,IF(AZ25<>0,500,AU25*$AE25/$AH25+AV25/$AH25*5+AW25/$AH25*25+AX25*50+AY25*50))) ->  | BE25: =IF(C25<>"",C25,"") ->  | BN25: =IF($C25="","", IF(BM25=1,0,IF(BK25<>0,500,BF25*$AE25/$AH25+BG25/$AH25*5+BH25/$AH25*25+BI25*50+BJ25*50))) ->  | BP25: =IF(C25<>"",C25,"") ->  | BY25: =IF($C25="","", IF(BX25=1,0,IF(BV25<>0,500,BQ25*$AE25/$AH25+BR25/$AH25*5+BS25/$AH25*25+BT25*50+BU25*50))) ->  | CA25: =IF(C25<>"",C25,"") ->  | CJ25: =IF($C25="","", IF(CI25=1,0,IF(CG25<>0,500,CB25*$AE25/$AH25+CC25/$AH25*5+CD25/$AH25*25+CE25*50+CF25*50))) ->  | CL25: =IF(C25<>"",C25,"") ->  | CU25: =IF($C25="","", IF(CT25=1,0,IF(CR25<>0,500,CM25*$AE25/$AH25+CN25/$AH25*5+CO25/$AH25*25+CP25*50+CQ25*50))) ->  | CW25: =IF(C25<>"",C25,"") ->  | DF25: =IF($C25="","", IF(DE25=1,0,IF(DC25<>0,500,CX25*$AE25/$AH25+CY25/$AH25*5+CZ25/$AH25*25+DA25*50+DB25*50))) ->  | DH25: =IF(C25<>"",C25,"") ->  | DQ25: =IF($C25="","", IF(DP25=1,0,IF(DN25<>0,500,DI25*$AE25/$AH25+DJ25/$AH25*5+DK25/$AH25*25+DL25*50+DM25*50))) ->  | DS25: =IF(C25<>"",C25,"") ->  | EB25: =IF($C25="","", IF(EA25=1,0,IF(DY25<>0,500,DT25*$AE25/$AH25+DU25/$AH25*5+DV25/$AH25*25+DW25*50+DX25*50))) ->  | ED25: =IF(C25<>"",C25,"") ->  | EM25: =IF($C25="","", IF(EL25=1,0,IF(EJ25<>0,500,EE25*$AE25/$AH25+EF25/$AH25*5+EG25/$AH25*25+EH25*50+EI25*50))) ->  | EO25: =IF(C25<>"",C25,"") ->  | EX25: =IF($C25="","", IF(EW25=1,0,IF(EU25<>0,500,EP25*$AE25/$AH25+EQ25/$AH25*5+ER25/$AH25*25+ES25*50+ET25*50))) ->  | EZ25: =IF(C25<>"",C25,"") ->  | FI25: =IF($C25="","", IF(FH25=1,0,IF(FF25<>0,500,FA25*$AE25/$AH25+FB25/$AH25*5+FC25/$AH25*25+FD25*50+FE25*50))) ->  | FK25: =IF(C25<>"",C25,"") ->  | FT25: =IF($C25="","", IF(FS25=1,0,IF(FQ25<>0,500,FL25*$AE25/$AH25+FM25/$AH25*5+FN25/$AH25*25+FO25*50+FP25*50))) ->  | FV25: =IF(C25<>"",C25,"") ->  | GE25: =IF($C25="","", IF(GD25=1,0,IF(GB25<>0,500,FW25*$AE25/$AH25+FX25/$AH25*5+FY25/$AH25*25+FZ25*50+GA25*50))) ->  | GG25: =IF(C25<>"",C25,"") ->  | GP25: =IF($C25="","", IF(GO25=1,0,IF(GM25<>0,500,GH25*$AE25/$AH25+GI25/$AH25*5+GJ25/$AH25*25+GK25*50+GL25*50))) ->  | GR25: =IF(C25<>"",C25,"") ->  | HA25: =IF($C25="","", IF(GZ25=1,0,IF(GX25<>0,500,GS25*$AE25/$AH25+GT25/$AH25*5+GU25/$AH25*25+GV25*50+GW25*50))) ->  | HC25: =IF(C25<>"",C25,"") ->  | HL25: =IF($C25="","", IF(HK25=1,0,IF(HI25<>0,500,HD25*$AE25/$AH25+HE25/$AH25*5+HF25/$AH25*25+HG25*50+HH25*50))) ->  | HN25: =IF(C25<>"",C25,"") ->  | HW25: =IF($C25="","", IF(HV25=1,0,IF(HT25<>0,500,HO25*$AE25/$AH25+HP25/$AH25*5+HQ25/$AH25*25+HR25*50+HS25*50))) ->  | HY25: =IF(C25<>"",C25,"") ->  | IH25: =IF($C25="","", IF(IG25=1,0,IF(IE25<>0,500,HZ25*$AE25/$AH25+IA25/$AH25*5+IB25/$AH25*25+IC25*50+ID25*50))) -> 
B26: =IF(C26=0,"",ROW(C26)-4) ->  | H26: =IF(C26=0,"",IF(OR(BB26=1,BC26<>0),BC26,"-")) ->  | I26: =IF(C26=0,"",IF(OR(BM26=1,BN26<>0),BN26,"-")) ->  | J26: =IF(C26=0,"",IF(OR(BX26=1,BY26<>0),BY26," -")) ->  | K26: =IF(C26=0,"",IF(OR(CJ26<>0,CI26=1),CJ26," -")) ->  | L26: =IF(C26=0,"",IF(OR(CU26<>0,CT26=1),CU26," -")) ->  | M26: =IF(C26=0,"",IF(OR(DF26<>0,DE26=1),DF26," -")) ->  | N26: =IF(C26=0,"",IF(OR(DQ26<>0,DP26=1),DQ26," -")) ->  | O26: =IF(C26=0,"",IF(OR(EB26<>0,EA26=1),EB26," -")) ->  | P26: =IF(C26=0,"",IF(OR(EM26<>0,EL26=1),EM26," -")) ->  | Q26: =IF(C26=0,"",IF(OR(EX26<>0,EW26=1),EX26," -")) ->  | R26: =IF(C26=0,"",IF(OR(FI26<>0,FH26=1),FI26," -")) ->  | S26: =IF(C26=0,"",IF(OR(FT26<>0,FS26=1),FT26," -")) ->  | T26: =IF(C26=0,"",IF(OR(GE26<>0,GD26=1),GE26," -")) ->  | U26: =IF(C26=0,"",IF(OR(GP26<>0,GO26=1),GP26," -")) ->  | V26: =IF(C26=0,"",IF(OR(HA26<>0,GZ26=1),HA26," -")) ->  | W26: =IF(C26=0,"",IF(OR(HL26<>0,HK26=1),HL26," -")) ->  | X26: =IF(C26=0,"",IF(AJ26<>0,AJ26," -")) ->  | Y26: =IF(C26=0,"",IF(OR(HW26<>0,HV26=1),HW26," -")) ->  | Z26: =IF(C26=0,"",IF(OR(IH26<>0,IG26=1),IH26," -")) ->  | AA26: =IF(C26=0,"",IF(AL26=1,"DNF",IF(AL26=2,"DSQ",IF(AM26<>1,"~ "&ROUND(SUM(H26:X26),3),ROUND(SUM(H26:X26),3))))) ->  | AD26: =IF(C26<>"",C26,"") ->  | AE26: =IF(AD26<>"",3,"") ->  | AH26: =IF(AD26<>"",(AF26/1000*AG26/1000)/2,"") ->  | AP26: =IF(C26=0,99999,IF(AL26>0,9999,SUM(H26:X26)-AN26)) -> 99999 | AQ26: =IF(C26=0,99999,IF(AL26=1,9999,SUM(Y26:Z26))) -> 99999 | AT26: =IF(C26<>"",C26,"") ->  | BC26: =IF($C26="","", IF(BB26=1,0,IF(AZ26<>0,500,AU26*$AE26/$AH26+AV26/$AH26*5+AW26/$AH26*25+AX26*50+AY26*50))) ->  | BE26: =IF(C26<>"",C26,"") ->  | BN26: =IF($C26="","", IF(BM26=1,0,IF(BK26<>0,500,BF26*$AE26/$AH26+BG26/$AH26*5+BH26/$AH26*25+BI26*50+BJ26*50))) ->  | BP26: =IF(C26<>"",C26,"") ->  | BY26: =IF($C26="","", IF(BX26=1,0,IF(BV26<>0,500,BQ26*$AE26/$AH26+BR26/$AH26*5+BS26/$AH26*25+BT26*50+BU26*50))) ->  | CA26: =IF(C26<>"",C26,"") ->  | CJ26: =IF($C26="","", IF(CI26=1,0,IF(CG26<>0,500,CB26*$AE26/$AH26+CC26/$AH26*5+CD26/$AH26*25+CE26*50+CF26*50))) ->  | CL26: =IF(C26<>"",C26,"") ->  | CU26: =IF($C26="","", IF(CT26=1,0,IF(CR26<>0,500,CM26*$AE26/$AH26+CN26/$AH26*5+CO26/$AH26*25+CP26*50+CQ26*50))) ->  | CW26: =IF(C26<>"",C26,"") ->  | DF26: =IF($C26="","", IF(DE26=1,0,IF(DC26<>0,500,CX26*$AE26/$AH26+CY26/$AH26*5+CZ26/$AH26*25+DA26*50+DB26*50))) ->  | DH26: =IF(C26<>"",C26,"") ->  | DQ26: =IF($C26="","", IF(DP26=1,0,IF(DN26<>0,500,DI26*$AE26/$AH26+DJ26/$AH26*5+DK26/$AH26*25+DL26*50+DM26*50))) ->  | DS26: =IF(C26<>"",C26,"") ->  | EB26: =IF($C26="","", IF(EA26=1,0,IF(DY26<>0,500,DT26*$AE26/$AH26+DU26/$AH26*5+DV26/$AH26*25+DW26*50+DX26*50))) ->  | ED26: =IF(C26<>"",C26,"") ->  | EM26: =IF($C26="","", IF(EL26=1,0,IF(EJ26<>0,500,EE26*$AE26/$AH26+EF26/$AH26*5+EG26/$AH26*25+EH26*50+EI26*50))) ->  | EO26: =IF(C26<>"",C26,"") ->  | EX26: =IF($C26="","", IF(EW26=1,0,IF(EU26<>0,500,EP26*$AE26/$AH26+EQ26/$AH26*5+ER26/$AH26*25+ES26*50+ET26*50))) ->  | EZ26: =IF(C26<>"",C26,"") ->  | FI26: =IF($C26="","", IF(FH26=1,0,IF(FF26<>0,500,FA26*$AE26/$AH26+FB26/$AH26*5+FC26/$AH26*25+FD26*50+FE26*50))) ->  | FK26: =IF(C26<>"",C26,"") ->  | FT26: =IF($C26="","", IF(FS26=1,0,IF(FQ26<>0,500,FL26*$AE26/$AH26+FM26/$AH26*5+FN26/$AH26*25+FO26*50+FP26*50))) ->  | FV26: =IF(C26<>"",C26,"") ->  | GE26: =IF($C26="","", IF(GD26=1,0,IF(GB26<>0,500,FW26*$AE26/$AH26+FX26/$AH26*5+FY26/$AH26*25+FZ26*50+GA26*50))) ->  | GG26: =IF(C26<>"",C26,"") ->  | GP26: =IF($C26="","", IF(GO26=1,0,IF(GM26<>0,500,GH26*$AE26/$AH26+GI26/$AH26*5+GJ26/$AH26*25+GK26*50+GL26*50))) ->  | GR26: =IF(C26<>"",C26,"") ->  | HA26: =IF($C26="","", IF(GZ26=1,0,IF(GX26<>0,500,GS26*$AE26/$AH26+GT26/$AH26*5+GU26/$AH26*25+GV26*50+GW26*50))) ->  | HC26: =IF(C26<>"",C26,"") ->  | HL26: =IF($C26="","", IF(HK26=1,0,IF(HI26<>0,500,HD26*$AE26/$AH26+HE26/$AH26*5+HF26/$AH26*25+HG26*50+HH26*50))) ->  | HN26: =IF(C26<>"",C26,"") ->  | HW26: =IF($C26="","", IF(HV26=1,0,IF(HT26<>0,500,HO26*$AE26/$AH26+HP26/$AH26*5+HQ26/$AH26*25+HR26*50+HS26*50))) ->  | HY26: =IF(C26<>"",C26,"") ->  | IH26: =IF($C26="","", IF(IG26=1,0,IF(IE26<>0,500,HZ26*$AE26/$AH26+IA26/$AH26*5+IB26/$AH26*25+IC26*50+ID26*50))) -> 
B27: =IF(C27=0,"",ROW(C27)-4) ->  | H27: =IF(C27=0,"",IF(OR(BB27=1,BC27<>0),BC27,"-")) ->  | I27: =IF(C27=0,"",IF(OR(BM27=1,BN27<>0),BN27,"-")) ->  | J27: =IF(C27=0,"",IF(OR(BX27=1,BY27<>0),BY27," -")) ->  | K27: =IF(C27=0,"",IF(OR(CJ27<>0,CI27=1),CJ27," -")) ->  | L27: =IF(C27=0,"",IF(OR(CU27<>0,CT27=1),CU27," -")) ->  | M27: =IF(C27=0,"",IF(OR(DF27<>0,DE27=1),DF27," -")) ->  | N27: =IF(C27=0,"",IF(OR(DQ27<>0,DP27=1),DQ27," -")) ->  | O27: =IF(C27=0,"",IF(OR(EB27<>0,EA27=1),EB27," -")) ->  | P27: =IF(C27=0,"",IF(OR(EM27<>0,EL27=1),EM27," -")) ->  | Q27: =IF(C27=0,"",IF(OR(EX27<>0,EW27=1),EX27," -")) ->  | R27: =IF(C27=0,"",IF(OR(FI27<>0,FH27=1),FI27," -")) ->  | S27: =IF(C27=0,"",IF(OR(FT27<>0,FS27=1),FT27," -")) ->  | T27: =IF(C27=0,"",IF(OR(GE27<>0,GD27=1),GE27," -")) ->  | U27: =IF(C27=0,"",IF(OR(GP27<>0,GO27=1),GP27," -")) ->  | V27: =IF(C27=0,"",IF(OR(HA27<>0,GZ27=1),HA27," -")) ->  | W27: =IF(C27=0,"",IF(OR(HL27<>0,HK27=1),HL27," -")) ->  | X27: =IF(C27=0,"",IF(AJ27<>0,AJ27," -")) ->  | Y27: =IF(C27=0,"",IF(OR(HW27<>0,HV27=1),HW27," -")) ->  | Z27: =IF(C27=0,"",IF(OR(IH27<>0,IG27=1),IH27," -")) ->  | AA27: =IF(C27=0,"",IF(AL27=1,"DNF",IF(AL27=2,"DSQ",IF(AM27<>1,"~ "&ROUND(SUM(H27:X27),3),ROUND(SUM(H27:X27),3))))) ->  | AD27: =IF(C27<>"",C27,"") ->  | AE27: =IF(AD27<>"",3,"") ->  | AH27: =IF(AD27<>"",(AF27/1000*AG27/1000)/2,"") ->  | AP27: =IF(C27=0,99999,IF(AL27>0,9999,SUM(H27:X27)-AN27)) -> 99999 | AQ27: =IF(C27=0,99999,IF(AL27=1,9999,SUM(Y27:Z27))) -> 99999 | AT27: =IF(C27<>"",C27,"") ->  | BC27: =IF($C27="","", IF(BB27=1,0,IF(AZ27<>0,500,AU27*$AE27/$AH27+AV27/$AH27*5+AW27/$AH27*25+AX27*50+AY27*50))) ->  | BE27: =IF(C27<>"",C27,"") ->  | BN27: =IF($C27="","", IF(BM27=1,0,IF(BK27<>0,500,BF27*$AE27/$AH27+BG27/$AH27*5+BH27/$AH27*25+BI27*50+BJ27*50))) ->  | BP27: =IF(C27<>"",C27,"") ->  | BY27: =IF($C27="","", IF(BX27=1,0,IF(BV27<>0,500,BQ27*$AE27/$AH27+BR27/$AH27*5+BS27/$AH27*25+BT27*50+BU27*50))) ->  | CA27: =IF(C27<>"",C27,"") ->  | CJ27: =IF($C27="","", IF(CI27=1,0,IF(CG27<>0,500,CB27*$AE27/$AH27+CC27/$AH27*5+CD27/$AH27*25+CE27*50+CF27*50))) ->  | CL27: =IF(C27<>"",C27,"") ->  | CU27: =IF($C27="","", IF(CT27=1,0,IF(CR27<>0,500,CM27*$AE27/$AH27+CN27/$AH27*5+CO27/$AH27*25+CP27*50+CQ27*50))) ->  | CW27: =IF(C27<>"",C27,"") ->  | DF27: =IF($C27="","", IF(DE27=1,0,IF(DC27<>0,500,CX27*$AE27/$AH27+CY27/$AH27*5+CZ27/$AH27*25+DA27*50+DB27*50))) ->  | DH27: =IF(C27<>"",C27,"") ->  | DQ27: =IF($C27="","", IF(DP27=1,0,IF(DN27<>0,500,DI27*$AE27/$AH27+DJ27/$AH27*5+DK27/$AH27*25+DL27*50+DM27*50))) ->  | DS27: =IF(C27<>"",C27,"") ->  | EB27: =IF($C27="","", IF(EA27=1,0,IF(DY27<>0,500,DT27*$AE27/$AH27+DU27/$AH27*5+DV27/$AH27*25+DW27*50+DX27*50))) ->  | ED27: =IF(C27<>"",C27,"") ->  | EM27: =IF($C27="","", IF(EL27=1,0,IF(EJ27<>0,500,EE27*$AE27/$AH27+EF27/$AH27*5+EG27/$AH27*25+EH27*50+EI27*50))) ->  | EO27: =IF(C27<>"",C27,"") ->  | EX27: =IF($C27="","", IF(EW27=1,0,IF(EU27<>0,500,EP27*$AE27/$AH27+EQ27/$AH27*5+ER27/$AH27*25+ES27*50+ET27*50))) ->  | EZ27: =IF(C27<>"",C27,"") ->  | FI27: =IF($C27="","", IF(FH27=1,0,IF(FF27<>0,500,FA27*$AE27/$AH27+FB27/$AH27*5+FC27/$AH27*25+FD27*50+FE27*50))) ->  | FK27: =IF(C27<>"",C27,"") ->  | FT27: =IF($C27="","", IF(FS27=1,0,IF(FQ27<>0,500,FL27*$AE27/$AH27+FM27/$AH27*5+FN27/$AH27*25+FO27*50+FP27*50))) ->  | FV27: =IF(C27<>"",C27,"") ->  | GE27: =IF($C27="","", IF(GD27=1,0,IF(GB27<>0,500,FW27*$AE27/$AH27+FX27/$AH27*5+FY27/$AH27*25+FZ27*50+GA27*50))) ->  | GG27: =IF(C27<>"",C27,"") ->  | GP27: =IF($C27="","", IF(GO27=1,0,IF(GM27<>0,500,GH27*$AE27/$AH27+GI27/$AH27*5+GJ27/$AH27*25+GK27*50+GL27*50))) ->  | GR27: =IF(C27<>"",C27,"") ->  | HA27: =IF($C27="","", IF(GZ27=1,0,IF(GX27<>0,500,GS27*$AE27/$AH27+GT27/$AH27*5+GU27/$AH27*25+GV27*50+GW27*50))) ->  | HC27: =IF(C27<>"",C27,"") ->  | HL27: =IF($C27="","", IF(HK27=1,0,IF(HI27<>0,500,HD27*$AE27/$AH27+HE27/$AH27*5+HF27/$AH27*25+HG27*50+HH27*50))) ->  | HN27: =IF(C27<>"",C27,"") ->  | HW27: =IF($C27="","", IF(HV27=1,0,IF(HT27<>0,500,HO27*$AE27/$AH27+HP27/$AH27*5+HQ27/$AH27*25+HR27*50+HS27*50))) ->  | HY27: =IF(C27<>"",C27,"") ->  | IH27: =IF($C27="","", IF(IG27=1,0,IF(IE27<>0,500,HZ27*$AE27/$AH27+IA27/$AH27*5+IB27/$AH27*25+IC27*50+ID27*50))) -> 
B28: =IF(C28=0,"",ROW(C28)-4) ->  | H28: =IF(C28=0,"",IF(OR(BB28=1,BC28<>0),BC28,"-")) ->  | I28: =IF(C28=0,"",IF(OR(BM28=1,BN28<>0),BN28,"-")) ->  | J28: =IF(C28=0,"",IF(OR(BX28=1,BY28<>0),BY28," -")) ->  | K28: =IF(C28=0,"",IF(OR(CJ28<>0,CI28=1),CJ28," -")) ->  | L28: =IF(C28=0,"",IF(OR(CU28<>0,CT28=1),CU28," -")) ->  | M28: =IF(C28=0,"",IF(OR(DF28<>0,DE28=1),DF28," -")) ->  | N28: =IF(C28=0,"",IF(OR(DQ28<>0,DP28=1),DQ28," -")) ->  | O28: =IF(C28=0,"",IF(OR(EB28<>0,EA28=1),EB28," -")) ->  | P28: =IF(C28=0,"",IF(OR(EM28<>0,EL28=1),EM28," -")) ->  | Q28: =IF(C28=0,"",IF(OR(EX28<>0,EW28=1),EX28," -")) ->  | R28: =IF(C28=0,"",IF(OR(FI28<>0,FH28=1),FI28," -")) ->  | S28: =IF(C28=0,"",IF(OR(FT28<>0,FS28=1),FT28," -")) ->  | T28: =IF(C28=0,"",IF(OR(GE28<>0,GD28=1),GE28," -")) ->  | U28: =IF(C28=0,"",IF(OR(GP28<>0,GO28=1),GP28," -")) ->  | V28: =IF(C28=0,"",IF(OR(HA28<>0,GZ28=1),HA28," -")) ->  | W28: =IF(C28=0,"",IF(OR(HL28<>0,HK28=1),HL28," -")) ->  | X28: =IF(C28=0,"",IF(AJ28<>0,AJ28," -")) ->  | Y28: =IF(C28=0,"",IF(OR(HW28<>0,HV28=1),HW28," -")) ->  | Z28: =IF(C28=0,"",IF(OR(IH28<>0,IG28=1),IH28," -")) ->  | AA28: =IF(C28=0,"",IF(AL28=1,"DNF",IF(AL28=2,"DSQ",IF(AM28<>1,"~ "&ROUND(SUM(H28:X28),3),ROUND(SUM(H28:X28),3))))) ->  | AD28: =IF(C28<>"",C28,"") ->  | AE28: =IF(AD28<>"",3,"") ->  | AH28: =IF(AD28<>"",(AF28/1000*AG28/1000)/2,"") ->  | AP28: =IF(C28=0,99999,IF(AL28>0,9999,SUM(H28:X28)-AN28)) -> 99999 | AQ28: =IF(C28=0,99999,IF(AL28=1,9999,SUM(Y28:Z28))) -> 99999 | AT28: =IF(C28<>"",C28,"") ->  | BC28: =IF($C28="","", IF(BB28=1,0,IF(AZ28<>0,500,AU28*$AE28/$AH28+AV28/$AH28*5+AW28/$AH28*25+AX28*50+AY28*50))) ->  | BE28: =IF(C28<>"",C28,"") ->  | BN28: =IF($C28="","", IF(BM28=1,0,IF(BK28<>0,500,BF28*$AE28/$AH28+BG28/$AH28*5+BH28/$AH28*25+BI28*50+BJ28*50))) ->  | BP28: =IF(C28<>"",C28,"") ->  | BY28: =IF($C28="","", IF(BX28=1,0,IF(BV28<>0,500,BQ28*$AE28/$AH28+BR28/$AH28*5+BS28/$AH28*25+BT28*50+BU28*50))) ->  | CA28: =IF(C28<>"",C28,"") ->  | CJ28: =IF($C28="","", IF(CI28=1,0,IF(CG28<>0,500,CB28*$AE28/$AH28+CC28/$AH28*5+CD28/$AH28*25+CE28*50+CF28*50))) ->  | CL28: =IF(C28<>"",C28,"") ->  | CU28: =IF($C28="","", IF(CT28=1,0,IF(CR28<>0,500,CM28*$AE28/$AH28+CN28/$AH28*5+CO28/$AH28*25+CP28*50+CQ28*50))) ->  | CW28: =IF(C28<>"",C28,"") ->  | DF28: =IF($C28="","", IF(DE28=1,0,IF(DC28<>0,500,CX28*$AE28/$AH28+CY28/$AH28*5+CZ28/$AH28*25+DA28*50+DB28*50))) ->  | DH28: =IF(C28<>"",C28,"") ->  | DQ28: =IF($C28="","", IF(DP28=1,0,IF(DN28<>0,500,DI28*$AE28/$AH28+DJ28/$AH28*5+DK28/$AH28*25+DL28*50+DM28*50))) ->  | DS28: =IF(C28<>"",C28,"") ->  | EB28: =IF($C28="","", IF(EA28=1,0,IF(DY28<>0,500,DT28*$AE28/$AH28+DU28/$AH28*5+DV28/$AH28*25+DW28*50+DX28*50))) ->  | ED28: =IF(C28<>"",C28,"") ->  | EM28: =IF($C28="","", IF(EL28=1,0,IF(EJ28<>0,500,EE28*$AE28/$AH28+EF28/$AH28*5+EG28/$AH28*25+EH28*50+EI28*50))) ->  | EO28: =IF(C28<>"",C28,"") ->  | EX28: =IF($C28="","", IF(EW28=1,0,IF(EU28<>0,500,EP28*$AE28/$AH28+EQ28/$AH28*5+ER28/$AH28*25+ES28*50+ET28*50))) ->  | EZ28: =IF(C28<>"",C28,"") ->  | FI28: =IF($C28="","", IF(FH28=1,0,IF(FF28<>0,500,FA28*$AE28/$AH28+FB28/$AH28*5+FC28/$AH28*25+FD28*50+FE28*50))) ->  | FK28: =IF(C28<>"",C28,"") ->  | FT28: =IF($C28="","", IF(FS28=1,0,IF(FQ28<>0,500,FL28*$AE28/$AH28+FM28/$AH28*5+FN28/$AH28*25+FO28*50+FP28*50))) ->  | FV28: =IF(C28<>"",C28,"") ->  | GE28: =IF($C28="","", IF(GD28=1,0,IF(GB28<>0,500,FW28*$AE28/$AH28+FX28/$AH28*5+FY28/$AH28*25+FZ28*50+GA28*50))) ->  | GG28: =IF(C28<>"",C28,"") ->  | GP28: =IF($C28="","", IF(GO28=1,0,IF(GM28<>0,500,GH28*$AE28/$AH28+GI28/$AH28*5+GJ28/$AH28*25+GK28*50+GL28*50))) ->  | GR28: =IF(C28<>"",C28,"") ->  | HA28: =IF($C28="","", IF(GZ28=1,0,IF(GX28<>0,500,GS28*$AE28/$AH28+GT28/$AH28*5+GU28/$AH28*25+GV28*50+GW28*50))) ->  | HC28: =IF(C28<>"",C28,"") ->  | HL28: =IF($C28="","", IF(HK28=1,0,IF(HI28<>0,500,HD28*$AE28/$AH28+HE28/$AH28*5+HF28/$AH28*25+HG28*50+HH28*50))) ->  | HN28: =IF(C28<>"",C28,"") ->  | HW28: =IF($C28="","", IF(HV28=1,0,IF(HT28<>0,500,HO28*$AE28/$AH28+HP28/$AH28*5+HQ28/$AH28*25+HR28*50+HS28*50))) ->  | HY28: =IF(C28<>"",C28,"") ->  | IH28: =IF($C28="","", IF(IG28=1,0,IF(IE28<>0,500,HZ28*$AE28/$AH28+IA28/$AH28*5+IB28/$AH28*25+IC28*50+ID28*50))) -> 
B29: =IF(C29=0,"",ROW(C29)-4) ->  | H29: =IF(C29=0,"",IF(OR(BB29=1,BC29<>0),BC29,"-")) ->  | I29: =IF(C29=0,"",IF(OR(BM29=1,BN29<>0),BN29,"-")) ->  | J29: =IF(C29=0,"",IF(OR(BX29=1,BY29<>0),BY29," -")) ->  | K29: =IF(C29=0,"",IF(OR(CJ29<>0,CI29=1),CJ29," -")) ->  | L29: =IF(C29=0,"",IF(OR(CU29<>0,CT29=1),CU29," -")) ->  | M29: =IF(C29=0,"",IF(OR(DF29<>0,DE29=1),DF29," -")) ->  | N29: =IF(C29=0,"",IF(OR(DQ29<>0,DP29=1),DQ29," -")) ->  | O29: =IF(C29=0,"",IF(OR(EB29<>0,EA29=1),EB29," -")) ->  | P29: =IF(C29=0,"",IF(OR(EM29<>0,EL29=1),EM29," -")) ->  | Q29: =IF(C29=0,"",IF(OR(EX29<>0,EW29=1),EX29," -")) ->  | R29: =IF(C29=0,"",IF(OR(FI29<>0,FH29=1),FI29," -")) ->  | S29: =IF(C29=0,"",IF(OR(FT29<>0,FS29=1),FT29," -")) ->  | T29: =IF(C29=0,"",IF(OR(GE29<>0,GD29=1),GE29," -")) ->  | U29: =IF(C29=0,"",IF(OR(GP29<>0,GO29=1),GP29," -")) ->  | V29: =IF(C29=0,"",IF(OR(HA29<>0,GZ29=1),HA29," -")) ->  | W29: =IF(C29=0,"",IF(OR(HL29<>0,HK29=1),HL29," -")) ->  | X29: =IF(C29=0,"",IF(AJ29<>0,AJ29," -")) ->  | Y29: =IF(C29=0,"",IF(OR(HW29<>0,HV29=1),HW29," -")) ->  | Z29: =IF(C29=0,"",IF(OR(IH29<>0,IG29=1),IH29," -")) ->  | AA29: =IF(C29=0,"",IF(AL29=1,"DNF",IF(AL29=2,"DSQ",IF(AM29<>1,"~ "&ROUND(SUM(H29:X29),3),ROUND(SUM(H29:X29),3))))) ->  | AD29: =IF(C29<>"",C29,"") ->  | AE29: =IF(AD29<>"",3,"") ->  | AH29: =IF(AD29<>"",(AF29/1000*AG29/1000)/2,"") ->  | AP29: =IF(C29=0,99999,IF(AL29>0,9999,SUM(H29:X29)-AN29)) -> 99999 | AQ29: =IF(C29=0,99999,IF(AL29=1,9999,SUM(Y29:Z29))) -> 99999 | AT29: =IF(C29<>"",C29,"") ->  | BC29: =IF($C29="","", IF(BB29=1,0,IF(AZ29<>0,500,AU29*$AE29/$AH29+AV29/$AH29*5+AW29/$AH29*25+AX29*50+AY29*50))) ->  | BE29: =IF(C29<>"",C29,"") ->  | BN29: =IF($C29="","", IF(BM29=1,0,IF(BK29<>0,500,BF29*$AE29/$AH29+BG29/$AH29*5+BH29/$AH29*25+BI29*50+BJ29*50))) ->  | BP29: =IF(C29<>"",C29,"") ->  | BY29: =IF($C29="","", IF(BX29=1,0,IF(BV29<>0,500,BQ29*$AE29/$AH29+BR29/$AH29*5+BS29/$AH29*25+BT29*50+BU29*50))) ->  | CA29: =IF(C29<>"",C29,"") ->  | CJ29: =IF($C29="","", IF(CI29=1,0,IF(CG29<>0,500,CB29*$AE29/$AH29+CC29/$AH29*5+CD29/$AH29*25+CE29*50+CF29*50))) ->  | CL29: =IF(C29<>"",C29,"") ->  | CU29: =IF($C29="","", IF(CT29=1,0,IF(CR29<>0,500,CM29*$AE29/$AH29+CN29/$AH29*5+CO29/$AH29*25+CP29*50+CQ29*50))) ->  | CW29: =IF(C29<>"",C29,"") ->  | DF29: =IF($C29="","", IF(DE29=1,0,IF(DC29<>0,500,CX29*$AE29/$AH29+CY29/$AH29*5+CZ29/$AH29*25+DA29*50+DB29*50))) ->  | DH29: =IF(C29<>"",C29,"") ->  | DQ29: =IF($C29="","", IF(DP29=1,0,IF(DN29<>0,500,DI29*$AE29/$AH29+DJ29/$AH29*5+DK29/$AH29*25+DL29*50+DM29*50))) ->  | DS29: =IF(C29<>"",C29,"") ->  | EB29: =IF($C29="","", IF(EA29=1,0,IF(DY29<>0,500,DT29*$AE29/$AH29+DU29/$AH29*5+DV29/$AH29*25+DW29*50+DX29*50))) ->  | ED29: =IF(C29<>"",C29,"") ->  | EM29: =IF($C29="","", IF(EL29=1,0,IF(EJ29<>0,500,EE29*$AE29/$AH29+EF29/$AH29*5+EG29/$AH29*25+EH29*50+EI29*50))) ->  | EO29: =IF(C29<>"",C29,"") ->  | EX29: =IF($C29="","", IF(EW29=1,0,IF(EU29<>0,500,EP29*$AE29/$AH29+EQ29/$AH29*5+ER29/$AH29*25+ES29*50+ET29*50))) ->  | EZ29: =IF(C29<>"",C29,"") ->  | FI29: =IF($C29="","", IF(FH29=1,0,IF(FF29<>0,500,FA29*$AE29/$AH29+FB29/$AH29*5+FC29/$AH29*25+FD29*50+FE29*50))) ->  | FK29: =IF(C29<>"",C29,"") ->  | FT29: =IF($C29="","", IF(FS29=1,0,IF(FQ29<>0,500,FL29*$AE29/$AH29+FM29/$AH29*5+FN29/$AH29*25+FO29*50+FP29*50))) ->  | FV29: =IF(C29<>"",C29,"") ->  | GE29: =IF($C29="","", IF(GD29=1,0,IF(GB29<>0,500,FW29*$AE29/$AH29+FX29/$AH29*5+FY29/$AH29*25+FZ29*50+GA29*50))) ->  | GG29: =IF(C29<>"",C29,"") ->  | GP29: =IF($C29="","", IF(GO29=1,0,IF(GM29<>0,500,GH29*$AE29/$AH29+GI29/$AH29*5+GJ29/$AH29*25+GK29*50+GL29*50))) ->  | GR29: =IF(C29<>"",C29,"") ->  | HA29: =IF($C29="","", IF(GZ29=1,0,IF(GX29<>0,500,GS29*$AE29/$AH29+GT29/$AH29*5+GU29/$AH29*25+GV29*50+GW29*50))) ->  | HC29: =IF(C29<>"",C29,"") ->  | HL29: =IF($C29="","", IF(HK29=1,0,IF(HI29<>0,500,HD29*$AE29/$AH29+HE29/$AH29*5+HF29/$AH29*25+HG29*50+HH29*50))) ->  | HN29: =IF(C29<>"",C29,"") ->  | HW29: =IF($C29="","", IF(HV29=1,0,IF(HT29<>0,500,HO29*$AE29/$AH29+HP29/$AH29*5+HQ29/$AH29*25+HR29*50+HS29*50))) ->  | HY29: =IF(C29<>"",C29,"") ->  | IH29: =IF($C29="","", IF(IG29=1,0,IF(IE29<>0,500,HZ29*$AE29/$AH29+IA29/$AH29*5+IB29/$AH29*25+IC29*50+ID29*50))) -> 
B30: =IF(C30=0,"",ROW(C30)-4) ->  | H30: =IF(C30=0,"",IF(OR(BB30=1,BC30<>0),BC30,"-")) ->  | I30: =IF(C30=0,"",IF(OR(BM30=1,BN30<>0),BN30,"-")) ->  | J30: =IF(C30=0,"",IF(OR(BX30=1,BY30<>0),BY30," -")) ->  | K30: =IF(C30=0,"",IF(OR(CJ30<>0,CI30=1),CJ30," -")) ->  | L30: =IF(C30=0,"",IF(OR(CU30<>0,CT30=1),CU30," -")) ->  | M30: =IF(C30=0,"",IF(OR(DF30<>0,DE30=1),DF30," -")) ->  | N30: =IF(C30=0,"",IF(OR(DQ30<>0,DP30=1),DQ30," -")) ->  | O30: =IF(C30=0,"",IF(OR(EB30<>0,EA30=1),EB30," -")) ->  | P30: =IF(C30=0,"",IF(OR(EM30<>0,EL30=1),EM30," -")) ->  | Q30: =IF(C30=0,"",IF(OR(EX30<>0,EW30=1),EX30," -")) ->  | R30: =IF(C30=0,"",IF(OR(FI30<>0,FH30=1),FI30," -")) ->  | S30: =IF(C30=0,"",IF(OR(FT30<>0,FS30=1),FT30," -")) ->  | T30: =IF(C30=0,"",IF(OR(GE30<>0,GD30=1),GE30," -")) ->  | U30: =IF(C30=0,"",IF(OR(GP30<>0,GO30=1),GP30," -")) ->  | V30: =IF(C30=0,"",IF(OR(HA30<>0,GZ30=1),HA30," -")) ->  | W30: =IF(C30=0,"",IF(OR(HL30<>0,HK30=1),HL30," -")) ->  | X30: =IF(C30=0,"",IF(AJ30<>0,AJ30," -")) ->  | Y30: =IF(C30=0,"",IF(OR(HW30<>0,HV30=1),HW30," -")) ->  | Z30: =IF(C30=0,"",IF(OR(IH30<>0,IG30=1),IH30," -")) ->  | AA30: =IF(C30=0,"",IF(AL30=1,"DNF",IF(AL30=2,"DSQ",IF(AM30<>1,"~ "&ROUND(SUM(H30:X30),3),ROUND(SUM(H30:X30),3))))) ->  | AD30: =IF(C30<>"",C30,"") ->  | AE30: =IF(AD30<>"",3,"") ->  | AH30: =IF(AD30<>"",(AF30/1000*AG30/1000)/2,"") ->  | AP30: =IF(C30=0,99999,IF(AL30>0,9999,SUM(H30:X30)-AN30)) -> 99999 | AQ30: =IF(C30=0,99999,IF(AL30=1,9999,SUM(Y30:Z30))) -> 99999 | AT30: =IF(C30<>"",C30,"") ->  | BC30: =IF($C30="","", IF(BB30=1,0,IF(AZ30<>0,500,AU30*$AE30/$AH30+AV30/$AH30*5+AW30/$AH30*25+AX30*50+AY30*50))) ->  | BE30: =IF(C30<>"",C30,"") ->  | BN30: =IF($C30="","", IF(BM30=1,0,IF(BK30<>0,500,BF30*$AE30/$AH30+BG30/$AH30*5+BH30/$AH30*25+BI30*50+BJ30*50))) ->  | BP30: =IF(C30<>"",C30,"") ->  | BY30: =IF($C30="","", IF(BX30=1,0,IF(BV30<>0,500,BQ30*$AE30/$AH30+BR30/$AH30*5+BS30/$AH30*25+BT30*50+BU30*50))) ->  | CA30: =IF(C30<>"",C30,"") ->  | CJ30: =IF($C30="","", IF(CI30=1,0,IF(CG30<>0,500,CB30*$AE30/$AH30+CC30/$AH30*5+CD30/$AH30*25+CE30*50+CF30*50))) ->  | CL30: =IF(C30<>"",C30,"") ->  | CU30: =IF($C30="","", IF(CT30=1,0,IF(CR30<>0,500,CM30*$AE30/$AH30+CN30/$AH30*5+CO30/$AH30*25+CP30*50+CQ30*50))) ->  | CW30: =IF(C30<>"",C30,"") ->  | DF30: =IF($C30="","", IF(DE30=1,0,IF(DC30<>0,500,CX30*$AE30/$AH30+CY30/$AH30*5+CZ30/$AH30*25+DA30*50+DB30*50))) ->  | DH30: =IF(C30<>"",C30,"") ->  | DQ30: =IF($C30="","", IF(DP30=1,0,IF(DN30<>0,500,DI30*$AE30/$AH30+DJ30/$AH30*5+DK30/$AH30*25+DL30*50+DM30*50))) ->  | DS30: =IF(C30<>"",C30,"") ->  | EB30: =IF($C30="","", IF(EA30=1,0,IF(DY30<>0,500,DT30*$AE30/$AH30+DU30/$AH30*5+DV30/$AH30*25+DW30*50+DX30*50))) ->  | ED30: =IF(C30<>"",C30,"") ->  | EM30: =IF($C30="","", IF(EL30=1,0,IF(EJ30<>0,500,EE30*$AE30/$AH30+EF30/$AH30*5+EG30/$AH30*25+EH30*50+EI30*50))) ->  | EO30: =IF(C30<>"",C30,"") ->  | EX30: =IF($C30="","", IF(EW30=1,0,IF(EU30<>0,500,EP30*$AE30/$AH30+EQ30/$AH30*5+ER30/$AH30*25+ES30*50+ET30*50))) ->  | EZ30: =IF(C30<>"",C30,"") ->  | FI30: =IF($C30="","", IF(FH30=1,0,IF(FF30<>0,500,FA30*$AE30/$AH30+FB30/$AH30*5+FC30/$AH30*25+FD30*50+FE30*50))) ->  | FK30: =IF(C30<>"",C30,"") ->  | FT30: =IF($C30="","", IF(FS30=1,0,IF(FQ30<>0,500,FL30*$AE30/$AH30+FM30/$AH30*5+FN30/$AH30*25+FO30*50+FP30*50))) ->  | FV30: =IF(C30<>"",C30,"") ->  | GE30: =IF($C30="","", IF(GD30=1,0,IF(GB30<>0,500,FW30*$AE30/$AH30+FX30/$AH30*5+FY30/$AH30*25+FZ30*50+GA30*50))) ->  | GG30: =IF(C30<>"",C30,"") ->  | GP30: =IF($C30="","", IF(GO30=1,0,IF(GM30<>0,500,GH30*$AE30/$AH30+GI30/$AH30*5+GJ30/$AH30*25+GK30*50+GL30*50))) ->  | GR30: =IF(C30<>"",C30,"") ->  | HA30: =IF($C30="","", IF(GZ30=1,0,IF(GX30<>0,500,GS30*$AE30/$AH30+GT30/$AH30*5+GU30/$AH30*25+GV30*50+GW30*50))) ->  | HC30: =IF(C30<>"",C30,"") ->  | HL30: =IF($C30="","", IF(HK30=1,0,IF(HI30<>0,500,HD30*$AE30/$AH30+HE30/$AH30*5+HF30/$AH30*25+HG30*50+HH30*50))) ->  | HN30: =IF(C30<>"",C30,"") ->  | HW30: =IF($C30="","", IF(HV30=1,0,IF(HT30<>0,500,HO30*$AE30/$AH30+HP30/$AH30*5+HQ30/$AH30*25+HR30*50+HS30*50))) ->  | HY30: =IF(C30<>"",C30,"") ->  | IH30: =IF($C30="","", IF(IG30=1,0,IF(IE30<>0,500,HZ30*$AE30/$AH30+IA30/$AH30*5+IB30/$AH30*25+IC30*50+ID30*50))) -> 
B31: =IF(C31=0,"",ROW(C31)-4) ->  | H31: =IF(C31=0,"",IF(OR(BB31=1,BC31<>0),BC31,"-")) ->  | I31: =IF(C31=0,"",IF(OR(BM31=1,BN31<>0),BN31,"-")) ->  | J31: =IF(C31=0,"",IF(OR(BX31=1,BY31<>0),BY31," -")) ->  | K31: =IF(C31=0,"",IF(OR(CJ31<>0,CI31=1),CJ31," -")) ->  | L31: =IF(C31=0,"",IF(OR(CU31<>0,CT31=1),CU31," -")) ->  | M31: =IF(C31=0,"",IF(OR(DF31<>0,DE31=1),DF31," -")) ->  | N31: =IF(C31=0,"",IF(OR(DQ31<>0,DP31=1),DQ31," -")) ->  | O31: =IF(C31=0,"",IF(OR(EB31<>0,EA31=1),EB31," -")) ->  | P31: =IF(C31=0,"",IF(OR(EM31<>0,EL31=1),EM31," -")) ->  | Q31: =IF(C31=0,"",IF(OR(EX31<>0,EW31=1),EX31," -")) ->  | R31: =IF(C31=0,"",IF(OR(FI31<>0,FH31=1),FI31," -")) ->  | S31: =IF(C31=0,"",IF(OR(FT31<>0,FS31=1),FT31," -")) ->  | T31: =IF(C31=0,"",IF(OR(GE31<>0,GD31=1),GE31," -")) ->  | U31: =IF(C31=0,"",IF(OR(GP31<>0,GO31=1),GP31," -")) ->  | V31: =IF(C31=0,"",IF(OR(HA31<>0,GZ31=1),HA31," -")) ->  | W31: =IF(C31=0,"",IF(OR(HL31<>0,HK31=1),HL31," -")) ->  | X31: =IF(C31=0,"",IF(AJ31<>0,AJ31," -")) ->  | Y31: =IF(C31=0,"",IF(OR(HW31<>0,HV31=1),HW31," -")) ->  | Z31: =IF(C31=0,"",IF(OR(IH31<>0,IG31=1),IH31," -")) ->  | AA31: =IF(C31=0,"",IF(AL31=1,"DNF",IF(AL31=2,"DSQ",IF(AM31<>1,"~ "&ROUND(SUM(H31:X31),3),ROUND(SUM(H31:X31),3))))) ->  | AD31: =IF(C31<>"",C31,"") ->  | AE31: =IF(AD31<>"",3,"") ->  | AH31: =IF(AD31<>"",(AF31/1000*AG31/1000)/2,"") ->  | AP31: =IF(C31=0,99999,IF(AL31>0,9999,SUM(H31:X31)-AN31)) -> 99999 | AQ31: =IF(C31=0,99999,IF(AL31=1,9999,SUM(Y31:Z31))) -> 99999 | AT31: =IF(C31<>"",C31,"") ->  | BC31: =IF($C31="","", IF(BB31=1,0,IF(AZ31<>0,500,AU31*$AE31/$AH31+AV31/$AH31*5+AW31/$AH31*25+AX31*50+AY31*50))) ->  | BE31: =IF(C31<>"",C31,"") ->  | BN31: =IF($C31="","", IF(BM31=1,0,IF(BK31<>0,500,BF31*$AE31/$AH31+BG31/$AH31*5+BH31/$AH31*25+BI31*50+BJ31*50))) ->  | BP31: =IF(C31<>"",C31,"") ->  | BY31: =IF($C31="","", IF(BX31=1,0,IF(BV31<>0,500,BQ31*$AE31/$AH31+BR31/$AH31*5+BS31/$AH31*25+BT31*50+BU31*50))) ->  | CA31: =IF(C31<>"",C31,"") ->  | CJ31: =IF($C31="","", IF(CI31=1,0,IF(CG31<>0,500,CB31*$AE31/$AH31+CC31/$AH31*5+CD31/$AH31*25+CE31*50+CF31*50))) ->  | CL31: =IF(C31<>"",C31,"") ->  | CU31: =IF($C31="","", IF(CT31=1,0,IF(CR31<>0,500,CM31*$AE31/$AH31+CN31/$AH31*5+CO31/$AH31*25+CP31*50+CQ31*50))) ->  | CW31: =IF(C31<>"",C31,"") ->  | DF31: =IF($C31="","", IF(DE31=1,0,IF(DC31<>0,500,CX31*$AE31/$AH31+CY31/$AH31*5+CZ31/$AH31*25+DA31*50+DB31*50))) ->  | DH31: =IF(C31<>"",C31,"") ->  | DQ31: =IF($C31="","", IF(DP31=1,0,IF(DN31<>0,500,DI31*$AE31/$AH31+DJ31/$AH31*5+DK31/$AH31*25+DL31*50+DM31*50))) ->  | DS31: =IF(C31<>"",C31,"") ->  | EB31: =IF($C31="","", IF(EA31=1,0,IF(DY31<>0,500,DT31*$AE31/$AH31+DU31/$AH31*5+DV31/$AH31*25+DW31*50+DX31*50))) ->  | ED31: =IF(C31<>"",C31,"") ->  | EM31: =IF($C31="","", IF(EL31=1,0,IF(EJ31<>0,500,EE31*$AE31/$AH31+EF31/$AH31*5+EG31/$AH31*25+EH31*50+EI31*50))) ->  | EO31: =IF(C31<>"",C31,"") ->  | EX31: =IF($C31="","", IF(EW31=1,0,IF(EU31<>0,500,EP31*$AE31/$AH31+EQ31/$AH31*5+ER31/$AH31*25+ES31*50+ET31*50))) ->  | EZ31: =IF(C31<>"",C31,"") ->  | FI31: =IF($C31="","", IF(FH31=1,0,IF(FF31<>0,500,FA31*$AE31/$AH31+FB31/$AH31*5+FC31/$AH31*25+FD31*50+FE31*50))) ->  | FK31: =IF(C31<>"",C31,"") ->  | FT31: =IF($C31="","", IF(FS31=1,0,IF(FQ31<>0,500,FL31*$AE31/$AH31+FM31/$AH31*5+FN31/$AH31*25+FO31*50+FP31*50))) ->  | FV31: =IF(C31<>"",C31,"") ->  | GE31: =IF($C31="","", IF(GD31=1,0,IF(GB31<>0,500,FW31*$AE31/$AH31+FX31/$AH31*5+FY31/$AH31*25+FZ31*50+GA31*50))) ->  | GG31: =IF(C31<>"",C31,"") ->  | GP31: =IF($C31="","", IF(GO31=1,0,IF(GM31<>0,500,GH31*$AE31/$AH31+GI31/$AH31*5+GJ31/$AH31*25+GK31*50+GL31*50))) ->  | GR31: =IF(C31<>"",C31,"") ->  | HA31: =IF($C31="","", IF(GZ31=1,0,IF(GX31<>0,500,GS31*$AE31/$AH31+GT31/$AH31*5+GU31/$AH31*25+GV31*50+GW31*50))) ->  | HC31: =IF(C31<>"",C31,"") ->  | HL31: =IF($C31="","", IF(HK31=1,0,IF(HI31<>0,500,HD31*$AE31/$AH31+HE31/$AH31*5+HF31/$AH31*25+HG31*50+HH31*50))) ->  | HN31: =IF(C31<>"",C31,"") ->  | HW31: =IF($C31="","", IF(HV31=1,0,IF(HT31<>0,500,HO31*$AE31/$AH31+HP31/$AH31*5+HQ31/$AH31*25+HR31*50+HS31*50))) ->  | HY31: =IF(C31<>"",C31,"") ->  | IH31: =IF($C31="","", IF(IG31=1,0,IF(IE31<>0,500,HZ31*$AE31/$AH31+IA31/$AH31*5+IB31/$AH31*25+IC31*50+ID31*50))) -> 
B32: =IF(C32=0,"",ROW(C32)-4) ->  | H32: =IF(C32=0,"",IF(OR(BB32=1,BC32<>0),BC32,"-")) ->  | I32: =IF(C32=0,"",IF(OR(BM32=1,BN32<>0),BN32,"-")) ->  | J32: =IF(C32=0,"",IF(OR(BX32=1,BY32<>0),BY32," -")) ->  | K32: =IF(C32=0,"",IF(OR(CJ32<>0,CI32=1),CJ32," -")) ->  | L32: =IF(C32=0,"",IF(OR(CU32<>0,CT32=1),CU32," -")) ->  | M32: =IF(C32=0,"",IF(OR(DF32<>0,DE32=1),DF32," -")) ->  | N32: =IF(C32=0,"",IF(OR(DQ32<>0,DP32=1),DQ32," -")) ->  | O32: =IF(C32=0,"",IF(OR(EB32<>0,EA32=1),EB32," -")) ->  | P32: =IF(C32=0,"",IF(OR(EM32<>0,EL32=1),EM32," -")) ->  | Q32: =IF(C32=0,"",IF(OR(EX32<>0,EW32=1),EX32," -")) ->  | R32: =IF(C32=0,"",IF(OR(FI32<>0,FH32=1),FI32," -")) ->  | S32: =IF(C32=0,"",IF(OR(FT32<>0,FS32=1),FT32," -")) ->  | T32: =IF(C32=0,"",IF(OR(GE32<>0,GD32=1),GE32," -")) ->  | U32: =IF(C32=0,"",IF(OR(GP32<>0,GO32=1),GP32," -")) ->  | V32: =IF(C32=0,"",IF(OR(HA32<>0,GZ32=1),HA32," -")) ->  | W32: =IF(C32=0,"",IF(OR(HL32<>0,HK32=1),HL32," -")) ->  | X32: =IF(C32=0,"",IF(AJ32<>0,AJ32," -")) ->  | Y32: =IF(C32=0,"",IF(OR(HW32<>0,HV32=1),HW32," -")) ->  | Z32: =IF(C32=0,"",IF(OR(IH32<>0,IG32=1),IH32," -")) ->  | AA32: =IF(C32=0,"",IF(AL32=1,"DNF",IF(AL32=2,"DSQ",IF(AM32<>1,"~ "&ROUND(SUM(H32:X32),3),ROUND(SUM(H32:X32),3))))) ->  | AD32: =IF(C32<>"",C32,"") ->  | AE32: =IF(AD32<>"",3,"") ->  | AH32: =IF(AD32<>"",(AF32/1000*AG32/1000)/2,"") ->  | AP32: =IF(C32=0,99999,IF(AL32>0,9999,SUM(H32:X32)-AN32)) -> 99999 | AQ32: =IF(C32=0,99999,IF(AL32=1,9999,SUM(Y32:Z32))) -> 99999 | AT32: =IF(C32<>"",C32,"") ->  | BC32: =IF($C32="","", IF(BB32=1,0,IF(AZ32<>0,500,AU32*$AE32/$AH32+AV32/$AH32*5+AW32/$AH32*25+AX32*50+AY32*50))) ->  | BE32: =IF(C32<>"",C32,"") ->  | BN32: =IF($C32="","", IF(BM32=1,0,IF(BK32<>0,500,BF32*$AE32/$AH32+BG32/$AH32*5+BH32/$AH32*25+BI32*50+BJ32*50))) ->  | BP32: =IF(C32<>"",C32,"") ->  | BY32: =IF($C32="","", IF(BX32=1,0,IF(BV32<>0,500,BQ32*$AE32/$AH32+BR32/$AH32*5+BS32/$AH32*25+BT32*50+BU32*50))) ->  | CA32: =IF(C32<>"",C32,"") ->  | CJ32: =IF($C32="","", IF(CI32=1,0,IF(CG32<>0,500,CB32*$AE32/$AH32+CC32/$AH32*5+CD32/$AH32*25+CE32*50+CF32*50))) ->  | CL32: =IF(C32<>"",C32,"") ->  | CU32: =IF($C32="","", IF(CT32=1,0,IF(CR32<>0,500,CM32*$AE32/$AH32+CN32/$AH32*5+CO32/$AH32*25+CP32*50+CQ32*50))) ->  | CW32: =IF(C32<>"",C32,"") ->  | DF32: =IF($C32="","", IF(DE32=1,0,IF(DC32<>0,500,CX32*$AE32/$AH32+CY32/$AH32*5+CZ32/$AH32*25+DA32*50+DB32*50))) ->  | DH32: =IF(C32<>"",C32,"") ->  | DQ32: =IF($C32="","", IF(DP32=1,0,IF(DN32<>0,500,DI32*$AE32/$AH32+DJ32/$AH32*5+DK32/$AH32*25+DL32*50+DM32*50))) ->  | DS32: =IF(C32<>"",C32,"") ->  | EB32: =IF($C32="","", IF(EA32=1,0,IF(DY32<>0,500,DT32*$AE32/$AH32+DU32/$AH32*5+DV32/$AH32*25+DW32*50+DX32*50))) ->  | ED32: =IF(C32<>"",C32,"") ->  | EM32: =IF($C32="","", IF(EL32=1,0,IF(EJ32<>0,500,EE32*$AE32/$AH32+EF32/$AH32*5+EG32/$AH32*25+EH32*50+EI32*50))) ->  | EO32: =IF(C32<>"",C32,"") ->  | EX32: =IF($C32="","", IF(EW32=1,0,IF(EU32<>0,500,EP32*$AE32/$AH32+EQ32/$AH32*5+ER32/$AH32*25+ES32*50+ET32*50))) ->  | EZ32: =IF(C32<>"",C32,"") ->  | FI32: =IF($C32="","", IF(FH32=1,0,IF(FF32<>0,500,FA32*$AE32/$AH32+FB32/$AH32*5+FC32/$AH32*25+FD32*50+FE32*50))) ->  | FK32: =IF(C32<>"",C32,"") ->  | FT32: =IF($C32="","", IF(FS32=1,0,IF(FQ32<>0,500,FL32*$AE32/$AH32+FM32/$AH32*5+FN32/$AH32*25+FO32*50+FP32*50))) ->  | FV32: =IF(C32<>"",C32,"") ->  | GE32: =IF($C32="","", IF(GD32=1,0,IF(GB32<>0,500,FW32*$AE32/$AH32+FX32/$AH32*5+FY32/$AH32*25+FZ32*50+GA32*50))) ->  | GG32: =IF(C32<>"",C32,"") ->  | GP32: =IF($C32="","", IF(GO32=1,0,IF(GM32<>0,500,GH32*$AE32/$AH32+GI32/$AH32*5+GJ32/$AH32*25+GK32*50+GL32*50))) ->  | GR32: =IF(C32<>"",C32,"") ->  | HA32: =IF($C32="","", IF(GZ32=1,0,IF(GX32<>0,500,GS32*$AE32/$AH32+GT32/$AH32*5+GU32/$AH32*25+GV32*50+GW32*50))) ->  | HC32: =IF(C32<>"",C32,"") ->  | HL32: =IF($C32="","", IF(HK32=1,0,IF(HI32<>0,500,HD32*$AE32/$AH32+HE32/$AH32*5+HF32/$AH32*25+HG32*50+HH32*50))) ->  | HN32: =IF(C32<>"",C32,"") ->  | HW32: =IF($C32="","", IF(HV32=1,0,IF(HT32<>0,500,HO32*$AE32/$AH32+HP32/$AH32*5+HQ32/$AH32*25+HR32*50+HS32*50))) ->  | HY32: =IF(C32<>"",C32,"") ->  | IH32: =IF($C32="","", IF(IG32=1,0,IF(IE32<>0,500,HZ32*$AE32/$AH32+IA32/$AH32*5+IB32/$AH32*25+IC32*50+ID32*50))) -> 
